Workbook

Sheet Design Regulator
A1: LM(2)5145/46-Q1 DC-DC Controller Design Tool
A3: About | C3: xx | F3: = Input Box | O3: TERMS OF USE
A5: Step 1: Operating Specifications
D6: Input Voltage ‒ Min, VIN(min) | E6: 19 | F6: V
D7: Input Voltage ‒ Nom, VIN(nom) | E7: 20 | F7: V
D8: Input Voltage ‒ Max, VIN(max) | E8: 21 | F8: V
D9: Output Voltage, VOUT | E9: 5 | F9: V
D10: Maximum Output Current, IOUT | E10: 2 | F10: A
D11: Free-running Switching Frequency, FSW | E11: 500 | F11: kHz
D12: SYNC Frequency (if used), FSW-SYNC | E12: 500 | F12: kHz
D13: Frequency Set Resistor, RRT | E13: ='Standard Value Calculator'!S4/1000 -> 20 | F13: kΩ
A15: Step 2: Filter Inductor
D16: Recommended Filter Inductance | E16: =Lout1*1000000 -> 11.26126126 | F16: µH
D17: Inductance, LO | E17: 15 | F17: µH
D18: Inductor DCR | E18: 24.7 | F18: mΩ
D19: Pk-to-Pk Ripple Current at VIN(nom), DIL | E19: =Iripple1 -> 0.50664 | F19: APK-PK
D20: Inductor Ripple Current as a % of Max IOUT | E20: =Iripple1/Iout*100 -> 25.332 | F20: %
D21: Estimate Core Loss at VIN(nom) | E21: 0.2 | F21: W
A23: Step 3: RDS(on) or Shunt-Based Current Limit
D24: Shunt, RS | E24: 3.3 | F24: mΩ | S24: \
D25: Required Current Limit Setpoint | E25: 2.6 | F25: A
D26: Current Limit Set Resistor, RILIM | E26: =IF(RDSON_sense=1, Rilim_Rdson, Rilim_shunt) -> 100 | F26: Ω
D27: Min Inductor Sat Current, IL(SAT) | E27: ='Variable Management'!B51 -> 3.6 | F27: A
D28: Power Loss in RS at Full Load, Max VIN | E28: =_Rs3 -> 0.01 | F28: W
A30: Step 4: Output Capacitance
D31: Output Voltage Ripple Specification | E31: 20 | F31: mVPK-PK
D32: Minimum Ideal Output Capacitance | E32: =Coutmin*1000000 -> 6.333 | F32: µF
D33: Total Output Capacitance (Derated), COUT | E33: 19.2 | F33: µF
D34: Maximum Permitted ESR | E34: =IF(ISERROR(Resrmax*1000),"N/A",Resrmax*1000) -> 37.26652218 | F34: mΩ
D35: Output Capacitor ESR | E35: 2 | F35: mΩ
D36: Resulting Output Voltage Ripple | E36: =Vripple2*1000 -> 6.67424124 | F36: mVPK-PK
D37: Output Capacitor Ripple Current | E37: =Icoutrms -> 0.1462543702 | F37: ARMS
A39: Step 5: Input Capacitance
D40: Input Voltage Ripple Specification | E40: 100 | F40: mVPK-PK
D41: Minimum Ideal Input Capacitance | E41: ='Variable Management'!B80*1000000 -> 7.565959104 | F41: µF
D42: Total Input Capacitance (Derated), CIN | E42: 19.2 | F42: µF
D43: Maximum Permitted ESR | E43: =IF(CinEsrMax*1000<0,"N/A",CinEsrMax*1000) -> 26.8909711 | F43: mΩ
D44: Input Capacitor ESR | E44: 3.2 | F44: mΩ
D45: Resulting Input Voltage Ripple | E45: =Vinripple2*1000 -> 46.616661 | F45: mVPK-PK
D46: Input Capacitor Ripple Current | E46: =Icinrms -> 0.8698252183 | F46: ARMS
A48: Step 6: Soft-start, UVLO
D49: Soft-Start Time, tSS | E49: 4.5 | F49: ms
D50: Soft-Start Capacitance, CSS | E50: =Css_u*1000000000 -> 56 | F50: nF
D51: Input Voltage UVLO Turn-On | E51: 19.5 | F51: V
D52: Input Voltage UVLO Turn-Off | E52: 19 | F52: V
D53: UVLO Upper Resistor, RUV1 | E53: ='Variable Management'!F97 -> 49.9 | F53: kΩ
D54: UVLO Lower Resistor, RUV2 | E54: ='Variable Management'!F98 -> 3.24 | F54: kΩ
A55: If the SYNC feature is not required, connect SYNCIN to GND
A56: or VCC for diode emulation or FPWM modes, respectively
A58: Step 7: Compensation Design
D59: LC Complex Pole Frequency | E59: =Fo/1000 -> 9.420747271 | F59: kHz
D60: ESR Zero Frequency | E60: =Fesr/1000 -> 4144.659981 | F60: kHz
D61: Desired Crossover Frequency | E61: 30 | F61: kHz
D62: Appropriate Midband Gain | E62: =Kmidband -> 0.2122973839 | F62: V/V
D63: Upper Feedback Resistor, RFB1 | E63: 18 | F63: kΩ
D64: Lower Feedback Resistor, RFB2 | E64: =IF(Vout=Vref,"OPEN",Rfb2_u/1000) -> 3.4 | F64: =IF(Vout=Vref,"","kΩ") -> kΩ
D65: Actual Output Voltage, VOUT | E65: ='Variable Management'!B129 -> 5.035294118 | F65: V
A67: Pole & Zero Placement | D67: FZ1 | E67: 0.636 | F67: =" kHz " -> kHz
A68: =" Baseline P/Z Frequencies:" -> Baseline P/Z Frequencies: | D68: FZ2 | E68: 9.4 | F68: =" kHz" -> kHz
D69: FP1 | E69: 250 | F69: =" kHz" -> kHz
D70: FP2 | E70: 250 | F70: =" kHz" -> kHz
A72: Compensation Components
B73: Calculated / | C73: Std Values | D73: =" Selected" -> Selected | F73: Actual P/Z Frequencies
A74: RC1 | B74: =Rcea1/1000 -> 3.82135291 | C74: ='Standard Value Calculator'!S27 -> 3.83 | D74: =C74 -> 3.83 | E74: kΩ | F74: =Fz1_u/1000 -> 0.6111002276 | G74: kHz (FZ1)
A75: CC1 | B75: =Cc1ea*1000000000000 -> 65485.60873 | C75: ='Standard Value Calculator'!S28 -> 68000 | D75: =C75 -> 68000 | E75: pF | F75: =Fz2_u/1000 -> 10.38032914 | G75: kHz (FZ2)
A76: CC2 | B76: =Cc2ea*1000000000000 -> 167.0202882 | C76: ='Standard Value Calculator'!S29 -> 180 | D76: =C76 -> 180 | E76: pF | F76: =Fp1_u/1000 -> 278.0679001 | G76: kHz (FP1)
A77: RC2 | B77: =Rcea2 -> 703.2418953 | C77: ='Standard Value Calculator'!S30 -> 698 | D77: =C77 -> 698 | E77: Ω | F77: =Fp2_u/1000 -> 231.4711862 | G77: kHz (FP2)
A78: CC3 | B78: =Cc3ea*1000000000000 -> 905.2642873 | C78: ='Standard Value Calculator'!S31 -> 820 | D78: =C78 -> 820 | E78: pF
A80: Efficiency / Power Loss Analyzer
A82: Step 8: Efficiency
D84: High-Side MOSFET (Q1) Specifications | E84: CSD19538Q3A
D85: On-State Resistance, RDS(on) | E85: 8.5 | F85: mΩ
D86: Total Gate Charge, QG | E86: 14 | F86: nC
D87: Gate-Drain Charge, QGD | E87: 2.8 | F87: nC
D88: Gate-Source Charge, QGS | E88: 2.6 | F88: nC
D89: Output Capacitance, COSS | E89: 290 | F89: pF
D90: Gate Resistance, RG | E90: 2 | F90: Ω
D91: Transconductance, gFS | E91: 13 | F91: S
D92: Gate-Source Plateau Voltage, VGS(MP) | E92: 3 | F92: V
D93: Body Diode Forward Voltage, VBD1 | E93: 1 | F93: V
D94: Thermal Resistance, θJA | E94: 45 | F94: °C/W
D96: Low-Side MOSFET (Q2) Specifications | E96: NVMFS6B14NL
D97: On-State Resistance, RDS(on) | E97: 8.5 | F97: mΩ
D98: Total Gate Charge, QG | E98: 14 | F98: nC
D99: Output Charge, QOSS | E99: 1.45 | F99: nC
D100: Output Capacitance, COSS | E100: 290 | F100: pF
D101: Body Diode Forward Voltage, VBD2 | E101: 1 | F101: V
D102: Body Diode Recovery Charge, QRR | E102: 6.5 | F102: nC
D103: Thermal Resistance, θJA | E103: 40 | F103: °C/W
A106: Step 9: IC Power Loss
D107: IC Power Dissipation | E107: ='Power Calculations'!AN9 -> 0.32 | F107: W
D108: IC Junction Temperature Rise (est) | E108: ='Power Calculations'!AN9*50 -> 16 | F108: °C

Sheet Schematic & BOM
B34: ** Tie SYNCIN to VCC and GND for CCM and DCM operation, respectively **
A35: ="VIN = "&Vin&"V, VOUT = "& Vout &"V, IOUT = " &Iout & "A, Fsw = " & Fsw/1000 &"kHz, Current Limit = "&ROUNDUP(DC_Current_Limit_Setpoint,0)&"A" -> VIN = 20V, VOUT = 5V, IOUT = 2A, Fsw = 500kHz, Current Limit = 3A
A36: Wide VIN, High Efficiency Synchronous Buck Regulator BOM
A37: Count | B37: Ref Des | C37: Value | D37: Description | H37: Size | I37: Part Number | J37: MFR | K37: Footprint (mm) | L37: Area (mm2)
A38: 1 | B38: CBOOT | C38: 0.1 | D38: =C38 -> 0.1 | I38: Std | J38: Std | K38: =CHOOSE(Q38, 'Variable Management'!N69,'Variable Management'!N70,'Variable Management'!N71) -> 1.6 x 0.8 | L38: =CHOOSE(Q38, 'Variable Management'!O69,'Variable Management'!O70,'Variable Management'!O71) -> 1.3 | Q38: 2
A39: 1 | B39: CC1 | C39: ='Design Regulator'!D75 -> 68000 | D39: 68000 | I39: Std | J39: Std | K39: =CHOOSE(Q39, 'Variable Management'!N69,'Variable Management'!N70,'Variable Management'!N71) -> 1.0 x 0.5 | L39: =CHOOSE(Q39, 'Variable Management'!O69,'Variable Management'!O70,'Variable Management'!O71) -> 0.5 | Q39: 1
A40: 1 | B40: CC2 | C40: ='Design Regulator'!D76 -> 180 | D40: 180 | I40: Std | J40: Std | K40: =CHOOSE(Q40, 'Variable Management'!N69,'Variable Management'!N70,'Variable Management'!N71) -> 1.0 x 0.5 | L40: =CHOOSE(Q40, 'Variable Management'!O69,'Variable Management'!O70,'Variable Management'!O71) -> 0.5 | Q40: 1
A41: 1 | B41: CC3 | C41: ='Design Regulator'!D78 -> 820 | D41: 820 | I41: Std | J41: Std | K41: =CHOOSE(Q41, 'Variable Management'!N69,'Variable Management'!N70,'Variable Management'!N71) -> 1.0 x 0.5 | L41: =CHOOSE(Q41, 'Variable Management'!O69,'Variable Management'!O70,'Variable Management'!O71) -> 0.5 | Q41: 1
A42: 1 | B42: CS | C42: ='Variable Management'!B270 -> 56pF | D42: ="Capacitor, Ceramic, "&'Variable Management'!B270&", 100V, X7R, 20%" -> Capacitor, Ceramic, 56pF, 100V, X7R, 20% | I42: Std | J42: Std | K42: =CHOOSE(Q42, 'Variable Management'!N69,'Variable Management'!N70,'Variable Management'!N71) -> 1.6 x 0.8 | L42: =CHOOSE(RDSON_sense,CHOOSE(Q42,'Variable Management'!O69,'Variable Management'!O70,'Variable Management'!O71),0) -> 1.3 | Q42: 2
A43: =ROUNDUP('Design Regulator'!E42/10,0) -> 2 | B43: CIN | C43: ='Variable Management'!B249 -> 4.7µF | D43: =CHOOSE(Cin_Voltage_Rating, "Capacitor, Ceramic, "&'Variable Management'!B249&", 10V, X7R, 10%", "Capacitor, Ceramic, "&'Variable Management'!B249&", 16V, X7R, 10%", "Capacitor, Ceramic, "&'Variable Management'!B249&", 25V, X7R, 10%", "Capacitor, Ceramic, "&'Variable Management'!B249&", 50V, X7R, 10%", "Capacitor, Ceramic, "&'Variable Management'!B249&", 100V, X7S, 10%") -> Capacitor, Ceramic, 4.7µF, 50V, X7R, 10% | I43: Std | J43: Std | K43: =CHOOSE(Q43, 'Variable Management'!N69,'Variable Management'!N70,'Variable Management'!N71,'Variable Management'!N72,'Variable Management'!N73) -> 3.2 x 2.5 | L43: =CHOOSE(Q43, 'Variable Management'!O69,'Variable Management'!O70,'Variable Management'!O71,'Variable Management'!O72,'Variable Management'!O73)*A43 -> 16 | Q43: 5
A44: ='Variable Management'!D242 -> 1 | B44: COUT | C44: ='Variable Management'!F243 -> 47µF | D44: =CHOOSE(Cout_Voltage_Rating, "Capacitor, Ceramic, "&'Variable Management'!B244&", 6.3V, X7R, 10%", "Capacitor, Ceramic, "&'Variable Management'!B244&", 10V, X7R, 10%", "Capacitor, Ceramic, "&'Variable Management'!B244&", 16V, X7R, 10%", "Capacitor, Ceramic, "&'Variable Management'!B244&", 25V, X7R, 10%", "Capacitor, Ceramic, "&'Variable Management'!B244&", 50V, X7R, 10%", "Capacitor, Ceramic, "&'Variable Management'!B244&", 100V, X7R, 10%") -> Capacitor, Ceramic, 47µF, 10V, X7R, 10% | I44: Std | J44: Std | K44: =CHOOSE(Q44, 'Variable Management'!N69,'Variable Management'!N70,'Variable Management'!N71,'Variable Management'!N72,'Variable Management'!N73) -> 3.2 x 2.5 | L44: =CHOOSE(Q44, 'Variable Management'!O69,'Variable Management'!O70,'Variable Management'!O71,'Variable Management'!O72,'Variable Management'!O73)*A44 -> 8 | Q44: 5
A45: 1 | B45: CSS | C45: ='Design Regulator'!E50 -> 56 | D45: =C45 -> 56 | I45: Std | J45: Std | K45: =CHOOSE(Q45, 'Variable Management'!N69,'Variable Management'!N70,'Variable Management'!N71) -> 1.6 x 0.8 | L45: =CHOOSE(Q45, 'Variable Management'!O69,'Variable Management'!O70,'Variable Management'!O71) -> 1.3 | Q45: 2
A46: 1 | B46: CVCC | C46: 2.2 | D46: 2.2 | I46: Std | J46: Std | K46: =CHOOSE(Q46, 'Variable Management'!N69,'Variable Management'!N70,'Variable Management'!N71) -> 2.0 x 1.25 | L46: =CHOOSE(Q46, 'Variable Management'!O69,'Variable Management'!O70,'Variable Management'!O71) -> 2.5 | Q46: 3
A47: 1 | B47: CVIN | C47: 0.1 | D47: 0.1 | I47: Std | J47: Std | K47: =CHOOSE(Q47, 'Variable Management'!N69,'Variable Management'!N70,'Variable Management'!N71) -> 1.6 x 0.8 | L47: =CHOOSE(Q47, 'Variable Management'!O69,'Variable Management'!O70,'Variable Management'!O71) -> 1.3 | Q47: 2
A48: 1 | B48: LO | C48: ='Design Regulator'!E17 -> 15 | D48: ="Inductor, "&Lout2*1000000&"µH, "&Rdcr*1000&"mΩ, >"&ROUNDUP(Ilsat,0)&"A" -> Inductor, 15µH, 24.7mΩ, >4A | I48: Various | J48: Various | K48: =CHOOSE(Q48, 'Variable Management'!N78,'Variable Management'!N79,'Variable Management'!N80, 'Variable Management'!N81, 'Variable Management'!N82, 'Variable Management'!N83, 'Variable Management'!N84, 'Variable Management'!N85) -> 10.0 x 10.0 | L48: =CHOOSE(Q48, 'Variable Management'!O78,'Variable Management'!O79,'Variable Management'!O80, 'Variable Management'!O81, 'Variable Management'!O82, 'Variable Management'!O83, 'Variable Management'!O84, 'Variable Management'!O85) -> 100 | Q48: 7
A49: =R49 -> 1 | B49: Q1 | C49: See description | D49: ='Design Regulator'!E85 -> 8.5 | I49: ='Design Regulator'!E84 -> CSD19538Q3A | J49: TI | K49: =CHOOSE(Q49, 'Variable Management'!N48,'Variable Management'!N49,'Variable Management'!N50,'Variable Management'!N51) -> 5.0 x 6.0 | L49: =CHOOSE(Q49, 'Variable Management'!O48,'Variable Management'!O49,'Variable Management'!O50,'Variable Management'!O51)*R49 -> 30 | Q49: 1 | R49: 1
A50: =R50 -> 1 | B50: Q2 | C50: See description | D50: ='Design Regulator'!E97 -> 8.5 | I50: ='Design Regulator'!E96 -> NVMFS6B14NL | J50: TI | K50: =CHOOSE(Q50, 'Variable Management'!N48,'Variable Management'!N49,'Variable Management'!N50,'Variable Management'!N51) -> 5.0 x 6.0 | L50: =CHOOSE(Q50, 'Variable Management'!O48,'Variable Management'!O49,'Variable Management'!O50,'Variable Management'!O51)*R50 -> 30 | Q50: 1 | R50: 1
A52: 1 | B52: RC1 | C52: ='Design Regulator'!D74 -> 3.83 | D52: =C52 -> 3.83 | I52: Std | J52: Std | K52: =CHOOSE(Q52, 'Variable Management'!N69,'Variable Management'!N70,'Variable Management'!N71) -> 1.0 x 0.5 | L52: =CHOOSE(Q52, 'Variable Management'!O69,'Variable Management'!O70,'Variable Management'!O71) -> 0.5 | Q52: 1
A53: 1 | B53: RC2 | C53: ='Design Regulator'!D77 -> 698 | D53: 698 | I53: Std | J53: Std | K53: =CHOOSE(Q52, 'Variable Management'!N69,'Variable Management'!N70,'Variable Management'!N71) -> 1.0 x 0.5 | L53: =CHOOSE(Q53, 'Variable Management'!O69,'Variable Management'!O70,'Variable Management'!O71) -> 0.5 | Q53: 1
A54: 1 | B54: RILIM | C54: ='Design Regulator'!E26 -> 100 | D54: 100 | I54: Std | J54: Std | K54: =CHOOSE(Q52, 'Variable Management'!N69,'Variable Management'!N70,'Variable Management'!N71) -> 1.0 x 0.5 | L54: =CHOOSE(Q54, 'Variable Management'!O69,'Variable Management'!O70,'Variable Management'!O71) -> 2.5 | Q54: 3
A55: 1 | B55: RRT | C55: ='Design Regulator'!E13 -> 20 | D55: 20 | I55: Std | J55: Std | K55: =CHOOSE(Q55, 'Variable Management'!N69,'Variable Management'!N70,'Variable Management'!N71) -> 1.0 x 0.5 | L55: =CHOOSE(Q55, 'Variable Management'!O69,'Variable Management'!O70,'Variable Management'!O71) -> 0.5 | Q55: 1
A56: 1 | B56: RFB1 | C56: ='Design Regulator'!E63 -> 18 | D56: 18 | I56: Std | J56: Std | K56: =CHOOSE(Q56, 'Variable Management'!N69,'Variable Management'!N70,'Variable Management'!N71) -> 1.0 x 0.5 | L56: =CHOOSE(Q56, 'Variable Management'!O69,'Variable Management'!O70,'Variable Management'!O71) -> 0.5 | Q56: 1
A57: 1 | B57: RFB2 | C57: ='Design Regulator'!E64 -> 3.4 | D57: 3.4 | I57: Std | J57: Std | K57: =CHOOSE(Q57, 'Variable Management'!N69,'Variable Management'!N70,'Variable Management'!N71) -> 1.0 x 0.5 | L57: =CHOOSE(Q57, 'Variable Management'!O69,'Variable Management'!O70,'Variable Management'!O71) -> 0.5 | Q57: 1
A58: 1 | B58: RPGOOD | C58: 20 | D58: 20 | I58: Std | J58: Std | K58: =CHOOSE(Q58, 'Variable Management'!N69,'Variable Management'!N70,'Variable Management'!N71) -> 1.0 x 0.5 | L58: =CHOOSE(Q58, 'Variable Management'!O69,'Variable Management'!O70,'Variable Management'!O71) -> 0.5 | Q58: 1
A59: 1 | B59: RS | C59: ='Design Regulator'!E24 -> 3.3 | D59: 3.3 | H59: 1206 | I59: Std | J59: Std | K59: 3.2 x 1.6 | L59: =CHOOSE(RDSON_sense, 0,5.1) -> 0
A60: 1 | B60: RUV1 | C60: ='Design Regulator'!E53 -> 49.9 | D60: 49.9 | I60: Std | J60: Std | K60: =CHOOSE(Q60, 'Variable Management'!N69,'Variable Management'!N70,'Variable Management'!N71) -> 1.6 x 0.8 | L60: =CHOOSE(Q60, 'Variable Management'!O69,'Variable Management'!O70,'Variable Management'!O71) -> 1.3 | Q60: 2
A61: 1 | B61: RUV2 | C61: ='Design Regulator'!E54 -> 3.24 | D61: 3.24 | I61: Std | J61: Std | K61: =CHOOSE(Q61, 'Variable Management'!N69,'Variable Management'!N70,'Variable Management'!N71) -> 1.0 x 0.5 | L61: =CHOOSE(Q61, 'Variable Management'!O69,'Variable Management'!O70,'Variable Management'!O71) -> 0.5 | Q61: 1
A62: 1 | B62: RVIN | C62: 2.2 | D62: 2.2 | I62: Std | J62: Std | K62: =CHOOSE(Q62, 'Variable Management'!N69,'Variable Management'!N70,'Variable Management'!N71) -> 1.0 x 0.5 | L62: =CHOOSE(Q62, 'Variable Management'!O69,'Variable Management'!O70,'Variable Management'!O71) -> 0.5 | Q62: 1
A63: 1 | B63: U1 | C63: =CHOOSE(VARIANT, "LM5145", "LM5145-Q1", "LM25145", "LM5146", "LM5146-Q1") -> LM5146 | D63: =CHOOSE(VARIANT, "IC, LM5145, PWM Controller, 6V-75V Input", "IC, LM5145-Q1, PWM Controller, 6V-75V Input", "IC, LM25145, PWM Controller, 6V-42V Input", "IC, LM5146 PWM Controller, 5.5V-100V Input", "IC, LM5146-Q1, PWM Controller, 5.5V-100V Input") -> IC, LM5146 PWM Controller, 5.5V-100V Input | H63: VQFN-20 | I63: =CHOOSE(VARIANT, "LM5145RGYR", "LM5145QRGYRQ1", "LM25145RGYR", "LM5146RGYR", "LM5146QRGYRQ1",) -> LM5146RGYR | J63: TI | K63: 3.5 x 4.5 x 1.0 | L63: 15.75
I65: Total Solution Size (buffered by 25%) | L65: =SUM(L38:L63)*1.25 -> 270.9375 | M65: mm2 = | N65: =L65/25.4/25.4 -> 0.4199539649 | O65: in2
A66: NOTES:
A67: ** Inductor saturation current should be higher than the current limit setpoint at all operating temperatures **
A68: ** Effective output capacitance should be appropriately derated for applied voltage and temperature, particularly with ceramics **
Q455: 2

Sheet EVMs
A1: LM(2)5145/6/-Q1 Quickstart Calculator
B3: LM5146-Q1-EVM12V
B46: LM5145EVM-HD-20A PCB Layout
O50: Top
O51: Layer | Y51: x
O76: Layer 2
O102: Layer 3
O129: Bottom

Sheet Variable Management (hidden)
A1: Excel Variables Names/Calculations
B2: Input from user =
B3: Output =
B4: Constant
A5: Variable Name | B5: Value | C5: STD Units | D5: Notes | H5: iteration
A6: Step 1: Operational Specs
A7: Vin | B7: ='Design Regulator'!E7 -> 20 | C7: V | D7: Nominal input voltage | H7: 1 | U7: LM5145 | V7: 1
A8: Vinmin | B8: ='Design Regulator'!E6 -> 19 | C8: V | D8: Min input voltage | U8: LM5145-Q1 | V8: 2
A9: Vinmax | B9: ='Design Regulator'!E8 -> 21 | C9: V | D9: Max input voltage | U9: LM25145 | V9: 3
A10: Vout | B10: ='Design Regulator'!E9 -> 5 | C10: V | D10: Output Voltage | H10: 1 | U10: LM5146 | V10: 4
A11: Iout | B11: ='Design Regulator'!E10 -> 2 | C11: A | D11: Maximum output Current | H11: 1 | U11: LM5146-Q1 | V11: 5
A12: Fsw | B12: =IF(AND('Design Regulator'!E12<='Design Regulator'!E11*1.5, 'Design Regulator'!E12>='Design Regulator'!E11*0.8), 'Design Regulator'!E12*1000, 'Design Regulator'!E11*1000) -> 500000 | C12: Hz | D12: Nominal Operational Frequency | H12: 1 | T12: VARIANT | U12: =CHOOSE(VARIANT, "LM5145", "LM5145-Q1", "LM25145", "LM5146", "LM5146-Q1") -> LM5146 | V12: 4
A13: Fsw_freerunning | B13: ='Design Regulator'!E11*1000 -> 500000 | C13: Hz | D13: Free-running switching frequency | T13: VIN-MAX | U13: =CHOOSE(VARIANT, 75, 75, 42, 100, 100) -> 100 | V13: V
A14: Vref | B14: 0.8 | C14: V | D14: Reference Voltage | T14: VIN-MIN | U14: =CHOOSE(VARIANT, 6, 6, 6, 5.5, 5.5) -> 5.5 | V14: V
A15: R_RT | B15: =1/(B13*0.0000000001) -> 20000 | C15: W | T15: VOUT-MAX | U15: =CHOOSE(VARIANT, 60, 60, 42, 60, 60) -> 60 | V15: V
A17: Ton at Vin-max | B17: =B38/Fsw*1000000000 -> 482.5142857 | C17: ns
A18: Toff at Vin-min | B18: =B37/Fsw*1000000000 -> 1466.694737 | C18: ns
U19: External VCC Applied | V19: 1
U20: No External VCC | V20: 2
U21: Ext_VCC | V21: 2
A22: Step 2: Inductor
A23: Don1 | B23: =Vout/Vin -> 0.25 | C23: index | D23: ideal Duty Cycle | H23: 1
A24: Doff1 | B24: =1-23:23 -> 0.75 | C24: index | D24: Ideal 1- Duty Cycle | H24: 1
A25: Don_Vinmin | B25: =Vout/Vinmin -> 0.2631578947
A26: Doff_Vinmin | B26: =1-B25 -> 0.7368421053
A27: Don_Vinmax | B27: =Vout/Vinmax -> 0.2380952381
A28: Doff_Vinmax | B28: =1-B27 -> 0.7619047619
A30: Lout1 | B30: =(Vin-Vout)*_Don1/(Fsw*Iout*0.333) -> 1.126126126e-05 | C30: H | D30: Calculated Inductor value for 30% ripple | H30: 1
A31: Lout2 | B31: ='Design Regulator'!E17/1000000 -> 1.5e-05 | C31: H | D31: Chosen Inductor Value | H31: 2
A32: Rdcr | B32: ='Design Regulator'!E18/1000 -> 0.0247 | C32: W | D32: DCR | H32: 1
A34: Don2 | B34: =(Vout+(Rdcr+RdsonBot)*Iout)/(Vin+(RdsonBot-RdsonTop)*Iout) -> 0.25332 | D34: Duty Cycle with DCR accounted for | H34: 2
A35: Doff2 | B35: =1-_Don2 -> 0.74668 | D35: 1-Duty Cycle with DCR accounted for | H35: 2
A36: Don2_Vinmin | B36: =(Vout+(Rdcr+RdsonBot)*Iout)/(Vinmin+(RdsonBot-RdsonTop)*Iout) -> 0.2666526316
A37: Doff2_Vinmin | B37: =1-B36 -> 0.7333473684
A38: Don2_Vinmax | B38: =(Vout+(Rdcr+RdsonBot)*Iout)/(Vinmax+(RdsonBot-RdsonTop)*Iout) -> 0.2412571429 | L38: Vout<5V | M38: 100 | N38: 1
A39: Doff2_Vinmax | B39: =1-B38 -> 0.7587428571 | L39: Vout<=8V | M39: 47 | N39: 2
L40: Vout<=12V | M40: 22 | N40: 3
A41: Vripple1 | B41: ='Design Regulator'!E31/1000 -> 0.02 | C41: V | D41: Choosen Initial Voltage ripple Value | H41: 1 | L41: Vout<=20V | M41: 22 | N41: 4
A42: Irripple1 | B42: =(Vin-Vout)*_Don2/(Fsw*Lout2) -> 0.50664 | C42: A | D42: Ripple Current after Chosen inductor (p-p) | H42: 1 | L42: Vout<=42V | M42: 10 | N42: 5
A43: DCR at hot | B43: =Rdcr*(1+0.0039*(F43-25)) -> 0.03192475 | C43: Ohms | E43: Temp | F43: 100 | L43: Vout<60V | M43: 4.7 | N43: 6
A44: TL | B44: =Lout2/Rdcr -> 0.0006072874494 | C44: s | D44: L/R Time Constant | L44: Cout Capacitance | M44: =CHOOSE(N44,"100", "47","22","22","10", "4.7") -> 47 | N44: =IF(Vout<5, 1, IF(Vout<=8, 2, IF(Vout<=12, 3, IF(Vout<=20, 4, IF(Vout<=42, 5, 6))))) -> 2 | Q44: Quantity: 1 | R44: 1
Q45: Quantity: 2 | R45: 2
A46: Step 3: Current Limit
L48: SON 5 x 6 | M48: 1 | N48: 5.0 x 6.0 | O48: 30
A49: DC Current Limit Setpoint | B49: ='Design Regulator'!E25 -> 2.6 | L49: SON 3 x 3 | M49: 2 | N49: 3.3 x 3.3 | O49: 10.9
A50: Ilimit | B50: ='Design Regulator'!E25-Iripple1/2 -> 2.34668 | C50: A | D50: Chosen current limit level - valley current | L50: DPAK, TO-252 | M50: 3 | N50: 10.0 x 6.6 | O50: 66
A51: Ilsat | B51: =ROUND('Design Regulator'!E25+Iripple1/2,0)*1.2 -> 3.6 | C51: A | L51: D2PAK, TO-263 | M51: 4 | N51: 15.0 x 10.0 | O51: 150
K52: MOSFET package | L52: =CHOOSE(M52, L48, L49, L50, L51) -> SON 5 x 6 | M52: 1
A53: Ilim1 | B53: 0.0002 | C53: A | D53: Current Limit Current Source - Rdson sensing
A54: Ilim2 | B54: 0.0001 | C54: A | D54: Current Limit Current Source - shunt sensing | L54: RDS(on) sensing | M54: 1
A55: Rilim_Rdson_ideal | B55: =ILimit*RdsonBot/Ilim1 -> 99.7339 | C55: W | D55: Ideal Rset for the chosen current limit | L55: Shunt sensing | M55: 2
A56: Rilim_Rdson | B56: ='Standard Value Calculator'!S6 -> 100 | C56: W | D56: Standard value current limit set resistor | K56: Current Sensing | L56: =CHOOSE(RDSON_sense, L54,L55) -> RDS(on) sensing | M56: 1 | N56: 1 = Yes, 2 = No
A58: Rshunt | B58: ='Design Regulator'!E24/1000 -> 0.0033 | C58: W
A59: Rilim_shunt_ideal | B59: =ILimit*Rshunt/Ilim2 -> 77.44044 | C59: W | K59: Vout<5V | L59: 6.3V | M59: 1
A60: Rilim_shunt | B60: ='Standard Value Calculator'!S22 -> 76.8 | C60: W | D60: Standard value current limit set resistor | K60: Vout<=8V | L60: 10V | M60: 2 | Q60: Vin(max)<=8V | R60: 10V | S60: 1
K61: Vout<=12V | L61: 16V | M61: 3 | Q61: Vin(max)<=12V | R61: 16V | S61: 2
A62: Power dissipation in the shunt | B62: =ROUND(((1-Don_Vinmax)*Iout)^2*Rshunt,2) -> 0.01 | C62: W | K62: Vout<=20V | L62: 25V | M62: 4 | Q62: Vin(max)<=20V | R62: 25V | S62: 3
A64: Cilim | B64: =0.000000006/Rilim_Rdson_ideal - 0.000000000002 -> 5.816008599e-11 | C64: F | D64: Choose cap for 6ns time constant | K64: Vout<=42V | L64: 50V | M64: 5 | Q64: Vin(max)<=42V | R64: 50V | S64: 4
A65: Cilim_ideal | B65: ='Standard Value Calculator'!S23 -> 56 | C65: pF | K65: Vout<60V | L65: 100V | M65: 6 | Q65: Vin(max)<100V | R65: 100V | S65: 5
A66: Ilimit2 | B66: =Ics*Rset/Rdcr-Iripple1/2 ->  | C66: A | D66: Current limit setpoint after standard components are selected | K66: Cout Voltage Rating | L66: =CHOOSE(M66,"6.3V","10V","16V","25V","50V","100V") -> 10V | M66: =IF(Vout<5, 1, IF(Vout<=8, 2, IF(Vout<=12, 3, IF(Vout<=20, 4, IF(Vout<=42, 5, 6))))) -> 2 | Q66: Cin Voltage Rating | R66: =CHOOSE(S66,"10V","16V","25V","50V","100V") -> 50V | S66: =IF(Vinmax<=8,1,IF(Vinmax<=12,2,IF(Vinmax<=20,3,IF(Vinmax<=42,4,5)))) -> 4
A68: Step 4: Output Capacitor
A69: Icoutrms | B69: =Iripple1/SQRT(3)/2 -> 0.1462543702 | C69: A | D69: Output Cap rms current | L69: 0402 | M69: 1 | N69: 1.0 x 0.5 | O69: 0.5
A70: Coutmin | B70: =(Iripple1/(Vripple1*Fsw*8)) -> 6.333e-06 | C70: F | D70: Minimum Output Capacitnace | H70: 1 | L70: 0603 | M70: 2 | N70: 1.6 x 0.8 | O70: 1.3
A71: Cout | B71: ='Design Regulator'!E33/1000000 -> 1.92e-05 | C71: F | D71: Choosen Output Capacitor | H71: 1 | L71: 0805 | M71: 3 | N71: 2.0 x 1.25 | O71: 2.5
A72: Resrmax | B72: =SQRT((Vripple1/Iripple1)^2-(1/(Fsw*Cout*8))^2) -> 0.03726652218 | C72: W | D72: Max ESR before ripple exceeds Vripple1 | H72: 1 | L72: 1206 | M72: 4 | N72: 3.2 x 1.6 | O72: 5.1
A73: CoutEsr | B73: ='Design Regulator'!E35/1000 -> 0.002 | C73: W | D73: Chosen ESR | H73: 1 | L73: 1210 | M73: 5 | N73: 3.2 x 2.5 | O73: 8
A74: Vripple | B74: =Iripple1*SQRT(CoutEsr^2+(1/(8*Fsw*Cout))^2) -> 0.00667424124 | C74: Vp-p | K74: Component Size | L74: =CHOOSE(M74,"0402","0603","0805","1206","1210") -> 1210 | M74: 5 | N74: =CHOOSE(M74,N69,N70, N71,N72,N73) -> 3.2 x 2.5
A77: Step 5: Input Capacitor
A78: Vinripple1 | B78: ='Design Regulator'!E40/1000 -> 0.1 | C78: Vp-p | L78: 3mm x 3mm | M78: 1 | N78: 3.0 x 3.0 | O78: 9
A79: Icinrms | B79: =Iout*SQRT(_Don2*Doff2) -> 0.8698252183 | C79: A | L79: 4mm x 4mm | M79: 2 | N79: 4.0 x 4.0 | O79: 16
A80: Cinmin | B80: =Iout*_Don2*(1-_Don2)/(Vinripple1*Fsw) -> 7.565959104e-06 | C80: F | L80: 5mm x 5mm | M80: 3 | N80: 5.0 x 5.0 | O80: 25
A81: Cin | B81: ='Design Regulator'!E42/1000000 -> 1.92e-05 | C81: F | D81: Input capacitance | L81: 6mm x 6mm | M81: 4 | N81: 6.0 x 6.0 | O81: 36
A82: CinEsrMax | B82: =-(Iout*_Don2*(1-_Don2)/(Cin*Fsw)-Vinripple1)/(Iout+Iripple1/2) -> 0.0268909711 | C82: W | L82: 7mm x 7mm | M82: 5 | N82: 7.0 x 7.0 | O82: 49
A83: RCinEsr | B83: ='Design Regulator'!E44/1000 -> 0.0032 | C83: W | D83: Input capacitance series resistance (ESR) | L83: 8mm x 8mm | M83: 6 | N83: 8.0 x 8.0 | O83: 64
A84: Vinripple2 | B84: =Iout*_Don2*(1-_Don2)/(Cin*Fsw)+(Iout +Iripple1/2)*RCinEsr -> 0.046616661 | C84: Vp-p | L84: 10mm x 10mm | M84: 7 | N84: 10.0 x 10.0 | O84: 100
B85: =Iout*_Don1*(1-_Don1)/(Cin*Fsw) -> 0.0390625 | L85: 12mm x 12mm | M85: 8 | N85: 12.0 x 12.0 | O85: 144
K86: Inductor Size | L86: =CHOOSE(M86,L78,L79, L80, L81, L82, L83, L84, L85) -> 12mm x 12mm | M86: 8 | N86: =CHOOSE(M86,N78,N79, N80,N81,N82, N83, N84, N85) -> 12.0 x 12.0
A87: Step 6: Soft Start
A88: Tss | B88: ='Design Regulator'!E49/1000 -> 0.0045 | C88: s | D88: Soft Start Time
A89: Iss | B89: =Cout*Vout/Tss -> 0.02133333333 | C89: A | D89: Load Cap current during soft start
A90: Css | B90: =0.00001*Tss/0.8 -> 5.625e-08 | C90: F
A91: Css_u | B91: ='Standard Value Calculator'!B4 -> 5.6e-08 | C91: F
A93: Step 7: Other Components
A95: VINUVLO_ON | B95: ='Design Regulator'!E51 -> 19.5 | C95: V
A96: VINUVLO_OFF | B96: ='Design Regulator'!E52 -> 19 | C96: V
A97: RUV1 | B97: =(VINuvlo_off-VINuvlo_on*Vuvlo_off/Vuvlo_on)/(Iuvlo1*Vuvlo_off/Vuvlo_on-Iuvlo2) -> 50 | C97: kΩ | D97: ='Standard Value Calculator'!S16 -> 49.9 | E97: kΩ | F97: =IF(Ruvlo1<0,"N/A",D97) -> 49.9 | G97: =IF(Ruvlo1<0,"N/A",D97&"kΩ") -> 49.9kΩ
A98: RUV2 | B98: =D97*Vuvlo_on/(VINuvlo_on-Vuvlo_on+Ruvlo1*Iuvlo1) -> 3.272131148 | C98: kΩ | D98: ='Standard Value Calculator'!S17 -> 3.24 | E98: kΩ | F98: =IF(F97="N/A","N/A",D98) -> 3.24 | G98: =IF(G97="N/A","N/A",D98&"kΩ") -> 3.24kΩ
A100: VINUVLO_ON_ACTUAL | B100: =(D97+D98)/D98*Vuvlo_on-Iuvlo1*D97 -> 19.68148148
A101: VINUVLO_OFF_ACTUAL | B101: =(D97+D98)/D98*Vuvlo_off-Iuvlo2*D97 -> 19.18248148
A104: Rising UVLO/EN Threshold | B104: 1.2
A105: Falling UVLO/EN Threshold | B105: 1.2
A106: Falling UVLO/EN Threshold | B106: =B104-B105 -> 0
A107: UVLO/EN Current Hysteresis | B107: 0
A108: Falling UVLO/EN Falling | B108: 0.01
A109: Rising UVLO/EN Hysteresis | B109: =B108-B107 -> 0.01
A111: RPG | C111: W
A112: RSB | C112: W
A113: Rh | C113: W
A114: Rotp | B114: =80700/(Totp+273)*398 ->  | C114: W
A117: CSBY | B117: 100 | C117: pF
A121: Step 8: Compensation
A122: Eadcg | B122: 10000 | C122: V/V | D122: Error Amplifier Finite DC Gain (AOL)
A123: GBP | B123: 5000000 | C123: Hz | D123: Error Amplifier Gain Bandwidth Product (GBW)
A124: Chosen Crossover | B124: ='Design Regulator'!E61*1000 -> 30000 | C124: Hz
A125: Kmidband | B125: =Fcross/Fo/15 -> 0.2122973839 | C125: V/V | D125: Midband Gain For the Error Amplifier | H125: 1
A126: Rfb1 | B126: ='Design Regulator'!E63*1000 -> 18000 | C126: W | D126: Top Feedback Resistor | H126: 1
A127: Rfb2 | B127: =IF(Vout=Vref,100000000,Vref/((Vout-Vref)/_Rfb1)) -> 3428.571429 | C127: W | D127: Lower Feedback Resistor
A128: Rfb2_u | B128: =IF(Vout=Vref,"N/A",'Standard Value Calculator'!S11) -> 3400 | C128: W | D128: Calculated Lower Feedback Resistor
A129: Vout_actual | B129: =0.8/Rfb2_u*(Rfb2_u+_Rfb1) -> 5.035294118 | C129: V | D129: Actual VOUT
A131: Vramp | B131: =Vin/15 -> 1.333333333 | C131: Vp-p | D131: Peak-to-Peak Ramp Voltage of PWM
A132: Rcea1 | B132: =Kmidband*_Rfb1 -> 3821.35291 | C132: W | D132: This component will first set the midband gain | H132: 1
A133: Cc1ea | B133: =1/(Rcea1*('Design Regulator'!E67*1000)*2*Pi) -> 6.548560873e-08 | C133: F | D133: This along with Rcea1 will set a zero | H133: 1
A134: Cc2ea | B134: =1/((Rcea1*2*Pi*'Design Regulator'!E70*1000)-1/Cc1ea) -> 1.670202882e-10 | C134: F | H134: 1
A135: Rcea2 | B135: =(1/(1000*2*Pi*'Design Regulator'!E69))*_Rfb1/(1/('Design Regulator'!E68*1000*2*Pi)-(1/(1000*2*Pi*'Design Regulator'!E69))) -> 703.2418953 | C135: W | H135: 1
A136: Cc3ea | B136: =(1/(1000*2*Pi*'Design Regulator'!E69))/Rcea2 -> 9.052642873e-10 | C136: F | H136: 1
A138: Choosen Compensation Components from the standard value sheet
A139: Rcea1_u | B139: ='Design Regulator'!D74*1000 -> 3830 | C139: W | H139: 2
A140: Cc1ea_u | B140: ='Design Regulator'!D75*0.000000000001 -> 6.8e-08 | C140: F | H140: 2
A141: Cc2ea_u | B141: ='Design Regulator'!D76*0.000000000001 -> 1.8e-10 | C141: F | H141: 2
A142: Rcea2_u | B142: ='Design Regulator'!D77 -> 698 | C142: W | H142: 2
A143: Cc3ea_u | B143: ='Design Regulator'!D78*0.000000000001 -> 8.2e-10 | C143: F | H143: 2
A145: Resulting Poles/Zero/Q Locations | D145: =Cout -> 1.92e-05 | E145: =CoutEsr -> 0.002
A146: Fo | B146: =SQRT((Rfets+Rdcr+Ro)/(Cout*Lout2*(CoutEsr+Ro)))/(2*Pi) -> 9420.747271 | C146: Hz | D146: LC Double Pole Location
A147: Q | B147: =(Rfets+Rdcr+Ro)/(Lout2+Cout*(Rdcr+Rfets)*(CoutEsr+Ro)+Cout*CoutEsr*Ro)/(Fo*2*Pi) -> 2.619244241 | C147: V/V | D147: Quality Factor of LC output Filter
A148: Fesr | B148: =1/(2*Pi*Cout*CoutEsr) -> 4144659.981 | C148: Hz | D148: Cout ESR Zero Location
A149: Fz1 | B149: =1/(2*Pi*Rcea1_u*Cc1ea_u) -> 611.1002276 | C149: Hz | D149: This zero is set at or below the double pole location
A150: Fz2 | B150: =1/(2*Pi*Cc3ea_u*(_Rfb1+Rcea2_u)) -> 10380.32914 | C150: Hz | D150: This zero is set at or below the double pole location
A151: Fp1 | B151: =1/(2*Pi*Rcea2_u*Cc3ea_u) -> 278067.9001 | C151: Hz | D151: This pole cancels the zero from the Output Cap ESR
A152: Fp2 | B152: =1/(2*Pi*Rcea1_u*(Cc1ea_u*Cc2ea_u/(Cc1ea_u+Cc2ea_u))) -> 231471.1862 | C152: Hz | D152: This pole is set at half the switching frequency
A153: Ro | B153: =Vout/(Iout+Vref/_Rfb2) -> 2.499708367 | D153: Output Resistance
A154: Pi | B154: 3.14159265 | D154: PI
A155: Other Input Variables
A156: Rfets | B156: 0 | C156: W | D156: Series resistance due to FETs | G156: =_Don2*RdsonTop+Doff2*RdsonBot+B161*Vin^2*Fsw/2/(((Iripple1/SQRT(3))^2)) -> 5.852259161
A158: Diode loss eq res | B158: =0.00000002*Fsw*0.6*4/Iripple1 -> 0.04737091426
A159: Fet loss eq res | B159: =_Don2*RdsonTop+Doff2*RdsonBot -> 0.0085
A160: cap loss eq res | B160: =B161*Vin^2*Fsw/2/(((Iripple1/SQRT(3))^2)) -> 5.843759161
A161: Sw cap | B161: 5e-09
A164: Step 8: Efficiency
A166: Design
A167: Ta | B167: 25 | D167: Ambient Temperature
A168: Components
A169: LTc | B169: =4000/1000000 -> 0.004 | C169: %/°C | D169: Inductor Series Resistance Temp Co
A170: ThetaCa | B170: 20 | C170: °C/W | D170: Core to Ambient Thermal Resistance
A171: RCinEsr | B171: =RCinEsr -> 0.0032 | C171: W | D171: Input Capacitor Series Resistance
A172: Part Characteristics
A173: Vcc | B173: 7.5
A174: Top Driver
A175: RdsonDRT | B175: 1 | C175: W | D175: Drain to Source Resistance of pull up Top FET Driver
A176: RdsonDRT2 | B176: 0.9 | C176: W | D176: Drain to Source Resistance of pull down Top FET Driver
A177: Bottom Driver
A178: RdsonDRB | B178: 1 | C178: W | D178: Drain to Source Resistance of pull up Top FET Driver
A179: RdsonDRB2 | B179: 0.9 | C179: W | D179: Drain to Source Resistance of pull down Top FET Driver
A180: Deadtime | D180: Output Capacitor Capcitance
A181: Deadtime | B181: 3e-08 | C181: s | D181: Total Deadtime
A182: IQ
A183: IQ | B183: 0.002 | C183: A | D183: Quiescent Current Of Controller (Not Switching!)
A184: Top FET
A185: RdsonTop | B185: ='Design Regulator'!E85/1000 -> 0.0085 | C185: W | D185: Drain to Source Resistance of Top FET
A186: RdsonTopTc | B186: =4000/1000000 -> 0.004 | C186: %/°C | D186: Drain to Source Resistance Temp Co
A187: QgTop | B187: ='Design Regulator'!E86/1000000000 -> 1.4e-08 | C187: C | D187: Gate Charge Of Top FET
A188: QgdTop | B188: ='Design Regulator'!E87/1000000000 -> 2.8e-09 | C188: C | D188: Gate to Drain Charge
A189: QgsTop | B189: ='Design Regulator'!E88/1000000000 -> 2.6e-09 | C189: C | D189: Gate to Source Charge
A190: CossTop | B190: ='Design Regulator'!E89/1000000000000 -> 2.9e-10 | C190: F | D190: Output Capacitance of High-side FET
A191: RGateTop | B191: ='Design Regulator'!E90 -> 2 | C191: W | D191: Gate Resistance of High-side FET
A192: GfsTop | B192: ='Design Regulator'!E91 -> 13 | C192: S | D192: Transconductance of Top FET
A193: VthTop | B193: ='Design Regulator'!E92 -> 3 | C193: V | D193: Threshold Voltage of Top FET
A194: VspTop | B194: =VthTop+Iout/GmTop -> 3.153846154 | C194: V | D194: Switch Point Voltage of Top FET
A195: VsdTop | B195: ='Design Regulator'!E93 -> 1 | C195: V | D195: Diode Forward Voltage of Top FET Body diode
A196: ThetaJaTop | B196: ='Design Regulator'!E94 -> 45 | C196: °C/W | D196: Junction to Ambient Resistance
A197: Bottom FET
A198: RdsonBot | B198: ='Design Regulator'!E97/1000 -> 0.0085 | C198: W | D198: Drain To Source Resistance of Bottom FET Driver
A199: RdsonBotTc | B199: =4000/1000000 -> 0.004 | C199: %/°C | D199: Drain To Source Resitance Temp Co
A200: QgBot | B200: ='Design Regulator'!E98/1000000000 -> 1.4e-08 | C200: C | D200: Gate Charge Of Bottom FET | J200: =RGateTop -> 2
A201: QossBot | B201: ='Design Regulator'!E99/1000000000 -> 1.45e-09 | C201: C | D201: Output Charge Of Bottom FET
A202: CossBot | B202: ='Design Regulator'!E100/1000000000000 -> 2.9e-10 | C202: F | D202: Output Capacitance Of Bottom FET
A203: RGateBot | B203: 1 | C203: W | D203: Gate Resistance
A204: VsdBot | B204: ='Design Regulator'!E101 -> 1 | C204: V | D204: Diode Forward Voltage of Bottom FET Body Diode
A205: QrrBot | B205: ='Design Regulator'!E102/1000000000 -> 6.5e-09 | C205: C | D205: Reverse Recovery Charge of Body Diode
A206: TrrBot | B206: 4e-08 | C206: s | D206: Reverse Recovery Time of Body Diode
A207: ThetaJaBot | B207: ='Design Regulator'!E103 -> 40 | C207: °C/W | D207: Junction to Ambient Resistance
A208: Bottom Schottky
A209: VfdSky | B209: ='Design Regulator'!E105 -> 0 | C209: V | D209: Diode Forward Voltage
A210: QrrSky | B210: 0 | C210: C | D210: Diode Reverse Recovery Charge
A211: Ireverse | B211: 0 | C211: A | D211: Reverse Leakage Current
A212: Controller
A213: ThetaJaCtrl | B213: 30
A214: Outputs
A215: Top FET
A216: Tr | B216: =(QgdTop+QgsTop/2)*(RdsonDRT+RGateTop)/(Vdd-VspTop) -> 2.830088496e-09 | C216: s
A217: Tf | B217: =(QgdTop+QgsTop/2)*(RdsonDRT+RGateTop)/(VspTop) -> 3.9e-09 | C217: s
A220: Part Power Disipation | B220: Value | C220: Units
A221: Power Dis | B221: ='Power Calculations'!AN9 -> 0.32 | C221: W
A222: Temp rise | B222: =B221*ThetaJaCtrl -> 9.6 | C222: °C
A223: Current (switching) | B223: =(QgBot+QgTop)*Fsw+Iq -> 0.016 | C223: A
A224: Qrr Current | B224: =QrrBot*Fsw -> 0.00325 | C224: A
A225: Diode Current | B225: =C225/Vin -> 0.000561255 | C225: =Deadtime*Fsw*(Ipp/2)*(VsdTop+VsdBot) -> 0.0112251
A226: Total Application Switching IQ | B226: =SUM(B223:B225) -> 0.019811255 | C226: A
A232: Bottom FET/Diode
A233: Part Power
A234: Power Dis
... 62 more rows

Sheet Standard Value Calculator (hidden)
A2: Capacitors | B2: Css | C2: Cc1ea | D2: Cc2ea | E2: Cc3ea | F2: Cout | G2: Cin | H2: Cilim | I2: Cdd | J2: Csb | K2: Csby | L2: Cby | M2: Cb | N2: Sugested Cs
A3: Inputs | B3: =Css -> 5.625e-08 | C3: =Cc1ea -> 6.548560873e-08 | D3: =Cc2ea -> 1.670202882e-10 | E3: =Cc3ea -> 9.052642873e-10 | F3: =Cout -> 1.92e-05 | G3: =Cin -> 1.92e-05 | H3: =Cilim -> 5.816008599e-11 | I3: =Cdd -> 0 | J3: =Csb -> 0 | K3: =Csby -> 100 | L3: =Cby -> 0 | M3: =Cb -> 0 | N3: ='Variable Management'!#REF! ->  | Q3: Resistors | R3: inputs | S3: Standard Result
A4: Standard Result | B4: =SUM(B6:B158)/1000000000000 -> 5.6e-08 | C4: =SUM(C6:C158)/1000000000000 -> 6.8e-08 | D4: 1.8e-10 | E4: 8.2e-10 | F4: 1.8e-05 | G4: 1.8e-05 | H4: 5.6e-11 | I4: =IF(I3="OPEN","OPEN",SUM(I6:I158)/1000000000000) -> 0 | J4: 0 | K4: 0 | L4: 0 | M4: 0 | Q4: Radj | R4: =Rfadj -> 20000 | S4: =IF(R4>(INT(0.5+100*POWER(10,IF(96*(LOG(R4)-INT(LOG(R4)))-ROUND(96*(LOG(R4)-INT(LOG(R4))),0)<0,ROUND(96*(LOG(R4)-INT(LOG(R4))),0)-1,ROUND(96*(LOG(R4)-INT(LOG(R4))),0))/96))*POWER(10,INT(LOG(R4))-2)+INT(0.5+100*POWER(10,(IF(96*(LOG(R4)-INT(LOG(R4)))-ROUND(96*(LOG(R4)-INT(LOG(R4))),0)<0,ROUND(96*(LOG(R4)-INT(LOG(R4))),0)-1,ROUND(96*(LOG(R4)-INT(LOG(R4))),0))+1)/96))*POWER(10,INT(LOG(R4))-2))/2,INT(0.5+100*POWER(10,(IF(96*(LOG(R4)-INT(LOG(R4)))-ROUND(96*(LOG(R4)-INT(LOG(R4))),0)<0,ROUND(96*(LOG(R4)-INT(LOG(R4))),0)-1,ROUND(96*(LOG(R4)-INT(LOG(R4))),0))+1)/96))*POWER(10,INT(LOG(R4))-2),INT(0.5+100*POWER(10,IF(96*(LOG(R4)-INT(LOG(R4)))-ROUND(96*(LOG(R4)-INT(LOG(R4))),0)<0,ROUND(96*(LOG(R4)-INT(LOG(R4))),0)-1,ROUND(96*(LOG(R4)-INT(LOG(R4))),0))/96))*POWER(10,INT(LOG(R4))-2)) -> 20000 | T4: Ω
A5: (pF) | Q5: Rilim_Rdson | R5: =Rilim_Rdson_ideal -> 99.7339 | S5: 100 | T5: Ω
A6: 0.47 | B6: =IF(IF((B$3*10^12-$A7)*(B$3*10^12-$A6)*-1<0,0,1)*IF(ABS(B$3*10^12-$A7)>(B$3*10^12-$A6),$A6,$A7)=B7,0,IF((B$3*10^12-$A7)*(B$3*10^12-$A6)*-1<0,0,1)*IF(ABS(B$3*10^12-$A7)>(B$3*10^12-$A6),$A6,$A7)) -> 0 | C6: =IF(IF((C$3*10^12-$A7)*(C$3*10^12-$A6)*-1<0,0,1)*IF(ABS(C$3*10^12-$A7)>(C$3*10^12-$A6),$A6,$A7)=C7,0,IF((C$3*10^12-$A7)*(C$3*10^12-$A6)*-1<0,0,1)*IF(ABS(C$3*10^12-$A7)>(C$3*10^12-$A6),$A6,$A7)) -> 0 | D6: =IF(IF((D$3*10^12-$A7)*(D$3*10^12-$A6)*-1<0,0,1)*IF(ABS(D$3*10^12-$A7)>(D$3*10^12-$A6),$A6,$A7)=D7,0,IF((D$3*10^12-$A7)*(D$3*10^12-$A6)*-1<0,0,1)*IF(ABS(D$3*10^12-$A7)>(D$3*10^12-$A6),$A6,$A7)) -> 0 | E6: =IF(IF((E$3*10^12-$A7)*(E$3*10^12-$A6)*-1<0,0,1)*IF(ABS(E$3*10^12-$A7)>(E$3*10^12-$A6),$A6,$A7)=E7,0,IF((E$3*10^12-$A7)*(E$3*10^12-$A6)*-1<0,0,1)*IF(ABS(E$3*10^12-$A7)>(E$3*10^12-$A6),$A6,$A7)) -> 0 | F6: =IF(IF((F$3*10^12-$A7)*(F$3*10^12-$A6)*-1<0,0,1)*IF(ABS(F$3*10^12-$A7)>(F$3*10^12-$A6),$A6,$A7)=F7,0,IF((F$3*10^12-$A7)*(F$3*10^12-$A6)*-1<0,0,1)*IF(ABS(F$3*10^12-$A7)>(F$3*10^12-$A6),$A6,$A7)) -> 0 | G6: =IF(IF((G$3*10^12-$A7)*(G$3*10^12-$A6)*-1<0,0,1)*IF(ABS(G$3*10^12-$A7)>(G$3*10^12-$A6),$A6,$A7)=G7,0,IF((G$3*10^12-$A7)*(G$3*10^12-$A6)*-1<0,0,1)*IF(ABS(G$3*10^12-$A7)>(G$3*10^12-$A6),$A6,$A7)) -> 0 | H6: =IF(IF((H$3*10^12-$A7)*(H$3*10^12-$A6)*-1<0,0,1)*IF(ABS(H$3*10^12-$A7)>(H$3*10^12-$A6),$A6,$A7)=H7,0,IF((H$3*10^12-$A7)*(H$3*10^12-$A6)*-1<0,0,1)*IF(ABS(H$3*10^12-$A7)>(H$3*10^12-$A6),$A6,$A7)) -> 0 | I6: 0 | J6: 0 | K6: 0 | L6: =IF(IF((L$3*10^12-$A7)*(L$3*10^12-$A6)*-1<0,0,1)*IF(ABS(L$3*10^12-$A7)>(L$3*10^12-$A6),$A6,$A7)=L7,0,IF((L$3*10^12-$A7)*(L$3*10^12-$A6)*-1<0,0,1)*IF(ABS(L$3*10^12-$A7)>(L$3*10^12-$A6),$A6,$A7)) -> 0 | M6: =IF(IF((M$3*10^12-$A7)*(M$3*10^12-$A6)*-1<0,0,1)*IF(ABS(M$3*10^12-$A7)>(M$3*10^12-$A6),$A6,$A7)=M7,0,IF((M$3*10^12-$A7)*(M$3*10^12-$A6)*-1<0,0,1)*IF(ABS(M$3*10^12-$A7)>(M$3*10^12-$A6),$A6,$A7)) -> 0 | N6: =IF(IF((N$3*10^12-$A7)*(N$3*10^12-$A6)*-1<0,0,1)*IF(ABS(N$3*10^12-$A7)>(N$3*10^12-$A6),$A6,$A7)=N7,0,IF((N$3*10^12-$A7)*(N$3*10^12-$A6)*-1<0,0,1)*IF(ABS(N$3*10^12-$A7)>(N$3*10^12-$A6),$A6,$A7)) ->  | Q6: Rilim_Rdson | R6: =Rilim_Rdson_ideal -> 99.7339 | S6: 100 | T6: Ω
A7: 0.56 | B7: =IF(IF((B$3*10^12-$A8)*(B$3*10^12-$A7)*-1<0,0,1)*IF(ABS(B$3*10^12-$A8)>(B$3*10^12-$A7),$A7,$A8)=B8,0,IF((B$3*10^12-$A8)*(B$3*10^12-$A7)*-1<0,0,1)*IF(ABS(B$3*10^12-$A8)>(B$3*10^12-$A7),$A7,$A8)) -> 0 | C7: =IF(IF((C$3*10^12-$A8)*(C$3*10^12-$A7)*-1<0,0,1)*IF(ABS(C$3*10^12-$A8)>(C$3*10^12-$A7),$A7,$A8)=C8,0,IF((C$3*10^12-$A8)*(C$3*10^12-$A7)*-1<0,0,1)*IF(ABS(C$3*10^12-$A8)>(C$3*10^12-$A7),$A7,$A8)) -> 0 | D7: 0 | E7: 0 | F7: 0 | G7: 0 | H7: 0 | I7: 0 | J7: 0 | K7: 0 | L7: 0 | M7: 0
A8: 0.68 | B8: 0 | C8: 0 | D8: 0 | E8: 0 | F8: 0 | G8: 0 | H8: 0 | I8: 0 | J8: 0 | K8: 0 | L8: 0 | M8: 0 | Q8: Rc1ea | R8: =Rcea1 -> 3821.35291 | S8: =IF(R8>(INT(0.5+100*POWER(10,IF(96*(LOG(R8)-INT(LOG(R8)))-ROUND(96*(LOG(R8)-INT(LOG(R8))),0)<0,ROUND(96*(LOG(R8)-INT(LOG(R8))),0)-1,ROUND(96*(LOG(R8)-INT(LOG(R8))),0))/96))*POWER(10,INT(LOG(R8))-2)+INT(0.5+100*POWER(10,(IF(96*(LOG(R8)-INT(LOG(R8)))-ROUND(96*(LOG(R8)-INT(LOG(R8))),0)<0,ROUND(96*(LOG(R8)-INT(LOG(R8))),0)-1,ROUND(96*(LOG(R8)-INT(LOG(R8))),0))+1)/96))*POWER(10,INT(LOG(R8))-2))/2,INT(0.5+100*POWER(10,(IF(96*(LOG(R8)-INT(LOG(R8)))-ROUND(96*(LOG(R8)-INT(LOG(R8))),0)<0,ROUND(96*(LOG(R8)-INT(LOG(R8))),0)-1,ROUND(96*(LOG(R8)-INT(LOG(R8))),0))+1)/96))*POWER(10,INT(LOG(R8))-2),INT(0.5+100*POWER(10,IF(96*(LOG(R8)-INT(LOG(R8)))-ROUND(96*(LOG(R8)-INT(LOG(R8))),0)<0,ROUND(96*(LOG(R8)-INT(LOG(R8))),0)-1,ROUND(96*(LOG(R8)-INT(LOG(R8))),0))/96))*POWER(10,INT(LOG(R8))-2)) -> 3830 | T8: Ω
A9: 0.82 | B9: 0 | C9: 0 | D9: 0 | E9: 0 | F9: 0 | G9: 0 | H9: 0 | I9: 0 | J9: 0 | K9: 0 | L9: 0 | M9: 0 | Q9: Rc2ea | R9: =Rcea2 -> 703.2418953 | S9: =IF(R9>(INT(0.5+100*POWER(10,IF(96*(LOG(R9)-INT(LOG(R9)))-ROUND(96*(LOG(R9)-INT(LOG(R9))),0)<0,ROUND(96*(LOG(R9)-INT(LOG(R9))),0)-1,ROUND(96*(LOG(R9)-INT(LOG(R9))),0))/96))*POWER(10,INT(LOG(R9))-2)+INT(0.5+100*POWER(10,(IF(96*(LOG(R9)-INT(LOG(R9)))-ROUND(96*(LOG(R9)-INT(LOG(R9))),0)<0,ROUND(96*(LOG(R9)-INT(LOG(R9))),0)-1,ROUND(96*(LOG(R9)-INT(LOG(R9))),0))+1)/96))*POWER(10,INT(LOG(R9))-2))/2,INT(0.5+100*POWER(10,(IF(96*(LOG(R9)-INT(LOG(R9)))-ROUND(96*(LOG(R9)-INT(LOG(R9))),0)<0,ROUND(96*(LOG(R9)-INT(LOG(R9))),0)-1,ROUND(96*(LOG(R9)-INT(LOG(R9))),0))+1)/96))*POWER(10,INT(LOG(R9))-2),INT(0.5+100*POWER(10,IF(96*(LOG(R9)-INT(LOG(R9)))-ROUND(96*(LOG(R9)-INT(LOG(R9))),0)<0,ROUND(96*(LOG(R9)-INT(LOG(R9))),0)-1,ROUND(96*(LOG(R9)-INT(LOG(R9))),0))/96))*POWER(10,INT(LOG(R9))-2)) -> 698 | T9: Ω
A10: 1 | B10: 0 | C10: 0 | D10: 0 | E10: 0 | F10: 0 | G10: 0 | H10: 0 | I10: 0 | J10: 0 | K10: 0 | L10: 0 | M10: 0 | Q10: Rfb1 | R10: =_Rfb1 -> 18000 | S10: =IF(R10>(INT(0.5+100*POWER(10,IF(96*(LOG(R10)-INT(LOG(R10)))-ROUND(96*(LOG(R10)-INT(LOG(R10))),0)<0,ROUND(96*(LOG(R10)-INT(LOG(R10))),0)-1,ROUND(96*(LOG(R10)-INT(LOG(R10))),0))/96))*POWER(10,INT(LOG(R10))-2)+INT(0.5+100*POWER(10,(IF(96*(LOG(R10)-INT(LOG(R10)))-ROUND(96*(LOG(R10)-INT(LOG(R10))),0)<0,ROUND(96*(LOG(R10)-INT(LOG(R10))),0)-1,ROUND(96*(LOG(R10)-INT(LOG(R10))),0))+1)/96))*POWER(10,INT(LOG(R10))-2))/2,INT(0.5+100*POWER(10,(IF(96*(LOG(R10)-INT(LOG(R10)))-ROUND(96*(LOG(R10)-INT(LOG(R10))),0)<0,ROUND(96*(LOG(R10)-INT(LOG(R10))),0)-1,ROUND(96*(LOG(R10)-INT(LOG(R10))),0))+1)/96))*POWER(10,INT(LOG(R10))-2),INT(0.5+100*POWER(10,IF(96*(LOG(R10)-INT(LOG(R10)))-ROUND(96*(LOG(R10)-INT(LOG(R10))),0)<0,ROUND(96*(LOG(R10)-INT(LOG(R10))),0)-1,ROUND(96*(LOG(R10)-INT(LOG(R10))),0))/96))*POWER(10,INT(LOG(R10))-2)) -> 17800 | T10: Ω
A11: 1.2 | B11: 0 | C11: 0 | D11: 0 | E11: 0 | F11: 0 | G11: 0 | H11: 0 | I11: 0 | J11: 0 | K11: 0 | L11: 0 | M11: 0 | Q11: Rfb2 | R11: =_Rfb2 -> 3428.571429 | S11: =IF(R11="OPEN","OPEN",IF(R11>(INT(0.5+100*POWER(10,IF(96*(LOG(R11)-INT(LOG(R11)))-ROUND(96*(LOG(R11)-INT(LOG(R11))),0)<0,ROUND(96*(LOG(R11)-INT(LOG(R11))),0)-1,ROUND(96*(LOG(R11)-INT(LOG(R11))),0))/96))*POWER(10,INT(LOG(R11))-2)+INT(0.5+100*POWER(10,(IF(96*(LOG(R11)-INT(LOG(R11)))-ROUND(96*(LOG(R11)-INT(LOG(R11))),0)<0,ROUND(96*(LOG(R11)-INT(LOG(R11))),0)-1,ROUND(96*(LOG(R11)-INT(LOG(R11))),0))+1)/96))*POWER(10,INT(LOG(R11))-2))/2,INT(0.5+100*POWER(10,(IF(96*(LOG(R11)-INT(LOG(R11)))-ROUND(96*(LOG(R11)-INT(LOG(R11))),0)<0,ROUND(96*(LOG(R11)-INT(LOG(R11))),0)-1,ROUND(96*(LOG(R11)-INT(LOG(R11))),0))+1)/96))*POWER(10,INT(LOG(R11))-2),INT(0.5+100*POWER(10,IF(96*(LOG(R11)-INT(LOG(R11)))-ROUND(96*(LOG(R11)-INT(LOG(R11))),0)<0,ROUND(96*(LOG(R11)-INT(LOG(R11))),0)-1,ROUND(96*(LOG(R11)-INT(LOG(R11))),0))/96))*POWER(10,INT(LOG(R11))-2))) -> 3400 | T11: Ω
A12: 1.5 | B12: 0 | C12: 0 | D12: 0 | E12: 0 | F12: 0 | G12: 0 | H12: 0 | I12: 0 | J12: 0 | K12: 0 | L12: 0 | M12: 0 | Q12: Rs1 | R12: =_Rs1 -> 56
A13: 1.8 | B13: 0 | C13: 0 | D13: 0 | E13: 0 | F13: 0 | G13: 0 | H13: 0 | I13: 0 | J13: 0 | K13: 0 | L13: 0 | M13: 0 | Q13: Rs2 | R13: =_Rs2 -> 5.816008599e-11
A14: 2.2 | B14: 0 | C14: 0 | D14: 0 | E14: 0 | F14: 0 | G14: 0 | H14: 0 | I14: 0 | J14: 0 | K14: 0 | L14: 0 | M14: 0 | Q14: Rs3 | R14: =_Rs3 -> 0.01
A15: 2.7 | B15: 0 | C15: 0 | D15: 0 | E15: 0 | F15: 0 | G15: 0 | H15: 0 | I15: 0 | J15: 0 | K15: 0 | L15: 0 | M15: 0
A16: 3.3 | B16: 0 | C16: 0 | D16: 0 | E16: 0 | F16: 0 | G16: 0 | H16: 0 | I16: 0 | J16: 0 | K16: 0 | L16: 0 | M16: 0 | Q16: Ruv1 | R16: =Ruvlo1 -> 50 | S16: =IF(R16="OPEN","OPEN",IF(R16>(INT(0.5+100*POWER(10,IF(96*(LOG(R16)-INT(LOG(R16)))-ROUND(96*(LOG(R16)-INT(LOG(R16))),0)<0,ROUND(96*(LOG(R16)-INT(LOG(R16))),0)-1,ROUND(96*(LOG(R16)-INT(LOG(R16))),0))/96))*POWER(10,INT(LOG(R16))-2)+INT(0.5+100*POWER(10,(IF(96*(LOG(R16)-INT(LOG(R16)))-ROUND(96*(LOG(R16)-INT(LOG(R16))),0)<0,ROUND(96*(LOG(R16)-INT(LOG(R16))),0)-1,ROUND(96*(LOG(R16)-INT(LOG(R16))),0))+1)/96))*POWER(10,INT(LOG(R16))-2))/2,INT(0.5+100*POWER(10,(IF(96*(LOG(R16)-INT(LOG(R16)))-ROUND(96*(LOG(R16)-INT(LOG(R16))),0)<0,ROUND(96*(LOG(R16)-INT(LOG(R16))),0)-1,ROUND(96*(LOG(R16)-INT(LOG(R16))),0))+1)/96))*POWER(10,INT(LOG(R16))-2),INT(0.5+100*POWER(10,IF(96*(LOG(R16)-INT(LOG(R16)))-ROUND(96*(LOG(R16)-INT(LOG(R16))),0)<0,ROUND(96*(LOG(R16)-INT(LOG(R16))),0)-1,ROUND(96*(LOG(R16)-INT(LOG(R16))),0))/96))*POWER(10,INT(LOG(R16))-2))) -> 49.9 | T16: kΩ
A17: 3.9 | B17: 0 | C17: 0 | D17: 0 | E17: 0 | F17: 0 | G17: 0 | H17: 0 | I17: 0 | J17: 0 | K17: 0 | L17: 0 | M17: 0 | Q17: Ruv2 | R17: =Ruvlo2 -> 3.272131148 | S17: 3.24 | T17: kΩ
A18: 4.7 | B18: 0 | C18: 0 | D18: 0 | E18: 0 | F18: 0 | G18: 0 | H18: 0 | I18: 0 | J18: 0 | K18: 0 | L18: 0 | M18: 0
A19: 5.6 | B19: 0 | C19: 0 | D19: 0 | E19: 0 | F19: 0 | G19: 0 | H19: 0 | I19: 0 | J19: 0 | K19: 0 | L19: 0 | M19: 0
A20: 6.8 | B20: 0 | C20: 0 | D20: 0 | E20: 0 | F20: 0 | G20: 0 | H20: 0 | I20: 0 | J20: 0 | K20: 0 | L20: 0 | M20: 0
A21: 8.2 | B21: 0 | C21: 0 | D21: 0 | E21: 0 | F21: 0 | G21: 0 | H21: 0 | I21: 0 | J21: 0 | K21: 0 | L21: 0 | M21: 0
A22: 10 | B22: 0 | C22: 0 | D22: 0 | E22: 0 | F22: 0 | G22: 0 | H22: 0 | I22: 0 | J22: 0 | K22: 0 | L22: 0 | M22: 0 | Q22: Rilim_shunt | R22: =Rilim_shunt_ideal -> 77.44044 | S22: =IF(R22=0,0,IF(R22>(INT(0.5+100*POWER(10,IF(96*(LOG(R22)-INT(LOG(R22)))-ROUND(96*(LOG(R22)-INT(LOG(R22))),0)<0,ROUND(96*(LOG(R22)-INT(LOG(R22))),0)-1,ROUND(96*(LOG(R22)-INT(LOG(R22))),0))/96))*POWER(10,INT(LOG(R22))-2)+INT(0.5+100*POWER(10,(IF(96*(LOG(R22)-INT(LOG(R22)))-ROUND(96*(LOG(R22)-INT(LOG(R22))),0)<0,ROUND(96*(LOG(R22)-INT(LOG(R22))),0)-1,ROUND(96*(LOG(R22)-INT(LOG(R22))),0))+1)/96))*POWER(10,INT(LOG(R22))-2))/2,INT(0.5+100*POWER(10,(IF(96*(LOG(R22)-INT(LOG(R22)))-ROUND(96*(LOG(R22)-INT(LOG(R22))),0)<0,ROUND(96*(LOG(R22)-INT(LOG(R22))),0)-1,ROUND(96*(LOG(R22)-INT(LOG(R22))),0))+1)/96))*POWER(10,INT(LOG(R22))-2),INT(0.5+100*POWER(10,IF(96*(LOG(R22)-INT(LOG(R22)))-ROUND(96*(LOG(R22)-INT(LOG(R22))),0)<0,ROUND(96*(LOG(R22)-INT(LOG(R22))),0)-1,ROUND(96*(LOG(R22)-INT(LOG(R22))),0))/96))*POWER(10,INT(LOG(R22))-2))) -> 76.8 | T22: Ω
A23: 12 | B23: 0 | C23: 0 | D23: 0 | E23: 0 | F23: 0 | G23: 0 | H23: 0 | I23: 0 | J23: 0 | K23: 0 | L23: 0 | M23: 0 | Q23: Cilim | R23: =Cilim -> 5.816008599e-11 | S23: =H4*1000000000000 -> 56 | T23: pF
A24: 15 | B24: 0 | C24: 0 | D24: 0 | E24: 0 | F24: 0 | G24: 0 | H24: 0 | I24: 0 | J24: 0 | K24: 0 | L24: 0 | M24: 0
A25: 18 | B25: 0 | C25: 0 | D25: 0 | E25: 0 | F25: 0 | G25: 0 | H25: 0 | I25: 0 | J25: 0 | K25: 0 | L25: 0 | M25: 0
A26: 22 | B26: 0 | C26: 0 | D26: 0 | E26: 0 | F26: 0 | G26: 0 | H26: 0 | I26: 0 | J26: 0 | K26: 0 | L26: 0 | M26: 0
A27: 27 | B27: 0 | C27: 0 | D27: 0 | E27: 0 | F27: 0 | G27: 0 | H27: 0 | I27: 0 | J27: 0 | K27: 0 | L27: 0 | M27: 0 | Q27: Rc1 | R27: =S8/1000&" kΩ" -> 3.83 kΩ | S27: =S8/1000 -> 3.83 | T27: kΩ
A28: 33 | B28: 0 | C28: 0 | D28: 0 | E28: 0 | F28: 0 | G28: 0 | H28: 0 | I28: 0 | J28: 0 | K28: 0 | L28: 0 | M28: 0 | Q28: Cc1 | R28: =C4*1000000000000&" pF" -> 68000 pF | S28: =C4*1000000000000 -> 68000 | T28: pF
A29: 39 | B29: 0 | C29: 0 | D29: 0 | E29: 0 | F29: 0 | G29: 0 | H29: 0 | I29: 0 | J29: 0 | K29: 0 | L29: 0 | M29: 0 | Q29: Cc2 | R29: =D4*1000000000000&" pF" -> 180 pF | S29: =D4*1000000000000 -> 180 | T29: pF
A30: 47 | B30: 0 | C30: 0 | D30: 0 | E30: 0 | F30: 0 | G30: 0 | H30: 0 | I30: 0 | J30: 0 | K30: 0 | L30: 0 | M30: 0 | Q30: Rc2 | R30: =S9&" Ω" -> 698 Ω | S30: =S9 -> 698 | T30: Ω
A31: 56 | B31: 0 | C31: 0 | D31: 0 | E31: 0 | F31: 0 | G31: 0 | H31: 56 | I31: 0 | J31: 0 | K31: 0 | L31: 0 | M31: 0 | Q31: Cc3 | R31: =E4*1000000000000&" pF" -> 820 pF | S31: =E4*1000000000000 -> 820 | T31: pF
A32: 68 | B32: 0 | C32: 0 | D32: 0 | E32: 0 | F32: 0 | G32: 0 | H32: 0 | I32: 0 | J32: 0 | K32: 0 | L32: 0 | M32: 0
A33: 82 | B33: 0 | C33: 0 | D33: 0 | E33: 0 | F33: 0 | G33: 0 | H33: 0 | I33: 0 | J33: 0 | K33: 0 | L33: 0 | M33: 0
A34: =A22*10 -> 100 | B34: 0 | C34: 0 | D34: 0 | E34: 0 | F34: 0 | G34: 0 | H34: 0 | I34: 0 | J34: 0 | K34: 0 | L34: 0 | M34: 0
A35: =A23*10 -> 120 | B35: 0 | C35: 0 | D35: 0 | E35: 0 | F35: 0 | G35: 0 | H35: 0 | I35: 0 | J35: 0 | K35: 0 | L35: 0 | M35: 0
A36: 150 | B36: 0 | C36: 0 | D36: 180 | E36: 0 | F36: 0 | G36: 0 | H36: 0 | I36: 0 | J36: 0 | K36: 0 | L36: 0 | M36: 0
A37: 180 | B37: 0 | C37: 0 | D37: 0 | E37: 0 | F37: 0 | G37: 0 | H37: 0 | I37: 0 | J37: 0 | K37: 0 | L37: 0 | M37: 0
A38: 220 | B38: 0 | C38: 0 | D38: 0 | E38: 0 | F38: 0 | G38: 0 | H38: 0 | I38: 0 | J38: 0 | K38: 0 | L38: 0 | M38: =IF(IF((M$3*10^12-$A39)*(M$3*10^12-$A38)*-1<0,0,1)*IF(ABS(M$3*10^12-$A39)>(M$3*10^12-$A38),$A38,$A39)=M39,0,IF((M$3*10^12-$A39)*(M$3*10^12-$A38)*-1<0,0,1)*IF(ABS(M$3*10^12-$A39)>(M$3*10^12-$A38),$A38,$A39)) -> 0 | N38: =IF(IF((N$3*10^12-$A39)*(N$3*10^12-$A38)*-1<0,0,1)*IF(ABS(N$3*10^12-$A39)>(N$3*10^12-$A38),$A38,$A39)=N39,0,IF((N$3*10^12-$A39)*(N$3*10^12-$A38)*-1<0,0,1)*IF(ABS(N$3*10^12-$A39)>(N$3*10^12-$A38),$A38,$A39)) -> 
A39: 270 | B39: 0 | C39: =IF(IF((C$3*10^12-$A40)*(C$3*10^12-$A39)*-1<0,0,1)*IF(ABS(C$3*10^12-$A40)>(C$3*10^12-$A39),$A39,$A40)=C40,0,IF((C$3*10^12-$A40)*(C$3*10^12-$A39)*-1<0,0,1)*IF(ABS(C$3*10^12-$A40)>(C$3*10^12-$A39),$A39,$A40)) -> 0 | D39: 0 | E39: 0 | F39: 0 | G39: 0 | H39: 0 | I39: 0 | J39: 0 | K39: 0 | L39: 0 | M39: 0
A40: 330 | B40: 0 | C40: 0 | D40: 0 | E40: 0 | F40: 0 | G40: 0 | H40: 0 | I40: 0 | J40: 0 | K40: 0 | L40: 0 | M40: 0
A41: 390 | B41: 0 | C41: 0 | D41: 0 | E41: 0 | F41: 0 | G41: 0 | H41: 0 | I41: 0 | J41: 0 | K41: 0 | L41: 0 | M41: 0
A42: 470 | B42: 0 | C42: 0 | D42: 0 | E42: 0 | F42: 0 | G42: 0 | H42: 0 | I42: 0 | J42: 0 | K42: 0 | L42: 0 | M42: 0
A43: 560 | B43: 0 | C43: 0 | D43: 0 | E43: 0 | F43: 0 | G43: 0 | H43: 0 | I43: 0 | J43: 0 | K43: 0 | L43: 0 | M43: 0
A44: 680 | B44: 0 | C44: 0 | D44: 0 | E44: 0 | F44: 0 | G44: 0 | H44: 0 | I44: 0 | J44: 0 | K44: 0 | L44: 0 | M44: 0
A45: =A33*10 -> 820 | B45: 0 | C45: 0 | D45: 0 | E45: 820 | F45: 0 | G45: 0 | H45: 0 | I45: 0 | J45: 0 | K45: 0 | L45: 0 | M45: 0
A46: 1000 | B46: 0 | C46: 0 | D46: 0 | E46: 0 | F46: 0 | G46: 0 | H46: 0 | I46: 0 | J46: 0 | K46: 0 | L46: 0 | M46: 0
A47: 1200 | B47: 0 | C47: 0 | D47: 0 | E47: 0 | F47: 0 | G47: 0 | H47: 0 | I47: 0 | J47: 0 | K47: 0 | L47: 0 | M47: 0
A48: 1500 | B48: 0 | C48: 0 | D48: 0 | E48: 0 | F48: 0 | G48: 0 | H48: 0 | I48: 0 | J48: 0 | K48: 0 | L48: 0 | M48: 0
A49: 1800 | B49: 0 | C49: 0 | D49: 0 | E49: 0 | F49: 0 | G49: 0 | H49: 0 | I49: 0 | J49: 0 | K49: 0 | L49: 0 | M49: 0
A50: 2200 | B50: 0 | C50: 0 | D50: 0 | E50: 0 | F50: 0 | G50: 0 | H50: 0 | I50: 0 | J50: 0 | K50: 0 | L50: 0 | M50: 0
A51: 2700 | B51: 0 | C51: 0 | D51: 0 | E51: 0 | F51: 0 | G51: 0 | H51: 0 | I51: 0 | J51: 0 | K51: 0 | L51: 0 | M51: 0
A52: 3300 | B52: 0 | C52: 0 | D52: 0 | E52: 0 | F52: 0 | G52: 0 | H52: 0 | I52: 0 | J52: 0 | K52: 0 | L52: 0 | M52: 0
A53: 3900 | B53: 0 | C53: 0 | D53: 0 | E53: 0 | F53: 0 | G53: 0 | H53: 0 | I53: 0 | J53: 0 | K53: 0 | L53: 0 | M53: 0
A54: 4700 | B54: 0 | C54: 0 | D54: 0 | E54: 0 | F54: 0 | G54: 0 | H54: 0 | I54: 0 | J54: 0 | K54: 0 | L54: 0 | M54: 0
A55: 5600 | B55: 0 | C55: 0 | D55: 0 | E55: 0 | F55: 0 | G55: 0 | H55: 0 | I55: 0 | J55: 0 | K55: 0 | L55: 0 | M55: 0
A56: 6800 | B56: 0 | C56: 0 | D56: 0 | E56: 0 | F56: 0 | G56: 0 | H56: 0 | I56: 0 | J56: 0 | K56: 0 | L56: 0 | M56: 0
A57: 8200 | B57: 0 | C57: 0 | D57: 0 | E57: 0 | F57: 0 | G57: 0 | H57: 0 | I57: 0 | J57: 0 | K57: 0 | L57: 0 | M57: 0
A58: 10000 | B58: 0 | C58: 0 | D58: 0 | E58: 0 | F58: 0 | G58: 0 | H58: 0 | I58: 0 | J58: 0 | K58: 0 | L58: 0 | M58: 0
A59: 12000 | B59: 0 | C59: 0 | D59: 0 | E59: 0 | F59: 0 | G59: 0 | H59: 0 | I59: 0 | J59: 0 | K59: 0 | L59: 0 | M59: 0
A60: 15000 | B60: 0 | C60: 0 | D60: 0 | E60: 0 | F60: 0 | G60: 0 | H60: 0 | I60: 0 | J60: 0 | K60: 0 | L60: 0 | M60: 0
A61: 18000 | B61: 0 | C61: 0 | D61: 0 | E61: 0 | F61: 0 | G61: 0 | H61: 0 | I61: 0 | J61: 0 | K61: 0 | L61: 0 | M61: 0
A62: 22000 | B62: 0 | C62: 0 | D62: 0 | E62: 0 | F62: 0 | G62: 0 | H62: 0 | I62: 0 | J62: 0 | K62: 0 | L62: 0 | M62: 0
A63: 27000 | B63: 0 | C63: 0 | D63: 0 | E63: 0 | F63: 0 | G63: 0 | H63: 0 | I63: 0 | J63: 0 | K63: 0 | L63: 0 | M63: 0
A64: 33000 | B64: 0 | C64: 0 | D64: 0 | E64: 0 | F64: 0 | G64: 0 | H64: 0 | I64: 0 | J64: 0 | K64: 0 | L64: 0 | M64: 0
A65: 39000 | B65: 0 | C65: 0 | D65: 0 | E65: 0 | F65: 0 | G65: 0 | H65: 0 | I65: 0 | J65: 0 | K65: 0 | L65: 0 | M65: 0
A66: 47000 | B66: 0 | C66: 0 | D66: 0 | E66: 0 | F66: 0 | G66: 0 | H66: 0 | I66: 0 | J66: 0 | K66: 0 | L66: 0 | M66: 0
A67: 56000 | B67: 56000 | C67: 68000 | D67: 0 | E67: 0 | F67: 0 | G67: 0 | H67: 0 | I67: 0 | J67: 0 | K67: 0 | L67: 0 | M67: 0
A68: 68000 | B68: 0 | C68: 0 | D68: 0 | E68: 0 | F68: 0 | G68: 0 | H68: 0 | I68: 0 | J68: 0 | K68: 0 | L68: 0 | M68: 0
A69: 82000 | B69: 0 | C69: 0 | D69: 0 | E69: 0 | F69: 0 | G69: 0 | H69: 0 | I69: 0 | J69: 0 | K69: =IF(IF((K$3*10^12-$A70)*(K$3*10^12-$A69)*-1<0,0,1)*IF(ABS(K$3*10^12-$A70)>(K$3*10^12-$A69),$A69,$A70)=K70,0,IF((K$3*10^12-$A70)*(K$3*10^12-$A69)*-1<0,0,1)*IF(ABS(K$3*10^12-$A70)>(K$3*10^12-$A69),$A69,$A70)) -> 0 | L69: 0 | M69: 0
A70: 100000 | B70: 0 | C70: 0 | D70: =IF(IF((D$3*10^12-$A71)*(D$3*10^12-$A70)*-1<0,0,1)*IF(ABS(D$3*10^12-$A71)>(D$3*10^12-$A70),$A70,$A71)=D71,0,IF((D$3*10^12-$A71)*(D$3*10^12-$A70)*-1<0,0,1)*IF(ABS(D$3*10^12-$A71)>(D$3*10^12-$A70),$A70,$A71)) -> 0 | E70: 0 | F70: 0 | G70: 0 | H70: 0 | I70: 0 | J70: 0 | K70: 0 | L70: 0 | M70: =IF(IF((M$3*10^12-$A71)*(M$3*10^12-$A70)*-1<0,0,1)*IF(ABS(M$3*10^12-$A71)>(M$3*10^12-$A70),$A70,$A71)=M71,0,IF((M$3*10^12-$A71)*(M$3*10^12-$A70)*-1<0,0,1)*IF(ABS(M$3*10^12-$A71)>(M$3*10^12-$A70),$A70,$A71)) -> 0 | N70: =IF(IF((N$3*10^12-$A71)*(N$3*10^12-$A70)*-1<0,0,1)*IF(ABS(N$3*10^12-$A71)>(N$3*10^12-$A70),$A70,$A71)=N71,0,IF((N$3*10^12-$A71)*(N$3*10^12-$A70)*-1<0,0,1)*IF(ABS(N$3*10^12-$A71)>(N$3*10^12-$A70),$A70,$A71)) -> 
A71: 120000 | B71: =IF(IF((B$3*10^12-$A72)*(B$3*10^12-$A71)*-1<0,0,1)*IF(ABS(B$3*10^12-$A72)>(B$3*10^12-$A71),$A71,$A72)=B72,0,IF((B$3*10^12-$A72)*(B$3*10^12-$A71)*-1<0,0,1)*IF(ABS(B$3*10^12-$A72)>(B$3*10^12-$A71),$A71,$A72)) -> 0 | C71: =IF(IF((C$3*10^12-$A72)*(C$3*10^12-$A71)*-1<0,0,1)*IF(ABS(C$3*10^12-$A72)>(C$3*10^12-$A71),$A71,$A72)=C72,0,IF((C$3*10^12-$A72)*(C$3*10^12-$A71)*-1<0,0,1)*IF(ABS(C$3*10^12-$A72)>(C$3*10^12-$A71),$A71,$A72)) -> 0 | D71: 0 | E71: 0 | F71: 0 | G71: =IF(IF((G$3*10^12-$A72)*(G$3*10^12-$A71)*-1<0,0,1)*IF(ABS(G$3*10^12-$A72)>(G$3*10^12-$A71),$A71,$A72)=G72,0,IF((G$3*10^12-$A72)*(G$3*10^12-$A71)*-1<0,0,1)*IF(ABS(G$3*10^12-$A72)>(G$3*10^12-$A71),$A71,$A72)) -> 0 | H71: =IF(IF((H$3*10^12-$A72)*(H$3*10^12-$A71)*-1<0,0,1)*IF(ABS(H$3*10^12-$A72)>(H$3*10^12-$A71),$A71,$A72)=H72,0,IF((H$3*10^12-$A72)*(H$3*10^12-$A71)*-1<0,0,1)*IF(ABS(H$3*10^12-$A72)>(H$3*10^12-$A71),$A71,$A72)) -> 0 | I71: =IF(IF((I$3*10^12-$A72)*(I$3*10^12-$A71)*-1<0,0,1)*IF(ABS(I$3*10^12-$A72)>(I$3*10^12-$A71),$A71,$A72)=I72,0,IF((I$3*10^12-$A72)*(I$3*10^12-$A71)*-1<0,0,1)*IF(ABS(I$3*10^12-$A72)>(I$3*10^12-$A71),$A71,$A72)) -> 0 | J71: =IF(IF((J$3*10^12-$A72)*(J$3*10^12-$A71)*-1<0,0,1)*IF(ABS(J$3*10^12-$A72)>(J$3*10^12-$A71),$A71,$A72)=J72,0,IF((J$3*10^12-$A72)*(J$3*10^12-$A71)*-1<0,0,1)*IF(ABS(J$3*10^12-$A72)>(J$3*10^12-$A71),$A71,$A72)) -> 0 | K71: 0 | L71: 0 | M71: 0
A72: 150000 | B72: 0 | C72: 0 | D72: 0 | E72: 0 | F72: 0 | G72: 0 | H72: 0 | I72: 0 | J72: 0 | K72: 0 | L72: 0 | M72: 0
A73: 180000 | B73: 0 | C73: 0 | D73: 0 | E73: 0 | F73: 0 | G73: 0 | H73: 0 | I73: 0 | J73: 0 | K73: 0 | L73: 0 | M73: 0
A74: 220000 | B74: 0 | C74: 0 | D74: 0 | E74: 0 | F74: 0 | G74: 0 | H74: 0 | I74: 0 | J74: 0 | K74: 0 | L74: 0 | M74: 0
A75: 270000 | B75: 0 | C75: 0 | D75: 0 | E75: 0 | F75: 0 | G75: 0 | H75: 0 | I75: 0 | J75: 0 | K75: 0 | L75: 0 | M75: 0
A76: 330000 | B76: 0 | C76: 0 | D76: 0 | E76: 0 | F76: 0 | G76: 0 | H76: 0 | I76: 0 | J76: 0 | K76: 0 | L76: 0 | M76: 0
A77: 390000 | B77: 0 | C77: 0 | D77: 0 | E77: 0 | F77: 0 | G77: 0 | H77: 0 | I77: 0 | J77: 0 | K77: 0 | L77: 0 | M77: 0
A78: 470000 | B78: 0 | C78: 0 | D78: 0 | E78: 0 | F78: 0 | G78: 0 | H78: 0 | I78: 0 | J78: 0 | K78: 0 | L78: 0 | M78: 0
A79: 560000 | B79: 0 | C79: 0 | D79: 0 | E79: 0 | F79: 0 | G79: 0 | H79: 0 | I79: 0 | J79: 0 | K79: 0 | L79: 0 | M79: 0
A80: 680000 | B80: 0 | C80: 0 | D80: 0 | E80: 0 | F80: 0 | G80: 0 | H80: 0 | I80: 0 | J80: 0 | K80: 0 | L80: 0 | M80: 0
A81: 820000 | B81: 0 | C81: 0 | D81: 0 | E81: 0 | F81: 0 | G81: 0 | H81: 0 | I81: 0 | J81: 0 | K81: 0 | L81: 0 | M81: 0
A82: 1000000 | B82: 0 | C82: 0 | D82: 0 | E82: 0 | F82: 0 | G82: 0 | H82: 0 | I82: 0 | J82: 0 | K82: 0 | L82: 0 | M82: 0
A83: 1200000 | B83: 0 | C83: 0 | D83: 0 | E83: 0 | F83: 0 | G83: 0 | H83: 0 | I83: 0 | J83: 0 | K83: 0 | L83: 0 | M83: 0
A84: 1500000 | B84: 0 | C84: 0 | D84: 0 | E84: 0 | F84: 0 | G84: 0 | H84: 0 | I84: 0 | J84: 0 | K84: 0 | L84: 0 | M84: 0
A85: 1800000 | B85: 0 | C85: 0 | D85: 0 | E85: 0 | F85: 0 | G85: 0 | H85: 0 | I85: 0 | J85: 0 | K85: 0 | L85: 0 | M85: 0
A86: 2200000 | B86: 0 | C86: 0 | D86: 0 | E86: 0 | F86: 0 | G86: 0 | H86: 0 | I86: 0 | J86: 0 | K86: 0 | L86: 0 | M86: 0
A87: 2700000 | B87: 0 | C87: 0 | D87: 0 | E87: 0 | F87: 0 | G87: 0 | H87: 0 | I87: 0 | J87: 0 | K87: 0 | L87: 0 | M87: 0
A88: 3300000 | B88: 0 | C88: 0 | D88: 0 | E88: 0 | F88: 0 | G88: 0 | H88: 0 | I88: 0 | J88: 0 | K88: 0 | L88: 0 | M88: 0
A89: 3900000 | B89: 0 | C89: 0 | D89: 0 | E89: 0 | F89: 0 | G89: 0 | H89: 0 | I89: 0 | J89: 0 | K89: 0 | L89: 0 | M89: 0
A90: 4700000 | B90: 0 | C90: 0 | D90: 0 | E90: 0 | F90: 0 | G90: 0 | H90: 0 | I90: 0 | J90: 0 | K90: 0 | L90: 0 | M90: 0
A91: 5600000 | B91: 0 | C91: 0 | D91: 0 | E91: 0 | F91: 0 | G91: 0 | H91: 0 | I91: 0 | J91: 0 | K91: 0 | L91: 0 | M91: 0
A92: 6800000 | B92: 0 | C92: 0 | D92: 0 | E92: 0 | F92: 0 | G92: 0 | H92: 0 | I92: 0 | J92: 0 | K92: 0 | L92: 0 | M92: 0
A93: 8200000 | B93: 0 | C93: 0 | D93: 0 | E93: 0 | F93: 0 | G93: 0 | H93: 0 | I93: 0 | J93: 0 | K93: 0 | L93: 0 | M93: 0
A94: 10000000 | B94: 0 | C94: 0 | D94: 0 | E94: 0 | F94: 0 | G94: 0 | H94: 0 | I94: 0 | J94: 0 | K94: 0 | L94: 0 | M94: 0
A95: 12000000 | B95: 0 | C95: 0 | D95: 0 | E95: 0 | F95: 0 | G95: 0 | H95: 0 | I95: 0 | J95: 0 | K95: 0 | L95: 0 | M95: 0
A96: 15000000 | B96: 0 | C96: 0 | D96: 0 | E96: 0 | F96: 0 | G96: 0 | H96: 0 | I96: 0 | J96: 0 | K96: 0 | L96: 0 | M96: 0
A97: 18000000 | B97: 0 | C97: 0 | D97: 0 | E97: 0 | F97: 18000000 | G97: 18000000 | H97: 0 | I97: 0 | J97: 0 | K97: 0 | L97: 0 | M97: 0
A98: 22000000 | B98: 0 | C98: 0 | D98: 0 | E98: 0 | F98: 0 | G98: 0 | H98: 0 | I98: 0 | J98: 0 | K98: 0 | L98: 0 | M98: 0
A99: =A87*10 -> 27000000 | B99: 0 | C99: 0 | D99: 0 | E99: 0 | F99: 0 | G99: 0 | H99: 0 | I99: 0 | J99: 0 | K99: 0 | L99: 0 | M99: 0
A100: 33000000 | B100: 0 | C100: 0 | D100: 0 | E100: 0 | F100: 0 | G100: 0 | H100: 0 | I100: 0 | J100: 0 | K100: 0 | L100: 0 | M100: 0
A101: 39000000 | B101: 0 | C101: 0 | D101: 0 | E101: 0 | F101: 0 | G101: 0 | H101: 0 | I101: 0 | J101: 0 | K101: 0 | L101: 0 | M101: 0
A102: 47000000 | B102: 0 | C102: 0 | D102: 0 | E102: 0 | F102: 0 | G102: 0 | H102: 0 | I102: 0 | J102: 0 | K102: 0 | L102: 0 | M102: =IF(IF((M$3*10^12-$A103)*(M$3*10^12-$A102)*-1<0,0,1)*IF(ABS(M$3*10^12-$A103)>(M$3*10^12-$A102),$A102,$A103)=M103,0,IF((M$3*10^12-$A103)*(M$3*10^12-$A102)*-1<0,0,1)*IF(ABS(M$3*10^12-$A103)>(M$3*10^12-$A102),$A102,$A103)) -> 0 | N102: =IF(IF((N$3*10^12-$A103)*(N$3*10^12-$A102)*-1<0,0,1)*IF(ABS(N$3*10^12-$A103)>(N$3*10^12-$A102),$A102,$A103)=N103,0,IF((N$3*10^12-$A103)*(N$3*10^12-$A102)*-1<0,0,1)*IF(ABS(N$3*10^12-$A103)>(N$3*10^12-$A102),$A102,$A103)) -> 
A103: 56000000 | B103: 0 | C103: 0 | D103: 0 | E103: 0 | F103: 0 | G103: =IF(IF((G$3*10^12-$A104)*(G$3*10^12-$A103)*-1<0,0,1)*IF(ABS(G$3*10^12-$A104)>(G$3*10^12-$A103),$A103,$A104)=G104,0,IF((G$3*10^12-$A104)*(G$3*10^12-$A103)*-1<0,0,1)*IF(ABS(G$3*10^12-$A104)>(G$3*10^12-$A103),$A103,$A104)) -> 0 | H103: =IF(IF((H$3*10^12-$A104)*(H$3*10^12-$A103)*-1<0,0,1)*IF(ABS(H$3*10^12-$A104)>(H$3*10^12-$A103),$A103,$A104)=H104,0,IF((H$3*10^12-$A104)*(H$3*10^12-$A103)*-1<0,0,1)*IF(ABS(H$3*10^12-$A104)>(H$3*10^12-$A103),$A103,$A104)) -> 0 | I103: =IF(IF((I$3*10^12-$A104)*(I$3*10^12-$A103)*-1<0,0,1)*IF(ABS(I$3*10^12-$A104)>(I$3*10^12-$A103),$A103,$A104)=I104,0,IF((I$3*10^12-$A104)*(I$3*10^12-$A103)*-1<0,0,1)*IF(ABS(I$3*10^12-$A104)>(I$3*10^12-$A103),$A103,$A104)) -> 0 | J103: =IF(IF((J$3*10^12-$A104)*(J$3*10^12-$A103)*-1<0,0,1)*IF(ABS(J$3*10^12-$A104)>(J$3*10^12-$A103),$A103,$A104)=J104,0,IF((J$3*10^12-$A104)*(J$3*10^12-$A103)*-1<0,0,1)*IF(ABS(J$3*10^12-$A104)>(J$3*10^12-$A103),$A103,$A104)) -> 0 | K103: 0 | L103: 0 | M103: 0
A104: 68000000 | B104: 0 | C104: 0 | D104: 0 | E104: 0 | F104: 0 | G104: 0 | H104: 0 | I104: 0 | J104: 0 | K104: 0 | L104: 0 | M104: 0
A105: 82000000 | B105: 0 | C105: 0 | D105: 0 | E105: 0 | F105: 0 | G105: 0 | H105: 0 | I105: 0 | J105: 0 | K105: 0 | L105: 0 | M105: 0
A106: 100000000 | B106: 0 | C106: 0 | D106: 0 | E106: 0 | F106: 0 | G106: 0 | H106: 0 | I106: 0 | J106: 0 | K106: 0 | L106: 0 | M106: 0
A107: 120000000 | B107: 0 | C107: 0 | D107: 0 | E107: 0 | F107: 0 | G107: 0 | H107: 0 | I107: 0 | J107: 0 | K107: 0 | L107: 0 | M107: 0
A108: 150000000 | B108: 0 | C108: 0 | D108: 0 | E108: 0 | F108: 0 | G108: 0 | H108: 0 | I108: 0 | J108: 0 | K108: 0 | L108: 0 | M108: 0
A109: 180000000 | B109: 0 | C109: 0 | D109: 0 | E109: 0 | F109: 0 | G109: 0 | H109: 0 | I109: 0 | J109: 0 | K109: 0 | L109: 0 | M109: 0
A110: 220000000 | B110: 0 | C110: 0 | D110: 0 | E110: 0 | F110: 0 | G110: 0 | H110: 0 | I110: 0 | J110: 0 | K110: 0 | L110: 0 | M110: 0
A111: 270000000 | B111: 0 | C111: 0 | D111: 0 | E111: 0 | F111: 0 | G111: 0 | H111: 0 | I111: 0 | J111: 0 | K111: 0 | L111: 0 | M111: 0
A112: 330000000 | B112: 0 | C112: 0 | D112: 0 | E112: 0 | F112: 0 | G112: 0 | H112: 0 | I112: 0 | J112: 0 | K112: 0 | L112: 0 | M112: 0
A113: 390000000 | B113: 0 | C113: 0 | D113: 0 | E113: 0 | F113: 0 | G113: 0 | H113: 0 | I113: 0 | J113: 0 | K113: 0 | L113: 0 | M113: 0
A114: 470000000 | B114: 0 | C114: 0 | D114: 0 | E114: 0 | F114: 0 | G114: 0 | H114: 0 | I114: 0 | J114: 0 | K114: 0 | L114: 0 | M114: 0
A115: 560000000 | B115: 0 | C115: 0 | D115: 0 | E115: 0 | F115: 0 | G115: 0 | H115: 0 | I115: 0 | J115: 0 | K115: 0 | L115: 0 | M115: 0
A116: 680000000 | B116: 0 | C116: 0 | D116: 0 | E116: 0 | F116: 0 | G116: 0 | H116: 0 | I116: 0 | J116: 0 | K116: 0 | L116: 0 | M116: 0
A117: 820000000 | B117: 0 | C117: 0 | D117: 0 | E117: 0 | F117: 0 | G117: 0 | H117: 0 | I117: 0 | J117: 0 | K117: 0 | L117: 0 | M117: 0
A118: 1000000000 | B118: 0 | C118: 0 | D118: 0 | E118: 0 | F118: 0 | G118: 0 | H118: 0 | I118: 0 | J118: 0 | K118: 0 | L118: 0 | M118: 0
A119: 1200000000 | B119: 0 | C119: 0 | D119: 0 | E119: 0 | F119: 0 | G119: 0 | H119: 0 | I119: 0 | J119: 0 | K119: 0 | L119: 0 | M119: 0
A120: 1500000000 | B120: 0 | C120: 0 | D120: 0 | E120: 0 | F120: 0 | G120: 0 | H120: 0 | I120: 0 | J120: 0 | K120: 0 | L120: 0 | M120: 0
A121: 1800000000 | B121: 0 | C121: 0 | D121: 0 | E121: 0 | F121: 0 | G121: 0 | H121: 0 | I121: 0 | J121: 0 | K121: 0 | L121: 0 | M121: 0
A122: 2200000000 | B122: 0 | C122: 0 | D122: 0 | E122: 0 | F122: 0 | G122: 0 | H122: 0 | I122: 0 | J122: 0 | K122: 0 | L122: 0 | M122: 0
A123: 2700000000 | B123: 0 | C123: 0 | D123: 0 | E123: 0 | F123: 0 | G123: 0 | H123: 0 | I123: 0 | J123: 0 | K123: 0 | L123: 0 | M123: 0
A124: 3300000000 | B124: 0 | C124: 0 | D124: 0 | E124: 0 | F124: 0 | G124: 0 | H124: 0 | I124: 0 | J124: 0 | K124: 0 | L124: 0 | M124: 0
A125: 3900000000 | B125: 0 | C125: 0 | D125: 0 | E125: 0 | F125: 0 | G125: 0 | H125: 0 | I125: 0 | J125: 0 | K125: 0 | L125: 0 | M125: 0
A126: 4700000000 | B126: 0 | C126: 0 | D126: 0 | E126: 0 | F126: 0 | G126: 0 | H126: 0 | I126: 0 | J126: 0 | K126: 0 | L126: 0 | M126: 0
A127: 5600000000 | B127: 0 | C127: 0 | D127: 0 | E127: 0 | F127: 0 | G127: 0 | H127: 0 | I127: 0 | J127: 0 | K127: 0 | L127: 0 | M127: 0
A128: 6800000000 | B128: 0 | C128: 0 | D128: 0 | E128: 0 | F128: 0 | G128: 0 | H128: 0 | I128: 0 | J128: 0 | K128: 0 | L128: 0 | M128: 0
A129: 8200000000 | B129: 0 | C129: 0 | D129: 0 | E129: 0 | F129: 0 | G129: 0 | H129: 0 | I129: 0 | J129: 0 | K129: 0 | L129: 0 | M129: 0
A130: 10000000000 | B130: 0 | C130: 0 | D130: 0 | E130: 0 | F130: 0 | G130: 0 | H130: 0 | I130: 0 | J130: 0 | K130: 0 | L130: 0 | M130: 0
A131: 12000000000 | B131: 0 | C131: 0 | D131: 0 | E131: 0 | F131: 0 | G131: 0 | H131: 0 | I131: 0 | J131: 0 | K131: 0 | L131: 0 | M131: 0
A132: 15000000000 | B132: 0 | C132: 0 | D132: 0 | E132: 0 | F132: 0 | G132: 0 | H132: 0 | I132: 0 | J132: 0 | K132: 0 | L132: 0 | M132: 0
A133: 18000000000 | B133: 0 | C133: 0 | D133: 0 | E133: 0 | F133: 0 | G133: 0 | H133: 0 | I133: 0 | J133: 0 | K133: =IF(IF((K$3*10^12-$A134)*(K$3*10^12-$A133)*-1<0,0,1)*IF(ABS(K$3*10^12-$A134)>(K$3*10^12-$A133),$A133,$A134)=K134,0,IF((K$3*10^12-$A134)*(K$3*10^12-$A133)*-1<0,0,1)*IF(ABS(K$3*10^12-$A134)>(K$3*10^12-$A133),$A133,$A134)) -> 0 | L133: =IF(IF((L$3*10^12-$A134)*(L$3*10^12-$A133)*-1<0,0,1)*IF(ABS(L$3*10^12-$A134)>(L$3*10^12-$A133),$A133,$A134)=L134,0,IF((L$3*10^12-$A134)*(L$3*10^12-$A133)*-1<0,0,1)*IF(ABS(L$3*10^12-$A134)>(L$3*10^12-$A133),$A133,$A134)) -> 0 | M133: 0
A134: 22000000000 | B134: 0 | C134: 0 | D134: 0 | E134: 0 | F134: =IF(IF((F$3*10^12-$A135)*(F$3*10^12-$A134)*-1<0,0,1)*IF(ABS(F$3*10^12-$A135)>(F$3*10^12-$A134),$A134,$A135)=F135,0,IF((F$3*10^12-$A135)*(F$3*10^12-$A134)*-1<0,0,1)*IF(ABS(F$3*10^12-$A135)>(F$3*10^12-$A134),$A134,$A135)) -> 0 | G134: 0 | H134: 0 | I134: 0 | J134: 0 | K134: =IF(IF((K$3*10^12-$A135)*(K$3*10^12-$A134)*-1<0,0,1)*IF(ABS(K$3*10^12-$A135)>(K$3*10^12-$A134),$A134,$A135)=K135,0,IF((K$3*10^12-$A135)*(K$3*10^12-$A134)*-1<0,0,1)*IF(ABS(K$3*10^12-$A135)>(K$3*10^12-$A134),$A134,$A135)) -> 0 | L134: =IF(IF((L$3*10^12-$A135)*(L$3*10^12-$A134)*-1<0,0,1)*IF(ABS(L$3*10^12-$A135)>(L$3*10^12-$A134),$A134,$A135)=L135,0,IF((L$3*10^12-$A135)*(L$3*10^12-$A134)*-1<0,0,1)*IF(ABS(L$3*10^12-$A135)>(L$3*10^12-$A134),$A134,$A135)) -> 0 | M134: =IF(IF((M$3*10^12-$A135)*(M$3*10^12-$A134)*-1<0,0,1)*IF(ABS(M$3*10^12-$A135)>(M$3*10^12-$A134),$A134,$A135)=M135,0,IF((M$3*10^12-$A135)*(M$3*10^12-$A134)*-1<0,0,1)*IF(ABS(M$3*10^12-$A135)>(M$3*10^12-$A134),$A134,$A135)) -> 0 | N134: =IF(IF((N$3*10^12-$A135)*(N$3*10^12-$A134)*-1<0,0,1)*IF(ABS(N$3*10^12-$A135)>(N$3*10^12-$A134),$A134,$A135)=N135,0,IF((N$3*10^12-$A135)*(N$3*10^12-$A134)*-1<0,0,1)*IF(ABS(N$3*10^12-$A135)>(N$3*10^12-$A134),$A134,$A135)) -> 
A135: 27000000000 | B135: =IF(IF((B$3*10^12-$A136)*(B$3*10^12-$A135)*-1<0,0,1)*IF(ABS(B$3*10^12-$A136)>(B$3*10^12-$A135),$A135,$A136)=B136,0,IF((B$3*10^12-$A136)*(B$3*10^12-$A135)*-1<0,0,1)*IF(ABS(B$3*10^12-$A136)>(B$3*10^12-$A135),$A135,$A136)) -> 0 | C135: =IF(IF((C$3*10^12-$A136)*(C$3*10^12-$A135)*-1<0,0,1)*IF(ABS(C$3*10^12-$A136)>(C$3*10^12-$A135),$A135,$A136)=C136,0,IF((C$3*10^12-$A136)*(C$3*10^12-$A135)*-1<0,0,1)*IF(ABS(C$3*10^12-$A136)>(C$3*10^12-$A135),$A135,$A136)) -> 0 | D135: 0 | E135: 0 | F135: 0 | G135: 0 | H135: 0 | I135: 0 | J135: 0 | K135: 0 | L135: 0 | M135: 0
A136: 33000000000 | B136: 0 | C136: 0 | D136: 0 | E136: 0 | F136: 0 | G136: 0 | H136: 0 | I136: 0 | J136: 0 | K136: 0 | L136: 0 | M136: 0
A137: 39000000000 | B137: 0 | C137: 0 | D137: 0 | E137: 0 | F137: 0 | G137: 0 | H137: 0 | I137: 0 | J137: 0 | K137: 0 | L137: 0 | M137: 0
A138: 47000000000 | B138: 0 | C138: 0 | D138: 0 | E138: 0 | F138: 0 | G138: 0 | H138: 0 | I138: 0 | J138: 0 | K138: 0 | L138: 0 | M138: 0
A139: 56000000000 | B139: 0 | C139: 0 | D139: 0 | E139: 0 | F139: 0 | G139: 0 | H139: 0 | I139: 0 | J139: 0 | K139: 0 | L139: 0 | M139: 0
A140: 68000000000 | B140: 0 | C140: 0 | D140: 0 | E140: 0 | F140: 0 | G140: 0 | H140: 0 | I140: 0 | J140: 0 | K140: 0 | L140: 0 | M140: 0
A141: 82000000000 | B141: 0 | C141: 0 | D141: 0 | E141: 0 | F141: 0 | G141: 0 | H141: 0 | I141: 0 | J141: 0 | K141: 0 | L141: 0 | M141: 0
A142: 100000000000 | B142: 0 | C142: 0 | D142: 0 | E142: 0 | F142: 0 | G142: 0 | H142: 0 | I142: 0 | J142: 0 | K142: 0 | L142: 0 | M142: 0
A143: 120000000000 | B143: 0 | C143: 0 | D143: 0 | E143: 0 | F143: 0 | G143: 0 | H143: 0 | I143: 0 | J143: 0 | K143: 0 | L143: 0 | M143: 0
A144: 150000000000 | B144: 0 | C144: 0 | D144: 0 | E144: 0 | F144: 0 | G144: 0 | H144: 0 | I144: 0 | J144: 0 | K144: 0 | L144: 0 | M144: 0
A145: 180000000000 | B145: 0 | C145: 0 | D145: 0 | E145: 0 | F145: 0 | G145: 0 | H145: 0 | I145: 0 | J145: 0 | K145: 0 | L145: 0 | M145: 0
A146: 220000000000 | B146: 0 | C146: 0 | D146: 0 | E146: 0 | F146: 0 | G146: 0 | H146: 0 | I146: 0 | J146: 0 | K146: 0 | L146: 0 | M146: 0
A147: 270000000000 | B147: 0 | C147: 0 | D147: 0 | E147: 0 | F147: 0 | G147: 0 | H147: 0 | I147: 0 | J147: 0 | K147: 0 | L147: 0 | M147: 0
A148: 330000000000 | B148: 0 | C148: 0 | D148: 0 | E148: 0 | F148: 0 | G148: 0 | H148: 0 | I148: 0 | J148: 0 | K148: 0 | L148: 0 | M148: 0
A149: 390000000000 | B149: 0 | C149: 0 | D149: 0 | E149: 0 | F149: 0 | G149: 0 | H149: 0 | I149: 0 | J149: 0 | K149: 0 | L149: 0 | M149: 0
A150: 470000000000 | B150: 0 | C150: 0 | D150: 0 | E150: 0 | F150: 0 | G150: 0 | H150: 0 | I150: 0 | J150: 0 | K150: 0 | L150: 0 | M150: 0
A151: 560000000000 | B151: 0 | C151: 0 | D151: 0 | E151: 0 | F151: 0 | G151: 0 | H151: 0 | I151: 0 | J151: 0 | K151: 0 | L151: 0 | M151: 0
A152: 680000000000 | B152: 0 | C152: 0 | D152: 0 | E152: 0 | F152: 0 | G152: 0 | H152: 0 | I152: 0 | J152: 0 | K152: 0 | L152: 0 | M152: 0
A153: 820000000000 | B153: 0 | C153: 0 | D153: 0 | E153: 0 | F153: 0 | G153: 0 | H153: 0 | I153: 0 | J153: 0 | K153: 0 | L153: 0 | M153: 0
A154: 1000000000000 | B154: 0 | C154: 0 | D154: 0 | E154: 0 | F154: 0 | G154: 0 | H154: 0 | I154: 0 | J154: 0 | K154: 0 | L154: 0 | M154: 0
A155: 1200000000000 | B155: 0 | C155: 0 | D155: 0 | E155: 0 | F155: 0 | G155: 0 | H155: 0 | I155: 0 | J155: 0 | K155: 0 | L155: 0 | M155: 0
A156: 1500000000000 | B156: 0 | C156: 0 | D156: 0 | E156: 0 | F156: 0 | G156: 0 | H156: 0 | I156: 0 | J156: 0 | K156: 0 | L156: 0 | M156: 0
A157: 1800000000000 | B157: 0 | C157: 0 | D157: 0 | E157: 0 | F157: 0 | G157: 0 | H157: 0 | I157: 0 | J157: 0 | K157: 0 | L157: 0 | M157: 0
A158: 2200000000000 | B158: 0 | C158: 0 | D158: 0 | E158: 0 | F158: 0 | G158: 0 | H158: 0 | I158: 0 | J158: 0 | K158: 0 | L158: 0 | M158: 0
A159: 2700000000000 | B159: 2700000000000 | C159: 2700000000000 | D159: 2700000000000 | E159: 2700000000000 | F159: 2700000000000 | G159: 2700000000000 | H159: 2700000000000 | I159: 2700000000000 | J159: 2700000000000 | K159: 0 | L159: 2700000000000 | M159: 2700000000000

Sheet Bode Plots Calculations (hidden)
A1: Bode Plot Setup | AC1: EA MODELING
AT3: =AT9/10000000000000 -> -8.588623424e-07 | AU3: =AU9/10000000000000 -> -0.002334333049
AT4: =AT3*1000 -> -0.0008588623424 | AU4: =AU3*1000 -> -2.334333049 | BJ4: XOVER SEARCH
AC5: a | AD5: b | AE5: c | AF5: d | AJ5: a | AK5: b | AL5: c | AM5: d | BJ5: xover | BK5: =SUM(BJ9:BJ626)/1000 -> 30.5
C6: Output Filter | J6: Pwm | M6: Compensation | X6: Design Output | AC6: Z1 | AJ6: Z3 | AQ6: Ea Gain BW | AT6: Complex EA | BA6: Actual EA Response | BF6: Actual Open Loop System Response | BJ6: phase margin | BK6: =SUM(BK10:BK627) -> 63.278869 | BM6: Comp To Output
C7: Esr zero | F7: LC Double Pole | M7: Origin Pole | O7: Fz1 | Q7: Fz2 | S7: Fp1 | U7: Fp2 | AC7: Num | AE7: Den | AG7: Total | AJ7: Num | AL7: Den | AN7: Total | AQ7: A(s) | AT7: Num | AW7: Den
A8: Frequency | C8: Gain | D8: Phase | F8: Gain | H8: Phase | J8: Gain | M8: Gain | N8: Phase | O8: Gain | P8: Phase | Q8: Gain | R8: Phase | S8: Gain | T8: Phase | U8: Gain | V8: Phase | X8: Total Gain | Y8: Total Phase | Z8: Phase margin | AC8: Real | AD8: Imag | AE8: Real | AF8: Imag | AG8: Z1 Real | AH8: Z1 Imag | AJ8: Real | AK8: Imag | AL8: Real | AM8: Imag | AN8: Z3 Real | AO8: Z3 Imag | AQ8: Real | AR8: Imag | AT8: Real | AU8: Imag | AV8: Phase | AW8: Real | AX8: Imag | AY8: Phase | BA8: EAGain | BB8: Ea Gain (db) | BC8: Ea Phase | BF8: Total Gain | BG8: Total Phase | BH8: Total Phase Margin | BM8: Total Gain | BN8: Total Phase margin | BT8: Output to Comp 5V In @ 500kHz 0A Iout 25DegC
A9: 1 | B9: =A9/1000 -> 0.001 | C9: =SQRT((A9/Fesr)^2+1) -> 1 | D9: =ATAN(A9/Fesr) -> 2.412743155e-07 | F9: =(Ro/(Ro+Rdcr))/SQRT((A9/(Q*Fo))^2+(1-(A9^2/Fo^2))^2) -> 0.9902155395 | G9: =-ATAN(A9*Fo/(Q*(Fo^2-A9^2))) -> -4.052645853e-05 | H9: =IF(G9>0,G9-Pi,G9) -> -4.052645853e-05 | J9: =Vin/Vramp -> 15 | M9: =1/(2*Pi*_Rfb1*(Cc1ea_u+Cc2ea_u)*A9) -> 129.6852639 | N9: =-Pi/2 -> -1.570796325 | O9: =SQRT(1+(A9/Fz1_u)^2) -> 1.000001339 | P9: =ATAN2(Fz1_u,A9) -> 0.001636391319 | Q9: =SQRT(1+(A9/Fz2_u)^2) -> 1.000000005 | R9: =ATAN2(Fz2_u,A9) -> 9.633605867e-05 | S9: =1/SQRT(1+(A9/Fp1_u)^2) -> 1 | T9: =-ATAN2(Fp1_u,A9) -> -3.596243938e-06 | U9: =1/SQRT(1+(A9/Fp2_u)^2) -> 1 | V9: =-ATAN2(Fp2_u,A9) -> -4.320192143e-06 | X9: =20*LOG(C9*J9*O9*Q9*F9*M9*S9*U9) -> 65.6942442 | Y9: =(180/Pi)*(D9+H9+N9+P9+R9+T9+V9) -> -89.90348378 | Z9: =Y9+180 -> 90.09651622 | AC9: 1 | AD9: =Rcea1_u*Cc1ea_u*A9*2*Pi -> 0.00163639278 | AE9: =-Rcea1_u*Cc1ea_u*Cc2ea_u*(A9*2*Pi)^2 -> -1.85071663e-12 | AF9: =(Cc2ea_u+Cc1ea_u)*A9*2*Pi -> 4.283875738e-07 | AG9: =AC9*AE9/(AE9^2+AF9^2)+AD9*AF9/(AE9^2+AF9^2) -> 3809.803756 | AH9: =AD9*AE9/(AE9^2+AF9^2)-AC9*AF9/(AE9^2+AF9^2) -> -2334334.767 | AI9: =SQRT(AG9^2+AH9^2) -> 2334337.876 | AJ9: =_Rfb1 -> 18000 | AK9: =_Rfb1*Rcea2_u*Cc3ea_u*A9*2*Pi -> 0.06473239089 | AL9: 1 | AM9: =(_Rfb1+Rcea2_u)*Cc3ea_u*A9*2*Pi -> 9.633605897e-05 | AN9: =AJ9*AL9/(AL9^2+AM9^2)+AK9*AM9/(AL9^2+AM9^2) -> 17999.99984 | AO9: =AK9*AL9/(AL9^2+AM9^2)-AJ9*AM9/(AL9^2+AM9^2) -> -1.669316655 | AP9: =SQRT(AN9^2+AO9^2) -> 17999.99992 | AQ9: =Eadcg/(1+(Eadcg*A9/GBP)^2) -> 9999.96 | AR9: =-(A9*Eadcg*Eadcg/GBP)/(1+(Eadcg*A9/GBP)^2) -> -19.99992 | AT9: =-AR9*AH9+AG9*AQ9 -> -8588623.424 | AU9: =AQ9*AH9+AG9*AR9 -> -2.334333049e+10 | AV9: =ATAN2(AT9,AU9) -> -1.571164253 | AW9: =AG9-AH9*AO9/_Rfb2+AG9*AN9/_Rfb2+AN9-AO9*AR9+AQ9*AN9 -> 180039919.7 | AX9: =AH9+AH9*AN9/_Rfb2+AG9*AO9/_Rfb2+AO9+AO9*AQ9+AN9*AR9 -> -14966287.36 | AY9: =ATAN2(AW9,AX9) -> -0.08293691907 | BA9: =SQRT(AT9^2+AU9^2)/SQRT(AW9^2+AX9^2) -> 129.210756 | BB9: =20*LOG(BA9) -> 42.22597335 | BC9: =AV9-AY9 -> -1.488227334 | BD9: =BC9*180/Pi-180 -> -265.2691453 | BF9: =20*LOG(BA9*J9*F9*C9) -> 65.66239328 | BG9: =(180/Pi)*(D9+H9+BC9) -> -85.27145346 | BH9: =IF(BG9>180,BG9-180,BG9+180) -> 94.72854654 | BI9: =IF(BH9>180,BH9-360,BH9) -> 94.72854654 | BJ9: =SUM((BF10<0)*(BF9>0))*A9 -> 0 | BK9: =IF(BJ9>0,BI9,0) -> 0 | BM9: =20*LOG(J9*F9*C9) -> 23.43641993 | BN9: =(H9+D9)*180/Pi -> -0.002308171035 | BQ9: =20*LOG(BA9*7) -> 59.12793415 | BT9: Frequency | BU9: Gain | BV9: Phase
A10: 2 | B10: =A10/1000 -> 0.002 | C10: 1 | D10: 4.82548631e-07 | F10: 0.9902155706 | G10: -8.105291966e-05 | H10: -8.105291966e-05 | J10: 15 | M10: 64.84263195 | N10: -1.570796325 | O10: 1.000005356 | P10: 0.003272773874 | Q10: 1.000000019 | R10: 0.0001926721155 | S10: 1 | T10: -7.192487876e-06 | U10: 1 | V10: -8.640384286e-06 | X10: =20*LOG(C10*J10*O10*Q10*F10*M10*S10*U10) -> 59.67367957 | Y10: -89.80696807 | Z10: =Y10+180 -> 90.19303193 | AC10: 1 | AD10: 0.003272785559 | AE10: -7.402866521e-12 | AF10: 8.567751475e-07 | AG10: =AC10*AE10/(AE10^2+AF10^2)+AD10*AF10/(AE10^2+AF10^2) -> 3809.803755 | AH10: =AD10*AE10/(AE10^2+AF10^2)-AC10*AF10/(AE10^2+AF10^2) -> -1167167.408 | AJ10: 18000 | AK10: 0.1294647818 | AL10: 1 | AM10: 0.0001926721179 | AN10: =AJ10*AL10/(AL10^2+AM10^2)+AK10*AM10/(AL10^2+AM10^2) -> 17999.99936 | AO10: =AK10*AL10/(AL10^2+AM10^2)-AJ10*AM10/(AL10^2+AM10^2) -> -3.338633217 | AQ10: 9999.840003 | AR10: -39.99936001 | AT10: =-AR10*AH10+AG10*AQ10 -> -8588521.352 | AU10: =AQ10*AH10+AG10*AR10 -> -1.167163973e+10 | AV10: =ATAN2(AT10,AU10) -> -1.571532172 | AW10: 180037654.8 | AX10: -8048177.382 | AY10: =ATAN2(AW10,AX10) -> -0.04467300368 | BA10: 64.76422069 | BB10: =20*LOG(BA10) -> 36.22670288 | BC10: =AV10-AY10 -> -1.526859168 | BD10: -267.4825864 | BF10: 59.66312308 | BG10: -87.4872027 | BH10: =IF(BG10>180,BG10-180,BG10+180) -> 92.5127973 | BI10: =IF(BH10>180,BH10-360,BH10) -> 92.5127973 | BJ10: 0 | BK10: =IF(BJ10>0,BI10,0) -> 0 | BM10: =20*LOG(J10*F10*C10) -> 23.4364202 | BN10: -0.004616342219 | BQ10: =20*LOG(BA10*7) -> 53.12866368 | BT10: 100 | BU10: 35.3593 | BV10: -267.6677
A11: 3 | B11: 0.003 | C11: 1 | D11: 7.238229466e-07 | F11: 0.9902156223 | G11: -0.000121579386 | H11: -0.000121579386 | J11: 15 | M11: 43.2284213 | N11: -1.570796325 | O11: 1.00001205 | P11: 0.004909138902 | Q11: 1.000000042 | R11: 0.0002890081689 | S11: 0.9999999999 | T11: -1.078873181e-05 | U11: 0.9999999999 | V11: -1.296057643e-05 | X11: 56.15191319 | Y11: -89.71045336 | Z11: 90.28954664 | AC11: 1 | AD11: 0.004909178339 | AE11: -1.665644967e-11 | AF11: 1.285162721e-06 | AG11: 3809.803755 | AH11: -778111.6328 | AJ11: 18000 | AK11: 0.1941971727 | AL11: 1 | AM11: 0.0002890081769 | AN11: 17999.99855 | AO11: -5.007949593 | AQ11: 9999.640013 | AR11: -59.99784008 | AT11: -8588351.237 | AU11: -7781064798 | AV11: -1.571900076 | AW11: 180033880 | AX11: -5993246.677 | AY11: =ATAN2(AW11,AX11) -> -0.03327726011 | BA11: 43.19610092 | BB11: 32.70889094 | BC11: -1.538622816 | BD11: -268.1565937 | BF11: 56.1453116 | BG11: -88.16351825 | BH11: 91.83648175 | BI11: 91.83648175 | BJ11: 0 | BK11: 0 | BM11: 23.43642066 | BN11: -0.006924513702 | BQ11: 49.61085174 | BT11: 102.329 | BU11: 34.9368 | BV11: -265.9149
A12: 4 | B12: 0.004 | C12: 1 | D12: 9.650972621e-07 | F12: 0.9902156947 | G12: -0.0001621058602 | H12: -0.0001621058602 | J12: 15 | M12: 32.42131598 | N12: -1.570796325 | O12: 1.000021422 | P12: 0.00654547764 | Q12: 1.000000074 | R12: 0.0003853442168 | S12: 0.9999999999 | T12: -1.438497575e-05 | U12: 0.9999999999 | V12: -1.728076857e-05 | X12: 53.65322078 | Y12: -89.61394016 | Z12: 90.38605984 | AC12: 1 | AD12: 0.006545571118 | AE12: -2.961146609e-11 | AF12: 1.713550295e-06 | AG12: 3809.803755 | AH12: -583583.7534 | AJ12: 18000 | AK12: 0.2589295636 | AL12: 1 | AM12: 0.0003853442359 | AN12: 17999.99743 | AO12: -6.677265691 | AQ12: 9999.360041 | AR12: -79.99488033 | AT12: -8588113.087 | AU12: -5835768829 | AV12: -1.572267959 | AW12: 180028595.6 | AX12: -5154088.142 | AY12: -0.02862145683 | BA12: 32.40254691 | BB12: 30.21158296 | BC12: -1.543646502 | BD12: -268.4444298 | BF12: 53.64800425 | BG12: -88.45366244 | BH12: 91.54633756 | BI12: 91.54633756 | BJ12: 0 | BK12: 0 | BM12: 23.43642129 | BN12: -0.009232685633 | BQ12: 47.11354376 | BT12: 104.713 | BU12: 34.1908 | BV12: -264.9322
A13: 5 | B13: 0.005 | C13: 1 | D13: 1.206371578e-06 | F13: 0.9902157878 | G13: -0.0002026323448 | H13: -0.0002026323448 | J13: 15 | M13: 25.93705278 | N13: -1.570796325 | O13: 1.000033472 | P13: 0.008181781326 | Q13: 1.000000116 | R13: 0.0004816802576 | S13: 0.9999999998 | T13: -1.798121969e-05 | U13: 0.9999999998 | V13: -2.160096071e-05 | X13: 51.71512636 | Y13: -89.51742896 | Z13: 90.48257104 | AC13: 1 | AD13: 0.008181963898 | AE13: -4.626791576e-11 | AF13: 2.141937869e-06 | AG13: 3809.803754 | AH13: -466867.0324 | AJ13: 18000 | AK13: 0.3236619544 | AL13: 1 | AM13: 0.0004816802948 | AN13: 17999.99598 | AO13: -8.346581416 | AQ13: 9999.0001 | AR13: -99.990001 | AT13: -8587806.915 | AU13: -4668584445 | AV13: -1.572635813 | AW13: 180021801.7 | AX13: -4801213.11 | AY13: -0.02666385507 | BA13: 25.92426475 | BB13: 28.27412896 | BC13: -1.545971958 | BD13: -268.5776685 | BF13: 51.71055107 | BG13: -88.5892094 | BH13: 91.4107906 | BI13: 91.4107906 | BJ13: 0 | BK13: 0 | BM13: 23.43642211 | BN13: -0.01154085816 | BQ13: 45.17608976 | BT13: 107.152 | BU13: 34.4777 | BV13: -262.3057
A14: 6 | B14: 0.006 | C14: 1 | D14: 1.447645893e-06 | F14: 0.9902159016 | G14: -0.0002431588424 | H14: -0.0002431588424 | J14: 15 | M14: 21.61421065 | N14: -1.570796325 | O14: 1.000048199 | P14: 0.009818041198 | Q14: 1.000000167 | R14: 0.0005780162894 | S14: 0.9999999998 | T14: -2.157746363e-05 | U14: 0.9999999997 | V14: -2.592115285e-05 | X14: 50.13163079 | Y14: -89.42092028 | Z14: 90.57907972 | AC14: 1 | AD14: 0.009818356677 | AE14: -6.662579869e-11 | AF14: 2.570325443e-06 | AG14: 3809.803753 | AH14: -389055.8905 | AJ14: 18000 | AK14: 0.3883943453 | AL14: 1 | AM14: 0.0005780163538 | AN14: 17999.99421 | AO14: -10.01589668 | AQ14: 9998.560207 | AR14: -119.9827225 | AT14: -8587432.734 | AU14: -3890455855 | AV14: -1.573003631 | AW14: 180013498.8 | AX14: -4691452.66 | AY14: -0.02605577338 | BA14: 21.60473969 | BB14: 26.69098076 | BC14: -1.546947857 | BD14: -268.6335835 | BF14: 50.12740387 | BG14: -88.64743249 | BH14: 91.35256751 | BI14: 91.35256751 | BJ14: 0 | BK14: 0 | BM14: 23.43642311 | BN14: -0.01384903144 | BQ14: 43.59294156 | BT14: 109.648 | BU14: 34.1144 | BV14: -262.7662
A15: 7 | B15: 0.007 | C15: 1 | D15: 1.688920209e-06 | F15: 0.990216036 | G15: -0.0002836853557 | H15: -0.0002836853557 | J15: 15 | M15: 18.52646627 | N15: -1.570796325 | O15: 1.000065603 | P15: 0.0114542485 | Q15: 1.000000227 | R15: 0.0006743523105 | S15: 0.9999999997 | T15: -2.517370756e-05 | U15: 0.9999999995 | V15: -3.024134499e-05 | X15: 48.79284786 | Y15: -89.32441462 | Z15: 90.67558538 | AC15: 1 | AD15: 0.01145474946 | AE15: -9.068511489e-11 | AF15: 2.998713016e-06 | AG15: 3809.803752 | AH15: -333476.5081 | AJ15: 18000 | AK15: 0.4531267362 | AL15: 1 | AM15: 0.0006743524128 | AN15: 17999.99212 | AO15: -11.68521138 | AQ15: 9998.040384 | AR15: -139.9725654 | AT15: -8586990.563 | AU15: -3334644863 | AV15: -1.573371405 | AW15: 180003687.2 | AX15: -4720586.368 | AY15: -0.02621893305 | BA15: 18.51911959 | BB15: 25.35240672 | BC15: -1.547152472 | BD15: -268.645307 | BF15: 48.78883101 | BG15: -88.66146422 | BH15: 91.33853578 | BI15: 91.33853578 | BJ15: 0 | BK15: 0 | BM15: 23.43642429 | BN15: -0.01615720561 | BQ15: 42.25436752 | BT15: 112.202 | BU15: 34.2977 | BV15: -267.0128
A16: 8 | B16: 0.008 | C16: 1 | D16: 1.930194524e-06 | F16: 0.9902161912 | G16: -0.0003242118872 | H16: -0.0003242118872 | J16: 15 | M16: 16.21065799 | N16: -1.570796325 | O16: 1.000085685 | P16: 0.01309039447 | Q16: 1.000000297 | R16: 0.0007706883191 | S16: 0.9999999996 | T16: -2.87699515e-05 | U16: 0.9999999994 | V16: -3.456153713e-05 | X16: 47.6331853 | Y16: -89.22791246 | Z16: 90.77208754 | AC16: 1 | AD16: 0.01309114224 | AE16: -1.184458643e-10 | AF16: 3.42710059e-06 | AG16: 3809.803751 | AH16: -291791.9755 | AJ16: 18000 | AK16: 0.5178591271 | AL16: 1 | AM16: 0.0007706884717 | AN16: 17999.98971 | AO16: -13.35452543 | AQ16: 9997.440655 | AR16: -159.9590505 | AT16: -8586480.423 | AU16: -2917782371 | AV16: -1.573739129 | AW16: 179992367.4 | AX16: -4836499.503 | AY16: -0.02686411677 | BA16: 16.20481053 | BB16: 24.19287915 | BC16: -1.546875012 | BD16: -268.6294097 | BF16: 47.6293048 | BG16: -88.6478751 | BH16: 91.3521249 | BI16: 91.3521249 | BJ16: 0 | BK16: 0 | BM16: 23.43642565 | BN16: -0.01846538082 | BQ16: 41.09483995 | BT16: 114.815 | BU16: 33.3465 | BV16: -266.2048
A17: 9 | B17: 0.009 | C17: 1 | D17: 2.17146884e-06 | F17: 0.9902163671 | G17: -0.0003647384395 | H17: -0.0003647384395 | J17: 15 | M17: 14.40947377 | N17: -1.570796325 | O17: 1.000108444 | P17: 0.01472647035 | Q17: 1.000000376 | R17: 0.0008670243134 | S17: 0.9999999995 | T17: -3.236619543e-05 | U17: 0.9999999992 | V17: -3.888172927e-05 | X17: 46.61033474 | Y17: -89.13141433 | Z17: 90.86858567 | AC17: 1 | AD17: 0.01472753502 | AE17: -1.499080471e-10 | AF17: 3.855488164e-06 | AG17: 3809.80375 | AH17: -259370.6759 | AJ17: 18000 | AK17: 0.582591518 | AL17: 1 | AM17: 0.0008670245307 | AN17: 17999.98697 | AO17: -15.02383874 | AQ17: 9996.761049 | AR17: -179.9416989 | AT17: -8585902.337 | AU17: -2593552213 | AV17: -1.574106795 | AW17: 179979540 | AX17: -5010235.419 | AY17: -0.02783061789 | BA17: 14.40475998 | BB17: 23.17012053 | BC17: -1.546276177 | BD17: -268.595099 | BF17: 46.60654772 | BG17: -88.61587254 | BH17: 91.38412746 | BI17: 91.38412746 | BJ17: 0 | BK17: 0 | BM17: 23.43642719 | BN17: -0.02077355724 | BQ17: 40.07208133 | BT17: 117.49 | BU17: 33.0246 | BV17: -264.9049
A18: 10 | B18: 0.01 | C18: 1 | D18: 2.412743155e-06 | F18: 0.9902165636 | G18: -0.0004052650154 | H18: -0.0004052650154 | J18: 15 | M18: 12.96852639 | N18: -1.570796325 | O18: 1.00013388 | P18: 0.0163624674 | Q18: 1.000000464 | R18: 0.0009633602916 | S18: 0.9999999994 | T18: -3.596243937e-05 | U18: 0.9999999991 | V18: -4.32019214e-05 | X18: 45.69540832 | Y18: -89.03492071 | Z18: 90.96507929 | AC18: 1 | AD18: 0.0163639278 | AE18: -1.85071663e-10 | AF18: 4.283875738e-06 | AG18: 3809.803749 | AH18: -233433.6396 | AJ18: 18000 | AK18: 0.6473239089 | AL18: 1 | AM18: 0.0009633605897 | AN18: 17999.98392 | AO18: -16.69315121 | AQ18: 9996.001599 | AR18: -199.920032 | AT18: -8585256.335 | AU18: -2334164691 | AV18: -1.574474395 | AW18: 179965205.4 | AX18: -5224416.522 | AY18: -0.02902199693 | BA18: 12.96471465 | BB18: 22.25525925 | BC18: -1.545452398 | BD18: -268.5479 | BF18: 45.69168817 | BG18: -88.5709817 | BH18: 91.4290183 | BI18: 91.4290183 | BJ18: 0 | BK18: 0 | BM18: 23.43642891 | BN18: -0.02308173499 | BQ18: 39.15722005 | BT18: 120.226 | BU18: 33.736 | BV18: -269.9808
A19: =A10*10 -> 20 | B19: 0.02 | C19: 1 | D19: 4.82548631e-06 | F19: 0.9902196669 | G19: -0.0008105326374 | H19: -0.0008105326374 | J19: 15 | M19: 6.484263195 | N19: -1.570796325 | O19: 1.000535413 | P19: 0.03271617802 | Q19: 1.000001856 | R19: 0.001926718795 | S19: 0.9999999974 | T19: -7.192487864e-05 | U19: 0.9999999963 | V19: -8.640384265e-05 | X19: 39.67833418 | Y19: -88.07034341 | Z19: 91.92965659 | AC19: 1 | AD19: 0.03272785559 | AE19: -7.402866521e-10 | AF19: 8.567751475e-06 | AG19: 3809.803727 | AH19: -116717.0667 | AJ19: 18000 | AK19: 1.294647818 | AL19: 1 | AM19: 0.001926721179 | AN19: 17999.93567 | AO19: -33.38620947 | AQ19: 9984.025559 | AR19: -399.3610224 | AT19: -8575069.295 | AU19: -1166827664 | AV19: -1.57814524 | AW19: 179739159.3 | AX19: -8251351.444 | AY19: -0.04587515742 | BA19: 6.485128494 | BB19: 16.23837171 | BC19: -1.532270082 | BD19: -267.7926089 | BF19: 39.67482784 | BG19: -87.83877251 | BH19: 92.16122749 | BI19: 92.16122749 | BJ19: 0 | BK19: 0 | BM19: 23.43645613 | BN19: -0.04616361933 | BQ19: 33.14033251 | BT19: 123.027 | BU19: 32.7649 | BV19: -265.7341
A20: =A11*10 -> 30 | B20: 0.03 | C20: 1 | D20: 7.238229465e-06 | F20: 0.990224839 | G20: -0.001215805473 | H20: -0.001215805473 | J20: 15 | M20: 4.32284213 | N20: -1.570796325 | O20: 1.001204276 | P20: 0.0490524032 | Q20: 1.000004176 | R20: 0.002890073722 | S20: 0.9999999942 | T20: -0.0001078873177 | U20: 0.9999999916 | V20: -0.0001296057636 | X20: 36.16237908 | Y20: -87.10676845 | Z20: 92.89323155 | AC20: 1 | AD20: 0.04909178339 | AE20: -1.665644967e-09 | AF20: 1.285162721e-05 | AG20: 3809.803692 | AH20: -77811.65212 | AJ20: 18000 | AK20: 1.941971727 | AL20: 1 | AM20: 0.002890081769 | AN20: 17999.85527 | AO20: -50.07908183 | AQ20: 9964.129135 | AR20: -597.8477481 | AT20: -8558145.03 | AU20: -777603032.4 | AV20: -1.581801684 | AW20: 179363617.1 | AX20: -11746592.64 | AY20: -0.06539699771 | BA20: 4.326338957 | BB20: 12.72241084 | BC20: -1.516404687 | BD20: -266.8835887 | BF20: 36.15891235 | BG20: -86.95283449 | BH20: 93.04716551 | BI20: 93.04716551 | BJ20: 0 | BK20: 0 | BM20: 23.4365015 | BN20: -0.06924580239 | BQ20: 29.62437164 | BT20: 125.893 | BU20: 32.2472 | BV20: -266.3711
A21: 40 | B21: 0.04 | C21: 1 | D21: 9.650972621e-06 | F21: 0.9902320801 | G21: -0.001621086129 | H21: -0.001621086129 | J21: 15 | M21: 3.242131598 | N21: -1.570796325 | O21: 1.002139935 | P21: 0.06536247018 | Q21: 1.000007424 | R21: 0.003853423286 | S21: 0.9999999897 | T21: -0.0001438497565 | U21: 0.9999999851 | V21: -0.000172807684 | X21: 33.67180945 | Y21: -86.14469299 | Z21: 93.85530701 | AC21: 1 | AD21: 0.06545571118 | AE21: -2.961146609e-09 | AF21: 1.713550295e-05 | AG21: 3809.803642 | AH21: -58359.02712 | AJ21: 18000 | AK21: 2.589295636 | AL21: 1 | AM21: 0.003853442359 | AN21: 17999.7427 | AO21: -66.77167533 | AQ21: 9936.406995 | AR21: -794.9125596 | AT21: -8534564.067 | AU21: -582907506.1 | AV21: -1.58543665 | AW21: 178840365.8 | AX21: -15336572.59 | AY21: -0.08554636044 | BA21: 3.247802251 | BB21: 10.23179157 | BC21: -1.49989029 | BD21: -265.9373834 | BF21: 33.66835659 | BG21: -86.02971186 | BH21: 93.97028814 | BI21: 93.97028814 | BJ21: 0 | BK21: 0 | BM21: 23.43656502 | BN21: -0.09232843351 | BQ21: 27.13375237 | BT21: 128.825 | BU21: 32.3142 | BV21: -268.0596
A22: 50 | B22: 0.05 | C22: 1 | D22: 1.206371578e-05 | F22: 0.9902413901 | G22: -0.002026377212 | H22: -0.002026377212 | J22: 15 | M22: 2.593705278 | N22: -1.570796325 | O22: 1.003341643 | P22: 0.0816377896 | Q22: 1.000011601 | R22: 0.004816765696 | S22: 0.9999999838 | T22: -0.000179812195 | U22: 0.9999999767 | V22: -0.0002160096038 | X22: 31.74413637 | Y22: -85.18460944 | Z22: 94.81539056 | AC22: 1 | AD22: 0.08181963898 | AE22: -4.626791576e-09 | AF22: 2.141937869e-05 | AG22: 3809.803578 | AH22: -46687.51796 | AJ22: 18000 | AK22: 3.236619544 | AL22: 1 | AM22: 0.004816802948 | AN22: 17999.59797 | AO22: -83.46389703 | AQ22: 9900.990099 | AR22: -990.0990099 | AT22: =-AR22*AH22+AG22*AQ22 -> -8504437.802 | AU22: =AQ22*AH22+AG22*AR22 -> -466024735.8 | AV22: -1.589043199 | AW22: 178171877.7 | AX22: -18939727.07 | AY22: -0.1059026206 | BA22: 2.601370215 | BB22: 8.304043269 | BC22: -1.483140579 | BD22: -264.9776957 | BF22: 31.74068995 | BG22: -85.09310734 | BH22: 94.90689266 | BI22: 94.90689266 | BJ22: 0 | BK22: 0 | BM22: 23.43664668 | BN22: -0.1154116621 | BQ22: 25.20600407 | BT22: 131.826 | BU22: 32.1558 | BV22: -263.3605
A23: 60 | B23: 0.06 | C23: 1 | D23: 1.447645893e-05 | F23: 0.9902527694 | G23: -0.002431681329 | H23: -0.002431681329 | J23: 15 | M23: 2.161421065 | N23: -1.570796325 | O23: 1.004808446 | P23: 0.09786988219 | Q23: 1.000016705 | R23: 0.005780099167 | S23: 0.9999999767 | T23: -0.0002157746329 | U23: 0.9999999664 | V23: -0.0002592115228 | X23: 30.17334423 | Y23: -84.22700385 | Z23: 95.77299615 | AC23: 1 | AD23: 0.09818356677 | AE23: -6.662579869e-09 | AF23: 2.570325443e-05 | AG23: 3809.8035 | AH23: -38906.56672 | AJ23: 18000 | AK23: 3.883943453 | AL23: 1 | AM23: 0.005780163538 | AN23: 17999.42108 | AO23: -100.155654 | AQ23: 9858.044164 | AR23: -1182.9653 | AT23: -8467907.199 | AU23: -388049518.3 | AV23: -1.592614582 | AW23: 177361280.8 | AX23: -22523400.34 | AY23: -0.1263155131 | BA23: 2.17098959 | BB23: 6.73315482 | BC23: -1.466299069 | BD23: -264.0127483 | BF23: 30.16990131 | BG23: -84.15124389 | BH23: 95.84875611 | BI23: 95.84875611 | BJ23: 0 | BK23: 0 | BM23: 23.43674649 | BN23: -0.1384956375 | BQ23: 23.63511562 | BT23: 134.896 | BU23: 32.8753 | BV23: -269.4654
A24: 70 | B24: 0.07 | C24: 1 | D24: 1.688920208e-05 | F24: 0.9902662178 | G24: -0.002837001089 | H24: -0.002837001089 | J24: 15 | M24: 1.852646627 | N24: -1.570796325 | O24: 1.006539184 | P24: 0.1140504047 | Q24: 1.000022737 | R24: 0.00674342191 | S24: 0.9999999683 | T24: -0.0002517370704 | U24: 0.9999999543 | V24: -0.0003024134408 | X24: 28.8495268 | Y24: -83.27235453 | Z24: 96.72764547 | AC24: 1 | AD24: 0.1145474946 | AE24: -9.068511489e-09 | AF24: 2.998713016e-05 | AG24: 3809.803407 | AH24: -33348.79143 | AJ24: 18000 | AK24: 4.531267362 | AL24: 1 | AM24: 0.006743524128 | AN24: 17999.21204 | AO24: -116.8468533 | AQ24: 9807.767752 | AR24: -1373.087485 | AT24: -8425141.156 | AU24: -332308394.5 | AV24: -1.596144277 | AW24: 176412323.5 | AX24: -26069168.57 | AY24: -0.1467122997 | BA24: 1.864065112 | BB24: 5.409221564 | BC24: -1.449431977 | BD24: -263.0463351 | BF24: 28.84608602 | BG24: -83.20791559 | BH24: 96.79208441 | BI24: 96.79208441 | BJ24: 0 | BK24: 0 | BM24: 23.43686446 | BN24: -0.1615805091 | BQ24: 22.31118236 | BT24: 138.038 | BU24: 32.5387 | BV24: -267.9507
A25: 80 | B25: 0.08 | C25: 1 | D25: 1.930194524e-05 | F25: 0.9902817357 | G25: -0.003242339099 | H25: -0.003242339099 | J25: 15 | M25: 1.621065799 | N25: -1.570796325 | O25: 1.008532498 | P25: 0.1301711747 | Q25: 1.000029698 | R25: 0.007706732137 | S25: 0.9999999586 | T25: -0.0002876995071 | U25: 0.9999999403 | V25: -0.0003456153577 | X25: 27.70706844 | Y25: -82.32113054 | Z25: 97.67886946 | AC25: 1 | AD25: 0.1309114224 | AE25: -1.184458643e-08 | AF25: 3.42710059e-05 | AG25: 3809.803301 | AH25: -29180.50111 | AJ25: 18000 | AK25: 5.178591271 | AL25: 1 | AM25: 0.007706884717 | AN25: 17998.97084 | AO25: -133.537402 | AQ25: 9750.390016 | AR25: -1560.062402 | AT25: -8376334.596 | AU25: -290464797.5 | AV25: -1.59962603 | AW25: 175329331.5 | AX25: -29564210.74 | AY25: -0.1670496058 | BA25: 1.63429866 | BB25: 4.266628491 | BC25: -1.432576424 | BD25: -262.080583 | BF25: 27.70362906 | BG25: -82.26524943 | BH25: 97.73475057 | BI25: 97.73475057 | BJ25: 0 | BK25: 0 | BM25: 23.43700057 | BN25: -0.1846664263 | BQ25: 21.16858929 | BT25: 141.254 | BU25: 32.377 | BV25: -263.1143
A26: 90 | B26: 0.09 | C26: 1 | D26: 2.171468839e-05 | F26: 0.9902993232 | G26: -0.003647697966 | H26: -0.003647697966 | J26: 15 | M26: 1.440947377 | N26: -1.570796325 | O26: 1.010786836 | P26: 0.1462241942 | Q26: 1.000037586 | R26: 0.00867002806 | S26: 0.9999999476 | T26: -0.0003236619431 | U26: 0.9999999244 | V26: -0.0003888172733 | X26: 26.70363414 | Y26: -81.37379037 | Z26: 98.62620963 | AC26: 1 | AD26: 0.1472753502 | AE26: -1.499080471e-08 | AF26: 3.855488164e-05 | AG26: 3809.80318 | AH26: -25938.5341 | AJ26: 18000 | AK26: 5.82591518 | AL26: 1 | AM26: 0.008670245307 | AN26: 17998.69749 | AO26: -150.2272073 | AQ26: 9686.168152 | AR26: -1743.510267 | AT26: -8321706.295 | AU26: -257887433.8 | AV26: -1.603053888 | AW26: 174117159.7 | AX26: -32998463.01 | AY26: -0.1872974042 | BA26: 1.455968721 | BB26: 3.263040901 | BC26: -1.415756484 | BD26: -261.1168714 | BF26: 26.70019573 | BG26: -81.32462498 | BH26: 98.67537502 | BI26: 98.67537502 | BJ26: 0 | BK26: 0 | BM26: 23.43715483 | BN26: -0.2077535386 | BQ26: 20.1650017 | BT26: 144.544 | BU26: 31.4991 | BV26: -266.2885
A27: 100 | B27: 0.1 | C27: 1 | D27: 2.412743155e-05 | F27: 0.9903189805 | G27: -0.0040530803 | H27: -0.0040530803 | J27: 15 | M27: 1.296852639 | N27: -1.570796325 | O27: 1.013300456 | P27: 0.1622016718 | Q27: 1.000046402 | R27: 0.009633307893 | S27: 0.9999999353 | T27: -0.0003596243783 | U27: 0.9999999067 | V27: -0.0004320191874 | X27: 25.81030626 | Y27: -80.43078071 | Z27: 99.56921929 | AC27: 1 | AD27: 0.163639278 | AE27: -1.85071663e-08 | AF27: 4.283875738e-05 | AG27: 3809.803045 | AH27: -23344.99341 | AJ27: 18000 | AK27: 6.473239089 | AL27: 1 | AM27: 0.009633605897 | AN27: 17998.392 | AO27: -166.9161762 | AQ27: 9615.384615 | AR27: -1923.076923 | AT27: -8261496.515 | AU27: -231797634.8 | AV27: -1.606422234 | AW27: 172781140.2 | AX27: -36363503.18 | AY27: -0.2074326379 | BA27: 1.313642124 | BB27: 2.369541324 | BC27: -1.398989596 | BD27: -260.1561995 | BF27: 25.80686856 | BG27: -80.38704153 | BH27: 99.61295847 | BI27: 99.61295847 | BJ27: 0 | BK27: 0 | BM27: 23.43732724 | BN27: -0.2308419955 | BQ27: 19.27150212 | BT27: 147.911 | BU27: 31.4819 | BV27: -266.3463
A28: 200 | B28: 0.2 | C28: 1.000000001 | D28: 4.825486307e-05 | F28: 0.9906294534 | G28: -0.008108768607 | H28: -0.008108768607 | J28: 15 | M28: 0.6484263195 | N28: -1.570796325 | O28: 1.052193544 | P28: 0.3162913926 | Q28: 1.000185596 | R28: 0.01926482816 | S28: 0.9999997413 | T28: -0.0007192486636 | U28: 0.9999996267 | V28: -0.0008640382136 | X28: 20.12078168 | Y28: -71.32659381 | Z28: 108.6734062 | AC28: 1 | AD28: 0.3272785559 | AE28: -7.402866521e-08 | AF28: 8.567751475e-05 | AG28: 3809.800911 | AH28: -11674.96557 | AJ28: 18000 | AK28: 12.94647818 | AL28: 1 | AM28: 0.01926721179 | AN28: 17993.56977 | AO28: -333.7394415 | AQ28: 8620.689655 | AR28: -3448.275862 | AT28: -7415390.645 | AU28: -113783499.4 | AV28: -1.635875349 | AW28: 154006816.4 | AX28: -64997507.69 | AY28: -0.3993634272 | BA28: 0.6821263789 | BB28: -3.322703105 | BC28: -1.236511922 | BD28: -250.8469145 | BF28: 20.11734681 | BG28: -71.30874796 | BH28: 108.691252 | BI28: 108.691252 | BJ28: 0 | BK28: 0 | BM28: 23.44004992 | BN28: -0.4618334188 | BQ28: 13.57925769 | BT28: 151.356 | BU28: 31.0519 | BV28: -267.0283
A29: 300 | B29: 0.3 | C29: 1.000000003 | D29: 7.238229453e-05 | F29: 0.9911473058 | G29: -0.01216967824 | H29: -0.01216967824 | J29: 15 | M29: 0.432284213 | N29: -1.570796325 | O29: 1.114001939 | P29: 0.4563555137 | Q29: 1.000417541 | R29: 0.02889277518 | S29: 0.999999418 | T29: -0.001078872763 | U29: 0.9999991601 | V29: -0.001296056917 | X29: 17.10130935 | Y29: -63.02651845 | Z29: 116.9734815 | AC29: 1 | AD29: 0.4909178339 | AE29: -1.665644967e-07 | AF29: 0.0001285162721 | AG29: 3809.797356 | AH29: -7786.053551 | AJ29: 18000 | AK29: 19.41971727 | AL29: 1 | AM29: 0.02890081769 | AN29: 17985.53869 | AO29: -500.3770576 | AQ29: 7352.941176 | AR29: -4411.764706 | AT29: -6337020.401 | AU29: -74058323.27 | AV29: -1.65615637 | AW29: 130079706.6 | AX29: -83076894.28 | AY29: -0.5683630197 | BA29: 0.4815754471 | BB29: -6.346713269 | BC29: -1.087793351 | BD29: -242.325968 | BF29: 17.09787603 | BG29: -63.01909204 | BH29: 116.980908 | BI29: 116.980908 | BJ29: 0 | BK29: 0 | BM29: 23.4445893 | BN29: -0.6931240017 | BQ29: 10.55524753 | BT29: 154.882 | BU29: 31.2487 | BV29: -260.6973
A30: 400 | B30: 0.4 | C30: 1.000000005 | D30: 9.650972591e-05 | F30: 0.9918731347 | G30: -0.01623843314 | H30: -0.01623843314 | J30: 15 | M30: 0.3242131598 | N30: -1.570796325 | O30: 1.195175725 | P30: 0.5795721461 | Q30: 1.000742175 | R30: 0.03851536728 | S30: 0.9999989654 | T30: -0.001438496583 | U30: 0.9999985069 | V30: -0.001728075137 | X30: 15.22261792 | Y30: -55.69248935 | Z30: 124.3075106 | AC30: 1 | AD30: 0.6545571118 | AE30: -2.961146609e-07 | AF30: 0.0001713550295 | AG30: 3809.792379 | AH30: -5842.42049 | AJ30: 18000 | AK30: 25.89295636 | AL30: 1 | AM30: 0.03853442359 | AN30: 17974.30769 | AO30: -666.7366298 | AQ30: 6097.560976 | AR30: -4878.04878 | AT30: -5269170.811 | AU30: -54208868.25 | AV30: -1.667693198 | AW30: 106387684.1 | AX30: -91782895.91 | AY30: -0.7118330936 | BA30: 0.3876251337 | BB30: -8.231761418 | BC30: -0.9558601044 | BD30: -234.7667499 | BF30: 15.21918635 | BG30: -55.69161394 | BH30: 124.3083861 | BI30: 124.3083861 | BJ30: 0 | BK30: 0 | BM30: 23.45094777 | BN30: -0.9248640857 | BQ30: 8.670199382 | BT30: 158.489 | BU30: 31.0037 | BV30: -259.869
A31: 500 | B31: 0.5 | C31: 1.000000007 | D31: 0.0001206371572 | F31: 0.9928077784 | G31: -0.02031767327 | H31: -0.02031767327 | J31: 15 | M31: 0.2593705278 | N31: -1.570796325 | O31: 1.292070173 | P31: 0.6857382394 | Q31: 1.001159407 | R31: 0.04813082876 | S31: 0.9999983834 | T31: -0.001798120031 | U31: 0.999997667 | V31: -0.002160092712 | X31: 13.97329355 | Y31: -49.33639345 | Z31: 130.6636066 | AC31: 1 | AD31: 0.8181963898 | AE31: -4.626791576e-07 | AF31: 0.0002141937869 | AG31: 3809.785979 | AH31: -4676.899004 | AJ31: 18000 | AK31: 32.36619544 | AL31: 1 | AM31: 0.04816802948 | AN31: 17959.88922 | AO31: -832.7262778 | AQ31: 5000 | AR31: -5000 | AT31: -4335565.125 | AU31: -42433424.92 | AV31: -1.672616344 | AW31: 85676405.25 | AX31: -93994011.41 | AY31: -0.8316588228 | BA31: 0.3353797003 | BB31: -9.489264553 | BC31: -0.8409575207 | BD31: -228.1833167 | BF31: 13.96986411 | BG31: -49.34052167 | BH31: 130.6594783 | BI31: 130.6594783 | BJ31: 0 | BK31: 0 | BM31: 23.45912867 | BN31: -1.157204929 | BQ31: 7.412696247 | BT31: 162.181 | BU31: 30.4293 | BV31: -262.3986
A32: 600 | B32: 0.6 | C32: 1.00000001 | D32: 0.0001447645883 | F32: 0.9939523182 | G32: -0.02441006004 | H32: -0.02441006004 | J32: 15 | M32: 0.2161421065 | N32: -1.570796325 | O32: 1.401428299 | P32: 0.7762330121 | Q32: 1.001669122 | R32: 0.0577373918 | S32: 0.9999976721 | T32: -0.002157743014 | U32: 0.9999966405 | V32: -0.00259210948 | X32: 13.10977787 | Y32: -43.87946108 | Z32: 136.1205389 | AC32: 1 | AD32: 0.9818356677 | AE32: -6.662579869e-07 | AF32: 0.0002570325443 | AG32: 3809.778158 | AH32: -3900.433301 | AJ32: 18000 | AK32: 38.83943453 | AL32: 1 | AM32: 0.05780163538 | AN32: 17942.29924 | AO32: -998.254804 | AQ32: 4098.360656 | AR32: -4918.032787 | AT32: -3568613.951 | AU32: -34721996.27 | AV32: -1.673213475 | AW32: 68665117.08 | AX32: -92358443.71 | AY32: -0.9314918228 | BA32: 0.3032918466 | BB32: -10.36278529 | BC32: -0.7417216519 | BD32: -222.4975203 | BF32: 13.106351 | BG32: -43.8878193 | BH32: 136.1121807 | BI32: 136.1121807 | BJ32: 0 | BK32: 0 | BM32: 23.46913629 | BN32: -1.390299019 | BQ32: 6.539175506 | BT32: 165.959 | BU32: 29.9194 | BV32: -264.8295
A33: 700 | B33: 0.7 | C33: 1.000000014 | D33: 0.0001688920193 | F33: 0.9953080815 | G33: -0.02851828181 | H33: -0.02851828181 | J33: 15 | M33: 0.1852646627 | N33: -1.570796325 | O33: 1.520563333 | P33: 0.8531000094 | Q33: 1.002271177 | R33: 0.06733329843 | S33: 0.9999968314 | T33: -0.002517365439 | U33: 0.9999954273 | V33: -0.003024125281 | X33: 12.49655557 | Y33: -39.2048605 | Z33: 140.7951395 | AC33: 1 | AD33: 1.145474946 | AE33: -9.068511489e-07 | AF33: 0.0002998713016 | AG33: 3809.768914 | AH33: -3346.285183 | AJ33: 18000 | AK33: 45.31267362 | AL33: 1 | AM33: 0.06743524128 | AN33: 17921.55718 | AO33: -1163.231859 | AQ33: 3378.378378 | AR33: -4729.72973 | AT33: -2956183.587 | AU33: -29324194.8 | AV33: -1.671267284 | AW33: 55084539.11 | AX33: -88717252.67 | AY33: -1.015150785 | BA33: 0.2822329988 | BB33: -10.98784419 | BC33: -0.6561164982 | BD33: -217.5927063 | BF33: 12.49313172 | BG33: -39.21700665 | BH33: 140.7829934 | BI33: 140.7829934 | BJ33: 0 | BK33: 0 | BM33: 23.48097591 | BN33: -1.624300389 | BQ33: 5.914116606 | BT33: 169.824 | BU33: 29.8089 | BV33: -267.7277
A34: 800 | B34: 0.8 | C34: 1.000000019 | D34: 0.00019301945 | F34: 0.9968766452 | G34: -0.03264505957 | H34: -0.03264505957 | J34: 15 | M34: 0.1621065799 | N34: -1.570796325 | O34: 1.647355472 | P34: 0.9184740167 | Q34: 1.002965407 | R34: 0.07691680243 | S34: 0.9999958615 | T34: -0.002876987213 | U34: 0.9999940276 | V34: -0.003456139953 | X34: 12.05204435 | Y34: -35.19053343 | Z34: 144.8094666 | AC34: 1 | AD34: 1.309114224 | AE34: -1.184458643e-06 | AF34: 0.000342710059 | AG34: 3809.758248 | AH34: -2931.085548 | AJ34: 18000 | AK34: 51.78591271 | AL34: 1 | AM34: 0.07706884717 | AN34: 17897.68586 | AO34: -1327.568103 | AQ34: 2808.988764 | AR34: -4494.382022 | AT34: -2471850.08 | AU34: -25355895.35 | AV34: -1.667975462 | AW34: 44348260.3 | AX34: -84189195.99 | AY34: -1.085963548 | BA34: 0.2677309071 | BB34: -11.44602981 | BC34: -0.5820119137 | BD34: -213.3468263 | BF34: 12.04862396 | BG34: -35.20619126 | BH34: 144.7938087 | BI34: 144.7938087 | BJ34: 0 | BK34: 0 | BM34: 23.49465377 | BN34: -1.859364937 | BQ34: 5.455930987 | BT34: 173.78 | BU34: 30.0709 | BV34: -269.952
A35: 900 | B35: 0.9 | C35: 1.000000024 | D35: 0.0002171468806 | F35: 0.9986598396 | G35: -0.03679315264 | H35: -0.03679315264 | J35: 15 | M35: 0.1440947377 | N35: -1.570796325 | O35: 1.780169339 | P35: 0.9743036211 | Q35: 1.00375162 | R35: 0.08648617119 | S35: 0.9999947622 | T35: -0.003236608243 | U35: 0.9999924411 | V35: -0.003888153335 | X35: 11.72477988 | Y35: -31.72509142 | Z35: 148.2749086 | AC35: 1 | AD35: 1.472753502 | AE35: -1.499080471e-06 | AF35: 0.0003855488164 | AG35: 3809.74616 | AH35: -2608.51823 | AJ35: 18000 | AK35: 58.2591518 | AL35: 1 | AM35: 0.08670245307 | AN35: 17870.71144 | AO35: -1491.175368 | AQ35: 2358.490566 | AR35: -4245.283019 | AT35: -2088647.768 | AU35: -22325616.32 | AV35: -1.664078681 | AW35: 35857846.32 | AX35: -79402503.85 | AY35: -1.14661603 | BA35: 0.2573708257 | BB35: -11.78881368 | BC35: -0.5174626515 | BD35: -209.648426 | BF35: 11.72136341 | BG35: -31.74407678 | BH35: 148.2559232 | BI35: 148.2559232 | BJ35: 0 | BK35: 0 | BM35: 23.51017709 | BN35: -2.095650764 | BQ35: 5.113147118 | BT35: 177.828 | BU35: 29.7201 | BV35: -271.5601
A36: 1000 | B36: 1 | C36: 1.000000029 | D36: 0.0002412743108 | F36: 1.000659753 | G36: -0.04096536466 | H36: -0.04096536466 | J36: 15 | M36: 0.1296852639 | N36: -1.570796325 | O36: 1.917754241 | P36: 1.022254849 | Q36: 1.004629602 | R36: 0.09603968756 | S36: 0.9999935336 | T36: -0.003596228435 | U36: 0.9999906681 | V36: -0.004320165266 | X36: 11.48120792 | Y36: -28.71333721 | Z36: 151.2866628 | AC36: 1 | AD36: 1.63639278 | AE36: -1.85071663e-06 | AF36: 0.0004283875738 | AG36: 3809.732651 | AH36: -2350.793527 | AJ36: 18000 | AK36: 64.73239089 | AL36: 1 | AM36: 0.09633605897 | AN36: 17840.66336 | AO36: -1653.966806 | AQ36: 2000 | AR36: -4000 | AT36: -1783708.808 | AU36: -19940517.66 | AV36: -1.660010361 | AW36: 29105799.89 | AX36: -74688662.06 | AY36: -1.199204994 | BA36: 0.2497537898 | BB36: -12.04975826 | BC36: -0.4608053672 | BD36: -206.4022027 | BF36: 11.47779583 | BG36: -28.73552125 | BH36: 151.2644788 | BI36: 151.2644788 | BJ36: 0 | BK36: 0 | BM36: 23.52755409 | BN36: -2.333318504 | BQ36: 4.852202541 | BT36: 181.97 | BU36: 30.0421 | BV36: -268.8459
A37: =A36+500 -> 1500 | B37: 1.5 | C37: 1.000000065 | D37: 0.0003619114575 | F37: 1.014002052 | G37: -0.06229022426 | H37: -0.06229022426 | J37: 15 | M37: 0.0864568426 | N37: -1.570796325 | O37: 2.650473163 | P37: 1.183926832 | Q37: 1.010386773 | R37: 0.1435106878 | S37: 0.9999854507 | T37: -0.005394313584 | U37: 0.9999790036 | V37: -0.006480197506 | X37: 10.93450237 | Y37: -18.1720228 | Z37: 161.8279772 | AC37: 1 | AD37: 2.454589169 | AE37: -4.164112418e-06 | AF37: 0.0006425813606 | AG37: 3809.643773 | AH37: -1580.910756 | AJ37: 18000 | AK37: 97.09858633 | AL37: 1 | AM37: 0.1445040884 | AN37: 17645.56645 | AO37: -2452.757909 | AQ37: 1000 | AR37: -3000 | AT37: -933088.4965 | AU37: -13009842.08 | AV37: -1.642395465 | AW37: 10327223.77 | AX37: -55404352.67 | AY37: -1.386513804 | BA37: 0.2314332916 | BB37: -12.71148336 | BC37: -0.2558816612 | BD37: -194.6609393 | BF37: 10.93111907 | BG37: -18.20917022 | BH37: 161.7908298 | BI37: 161.7908298 | BJ37: 0 | BK37: 0 | BM37: 23.64260243 | BN37: -3.54823096 | BQ37: 4.190477445 | BT37: 186.209 | BU37: 29.9018 | BV37: -265.3796
A38: =A37+500 -> 2000 | B38: 2 | C38: 1.000000116 | D38: 0.0004825485936 | F38: 1.033235888 | G38: -0.08467544646 | H38: -0.08467544646 | J38: 15 | M38: 0.06484263195 | N38: -1.570796325 | O38: 3.422152147 | P38: 1.274255495 | Q38: 1.018392137 | R38: 0.1903396931 | S38: 0.9999741351 | T38: -0.007192363853 | U38: 0.999962674 | V38: -0.008640169276 | X38: 10.88676668 | Y38: -11.81591199 | Z38: 168.184088 | AC38: 1 | AD38: 3.272785559 | AE38: -7.402866521e-06 | AF38: 0.0008567751475 | AG38: 3809.519351 | AH38: -1200.083086 | AJ38: 18000 | AK38: 129.4647818 | AL38: 1 | AM38: 0.1926721179 | AN38: 17379.76321 | AO38: -3219.131005 | AQ38: 588.2352941 | AR38: -2352.941176 | AT38: -582831.1728 | AU38: -9669506.172 | AV38: -1.630998665 | AW38: 2688337.564 | AX38: -42801246.33 | AY38: -1.508068932 | BA38: 0.2258813585 | BB38: -12.92239218 | BC38: -0.122929733 | BD38: -187.0433549 | BF38: 10.88342366 | BG38: -11.86725261 | BH38: 168.1327474 | BI38: 168.1327474 | BJ38: 0 | BK38: 0 | BM38: 23.80581584 | BN38: -4.823897718 | BQ38: 3.979568619 | BT38: 190.546 | BU38: 29.5667 | BV38: -265.8945
A39: 2500 | B39: 2.5 | C39: 1.000000182 | D39: 0.0006031857156 | F39: 1.058960211 | G39: -0.1085630403 | H39: -0.1085630403 | J39: 15 | M39: 0.05187410556 | N39: -1.570796325 | O39: 4.211428891 | P39: 1.331057326 | Q39: 1.028593203 | R39: 0.2363392197 | S39: 0.9999595869 | T39: -0.008990367617 | U39: 0.9999416799 | V39: -0.01080006043 | X39: 11.05103687 | Y39: -7.514345047 | Z39: 172.485655 | AC39: 1 | AD39: 4.090981949 | AE39: -1.156697894e-05 | AF39: 0.001070968934 | AG39: 3809.359393 | AH39: -974.8768114 | AJ39: 18000 | AK39: 161.8309772 | AL39: 1 | AM39: 0.2408401474 | AN39: 17050.00718 | AO39: -3944.495265 | AQ39: 384.6153846 | AR39: -1923.076923 | AT39: -409624.871 | AU39: -7700643.759 | AV39: -1.623939828 | AW39: -989191.3216 | AX39: -34319738.85 | AY39: -1.599611159 | BA39: 0.2246033866 | BB39: -12.97167399 | BC39: -0.0243286688 | BD39: -181.39393 | BF39: 11.04774562 | BG39: -7.579574074 | BH39: 172.4204259 | BI39: 172.4204259 | BJ39: 0 | BK39: 0 | BM39: 24.01941961 | BN39: -6.185644029 | BQ39: 3.930286807 | BT39: 194.984 | BU39: 29.6856 | BV39: -265.6327
A40: 3000 | B40: 3 | C40: 1.000000262 | D40: 0.0007238228202 | F40: 1.092013423 | G40: -0.1344831975 | H40: -0.1344831975 | J40: 15 | M40: 0.0432284213 | N40: -1.570796325 | O40: 5.00999321 | P40: 1.369845546 | Q40: 1.040925418 | R40: 0.2813422979 | S40: 0.9999418067 | T40: -0.01078831325 | U40: 0.9999160223 | V40: -0.01295985081 | X40: 11.34567459 | Y40: -4.418422453 | Z40: 175.5815775 | AA40: =20*LOG(7) -> 16.9019608 | AC40: 1 | AD40: 4.909178339 | AE40: -1.665644967e-05 | AF40: 0.001285162721 | AG40: 3809.163906 | AH40: -827.4805434 | AJ40: 18000 | AK40: 194.1971727 | AL40: 1 | AM40: 0.2890081769 | AN40: 16664.23245 | AO40: -4621.902268 | AQ40: 270.2702703 | AR40: -1621.621622 | AT40: -312356.5823 | AU40: -6400665.94 | AV40: -1.619558281 | AW40: -2953258.07 | AX40: -28286848.66 | AY40: -1.674823375 | BA40: 0.2253216793 | BB40: -12.94394041 | BC40: 0.05526509402 | BD40: -176.8335434 | BF40: 11.34244657 | BG40: -4.497391003 | BH40: 175.502609 | BI40: 175.502609 | BJ40: 0 | BK40: 0 | BM40: 24.28638699 | BN40: -7.663847648 | BQ40: 3.958020387 | BT40: 199.526 | BU40: 29.051 | BV40: -267.8015
A41: 3500 | B41: 3.5 | C41: 1.000000357 | D41: 0.0008444599036 | F41: 1.13353371 | G41: -0.1630941794 | H41: -0.1630941794 | J41: 15 | M41: 0.03705293254 | N41: -1.570796325 | O41: 5.814019374 | P41: 1.397938738 | Q41: 1.055314074 | R41: 0.3252051437 | S41: 0.999920795 | T41: -0.01258618914 | U41: 0.9998857022 | V41: -0.01511952029 | X41: 11.74245206 | Y41: -2.154772381 | Z41: 177.8452276 | AC41: 1 | AD41: 5.727374728 | AE41: -2.267127872e-05 | AF41: 0.001499356508 | AG41: 3808.932901 | AH41: -724.5464128 | AJ41: 18000 | AK41: 226.5633681 | AL41: 1 | AM41: 0.3371762064 | AN41: 16231.11241 | AO41: -5246.18154 | AQ41: 200 | AR41: -1400 | AT41: -252578.3976 | AU41: -5477415.344 | AV41: -1.616876382 | AW41: -4061468.511 | AX41: -23788022.65 | AY41: -1.739901588 | BA41: 0.2272160911 | BB41: -12.87121832 | BC41: 0.1230252064 | BD41: -172.9511749 | BF41: 11.73929876 | BG41: -2.247399057 | BH41: 177.7526009 | BI41: 177.7526009 | BJ41: 0 | BK41: 0 | BM41: 24.61051708 | BN41: -9.296224166 | BQ41: 4.030742483 | BT41: 204.174 | BU41: 28.4243 | BV41: -264.1684
A42: 4000 | B42: 4 | C42: 1.000000466 | D42: 0.0009650969624 | F42: 1.185043278 | G42: -0.1952386133 | H42: -0.1952386133 | J42: 15 | M42: 0.03242131598 | N42: -1.570796325 | O42: 6.621518048 | P42: 1.419193498 | Q42: 1.071676341 | R42: 0.3678086058 | S42: 0.9998965523 | T42: -0.01438398366 | U42: 0.999850721 | V42: -0.01727904872 | X42: 12.23135513 | Y42: -0.557532035 | Z42: 179.442468 | AC42: 1 | AD42: 6.545571118 | AE42: -2.961146609e-05 | AF42: 0.001713550295 | AG42: 3808.666393 | AH42: -649.4003701 | AJ42: 18000 | AK42: 258.9295636 | AL42: 1 | AM42: 0.3853442359 | AN42: 15759.62714 | AO42: -5813.951915 | AQ42: 153.8461538 | AR42: -1230.769231 | AT42: -213313.3181 | AU42: -4787497.156 | AV42: -1.61532321 | AW42: -4695101.267 | AX42: -20306825.17 | AY42: -1.798011758 | BA42: 0.2299263409 | BB42: -12.76822544 | BC42: 0.1826885484 | BD42: -169.5327172 | BF42: 12.22828801 | BG42: -0.6637697669 | BH42: 179.3362302 | BI42: 179.3362302 | BJ42: 0 | BK42: 0 | BM42: 24.99651345 | BN42: -11.13105257 | BQ42: 4.133735357 | BT42: 208.93 | BU42: 28.5109 | BV42: -267.6911
A43: 4500 | B43: 4.5 | C43: 1.000000589 | D43: 0.001085733993 | F43: 1.248562034 | G43: -0.2320252943 | H43: -0.2320252943 | J43: 15 | M43: 0.02881894753 | N43: -1.570796325 | O43: 7.43135734 | P43: 1.435821952 | Q43: 1.089923339 | R43: 0.4090584635 | S43: 0.9998690794 | T43: -0.0161816852 | U43: 0.9998110799 | V43: -0.01943841599 | X43: 12.81009874 | Y43: 0.4311180044 | Z43: 180.431118 | AC43: 1 | AD43: 7.363767508 | AE43: -3.747701176e-05 | AF43: 0.001927744082 | AG43: 3808.364395 | AH43: -592.7789523 | AJ43: 18000 | AK43: 291.295759 | AL43: 1 | AM43: 0.4335122653 | AN43: 15258.67372 | AO43: -6323.526453 | AQ43: 121.9512195 | AR43: -1097.560976 | AT43: -186176.3629 | AU43: -4252202.257 | AV43: -1.614551897 | AW43: -5044719.333 | AX43: -17535065.02 | AY43: -1.850924609 | BA43: 0.233267815 | BB43: -12.64290357 | BC43: 0.2363727127 | BD43: -166.4568412 | BF43: 12.80712923 | BG43: 0.3112966995 | BH43: 180.3112967 | BI43: -179.6887033 | BJ43: 0 | BK43: 0 | BM43: 25.4500328 | BN43: -13.23186215 | BQ43: 4.259057229 | BT43: 213.796 | BU43: 28.179 | BV43: -266.9667
A44: 5000 | B44: 5 | C44: 1.000000728 | D44: 0.001206370992 | F44: 1.326752815 | G44: -0.2749506491 | H44: -0.2749506491 | J44: 15 | M44: 0.02593705278 | N44: -1.570796325 | O44: 8.242847398 | P44: 1.449179448 | Q44: 1.109962119 | R44: 0.4488847289 | S44: 0.9998383771 | T44: -0.01797928215 | U44: 0.9997667809 | V44: -0.02159760198 | X44: 13.48032281 | Y44: 0.7990864722 | Z44: 180.7990865 | AC44: 1 | AD44: 8.181963898 | AE44: -4.626791576e-05 | AF44: 0.002141937869 | AG44: 3808.026925 | AH44: -549.1239901 | AJ44: 18000 | AK44: 323.6619544 | AL44: 1 | AM44: 0.4816802948 | AN44: 14736.74284 | AO44: -6774.736681 | AQ44: 99.00990099 | AR44: -990.0990099 | AT44: -166654.7501 | AU44: -3824692.4 | AV44: -1.614342155 | AW44: -5214749.186 | AX44: -15278809.14 | AY44: -1.899705035 | BA44: 0.2371327422 | BB44: -12.50016953 | BC44: 0.2853628801 | BD44: -163.6499113 | BF44: 13.47746233 | BG44: 0.6656968592 | BH44: 180.6656969 | BI44: -179.3343031 | BJ44: 0 | BK44: 0 | BM44: 25.97763185 | BN44: -15.68439182 | BQ44: 4.401791271 | BT44: 218.776 | BU44: 27.7064 | BV44: -263.5369
A45: 5500 | B45: 5.5 | C45: 1.00000088 | D45: 0.001327007956 | F45: 1.423084761 | G45: -0.3260815293 | H45: -0.3260815293 | J45: 15 | M45: 0.02357913889 | N45: -1.570796325 | O45: 9.055544445 | P45: 1.46014106 | Q45: 1.131697507 | R45: 0.4872401587 | S45: 0.9998044462 | T45: -0.01977676289 | U45: 0.9997178256 | V45: -0.02375658657 | X45: 14.24575551 | Y45: 0.4753844131 | Z45: 180.4753844 | AC45: 1 | AD45: 9.000160287 | AE45: -5.598417807e-05 | AF45: 0.002356131656 | AG45: 3807.654001 | AH45: -514.898383 | AJ45: 18000 | AK45: 356.0281499 | AL45: 1 | AM45: 0.5298483243 | AN45: 14201.67373 | AO45: -7168.70488 | AQ45: 81.96721311 | AR45: -901.6393443 | AT45: -152149.8535 | AU45: -3475335.442 | AV45: -1.614548293 | AW45: -5266810.116 | AX45: -13410164.26 | AY45: -1.945035061 | BA45: 0.2414506412 | BB45: -12.34343274 | BC45: 0.3304867683 | BD45: -161.064503 | BF45: 14.24301545 | BG45: 0.3284335598 | BH45: 180.3284336 | BI45: -179.6715664 | BJ45: 0 | BK45: 0 | BM45: 26.58644819 | BN45: -18.60706347 | BQ45: 4.55852806 | BT45: 223.872 | BU45: 27.9371 | BV45: -265.1945
A46: 6000 | B46: 6 | C46: 1.000001048 | D46: 0.001447644882 | F46: 1.541950483 | G46: -0.3883303126 | H46: -0.3883303126 | J46: 15 | M46: 0.02161421065 | N46: -1.570796325 | O46: 9.86915031 | P46: 1.469296291 | Q46: 1.155033725 | R46: 0.524098195 | S46: 0.9997672878 | T46: -0.02157411584 | U46: 0.9996642161 | V46: -0.02591534967 | X46: 15.11058038 | Y46: -0.6745989158 | Z46: 179.3254011 | AC46: 1 | AD46: 9.818356677 | AE46: -6.662579869e-05 | AF46: 0.002570325443 | AG46: 3807.245644 | AH46: -487.743988 | AJ46: 18000 | AK46: 388.3943453 | AL46: 1 | AM46: 0.5780163538 | AN46: 13660.48917 | AO46: -7507.591793 | AQ46: 68.96551724 | AR46: -827.5862069 | AT46: -141081.5319 | AU46: -3184461.498 | AV46: -1.61507048 | AW46: -5239507.755 | AX46: -11841272.8 | AY46: -1.987377733 | BA46: 0.2461707589 | BB46: -12.17527071 | BC46: 0.3723072523 | BD46: -158.6683657 | BF46: 15.10797212 | BG46: -0.8351097921 | BH46: 179.1648902 | BI46: 179.1648902 | BJ46: 0 | BK46: 0 | BM46: 27.28324283 | BN46: -22.16674405 | BQ46: 4.72669009 | BT46: 229.087 | BU46: 27.6763 | BV46: -266.7544
A47: 6500 | B47: 6.5 | C47: 1.00000123 | D47: 0.001568281765 | F47: 1.688522416 | G47: -0.4658573905 | H47: -0.4658573905 | J47: 15 | M47: 0.01995157906 | N47: -1.570796325 | O47: 10.68345736 | P47: 1.477056445 | Q47: 1.179875791 | R47: 0.5594505534 | S47: 0.9997269029 | T47: -0.02337132938 | U47: 0.9996059548 | V47: -0.0280738712 | X47: 16.07668444 | Y47: -2.86614322 | Z47: 177.1338568 | AC47: 1 | AD47: 10.63655307 | AE47: -7.819277763e-05 | AF47: 0.002784519229 | AG47: 3806.801877 | AH47: -466.0281743 | AJ47: 18000 | AK47: 420.7605408 | AL47: 1 | AM47: 0.6261843833 | AN47: 13119.30421 | AO47: -7794.342877 | AQ47: 58.82352941 | AR47: -764.7058824 | AT47: -132444.964 | AU47: -2938497.21 | AV47: -1.615838189 | AW47: -5158222.819 | AX47: -10509597.67 | AY47: -2.027065495 | BA47: 0.2512536291 | BB47: -11.99775313 | BC47: 0.4112273068 | BD47: -156.4384109 | BF47: 16.07421934 | BG47: -3.040217307 | BH47: 176.9597827 | BI47: 176.9597827 | BJ47: 0 | BK47: 0 | BM47: 28.07197247 | BN47: -26.60180643 | BQ47: 4.904207668 | BT47: 234.423 | BU47: 27.6703 | BV47: -266.7612
A48: 7000 | B48: 7 | C48: 1.000001426 | D48: 0.001688918603 | F48: 1.867722825 | G48: -0.5646034097 | H48: -0.5646034097 | J48: 15 | M48: 0.01852646627 | N48: -1.570796325 | O48: 11.49831662 | P48: 1.483717065 | Q48: 1.206130663 | R48: 0.5933046471 | S48: 0.9996832927 | T48: -0.02516839193 | U48: 0.9995430439 | V48: -0.03023213109 | X48: 17.13778904 | Y48: -6.42226254 | Z48: 173.5777375 | AC48: 1 | AD48: 11.45474946 | AE48: -9.068511489e-05 | AF48: 0.002998713016 | AG48: 3806.322725 | AH48: -448.5847116 | AJ48: 18000 | AK48: 453.1267362 | AL48: 1 | AM48: 0.6743524128 | AN48: 12583.29768 | AO48: -8032.450416 | AQ48: 50.76142132 | AR48: -710.6598985 | AT48: -125576.8141 | AU48: -2727771.719 | AV48: -1.616800254 | AW48: -5040285.951 | AX48: -9369228.497 | AY48: -2.064350114 | BA48: 0.2566667525 | BB48: -11.81260769 | BC48: 0.4475498595 | BD48: -154.3572819 | BF48: 17.13547841 | BG48: -6.609906503 | BH48: 173.3900935 | BI48: 173.3900935 | BJ48: 0 | BK48: 0 | BM48: 28.94808609 | BN48: -32.2526246 | BQ48: 5.089353115 | BT48: 239.883 | BU48: 27.2761 | BV48: -267.5957
A49: 7500 | B49: 7.5 | C49: 1.000001637 | D49: 0.001809555391 | F49: 2.080690962 | G49: -0.6927709618 | H49: -0.6927709618 | J49: 15 | M49: 0.01729136852 | N49: -1.570796325 | O49: 12.31361847 | P49: 1.489495897 | Q49: 1.233708146 | R49: 0.6256810029 | S49: 0.9996364585 | T49: -0.02696529191 | U49: 0.9994754863 | V49: -0.03239010929 | X49: 18.26682554 | Y49: -11.79927701 | Z49: 168.200723 | AC49: 1 | AD49: 12.27294585 | AE49: -0.0001041028105 | AF49: 0.003212906803 | AG49: 3805.808215 | AH49: -434.558304 | AJ49: 18000 | AK49: 485.4929317 | AL49: 1 | AM49: 0.7225204422 | AN49: 12056.73263 | AO49: -8225.742861 | AQ49: 44.24778761 | AR49: -663.7168142 | AT49: -120025.0595 | AU49: -2545207.147 | AV49: -1.617918702 | AW49: -4897876.838 | AX49: -8385546.34 | AY49: -2.099431866 | BA49: 0.2623822687 | BB49: -11.62131034 | BC49: 0.4815131634 | BD49: -152.4113279 | BF49: 18.26468068 | BG49: -12.00050037 | BH49: 167.9994996 | BI49: 167.9994996 | BJ49: 0 | BK49: 0 | BM49: 29.88599102 | BN49: -39.58917244 | BQ49: 5.28065046 | BT49: 245.471 | BU49: 27.0755 | BV49: -266.8096
A50: 8000 | B50: 8 | C50: 1.000001863 | D50: 0.001930192127 | F50: 2.315473994 | G50: -0.8604276305 | H50: -0.8604276305 | J50: 15 | M50: 0.01621065799 | N50: -1.570796325 | O50: 13.12928045 | P50: 1.494556855 | Q50: 1.262521572 | R50: 0.6566107869 | S50: 0.9995864017 | T50: -0.02876201772 | U50: 0.9994032846 | V50: -0.03454778575 | X50: 19.39146926 | Y50: -19.56283747 | Z50: 160.4371625 | AC50: 1 | AD50: 13.09114224 | AE50: -0.0001184458643 | AF50: 0.00342710059 | AG50: 3805.258375 | AH50: -423.3074225 | AJ50: 18000 | AK50: 517.8591271 | AL50: 1 | AM50: 0.7706884717 | AN50: 11543.01221 | AO50: -8378.207313 | AQ50: 38.91050584 | AR50: -622.5680934 | AT50: -115473.1667 | AU50: -2385503.557 | AV50: -1.619164774 | AW50: -4739735.042 | AX50: -7531836.753 | AY50: -2.132477064 | BA50: 0.2683756415 | BB50: -11.42513809 | BC50: 0.5133122902 | BD50: -150.5893722 | BF50: 19.38950142 | BG50: -19.77765216 | BH50: 160.2223478 | BI50: 160.2223478 | BJ50: 0 | BK50: 0 | BM50: 30.81463951 | BN50: -49.18828 | BQ50: 5.476822713 | BT50: 251.189 | BU50: 27.0434 | BV50: -265.9205
A51: 8500 | B51: 8.5 | C51: 1.000002103 | D51: 0.002050828807 | F51: 2.529641786 | G51: -1.075880103 | H51: -1.075880103 | J51: 15 | M51: 0.01525708987 | N51: -1.570796325 | O51: 13.94523937 | P51: 1.499025668 | Q51: 1.292488286 | R51: 0.6861335191 | S51: 0.9995331236 | T51: -0.0305585578 | U51: 0.999326442 | V51: -0.03670514045 | X51: 20.35960124 | Y51: -30.17941229 | Z51: 149.8205877 | AC51: 1 | AD51: 13.90933863 | AE51: -0.0001337142765 | AF51: 0.003641294377 | AG51: 3804.673236 | AH51: -414.3414328 | AJ51: 18000 | AK51: 550.2253226 | AL51: 1 | AM51: 0.8188565012 | AN51: 11044.75831 | AO51: -8493.846823 | AQ51: 34.48275862 | AR51: -586.2068966 | AT51: -111694.1766 | AU51: -2244613.326 | AV51: -1.620516304 | AW51: -4572218.569 | AX51: -6787073.295 | AY51: -2.163628784 | BA51: 0.2746248821 | BB51: -11.22520233 | BC51: 0.5431124805 | BD51: -148.881947 | BF51: 20.35782165 | BG51: -30.4078324 | BH51: 149.5921676 | BI51: 149.5921676 | BJ51: 0 | BK51: 0 | BM51: 31.58302398 | BN51: -61.52588537 | BQ51: 5.676758471 | BT51: 257.04 | BU51: 26.6776 | BV51: -267.6031
A52: 9000 | B52: 9 | C52: 1.000002358 | D52: 0.002171465427 | F52: 2.640244043 | G52: -1.335791351 | H52: -1.335791351 | J52: 15 | M52: 0.01440947377 | N52: -1.570796325 | O52: 14.76144599 | P52: 1.503000363 | Q52: 1.323529953 | R52: 0.7142950264 | S52: 0.9994766259 | T52: -0.03235490058 | U52: 0.9992449616 | V52: -0.03886215339 | X52: 20.93383521 | Y52: -43.44955977 | Z52: 136.5504402 | AC52: 1 | AD52: 14.72753502 | AE52: -0.0001499080471 | AF52: 0.003855488164 | AG52: 3804.052831 | AH52: -407.2786802 | AJ52: 18000 | AK52: 582.591518 | AL52: 1 | AM52: 0.8670245307 | AN52: 10563.90249 | AO52: -8576.571078 | AQ52: 30.76923077 | AR52: -553.8461538 | AT52: -108521.9511 | AU52: -2119391.681 | AV52: -1.621955939 | AW52: -4399987.791 | AX52: -6134425.826 | AY52: -2.193013528 | BA52: 0.2811100667 | BB52: -11.02247204 | BC52: 0.5710575892 | BD52: -147.2808102 | BF52: 20.93225505 | BG52: -43.69160127 | BH52: 136.3083987 | BI52: 136.3083987 | BJ52: 0 | BK52: 0 | BM52: 31.95472709 | BN52: -76.41079103 | BQ52: 5.879488764 | BT52: 263.027 | BU52: 26.2703 | BV52: -267.3229
A53: 9500 | B53: 9.5 | C53: 1.000002627 | D53: 0.002292101983 | F53: 2.56950621 | G53: 1.526939119 | H53: -1.614653531 | J53: 15 | M53: 0.01365108041 | N53: -1.570796325 | O53: 15.57786137 | P53: 1.506558492 | Q53: 1.355572728 | R53: 0.7411456557 | S53: 0.9994169101 | T53: -0.03415103451 | U53: 0.9991588468 | V53: -0.04101880457 | X53: 20.90241971 | Y53: -57.90445813 | Z53: 122.0955419 | AC53: 1 | AD53: 15.54573141 | AE53: -0.0001670271759 | AF53: 0.004069681951 | AG53: 3803.397194 | AH53: -401.8178108 | AJ53: 18000 | AK53: 614.9577135 | AL53: 1 | AM53: 0.9151925602 | AN53: 10101.78102 | AO53: -8630.117119 | AQ53: 27.62430939 | AR53: -524.8618785 | AT53: -105832.6301 | AU53: -2007358.135 | AV53: -1.623469904 | AW53: -4226464.853 | AX53: -5560230.216 | AY53: -2.22074542 | BA53: 0.2878130194 | BB53: -10.81779129 | BC53: 0.5972755155 | BD53: -145.7786337 | BF53: 20.90105014 | BG53: -58.16013874 | BH53: 121.8398613 | BI53: 121.8398613 | BJ53: 0 | BK53: 0 | BM53: 31.71884143 | BN53: -92.38150502 | BQ53: 6.084169513 | BT53: 269.153 | BU53: 26.2359 | BV53: -265.677
A54: 10000 | B54: 10 | C54: 1.000002911 | D54: 0.002412738473 | F54: 2.331978535 | G54: 1.267665775 | H54: -1.873926875 | J54: 15 | M54: 0.01296852639 | N54: -1.570796325 | O54: 16.39445433 | P54: 1.509762205 | Q54: 1.388547308 | R54: 0.7667387495 | S54: 0.999353978 | T54: -0.03594694803 | U54: 0.9990681013 | V54: -0.04317507405 | X54: 20.26559575 | Y54: -71.32932254 | Z54: 108.6706775 | AC54: 1 | AD54: 16.3639278 | AE54: -0.000185071663 | AF54: 0.004283875738 | AG54: 3802.706362 | AH54: -397.7176965 | AJ54: 18000 | AK54: 647.3239089 | AL54: 1 | AM54: 0.9633605897 | AN54: 9659.228095 | AO54: -8657.995764 | AQ54: 24.93765586 | AR54: -498.7531172 | AT54: -103532.3583 | AU54: -1906529.799 | AV54: -1.625047127 | AW54: -4054153.003 | AX54: -5053259.214 | AY54: -2.246928881 | BA54: 0.294717091 | BB54: -10.61189356 | BC54: 0.6218817538 | BD54: -144.3688001 | BF54: 20.26444787 | BG54: -71.59866158 | BH54: 108.4013384 | BI54: 108.4013384 | BJ54: 0 | BK54: 0 | BM54: 30.87634143 | BN54: -107.2298615 | BQ54: 6.290067236 | BT54: 275.423 | BU54: 25.8456 | BV54: -266.4657
A55: 10500 | B55: 10.5 | C55: 1.000003209 | D55: 0.002533374893 | F55: 2.022291191 | G55: 1.053267246 | H55: -2.088325404 | J55: 15 | M55: 0.01235097751 | N55: -1.570796325 | O55: 17.2111996 | P55: 1.512661884 | Q55: 1.422388888 | R55: 0.7911293734 | S55: 0.9992878315 | T55: -0.0377426296 | U55: 0.9989727288 | V55: -0.04533094186 | X55: 19.23422794 | Y55: -82.26932929 | Z55: 97.73067071 | AC55: 1 | AD55: 17.18212419 | AE55: -0.0002040415085 | AF55: 0.004498069524 | AG55: 3801.980373 | AH55: -394.7830955 | AJ55: 18000 | AK55: 679.6901043 | AL55: 1 | AM55: 1.011528619 | AN55: 9236.663206 | AO55: -8663.459074 | AQ55: 22.62443439 | AR55: -475.1131222 | AT55: -101548.9736 | AU55: -1815302.51 | AV55: -1.626678608 | AW55: -3884865.083 | AX55: -4604194.559 | AY55: -2.271660367 | BA55: 0.301806993 | BB55: -10.40541403 | BC55: 0.6449817595 | BD55: -143.0452673 | BF55: 19.23331282 | BG55: -82.55234763 | BH55: 97.44765237 | BI55: 97.44765237 | BJ55: 0 | BK55: 0 | BM55: 29.63872685 | BN55: -119.5070804 | BQ55: 6.496546767 | BT55: 281.838 | BU55: 26.1068 | BV55: -266.6757
A56: 11000 | B56: 11 | C56: 1.000003522 | D56: 0.002654011239 | F56: 1.721737683 | G56: 0.8869039943 | H56: -2.254688656 | J56: 15 | M56: 0.01178956945 | N56: -1.570796325 | O56: 18.02807646 | P56: 1.515298808 | Q56: 1.457037058 | R56: 0.8143732756 | S56: 0.9992184724 | T56: -0.03953806769 | U56: 0.9988727333 | V56: -0.04748638809 | X56: 18.04296639 | Y56: -90.53783644 | Z56: 89.46216356 | AC56: 1 | AD56: 18.00032057 | AE56: -0.0002239367123 | AF56: 0.004712263311 | AG56: 3801.219267 | AH56: -392.8542238 | AJ56: 18000 | AK56: 712.0562998 | AL56: 1 | AM56: 1.059696649 | AN56: 8834.170352 | AO56: -8649.484416 | AQ56: 20.6185567 | AR56: -453.6082474 | AT56: -99826.26094 | AU56: -1732364.497 | AV56: -1.628356954 | AW56: -3719890.967 | AX56: -4205236.583 | AY56: -2.295029517 | BA56: 0.309068667 | BB56: -10.19890042 | BC56: 0.6666725627 | BD56: -141.8024758 | BF56: 18.04229505 | BG56: -90.83455639 | BH56: 89.16544361 | BI56: 89.16544361 | BJ56: 0 | BK56: 0 | BM56: 28.24119547 | BN56: -129.0320806 | BQ56: 6.703060382 | BT56: 288.403 | BU56: 25.7844 | BV56: -268.0599
A57: 11500 | B57: 11.5 | C57: 1.000003849 | D57: 0.002774647508 | F57: 1.464077985 | G57: 0.7602216627 | H57: -2.381370987 | J57: 15 | M57: 0.01127697947 | N57: -1.570796325 | O57: 18.84506781 | P57: 1.51770711 | Q57: 1.492435642 | R57: 0.8365260534 | S57: 0.9991459028 | T57: -0.04133325077 | U57: 0.9987681191 | V57: -0.04964139285 | X57: 16.84073661 | Y57: -96.60837034 | Z57: 83.39162966 | AC57: 1 | AD57: 18.81851696 | AE57: -0.0002447572744 | AF57: 0.004926457098 | AG57: 3800.423088 | AH57: -391.7990471 | AJ57: 18000 | AK57: 744.4224952 | AL57: 1 | AM57: 1.107864678 | AN57: 8451.567935 | AO57: -8618.771095 | AQ57: 18.86792453 | AR57: -433.9622642 | AT57: -98319.90555 | AU57: -1656632.643 | AV57: -1.630076041 | AW57: -3560122.592 | AX57: -3849809.785 | AY57: -2.317119944 | BA57: 0.3164891746 | BB57: -9.992822805 | BC57: 0.6870439026 | BD57: -140.635284 | BF57: 16.84032002 | BG57: -96.91881559 | BH57: 83.08118441 | BI57: 83.08118441 | BJ57: 0 | BK57: 0 | BM57: 26.83314282 | BN57: -136.2835316 | BQ57: 6.909137995 | BT57: 295.121 | BU57: 25.5811 | BV57: -265.88
A58: 12000 | B58: 12 | C58: 1.000004191 | D58: 0.002895283696 | F58: 1.253493727 | G58: 0.6631717764 | H58: -2.478420874 | J58: 15 | M58: 0.01080710533 | N58: -1.570796325 | O58: 19.66215938 | P58: 1.519915262 | Q58: 1.528532506 | R58: 0.8576425013 | S58: 0.9990701247 | T58: -0.04312816733 | U58: 0.9986588904 | V58: -0.05179593625 | X58: 15.69687329 | Y58: -101.0518935 | Z58: 78.94810647 | AC58: 1 | AD58: 19.63671335 | AE58: -0.0002665031948 | AF58: 0.005140650885 | AG58: 3799.591879 | AH58: -391.5074996 | AJ58: 18000 | AK58: 776.7886907 | AL58: 1 | AM58: 1.156032708 | AN58: 8088.469071 | AO58: -8573.74611 | AQ58: 17.33102253 | AR58: -415.9445407 | AT58: -96994.59467 | AU58: -1587204.724 | AV58: -1.631830749 | AW58: -3406148.664 | AX58: -3532336.761 | AY58: -2.338009803 | BA58: 0.3240566021 | BB58: -9.787582521 | BC58: 0.7061790538 | BD58: -139.5389206 | BF58: 15.69672236 | BG58: -101.3760891 | BH58: 78.62391087 | BI58: 78.62391087 | BJ58: 0 | BK58: 0 | BM58: 25.48430489 | BN58: -141.8371685 | BQ58: 7.114378279 | BT58: 301.995 | BU58: 24.917 | BV58: -267.1358
A59: 12500 | B59: 12.5 | C59: 1.000004548 | D59: 0.0030159198 | F59: 1.083600689 | G59: 0.5875881436 | H59: -2.554004506 | J59: 15 | M59: 0.01037482111 | N59: -1.570796325 | O59: 20.47933917 | P59: 1.521947201 | Q59: 1.565279341 | R59: 0.8777761131 | S59: 0.9989911404 | T59: -0.04492280587 | U59: 0.9985450518 | V59: -0.05394999845 | X59: 14.63560433 | Y59: -104.3318561 | Z59: 75.66814388 | AC59: 1 | AD59: 20.45490974 | AE59: -0.0002891744735 | AF59: 0.005354844672 | AG59: 3798.725686 | AH59: -391.8870908 | AJ59: 18000 | AK59: 809.1548861 | AL59: 1 | AM59: 1.204200737 | AN59: 7744.332656 | AO59: -8516.576206 | AQ59: 15.97444089 | AR59: -399.3610224 | AT59: -95821.91029 | AU59: -1523323.151 | AV59: -1.633616764 | AW59: -3258327.162 | AX59: -3248061.834 | AY59: -2.357772219 | BA59: 0.3317599757 | BB59: -9.583520188 | BC59: 0.7241554555 | BD59: -138.5089486 | BF59: 14.63572995 | BG59: -104.6698284 | BH59: 75.33017159 | BI59: 75.33017159 | BJ59: 0 | BK59: 0 | BM59: 24.21925013 | BN59: -146.1608798 | BQ59: 7.318440612 | BT59: 309.03 | BU59: 24.8252 | BV59: -265.0361
A60: 13000 | B60: 13 | C60: 1.000004919 | D60: 0.003136555816 | F60: 0.9462133538 | G60: 0.5275669653 | H60: -2.614025685 | J60: 15 | M60: 0.009975789531 | N60: -1.570796325 | O60: 21.29659702 | P60: 1.523823196 | Q60: 1.602631438 | R60: 0.8969787141 | S60: 0.9989089522 | T60: -0.04671715489 | U60: 0.9984266081 | V60: -0.05610355962 | X60: 13.66031338 | Y60: -106.7823884 | Z60: 73.21761161 | AC60: 1 | AD60: 21.27310613 | AE60: -0.0003127711105 | AF60: 0.005569038459 | AG60: 3797.824558 | AH60: -392.8595252 | AJ60: 18000 | AK60: 841.5210816 | AL60: 1 | AM60: 1.252368767 | AN60: 7418.505882 | AO60: -8449.183979 | AQ60: 14.77104874 | AR60: -384.0472674 | AT60: -94778.77543 | AU60: -1464347.091 | AV60: -1.635430427 | AW60: -3116841.247 | AX60: -2992911.457 | AY60: -2.376475638 | BA60: 0.3395891841 | BB60: -9.38092301 | BC60: 0.7410452107 | BD60: -137.5412369 | BF60: 13.66072635 | BG60: -107.134165 | BH60: 72.86583502 | BI60: 72.86583502 | BJ60: 0 | BK60: 0 | BM60: 23.04164936 | BN60: -149.592928 | BQ60: 7.52103779 | BT60: 316.228 | BU60: 24.722 | BV60: -265.2184
A61: 13500 | B61: 13.5 | C61: 1.000005305 | D61: 0.003257191741 | F61: 0.8341457179 | G61: 0.4789826451 | H61: -2.662610005 | J61: 15 | M61: 0.009606315845 | N61: -1.570796325 | O61: 22.11392428 | P61: 1.525560524 | Q61: 1.640547457 | R61: 0.9153002012 | S61: 0.9988235623 | T61: -0.04851120291 | U61: 0.9983035641 | V61: -0.05825659998 | X61: 12.76596732 | Y61: -108.636019 | Z61: 71.36398097 | AC61: 1 | AD61: 22.09130252 | AE61: -0.0003372931059 | AF61: 0.005783232246 | AG61: 3796.888545 | AH61: -394.358074 | AJ61: 18000 | AK61: 873.887277 | AL61: 1 | AM61: 1.300536796 | AN61: 7110.259084 | AO61: -8373.266292 | AQ61: 13.69863014 | AR61: -369.8630137 | AT61: -93846.29388 | AU61: -1409730.805 | AV61: -1.637268614 | AW61: -2981742.566 | AX61: -2763382.357 | AY61: -2.394184117 | BA61: 0.3475349075 | BB61: -9.180031339 | BC61: 0.756915503 | BD61: -136.6319362 | BF61: 12.76667841 | BG61: -109.0016288 | BH61: 70.99837122 | BI61: 70.99837122 | BJ61: 0 | BK61: 0 | BM61: 21.94670975 | BN61: -152.3696926 | BQ61: 7.721929462 | BT61: 323.594 | BU61: 24.5962 | BV61: -266.9949
A62: 14000 | B62: 14 | C62: 1.000005705 | D62: 0.003377827571 | F62: 0.7417327154 | G62: 0.4389569738 | H62: -2.702635676 | J62: 15 | M62: 0.009263233136 | N62: -1.570796325 | O62: 22.93131354 | P62: 1.527174001 | Q62: 1.678989192 | R62: 0.9327883693 | S62: 0.9987349734 | T62: -0.05030493847 | U62: 0.9981759251 | V62: -0.06040909976 | X62: 11.94475896 | Y62: -110.0540681 | Z62: 69.94593191 | AC62: 1 | AD62: 22.90949891 | AE62: -0.0003627404595 | AF62: 0.005997426033 | AG62: 3795.917697 | AH62: -396.3255098 | AJ62: 18000 | AK62: 906.2534725 | AL62: 1 | AM62: 1.348704826 | AN62: 6818.813884 | AO62: -8290.313717 | AQ62: 12.7388535 | AR62: -356.6878981 | AT62: -93008.8736 | AU62: -1359006.637 | AV62: -1.639128639 | AW62: -2852984.89 | AX62: -2556450.903 | AY62: -2.410957594 | BA62: 0.3555885533 | BB62: -8.981044555 | BC62: 0.7718289545 | BD62: -135.7774584 | BF62: 11.94577887 | BG62: -110.4335411 | BH62: 69.56645893 | BI62: 69.56645893 | BJ62: 0 | BK62: 0 | BM62: 20.92682343 | BN62: -154.6560827 | BQ62: 7.920916245 | BT62: 331.131 | BU62: 24.3868 | BV62: -265.0934
A63: 14500 | B63: 14.5 | C63: 1.00000612 | D63: 0.003498463302 | F63: 0.6646673199 | G63: 0.4054586524 | H63: -2.736133998 | J63: 15 | M63: 0.008943811304 | N63: -1.570796325 | O63: 23.74875838 | P63: 1.528676409 | Q63: 1.717921352 | R63: 0.9494888084 | S63: 0.9986431879 | T63: -0.0520983501 | U63: 0.9980436964 | V63: -0.06256103922 | X63: 11.18849914 | Y63: -111.1495743 | Z63: 68.85042574 | AC63: 1 | AD63: 23.7276953 | AE63: -0.0003891131715 | AF63: 0.006211619819 | AG63: 3794.91207 | AH63: -398.7124685 | AJ63: 18000 | AK63: 938.6196679 | AL63: 1 | AM63: 1.396872855 | AN63: 6543.365573 | AO63: -8201.630081 | AQ63: 11.87648456 | AR63: -344.4180523 | AT63: -92253.55719 | AU63: -1311771.526 | AV63: -1.641008182 | AW63: -2730450.257 | AX63: -2369499.006 | AY63: -2.426852128 | BA63: 0.363742195 | BB63: -8.784126335 | BC63: 0.7858439456 | BD63: -134.9744585 | BF63: 11.18983852 | BG63: -111.5429418 | BH63: 68.45705824 | BI63: 68.45705824 | BJ63: 0 | BK63: 0 | BM63: 19.97396486 | BN63: -156.5684832 | BQ63: 8.117834465 | BT63: 338.844 | BU63: 24.1369 | BV63: -266.4201
A64: 15000 | B64: 15 | C64: 1.000006549 | D64: 0.003619098932 | F64: 0.5997045149 | G64: 0.377030057 | H64: -2.764562593 | J64: 15 | M64: 0.00864568426 | N64: -1.570796325 | O64: 24.56625326 | P64: 1.530078829 | Q64: 1.757311343 | R64: 0.9654448558 | S64: 0.9985482085 | T64: -0.05389142636 | U64: 0.9979068833 | V64: -0.06471239866 | X64: 10.4895497 | Y64: -112.0029335 | Z64: 67.99706647 | AC64: 1 | AD64: 24.54589169 | AE64: -0.0004164112418 | AF64: 0.006425813606 | AG64: 3793.871719 | AH64: -401.4761386 | AJ64: 18000 | AK64: 970.9858633 | AL64: 1 | AM64: 1.445040884 | AN64: 6283.100646 | AO64: -8108.351452 | AQ64: 11.09877913 | AR64: -332.963374 | AT64: -91569.50542 | AU64: -1267676.223 | AV64: -1.642905228 | AW64: -2613969.264 | AX64: -2200253.017 | AY64: -2.441920133 | BA64: 0.3719885175 | BB64: -8.589409314 | BC64: 0.7990149052 | BD64: -134.2198181 | BF64: 10.49121912 | BG64: -112.410228 | BH64: 67.58977202 | BI64: 67.58977202 | BJ64: 0 | BK64: 0 | BM64: 19.08062843 | BN64: -158.1904099 | BQ64: 8.312551487 | BT64: 346.737 | BU64: 24.0404 | BV64: -265.8794
A65: 15500 | B65: 15.5 | C65: 1.000006993 | D65: 0.003739734456 | F65: 0.5443927023 | G65: 0.3526061545 | H65: -2.788986496 | J65: 15 | M65: 0.00836679122 | N65: -1.570796325 | O65: 25.38379334 | P65: 1.531390914 | Q65: 1.797129061 | R65: 0.9806975914 | S65: 0.998450038 | T65: -0.05568415582 | U65: 0.9977654917 | V65: -0.0668631584 | X65: 9.84112261 | Y65: -112.6722591 | Z65: 67.32774091 | AC65: 1 | AD65: 25.36408808 | AE65: -0.0004446346704 | AF65: 0.006640007393 | AG65: 3792.796702 | AH65: -404.5792049 | AJ65: 18000 | AK65: 1003.352059 | AL65: 1 | AM65: 1.493208914 | AN65: 6037.210293 | AO65: -8011.464166 | AQ65: 10.3950104 | AR65: -322.2453222 | AT65: -90947.59511 | AU65: -1226416.6 | AV65: -1.644818015 | AW65: -2503336.795 | AX65: -2046733.018 | AY65: -2.456210594 | BA65: 0.3803207655 | BB65: -8.39699923 | BC65: 0.8113925793 | BD65: -133.5106296 | BF65: 9.843132586 | BG65: -113.0935141 | BH65: 66.90648588 | BI65: 66.90648588 | BJ65: 0 | BK65: 0 | BM65: 18.24013182 | BN65: -159.5828845 | BQ65: 8.50496157 | BT65: 354.813 | BU65: 23.629 | BV65: -265.9549
A66: 16000 | B66: 16 | C66: 1.000007451 | D66: 0.003860369872 | F66: 0.4968647469 | G66: 0.3313947342 | H66: -2.810197916 | J66: 15 | M66: 0.008105328994 | N66: -1.570796325 | O66: 26.2013744 | P66: 1.532621118 | Q66: 1.837346696 | R66: 0.9952858651 | S66: 0.9983486791 | T66: -0.05747652705 | U66: 0.9976195273 | V66: -0.06901329882 | X66: 9.23731403 | Y66: -113.2002293 | Z66: 66.79977067 | AC66: 1 | AD66: 26.18228447 | AE66: -0.0004737834574 | AF66: 0.00685420118 | AG66: 3791.687077 | AH66: -407.9889894 | AJ66: 18000 | AK66: 1035.718254 | AL66: 1 | AM66: 1.541376943 | AN66: 5804.900561 | AO66: -7911.821629 | AQ66: 9.756097561 | AR66: -312.195122 | AT66: -90380.10326 | AU66: -1187726.59 | AV66: -1.646745001 | AW66: -2398324.146 | AX66: -1907210.47 | AY66: -2.469769281 | BA66: 0.3887326968 | BB66: -8.206978575 | BC66: 0.8230242805 | BD66: -132.8441822 | BF66: 9.239675011 | BG66: -113.6354797 | BH66: 66.36452031 | BI66: 66.36452031 | BJ66: 0 | BK66: 0 | BM66: 17.44665359 | BN66: -160.7912975 | BQ66: 8.694982225 | BT66: 363.078 | BU66: 23.6126 | BV66: -265.3916
A67: 16500 | B67: 16.5 | C67: 1.000007924 | D67: 0.003981005175 | F67: 0.4556839092 | G67: 0.3127964445 | H67: -2.828796206 | J67: 15 | M67: 0.007859712964 | N67: -1.570796325 | O67: 27.01899271 | P67: 1.53377687 | Q67: 1.877938556 | R67: 1.00924635 | S67: 0.9982441348 | T67: -0.05926852866 | U67: 0.9974689963 | V67: -0.0711628003 | X67: 8.673035706 | Y67: -113.6186559 | Z67: 66.3813441 | AC67: 1 | AD67: 27.00048086 | AE67: -0.0005038576026 | AF67: 0.007068394967 | AG67: 3790.542907 | AH67: -411.6767491 | AJ67: 18000 | AK67: 1068.08445 | AL67: 1 | AM67: 1.589544973 | AN67: 5585.399821 | AO67: -7810.159757 | AQ67: 9.174311927 | AR67: -302.7522936 | AT67: -89860.45701 | AU67: -1151372.41 | AV67: -1.648684824 | AW67: -2298688.343 | AX67: -1780172.654 | AY67: -2.482638946 | BA67: 0.3972185391 | BB67: -8.019409805 | BC67: 0.8339541221 | BD67: -132.2179484 | BF67: 8.675758072 | BG67: -114.0679375 | BH67: 65.93206249 | BI67: 65.93206249 | BJ67: 0 | BK67: 0 | BM67: 16.69516788 | BN67: -161.8499891 | BQ67: 8.882550996 | BT67: 371.535 | BU67: 23.316 | BV67: -265.2439
A68: 17000 | B68: 17 | C68: 1.000008412 | D68: 0.004101640362 | F68: 0.419732328 | G68: 0.2963506356 | H68: -2.845242014 | J68: 15 | M68: 0.007628544936 | N68: -1.570796325 | O68: 27.83664499 | P68: 1.534864726 | Q68: 1.918880892 | R68: 1.02261361 | S68: 0.9981364082 | T68: -0.06106014924 | U68: 0.9973139049 | V68: -0.07331164328 | X68: 8.143914429 | Y68: -113.9515742 | Z68: 66.04842582 | AC68: 1 | AD68: 27.81867725 | AE68: -0.0005348571062 | AF68: 0.007282588754 | AG68: 3789.364253 | AH68: -415.6170973 | AJ68: 18000 | AK68: 1100.450645 | AL68: 1 | AM68: 1.637713002 | AN68: 5377.964062 | AO68: -7707.111026 | AQ68: 8.643042351 | AR68: -293.8634399 | AT68: -89383.03418 | AU68: -1117147.811 | AV68: -1.650636283 | AW68: -2204179.233 | AX68: -1664292.7 | AY68: -2.494859521 | BA68: 0.4057729499 | BB68: -7.834338156 | BC68: 0.8442232382 | BD68: -131.6295714 | BF68: 8.14700849 | BG68: -114.4149241 | BH68: 65.58507594 | BI68: 65.58507594 | BJ68: 0 | BK68: 0 | BM68: 15.98134665 | BN68: -162.7853526 | BQ68: 9.067622645 | BT68: 380.189 | BU68: 23.2133 | BV68: -265.4987
A69: 17500 | B69: 17.5 | C69: 1.000008914 | D69: 0.00422227543 | F69: 0.3881305567 | G69: 0.2816980823 | H69: -2.859894568 | J69: 15 | M69: 0.007410586509 | N69: -1.570796325 | O69: 28.65432833 | P69: 1.535890497 | Q69: 1.960151743 | R69: 1.035420187 | S69: 0.9980255023 | T69: -0.06285137743 | U69: 0.9971542594 | V69: -0.07545980822 | X69: 7.646189206 | Y69: -114.2173672 | Z69: 65.78263277 | AC69: 1 | AD69: 28.63687364 | AE69: -0.000566781968 | AF69: 0.007496782541 | AG69: 3788.151182 | AH69: -419.7875242 | AJ69: 18000 | AK69: 1132.816841 | AL69: 1 | AM69: 1.685881032 | AN69: 5181.880457 | AO69: -7603.217131 | AQ69: 8.156606852 | AR69: -285.4812398 | AT69: -88943.00297 | AU69: -1084870.138 | AV69: -1.652598307 | AW69: -2114544.84 | AX69: -1558404.197 | AY69: -2.506468296 | BA69: 0.4143909808 | BB69: -7.651794111 | BC69: 0.8538699895 | BD69: -131.0768533 | BF69: 7.649665199 | BG69: -114.6948235 | BH69: 65.3051765 | BI69: 65.3051765 | BJ69: 0 | BK69: 0 | BM69: 15.30145931 | BN69: -163.6179702 | BQ69: 9.25016669 | BT69: 389.045 | BU69: 22.9552 | BV69: -266.0672
A70: 18000 | B70: 18 | C70: 1.000009431 | D70: 0.004342910375 | F70: 0.3601792625 | G70: 0.2685548987 | H70: -2.873037751 | J70: 15 | M70: 0.007204736884 | N70: -1.570796325 | O70: 29.47204015 | P70: 1.536859349 | Q70: 2.001730788 | R70: 1.047696683 | S70: 0.9979114203 | T70: -0.06464220186 | U70: 0.9969900665 | V70: -0.07760727562 | X70: 7.176617547 | Y70: -114.4302493 | Z70: 65.5697507 | AC70: 1 | AD70: 29.45507003 | AE70: -0.0005996321882 | AF70: 0.007710976328 | AG70: 3786.90376 | AH70: -424.1679976 | AJ70: 18000 | AK70: 1165.183036 | AL70: 1 | AM70: 1.734049061 | AN70: 4996.469566 | AO70: -7498.940326 | AQ70: 7.710100231 | AR70: -277.5636083 | AT70: -88536.19239 | AU70: -1054377.05 | AV70: -1.654569944 | AW70: -2029535.349 | AX70: -1461479.635 | AY70: -2.517500101 | BA70: 0.4230680439 | BB70: -7.471795549 | BC70: 0.8629301573 | BD70: -130.5577439 | BF70: 7.180485633 | BG70: -114.9218512 | BH70: 65.0781488 | BI70: 65.0781488 | BJ70: 0 | BK70: 0 | BM70: 14.65228118 | BN70: -164.3641073 | BQ70: 9.430165251 | BT70: 398.107 | BU70: 22.7385 | BV70: -265.2319
A71: 18500 | B71: 18.5 | C71: 1.000009962 | D71: 0.004463545194 | F71: 0.3353166537 | G71: 0.2566939869 | H71: -2.884898663 | J71: 15 | M71: 0.007010014265 | N71: -1.570796325 | O71: 30.28977814 | P71: 1.537775889 | Q71: 2.043599217 | R71: 1.059471862 | S71: 0.9977941655 | T71: -0.06643261119 | U71: 0.9968213331 | V71: -0.07975402604 | X71: 6.732394287 | Y71: -114.6013183 | Z71: 65.39868167 | AC71: 1 | AD71: 30.27326642 | AE71: -0.0006334077667 | AF71: 0.007925170114 | AG71: 3785.622055 | AH71: -428.740628 | AJ71: 18000 | AK71: 1197.549231 | AL71: 1 | AM71: 1.782217091 | AN71: 4821.086491 | AO71: -7394.673509 | AQ71: 7.299270073 | AR71: -270.0729927 | AT71: -88158.98672 | AU71: -1025523.771 | AV71: -1.656550342 | AW71: -1948906.03 | AX71: -1372612.017 | AY71: -2.527987467 | BA71: 0.4317998815 | BB71: -7.294349623 | BC71: 0.8714371249 | BD71: -130.0703306 | BF71: 6.736664553 | BG71: -115.1071062 | BH71: 64.89289382 | BI71: 64.89289382 | BJ71: 0 | BK71: 0 | BM71: 14.03101418 | BN71: -165.0367756 | BQ71: 9.607611177 | BT71: 407.38 | BU71: 22.7593 | BV71: -265.7319
A72: 19000 | B72: 19 | C72: 1.000010507 | D72: 0.004584179883 | F72: 0.3130870959 | G72: 0.2459316398 | H72: -2.89566101 | J72: 15 | M72: 0.006825540205 | N72: -1.570796325 | O72: 31.10754024 | P72: 1.538644241 | Q72: 2.085739602 | R72: 1.070772743 | S72: 0.9976737413 | T72: -0.06822259409 | U72: 0.996648066 | V72: -0.08190004005 | X72: 6.311082973 | Y72: -114.7393138 | Z72: 65.26068615 | AC72: 1 | AD72: 31.09146281 | AE72: -0.0006681087035 | AF72: 0.008139363901 | AG72: 3784.306139 | AH72: -433.489387 | AJ72: 18000 | AK72: 1229.915427 | AL72: 1 | AM72: 1.83038512 | AN72: 4655.121209 | AO72: -7290.749167 | AQ72: 6.920415225 | AR72: -262.9757785 | AT72: -87808.23922 | AU72: -998180.7797 | AV72: -1.658538736 | AW72: -1872419.323 | AX72: -1290999.149 | AY72: -2.537960783 | BA72: 0.4405825383 | BB72: -7.119454386 | BC72: 0.8794220471 | BD72: -129.6128282 | BF72: 6.315765425 | BG72: -115.259329 | BH72: 64.74067096 | BI72: 64.74067096 | BJ72: 0 | BK72: 0 | BM72: 13.43521981 | BN72: -165.6465008 | BQ72: 9.782506414 | BT72: 416.869 | BU72: 22.4206 | BV72: -265.2494
A73: 19500 | B73: 19.5 | C73: =SQRT((A73/Fesr)^2+1) -> 1.000011068 | D73: =ATAN(A73/Fesr) -> 0.004704814438 | F73: =(Ro/(Ro+Rdcr))/SQRT((A73/(Q*Fo))^2+(1-(A73^2/Fo^2))^2) -> 0.2931177378 | G73: =-ATAN(A73*Fo/(Q*(Fo^2-A73^2))) -> 0.2361177238 | H73: =IF(G73>0,G73-Pi,G73) -> -2.905474926 | J73: =Vin/Vramp -> 15 | M73: =1/(2*Pi*_Rfb1*(Cc1ea_u+Cc2ea_u)*A73) -> 0.006650526354 | N73: =-Pi/2 -> -1.570796325 | O73: =SQRT(1+(A73/Fz1_u)^2) -> 31.92532459 | P73: =ATAN2(Fz1_u,A73) -> 1.539468107 | Q73: =SQRT(1+(A73/Fz2_u)^2) -> 2.128135789 | R73: =ATAN2(Fz2_u,A73) -> 1.081624698 | S73: =1/SQRT(1+(A73/Fp1_u)^2) -> 0.9975501511 | T73: =-ATAN2(Fp1_u,A73) -> -0.07001213924 | U73: =1/SQRT(1+(A73/Fp2_u)^2) -> 0.9964702724 | V73: =-ATAN2(Fp2_u,A73) -> -0.08404529827 | X73: 5.910558547 | Y73: =(180/Pi)*(D73+H73+N73+P73+R73+T73+V73) -> -114.8511703 | Z73: 65.14882967 | AC73: 1 | AD73: =Rcea1_u*Cc1ea_u*A73*2*Pi -> 31.9096592 | AE73: =-Rcea1_u*Cc1ea_u*Cc2ea_u*(A73*2*Pi)^2 -> -0.0007037349987 | AF73: =(Cc2ea_u+Cc1ea_u)*A73*2*Pi -> 0.008353557688 | AG73: 3782.956083 | AH73: -438.3998687 | AJ73: =_Rfb1 -> 18000 | AK73: =_Rfb1*Rcea2_u*Cc3ea_u*A73*2*Pi -> 1262.281622 | AL73: 1 | AM73: =(_Rfb1+Rcea2_u)*Cc3ea_u*A73*2*Pi -> 1.87855315 | AN73: 4497.998306 | AO73: -7187.447263 | AQ73: =Eadcg/(1+(Eadcg*A73/GBP)^2) -> 6.570302234 | AR73: =-(A73*Eadcg*Eadcg/GBP)/(1+(Eadcg*A73/GBP)^2) -> -256.2417871 | AT73: -87481.20104 | AU73: -972231.8469 | AV73: -1.660534437 | AW73: -1799846.282 | AX73: -1215930.174 | AY73: -2.547448446 | BA73: =SQRT(AT73^2+AU73^2)/SQRT(AW73^2+AX73^2) -> 0.4494123363 | BB73: -6.947100208 | BC73: 0.8869140095 | BD73: =BC73*180/Pi-180 -> -129.1835704 | BF73: =20*LOG(BA73*J73*F73*C73) -> 5.915663111 | BG73: =(180/Pi)*(D73+H73+BC73) -> -115.3854553 | BH73: 64.61454466 | BI73: 64.61454466 | BJ73: =SUM((BF74<0)*(BF73>0))*A73 -> 0 | BK73: 0 | BM73: 12.86276332 | BN73: =(H73+D73)*180/Pi -> -166.2018849 | BQ73: 9.954860592 | BT73: 426.58 | BU73: 22.3737 | BV73: -265.1406
A74: 20000 | B74: =A74/1000 -> 20 | C74: 1.000011643 | D74: 0.004825448857 | F74: 0.2751009228 | G74: 0.227128386 | H74: -2.914464264 | J74: 15 | M74: 0.006484263195 | N74: -1.570796325 | O74: 32.74312953 | P74: 1.540250819 | Q74: 2.170772789 | R74: 1.092051546 | S74: 0.9974233985 | T74: -0.07180123534 | U74: 0.9962879596 | V74: -0.08618978137 | X74: =20*LOG(C74*J74*O74*Q74*F74*M74*S74*U74) -> 5.528959723 | Y74: -114.9424266 | Z74: =Y74+180 -> 65.05757341 | AC74: 1 | AD74: 32.72785559 | AE74: -0.0007402866521 | AF74: 0.008567751475 | AG74: =AC74*AE74/(AE74^2+AF74^2)+AD74*AF74/(AE74^2+AF74^2) -> 3781.571961 | AH74: =AD74*AE74/(AE74^2+AF74^2)-AC74*AF74/(AE74^2+AF74^2) -> -443.459087 | AJ74: 18000 | AK74: 1294.647818 | AL74: 1 | AM74: 1.926721179 | AN74: =AJ74*AL74/(AL74^2+AM74^2)+AK74*AM74/(AL74^2+AM74^2) -> 4349.176251 | AO74: =AK74*AL74/(AL74^2+AM74^2)-AJ74*AM74/(AL74^2+AM74^2) -> -7085.002177 | AQ74: 6.24609619 | AR74: -249.8438476 | AT74: -87175.46233 | AU74: -947572.3768 | AV74: =ATAN2(AT74,AU74) -> -1.662536822 | AW74: =AG74-AH74*AO74/_Rfb2+AG74*AN74/_Rfb2+AN74-AO74*AR74+AQ74*AN74 -> -1730967.512 | AX74: =AH74+AH74*AN74/_Rfb2+AG74*AO74/_Rfb2+AO74+AO74*AQ74+AN74*AR74 -> -1146773.99 | AY74: -2.556476998 | BA74: 0.4582858515 | BB74: =20*LOG(BA74) -> -6.777271007 | BC74: =AV74-AY74 -> 0.8939401756 | BD74: -128.7810007 | BF74: 5.534496244 | BG74: -115.491025 | BH74: =IF(BG74>180,BG74-180,BG74+180) -> 64.50897505 | BI74: =IF(BH74>180,BH74-360,BH74) -> 64.50897505 | BJ74: 0 | BK74: =IF(BJ74>0,BI74,0) -> 0 | BM74: =20*LOG(J74*F74*C74) -> 12.31176725 | BN74: -166.7100242 | BQ74: =20*LOG(BA74*7) -> 10.12468979 | BT74: 436.516 | BU74: 22.0741 | BV74: -264.9151
A75: 20500 | B75: 20.5 | C75: 1.000012232 | D75: 0.004946083135 | F75: 0.2587808166 | G75: 0.2188605685 | H75: -2.922732082 | J75: 15 | M75: 0.006326110434 | N75: -1.570796325 | O75: 33.56095355 | P75: 1.540995385 | Q75: 2.213636688 | R75: 1.102075647 | S75: 0.9972934872 | T75: -0.07358987112 | U75: 0.9961011352 | V75: -0.08833347006 | X75: 5.164649464 | Y75: -115.0175322 | Z75: 64.98246777 | AC75: 1 | AD75: 33.54605198 | AE75: -0.0007777636639 | AF75: 0.008781945262 | AG75: 3780.15385 | AH75: -448.6553025 | AJ75: 18000 | AK75: 1327.014013 | AL75: 1 | AM75: 1.974889209 | AN75: 4208.146347 | AO75: -6983.608797 | AQ75: 5.94530321 | AR75: -243.7574316 | AT75: -86888.90341 | AU75: -924107.9853 | AV75: -1.66454533 | AW75: -1665573.727 | AX75: -1082969.292 | AY75: =ATAN2(AW75,AX75) -> -2.565071255 | BA75: 0.467199893 | BB75: -6.609945307 | BC75: 0.9005259252 | BD75: -128.4036651 | BF75: 5.1706277 | BG75: -115.5804885 | BH75: 64.41951149 | BI75: 64.41951149 | BJ75: 0 | BK75: 0 | BM75: 11.78057301 | BN75: -167.1768234 | BQ75: 10.29201549 | BT75: 446.684 | BU75: 21.7611 | BV75: -265.3082
A76: 21000 | B76: 21 | C76: 1.000012836 | D76: 0.005066717269 | F76: 0.2439431416 | G76: 0.2112278315 | H76: -2.930364818 | J76: 15 | M76: 0.006175488757 | N76: -1.570796325 | O76: 34.3787953 | P76: 1.541704526 | Q76: 2.256714556 | R76: 1.111717991 | S76: 0.9971604208 | T76: -0.07537803531 | U76: 0.9959098068 | V76: -0.09047634509 | X76: 4.816182139 | Y76: -115.0800796 | Z76: 64.91992045 | AC76: 1 | AD76: 34.36424837 | AE76: -0.000816166034 | AF76: 0.008996139049 | AG76: 3778.701826 | AH76: -453.9778743 | AJ76: 18000 | AK76: 1359.380209 | AL76: 1 | AM76: 2.023057238 | AN76: 4074.431461 | AO76: -6883.427851 | AQ76: 5.66572238 | AR76: -237.9603399 | AT76: -86619.65381 | AU76: -901753.2836 | AV76: -1.666559447 | AW76: -1603466.019 | AX76: -1024015.962 | AY76: -2.573254429 | BA76: 0.4761514838 | BB76: -6.445097159 | BC76: 0.9066949823 | BD76: -128.0502041 | BF76: 4.822611763 | BG76: -115.6574394 | BH76: 64.34256064 | BI76: 64.34256064 | BJ76: 0 | BK76: 0 | BM76: 11.26770892 | BN76: -167.6072352 | BQ76: 10.45686364 | BT76: 457.088 | BU76: 21.6126 | BV76: -265.6514
A77: 21500 | B77: 21.5 | C77: 1.000013454 | D77: 0.005187351255 | F77: 0.2304072196 | G77: 0.2041571389 | H77: -2.937435511 | J77: 15 | M77: 0.00603187274 | N77: -1.570796325 | O77: 35.19665352 | P77: 1.542380711 | Q77: 2.299994372 | R77: 1.120998285 | S77: 0.9970242032 | T77: -0.07716571667 | U77: 0.9957139823 | V77: -0.09261838725 | X77: 4.482276174 | Y77: -115.132981 | Z77: 64.86701905 | AC77: 1 | AD77: 35.18244476 | AE77: -0.0008554937624 | AF77: 0.009210332836 | AG77: 3777.215969 | AH77: -459.4171325 | AJ77: 18000 | AK77: 1391.746404 | AL77: 1 | AM77: 2.071225268 | AN77: 3947.584598 | AO77: -6784.590561 | AQ77: 5.405405405 | AR77: -232.4324324 | AT77: -86366.05799 | AU77: -880430.8314 | AV77: -1.668578707 | AW77: -1544455.898 | AX77: -969467.6256 | AY77: -2.581048241 | BA77: 0.4851378433 | BB77: -6.282696936 | BC77: 0.9124695341 | BD77: -127.7193467 | BF77: 4.489166771 | BG77: -115.7247909 | BH77: 64.27520907 | BI77: 64.27520907 | BJ77: 0 | BK77: 0 | BM77: 10.77186371 | BN77: -168.0054442 | BQ77: 10.61926386 | BT77: 467.735 | BU77: 21.3672 | BV77: -265.0501
A78: 22000 | B78: 22 | C78: 1.000014088 | D78: 0.005307985091 | F78: 0.2180197497 | G78: 0.1975863582 | H78: -2.944006292 | J78: 15 | M78: 0.005894784723 | N78: -1.570796325 | O78: 36.01452711 | P78: 1.543026185 | Q78: 2.343464945 | R78: 1.129935031 | S78: 0.9968848382 | T78: -0.07895290397 | U78: 0.9955136698 | V78: -0.09475957737 | X78: 4.161791201 | Y78: -115.1786058 | Z78: 64.82139416 | AC78: 1 | AD78: 36.00064115 | AE78: -0.0008957468491 | AF78: 0.009424526623 | AG78: 3775.696361 | AH78: -464.9642676 | AJ78: 18000 | AK78: 1424.1126 | AL78: 1 | AM78: 2.119393297 | AN78: 3827.187395 | AO78: -6687.202712 | AQ78: 5.162622612 | AR78: -227.1553949 | AT78: -86126.64643 | AU78: -860070.2331 | AV78: -1.670602686 | AW78: -1488365.177 | AX78: -918925.2045 | AY78: -2.588473027 | BA78: 0.4941563714 | BB78: -6.122712013 | BC78: 0.9178703415 | BD78: -127.4099032 | BF78: 4.169152266 | BG78: -115.7849137 | BH78: 64.21508634 | BI78: 64.21508634 | BJ78: 0 | BK78: 0 | BM78: 10.29186428 | BN78: -168.3750104 | BQ78: 10.77924879 | BT78: 478.63 | BU78: 21.1958 | BV78: -264.3513
A79: 22500 | B79: 22.5 | C79: 1.000014735 | D79: 0.005428618772 | F79: 0.2066499007 | G79: 0.1914622975 | H79: -2.950130353 | J79: 15 | M79: 0.005763789507 | N79: -1.570796325 | O79: 36.83241504 | P79: 1.543642992 | Q79: 2.387115855 | R79: 1.138545609 | S79: 0.9967423299 | T79: -0.08073958601 | U79: 0.9953088774 | V79: -0.09689989636 | X79: 3.853708891 | Y79: -115.2188872 | Z79: 64.78111278 | AC79: 1 | AD79: 36.81883754 | AE79: -0.0009369252941 | AF79: 0.009638720409 | AG79: 3774.143084 | AH79: -470.6112353 | AJ79: 18000 | AK79: 1456.478795 | AL79: 1 | AM79: 2.167561327 | AN79: 3712.848575 | AO79: -6591.348189 | AQ79: 4.935834156 | AR79: -222.112537 | AT79: -85900.11108 | AU79: -840607.3544 | AV79: -1.672630993 | AW79: -1435025.738 | AX79: -872031.3107 | AY79: -2.595547834 | BA79: 0.503204634 | BB79: -5.965107363 | BC79: 0.922916841 | BD79: -127.1207601 | BF79: 3.861549825 | BG79: -115.8397416 | BH79: 64.16025843 | BI79: 64.16025843 | BJ79: 0 | BK79: 0 | BM79: 9.826657188 | BN79: -168.7189815 | BQ79: 10.93685344 | BT79: 489.779 | BU79: 20.9448 | BV79: -263.9108
A80: 23000 | B80: 23 | C80: 1.000015397 | D80: 0.005549252295 | F80: 0.1961854085 | G80: 0.1857391512 | H80: -2.955853499 | J80: 15 | M80: 0.005638489735 | N80: -1.570796325 | O80: 37.65031637 | P80: 1.544233001 | Q80: 2.430937387 | R80: 1.146846345 | S80: 0.9965966823 | T80: -0.0825257516 | U80: 0.9950996136 | V80: -0.09903932514 | X80: 3.557116814 | Y80: -115.2554054 | Z80: 64.74459462 | AC80: 1 | AD80: 37.63703393 | AE80: -0.0009790290974 | AF80: 0.009852914196 | AG80: 3772.556222 | AH80: -476.3506735 | AJ80: 18000 | AK80: 1488.84499 | AL80: 1 | AM80: 2.215729356 | AN80: 3604.202394 | AO80: -6497.092059 | AQ80: 4.723665564 | AR80: -217.288616 | AT80: -85685.28464 | AU80: -821983.6415 | AV80: -1.674663271 | AW80: -1384279.205 | AX80: -828465.3728 | AY80: -2.602290511 | BA80: 0.5122803496 | BB80: -5.809846055 | BC80: 0.92762724 | BD80: -126.8508741 | BF80: 3.565446925 | BG80: -115.8908559 | BH80: 64.10914407 | BI80: 64.10914407 | BJ80: 0 | BK80: 0 | BM80: 9.37529298 | BN80: -169.0399818 | BQ80: 11.09211475 | BT80: 501.187 | BU80: 20.7819 | BV80: -264.7826
A81: 23500 | B81: 23.5 | C81: 1.000016074 | D81: 0.005669885656 | F81: 0.18652945 | G81: 0.1803772571 | H81: -2.961215393 | J81: 15 | M81: 0.005518521868 | N81: -1.570796325 | O81: 38.46823025 | P81: 1.544797921 | Q81: 2.474920478 | R81: 1.154852583 | S81: 0.9964478997 | T81: -0.08431138956 | U81: 0.9948858869 | V81: -0.1011778447 | X81: 3.271194793 | Y81: -115.289454 | Z81: 64.710546 | AC81: 1 | AD81: 38.45523032 | AE81: -0.001022058259 | AF81: 0.01006710798 | AG81: 3770.935863 | AH81: -482.1758296 | AJ81: 18000 | AK81: 1521.211186 | AL81: 1 | AM81: 2.263897386 | AN81: 3500.907104 | AO81: -6404.483254 | AQ81: 4.524886878 | AR81: -212.6696833 | AT81: -85481.12275 | AU81: -804145.5266 | AV81: -1.676699191 | AW81: -1335976.571 | AX81: -787939.3862 | AY81: -2.608717795 | BA81: 0.5213813775 | BB81: -5.656889697 | BC81: 0.9320186041 | BD81: -126.5992675 | BF81: 3.280023294 | BG81: -115.9395514 | BH81: 64.06044858 | BI81: 64.06044858 | BJ81: 0 | BK81: 0 | BM81: 8.93691299 | BN81: -169.3402839 | BQ81: 11.2450711 | BT81: 512.861 | BU81: 20.6348 | BV81: -265.043
A82: 24000 | B82: 24 | C82: 1.000016765 | D82: 0.005790518853 | F82: 0.1775981209 | G82: 0.1753420969 | H82: -2.966250553 | J82: 15 | M82: 0.005403552663 | N82: -1.570796325 | O82: 39.2861559 | P82: 1.545339318 | Q82: 2.519056666 | R82: 1.162578748 | S82: 0.9962959862 | T82: -0.08609648876 | U82: 0.994667706 | V82: -0.1033154361 | X82: 2.995203321 | Y82: -115.3220928 | Z82: 64.67790718 | AC82: 1 | AD82: 39.27342671 | AE82: -0.001066012779 | AF82: 0.01028130177 | AG82: 3769.282094 | AH82: -488.0804972 | AJ82: 18000 | AK82: 1553.577381 | AL82: 1 | AM82: 2.312065415 | AN82: 3402.643464 | AO82: -6313.556892 | AQ82: 4.338394794 | AR82: -208.2429501 | AT82: -85286.68881 | AU82: -787043.9089 | AV82: -1.678738452 | AW82: -1289977.777 | AX82: -750194.2022 | AY82: -2.61484539 | BA82: 0.5305057066 | BB82: -5.506198802 | BC82: 0.9361069385 | BD82: -126.3650232 | BF82: 3.004539326 | BG82: -115.9868888 | BH82: 64.01311124 | BI82: 64.01311124 | BJ82: 0 | BK82: 0 | BM82: 8.510738128 | BN82: -169.6218656 | BQ82: 11.395762 | BT82: 524.807 | BU82: 20.2436 | BV82: -263.9557
A83: 24500 | B83: 24.5 | C83: 1.000017471 | D83: 0.005911151881 | F83: 0.1693183859 | G83: 0.1706034847 | H83: -2.970989165 | J83: 15 | M83: 0.005293276078 | N83: -1.570796325 | O83: 40.10409259 | P83: 1.545858631 | Q83: 2.563338041 | R83: 1.170038409 | S83: 0.9961409462 | T83: -0.08788103806 | U83: 0.9944450799 | V83: -0.1054520803 | X83: 2.728473689 | Y83: -115.3541898 | Z83: 64.64581016 | AC83: 1 | AD83: 40.0916231 | AE83: -0.001110892657 | AF83: 0.01049549556 | AG83: 3767.595004 | AH83: -494.0589606 | AJ83: 18000 | AK83: 1585.943577 | AL83: 1 | AM83: 2.360233445 | AN83: 3309.113297 | AO83: -6224.336299 | AQ83: 4.163197336 | AR83: -203.9966694 | AT83: -85101.14099 | AU83: -770633.6976 | AV83: -1.680780772 | AW83: -1246151.28 | AX83: -714996.2823 | AY83: -2.620688035 | BA83: 0.5396514452 | BB83: -5.357733111 | BC83: 0.9399072628 | BD83: -126.1472806 | BF83: 2.738326213 | BG83: -116.0337369 | BH83: 63.96626307 | BI83: 63.96626307 | BJ83: 0 | BK83: 0 | BM83: 8.096059324 | BN83: -169.8864563 | BQ83: 11.54422769 | BT83: 537.032 | BU83: 20.2926 | BV83: -264.5682
A84: 25000 | B84: 25 | C84: 1.000018191 | D84: 0.006031784737 | F84: 0.161626403 | G84: 0.1661349049 | H84: -2.975457745 | J84: 15 | M84: 0.005187410556 | N84: -1.570796325 | O84: 40.92203967 | P84: 1.546357184 | Q84: 2.607757209 | R84: 1.177244332 | S84: 0.9959827841 | T84: -0.08966502636 | U84: 0.9942180176 | V84: -0.1075877586 | X84: 2.470399527 | Y84: -115.3864552 | Z84: 64.61354476 | AC84: 1 | AD84: 40.90981949 | AE84: -0.001156697894 | AF84: 0.01070968934 | AG84: 3765.874686 | AH84: -500.1059458 | AJ84: 18000 | AK84: 1618.309772 | AL84: 1 | AM84: 2.408401474 | AN84: 3220.038112 | AO84: -6136.834762 | AQ84: 3.99840064 | AR84: -199.920032 | AT84: -84923.72092 | AU84: -754873.4116 | AV84: -1.682825894 | AW84: -1204373.606 | AX84: -682134.8527 | AY84: -2.626259574 | BA84: 0.5488168122 | BB84: -5.211451862 | BC84: 0.9434336806 | BD84: -125.9452318 | BF84: 2.480777485 | BG84: -116.0808071 | BH84: 63.91919291 | BI84: 63.91919291 | BJ84: 0 | BK84: 0 | BM84: 7.692229347 | BN84: -170.1355753 | BQ84: 11.69050894 | BT84: 549.541 | BU84: 19.992 | BV84: -264.4762
A85: 25500 | B85: 25.5 | C85: 1.000018926 | D85: 0.006152417417 | F85: 0.1544661458 | G85: 0.1619129672 | H85: -2.979679683 | J85: 15 | M85: 0.005085696624 | N85: -1.570796325 | O85: 41.73999652 | P85: 1.546836198 | Q85: 2.652307246 | R85: 1.184208535 | S85: 0.9958215044 | T85: -0.09144844257 | U85: 0.9939865284 | V85: -0.1097224521 | X85: 2.220429556 | Y85: -115.419469 | Z85: 64.58053103 | AC85: 1 | AD85: 41.72801588 | AE85: -0.001203428489 | AF85: 0.01092388313 | AG85: 3764.121232 | AH85: -506.216577 | AJ85: 18000 | AK85: 1650.675968 | AL85: 1 | AM85: 2.456569504 | AN85: 3135.15779 | AO85: -6051.057048 | AQ85: 3.84319754 | AR85: -196.0030746 | AT85: -84753.74403 | AU85: -739724.8248 | AV85: -1.684873577 | AW85: -1164528.902 | AX85: -651419.4084 | AY85: -2.63157302 | BA85: 0.5580001284 | BB85: -5.067314023 | BC85: 0.9466994436 | BD85: -125.7581174 | BF85: 2.231341757 | BG85: -116.1286801 | BH85: 63.87131987 | BI85: 63.87131987 | BJ85: 0 | BK85: 0 | BM85: 7.29865578 | BN85: -170.3705628 | BQ85: 11.83464678 | BT85: 562.341 | BU85: 19.6823 | BV85: -264.604
A86: 26000 | B86: 26 | C86: 1.000019676 | D86: 0.006273049918 | F86: 0.1477882626 | G86: 0.1579169568 | H86: -2.983675693 | J86: 15 | M86: 0.004987894766 | N86: -1.570796325 | O86: 42.55796257 | P86: 1.547296799 | Q86: 2.696981667 | R86: 1.190942337 | S86: 0.9956571117 | T86: -0.09323127562 | U86: 0.9937506217 | V86: -0.111856142 | X86: 1.978061316 | Y86: -115.4537031 | Z86: 64.54629688 | AC86: 1 | AD86: 42.54621227 | AE86: -0.001251084442 | AF86: 0.01113807692 | AG86: 3762.334737 | AH86: -512.386339 | AJ86: 18000 | AK86: 1683.042163 | AL86: 1 | AM86: 2.504737533 | AN86: 3054.229347 | AO86: -5967.000716 | AQ86: 3.696857671 | AR86: -192.2365989 | AT86: =-AR86*AH86+AG86*AQ86 -> -84590.5911 | AU86: =AQ86*AH86+AG86*AR86 -> -725152.6531 | AV86: -1.686923598 | AW86: -1126508.501 | AX86: -622677.5177 | AY86: -2.636640609 | BA86: 0.5671998088 | BB86: -4.925278485 | BC86: 0.9497170106 | BD86: -125.5852235 | BF86: 1.989516467 | BG86: -116.1778291 | BH86: 63.82217093 | BI86: 63.82217093 | BJ86: 0 | BK86: 0 | BM86: 6.914794951 | BN86: -170.5926056 | BQ86: 11.97668232 | BT86: 575.44 | BU86: 19.596 | BV86: -264.9076
A87: 26500 | B87: 26.5 | C87: 1.00002044 | D87: 0.006393682237 | F87: 0.141549128 | G87: 0.1541284598 | H87: -2.98746419 | J87: 15 | M87: 0.004893783544 | N87: -1.570796325 | O87: 43.37593732 | P87: 1.547740027 | Q87: 2.741774391 | R87: 1.197456404 | S87: 0.9954896107 | T87: -0.09501351448 | U87: 0.9935103072 | V87: -0.1139888097 | X87: 1.742835755 | Y87: -115.4895402 | Z87: 64.51045979 | AC87: 1 | AD87: 43.36440866 | AE87: -0.001299665754 | AF87: 0.0113522707 | AG87: 3760.515298 | AH87: -518.6110428 | AJ87: 18000 | AK87: 1715.408359 | AL87: 1 | AM87: 2.552905563 | AN87: 2977.025757 | AO87: -5884.657256 | AQ87: 3.558718861 | AR87: -188.6120996 | AT87: -84433.70096 | AU87: -711124.2769 | AV87: -1.68897575 | AW87: -1090210.492 | AX87: -595752.8892 | AY87: -2.641473853 | BA87: 0.5764143558 | BB87: -4.78530423 | BC87: 0.9524981028 | BD87: -125.4258787 | BF87: 1.754842455 | BG87: -116.2286374 | BH87: 63.77136261 | BI87: 63.77136261 | BJ87: 0 | BK87: 0 | BM87: 6.540146685 | BN87: -170.8027587 | BQ87: 12.11665657 | BT87: 588.844 | BU87: 19.3732 | BV87: -263.8817
A88: 27000 | B88: 27 | C88: 1.000021219 | D88: 0.00651431437 | F88: 0.1357100506 | G88: 0.1505310496 | H88: -2.9910616 | J88: 15 | M88: 0.004803157922 | N88: -1.570796325 | O88: 44.19392027 | P88: 1.548166849 | Q88: 2.786679715 | R88: 1.203760793 | S88: 0.9953190062 | T88: -0.09679514813 | U88: 0.9932655944 | V88: -0.1161204364 | X88: 1.514332522 | Y88: -115.5272883 | Z88: 64.47271171 | AC88: 1 | AD88: 44.18260505 | AE88: -0.001349172424 | AF88: 0.01156646449 | AG88: 3758.663011 | AH88: -524.8867957 | AJ88: 18000 | AK88: 1747.774554 | AL88: 1 | AM88: 2.601073592 | AN88: 2903.334859 | AO88: -5804.013076 | AQ88: 3.428179637 | AR88: -185.1217004 | AT88: -84282.56413 | AU88: -697609.4941 | AV88: -1.691029839 | AW88: -1055539.308 | AX88: -570503.6668 | AY88: -2.646083593 | BA88: 0.5856423525 | BB88: -4.64735047 | BC88: 0.9550537541 | BD88: -125.2794506 | BF88: 1.526899262 | BG88: -116.2814141 | BH88: 63.71858594 | BI88: 63.71858594 | BJ88: 0 | BK88: 0 | BM88: 6.174249732 | BN88: -171.0019634 | BQ88: 12.25461033 | BT88: 602.56 | BU88: 19.198 | BV88: -264.0026
A89: 27500 | B89: 27.5 | C89: 1.000022012 | D89: 0.006634946313 | F89: 0.1302366064 | G89: 0.1471100241 | H89: -2.994482626 | J89: 15 | M89: 0.004715827778 | N89: -1.570796325 | O89: 45.01191098 | P89: 1.548578157 | Q89: 2.83169228 | R89: 1.209864989 | S89: 0.9951453029 | T89: -0.09857616557 | U89: 0.9930164935 | V89: -0.1182510037 | X89: 1.292165867 | Y89: -115.5671933 | Z89: 64.43280669 | AC89: 1 | AD89: 45.00080144 | AE89: -0.001399604452 | AF89: 0.01178065828 | AG89: 3756.777979 | AH89: -531.2099744 | AJ89: 18000 | AK89: 1780.140749 | AL89: 1 | AM89: 2.649241622 | AN89: 2832.958323 | AO89: -5725.050352 | AQ89: 3.304692664 | AR89: -181.7580965 | AT89: -84136.71717 | AU89: -684580.3 | AV89: -1.693085685 | AW89: -1022405.33 | AX89: -546800.9241 | AY89: -2.650480044 | BA89: 0.594882457 | BB89: -4.511376763 | BC89: 0.9573943583 | BD89: -125.1453439 | BF89: 1.305301027 | BG89: -116.3364059 | BH89: 63.66359406 | BI89: 63.66359406 | BJ89: 0 | BK89: 0 | BM89: 5.816677791 | BN89: -171.1910621 | BQ89: 12.39058404 | BT89: 616.595 | BU89: 18.9837 | BV89: -264.1331
A90: 28000 | B90: 28 | C90: 1.000022819 | D90: 0.006755578063 | F90: 0.1250980764 | G90: 0.1438521826 | H90: -2.997740467 | J90: 15 | M90: 0.004631616568 | N90: -1.570796325 | O90: 45.82990903 | P90: 1.548974783 | Q90: 2.876807054 | R90: 1.215777944 | S90: 0.9949685058 | T90: -0.1003565558 | U90: 0.9927630143 | V90: -0.1203804929 | X90: 1.075981058 | Y90: -115.6094494 | Z90: 64.39055062 | AC90: 1 | AD90: 45.81899783 | AE90: -0.001450961838 | AF90: 0.01199485207 | AG90: 3754.8603 | AH90: -537.5772013 | AJ90: 18000 | AK90: 1812.506945 | AL90: 1 | AM90: 2.697409651 | AN90: 2765.710689 | AO90: -5647.747759 | AQ90: 3.187759005 | AR90: -178.5145043 | AT90: -83995.73788 | AU90: -672010.6917 | AV90: -1.695143118 | AW90: -990724.514 | AX90: -524527.3317 | AY90: -2.65467283 | BA90: 0.604133397 | BB90: -4.377343109 | BC90: 0.959529712 | BD90: -125.0229971 | BF90: 1.089692908 | BG90: -116.3938081 | BH90: 63.60619194 | BI90: 63.60619194 | BJ90: 0 | BK90: 0 | BM90: 5.467036017 | BN90: -171.3708109 | BQ90: 12.52461769 | BT90: 630.957 | BU90: 18.8029 | BV90: -263.7485
A91: 28500 | B91: 28.5 | C91: 1.000023642 | D91: 0.006876209616 | F91: 0.1202669707 | G91: 0.1407456378 | H91: -3.000847012 | J91: 15 | M91: 0.004550360137 | N91: -1.570796325 | O91: 46.64791404 | P91: 1.549357499 | Q91: 2.922019302 | R91: 1.221508113 | S91: 0.99478862 | T91: -0.1021363079 | U91: 0.9925051673 | V91: -0.1225088856 | X91: 0.8654512378 | Y91: -115.6542073 | Z91: 64.34579269 | AC91: 1 | AD91: 46.63719422 | AE91: -0.001503244583 | AF91: 0.01220904585 | AG91: 3752.910079 | AH91: -543.9853226 | AJ91: 18000 | AK91: 1844.87314 | AL91: 1 | AM91: 2.745577681 | AN91: 2701.418468 | AO91: -5572.081111 | AQ91: 3.076923077 | AR91: -175.3846154 | AT91: -83859.24095 | AU91: -659876.4917 | AV91: -1.69720198 | AW91: -960418.0275 | AX91: -503575.977 | AY91: -2.658671036 | BA91: 0.6133939645 | BB91: -4.245210031 | BC91: 0.9614690551 | BD91: -124.9118809 | BF91: 0.8797479332 | BG91: -116.4537721 | BH91: 63.54622789 | BI91: 63.54622789 | BJ91: 0 | BK91: 0 | BM91: 5.124957965 | BN91: -171.5418912 | BQ91: 12.65675077 | BT91: 645.654 | BU91: 18.5986 | BV91: -263.7636
A92: 29000 | B92: 29 | C92: 1.000024478 | D92: 0.006996840969 | F92: 0.1157186223 | G92: 0.1377796545 | H92: -3.003812996 | J92: 15 | M92: 0.004471905652 | N92: -1.570796325 | O92: 47.46592565 | P92: 1.549727023 | Q92: 2.967324568 | R92: 1.227063483 | S92: 0.9946056505 | T92: -0.103915411 | U92: 0.9922429628 | V92: -0.1246361634 | X92: 0.6602746615 | Y92: -115.7015817 | Z92: 64.29841835 | AC92: 1 | AD92: 47.45539061 | AE92: -0.001556452686 | AF92: 0.01242323964 | AG92: 3750.927419 | AH92: -550.4313895 | AJ92: 18000 | AK92: 1877.239336 | AL92: 1 | AM92: 2.79374571 | AN92: 2639.919307 | AO92: -5498.023903 | AQ92: 2.971768202 | AR92: -172.3625557 | AT92: -83726.87421 | AU92: -648155.1907 | AV92: -1.699262122 | AW92: -931411.917 | AX92: -483849.3166 | AY92: -2.66248323 | BA92: 0.6226630118 | BB92: -4.114938641 | BC92: 0.9632211078 | BD92: -124.8114957 | BF92: 0.6751642433 | BG92: -116.5164135 | BH92: 63.48358645 | BI92: 63.48358645 | BJ92: 0 | BK92: 0 | BM92: 4.790102884 | BN92: -171.7049178 | BQ92: 12.78702216 | BT92: 660.693 | BU92: 18.468 | BV92: -263.6098
A93: 29500 | B93: 29.5 | C93: 1.00002533 | D93: 0.007117472119 | F93: 0.1114308408 | G93: 0.1349445117 | H93: -3.006648138 | J93: 15 | M93: 0.004396110641 | N93: -1.570796325 | O93: 48.28394352 | P93: 1.550084027 | Q93: 3.012718656 | R93: 1.232451604 | S93: 0.9944196025 | T93: -0.1056938541 | U93: 0.9919764113 | V93: -0.1267623078 | X93: 0.4601722605 | Y93: -115.7516567 | Z93: 64.24834331 | AC93: 1 | AD93: 48.273587 | AE93: -0.001610586148 | AF93: 0.01263743343 | AG93: 3748.912427 | AH93: -556.9126409 | AJ93: 18000 | AK93: 1909.605531 | AL93: 1 | AM93: 2.84191374 | AN93: 2581.06121 | AO93: -5425.547783 | AQ93: 2.871912694 | AR93: -169.4428489 | AT93: -83598.31529 | AU93: -636825.8065 | AV93: -1.701323404 | AW93: -903636.7876 | AX93: -465258.2456 | AY93: -2.666117509 | BA93: 0.6319394467 | BB93: -3.986490689 | BC93: 0.9647941049 | BD93: -124.7213696 | BF93: 0.4756626529 | BG93: -116.5818175 | BH93: 63.41818248 | BI93: 63.41818248 | BJ93: 0 | BK93: 0 | BM93: 4.462153342 | BN93: -171.8604479 | BQ93: 12.91547011 | BT93: 676.083 | BU93: 18.2744 | BV93: -263.3252
A94: 30000 | B94: 30 | C94: 1.000026196 | D94: 0.007238103061 | F94: 0.1073836149 | G94: 0.1322313847 | H94: -3.009361265 | J94: 15 | M94: 0.00432284213 | N94: -1.570796325 | O94: 49.10196733 | P94: 1.550429136 | Q94: 3.058197612 | R94: 1.237679618 | S94: 0.9942304812 | T94: -0.1074716264 | U94: 0.9917055237 | V94: -0.1288873007 | X94: 0.2648854869 | Y94: -115.8044913 | Z94: 64.19550867 | AC94: 1 | AD94: 49.09178339 | AE94: -0.001665644967 | AF94: 0.01285162721 | AG94: 3746.86521 | AH94: -563.4264876 | AJ94: 18000 | AK94: 1941.971727 | AL94: 1 | AM94: 2.890081769 | AN94: 2524.701813 | AO94: -5354.622957 | AQ94: 2.777006387 | AR94: -166.6203832 | AT94: -83473.26866 | AU94: -625868.7561 | AV94: -1.703385695 | AW94: -877027.5045 | AX94: -447721.2695 | AY94: -2.669581522 | BA94: 0.6412222291 | BB94: -3.859828609 | BC94: 0.9661958276 | BD94: -124.6410568 | BF94: 0.2809844956 | BG94: -116.6500438 | BH94: 63.3499562 | BI94: 63.3499562 | BJ94: 0 | BK94: 0 | BM94: 4.140813105 | BN94: -172.008987 | BQ94: 13.04213219 | BT94: 691.831 | BU94: 18.0926 | BV94: -263.5782
A95: 30500 | B95: 30.5 | C95: 1.000027076 | D95: 0.007358733793 | F95: 0.1035588563 | G95: 0.1296322427 | H95: -3.011960407 | J95: 15 | M95: 0.004251975866 | N95: -1.570796325 | O95: 49.91999681 | P95: 1.550762934 | Q95: 3.103757703 | R95: 1.242754284 | S95: 0.994038292 | T95: -0.1092487169 | U95: 0.9914303107 | V95: -0.1310111237 | X95: 0.07417440309 | Y95: -115.8601233 | Z95: 64.13987668 | AC95: 1 | AD95: 49.90997978 | AE95: -0.001721629145 | AF95: 0.013065821 | AG95: 3744.785877 | AH95: -569.9704986 | AJ95: 18000 | AK95: 1974.337922 | AL95: 1 | AM95: 2.938249798 | AN95: 2470.707717 | AO95: -5285.218531 | AQ95: 2.686727566 | AR95: -163.8903815 | AT95: -83351.46302 | AU95: -615265.7416 | AV95: -1.705448869 | AW95: -851522.9122 | AX95: -431163.7657 | AY95: -2.672882502 | BA95: 0.6505103674 | BB95: -3.734915551 | BC95: 0.9674336333 | BD95: -124.5701358 | BF95: 0.09088971412 | BG95: -116.721131 | BH95: 63.278869 | BI95: 63.278869 | BJ95: 30500 | BK95: 63.278869 | BM95: 3.825805265 | BN95: -172.1509952 | BQ95: 13.16704525 | BT95: 707.946 | BU95: 17.887 | BV95: -262.8499
A96: 31000 | B96: 31 | C96: 1.000027971 | D96: 0.007479364311 | F96: 0.09994017871 | G96: 0.1271397607 | H96: -3.014452889 | J96: 15 | M96: 0.00418339561 | N96: -1.570796325 | O96: 50.73803166 | P96: 1.551085969 | Q96: 3.149395409 | R96: 1.247681999 | S96: 0.9938430403 | T96: -0.111025115 | U96: 0.9911507835 | V96: -0.1331337586 | X96: -0.1121840155 | Y96: -115.9185727 | Z96: 64.08142731 | AC96: 1 | AD96: 50.72817617 | AE96: -0.001778538682 | AF96: 0.01328001479 | AG96: 3742.67454 | AH96: -576.5423883 | AJ96: 18000 | AK96: 2006.704118 | AL96: 1 | AM96: 2.986417828 | AN96: 2418.95386 | AO96: -5217.302815 | AQ96: 2.600780234 | AR96: -161.2483745 | AT96: -83232.64899 | AU96: -604999.6459 | AV96: -1.707512809 | AW96: -827065.5722 | AX96: -415517.3258 | AY96: -2.676027292 | BA96: 0.6598029149 | BB96: -3.611715403 | BC96: 0.9685144823 | BD96: -124.5082077 | BF96: -0.09484483763 | BG96: -116.7951 | BH96: 63.20490001 | BI96: 63.20490001 | BJ96: 0 | BK96: 0 | BM96: 3.516870566 | BN96: -172.2868923 | BQ96: 13.2902454 | BT96: 724.436 | BU96: 17.7536 | BV96: -262.8169
A97: 31500 | B97: 31.5 | C97: 1.000028881 | D97: 0.00759999461 | F97: 0.09651270626 | G97: 0.1247472425 | H97: -3.016845407 | J97: 15 | M97: 0.004116992505 | N97: -1.570796325 | O97: 51.55607165 | P97: 1.551398753 | Q97: 3.195107404 | R97: 1.252468828 | S97: 0.9936447317 | T97: -0.1128008098 | U97: 0.9908669532 | V97: -0.1352551875 | X97: -0.2943973938 | Y97: -115.9798447 | Z97: 64.02015526 | AC97: 1 | AD97: 51.54637256 | AE97: -0.001836373576 | AF97: 0.01349420857 | AG97: 3740.531309 | AH97: -583.1400052 | AJ97: 18000 | AK97: 2039.070313 | AL97: 1 | AM97: 3.034585857 | AN97: 2369.32294 | AO97: -5150.843573 | AQ97: 2.518891688 | AR97: -158.6901763 | AT97: -83116.59703 | AU97: -595054.4395 | AV97: -1.709577405 | AW97: -803601.5174 | AX97: -400719.1662 | AY97: -2.679022369 | BA97: 0.6690989671 | BB97: -3.490192811 | BC97: 0.969444964 | BD97: -124.454895 | BF97: -0.2764269074 | BG97: -116.8719569 | BH97: 63.1280431 | BI97: 63.1280431 | BJ97: 0 | BK97: 0 | BM97: 3.213765904 | BN97: -172.4170619 | BQ97: 13.41176799 | BT97: 741.31 | BU97: 17.4164 | BV97: -262.1972
A98: 32000 | B98: 32 | C98: 1.000029805 | D98: 0.007720624689 | F98: 0.09326290668 | G98: 0.122448554 | H98: -3.019144096 | J98: 15 | M98: 0.004052664497 | N98: -1.570796325 | O98: 52.37411652 | P98: 1.551701766 | Q98: 3.240890545 | R98: 1.257120516 | S98: 0.9934433716 | T98: -0.1145757904 | U98: 0.9905788312 | V98: -0.1373753921 | X98: -0.4726593074 | Y98: -116.0439325 | Z98: 63.95606749 | AC98: 1 | AD98: 52.36456895 | AE98: -0.001895133829 | AF98: 0.01370840236 | AG98: 3738.356299 | AH98: -589.7613213 | AJ98: 18000 | AK98: 2071.436508 | AL98: 1 | AM98: 3.082753887 | AN98: 2321.704882 | AO98: -5085.808239 | AQ98: 2.440810349 | AR98: -156.2118623 | AT98: -83003.09559 | AU98: -585415.0951 | AV98: -1.711642551 | AW98: -781080.0229 | AX98: -386711.6023 | AY98: -2.681873871 | BA98: 0.6783976589 | BB98: -3.370313189 | BC98: 0.9702313198 | BD98: -124.4098402 | BF98: -0.4540501955 | BG98: -116.9516956 | BH98: 63.04830441 | BI98: 63.04830441 | BJ98: 0 | BK98: 0 | BM98: 2.916262994 | BN98: -172.5418554 | BQ98: 13.53164761 | BT98: 758.578 | BU98: 17.2832 | BV98: -262.5669
A99: 32500 | B99: 32.5 | C99: 1.000030743 | D99: 0.007841254543 | F99: 0.09017844614 | G99: 0.1202380643 | H99: -3.021354586 | J99: 15 | M99: 0.003990315812 | N99: -1.570796325 | O99: 53.19216605 | P99: 1.551995458 | Q99: 3.286741859 | R99: 1.261642515 | S99: 0.9932389657 | T99: -0.1163500462 | U99: 0.990286429 | V99: -0.1394943546 | X99: -0.6471504918 | Y99: -116.1108189 | Z99: 63.88918115 | AC99: 1 | AD99: 53.18276533 | AE99: -0.001954819441 | AF99: 0.01392259615 | AG99: 3736.149625 | AH99: -596.4044229 | AJ99: 18000 | AK99: 2103.802704 | AL99: 1 | AM99: 3.130921916 | AN99: 2275.996336 | AO99: -5022.164105 | AQ99: 2.366303833 | AR99: -153.8097492 | AT99: -82891.94952 | AU99: -576067.5108 | AV99: -1.713708148 | AW99: -759453.3917 | AX99: -373441.5767 | AY99: -2.684587613 | BA99: 0.6876981619 | BB99: -3.252042728 | BC99: 0.970879465 | BD99: -124.3727042 | BF99: -0.6278955632 | BG99: -117.0342998 | BH99: 62.96570025 | BI99: 62.96570025 | BJ99: 0 | BK99: 0 | BM99: 2.624147165 | BN99: -172.6615956 | BQ99: 13.64991807 | BT99: 776.247 | BU99: 17.0071 | BV99: -262.7177
A100: 33000 | B100: 33 | C100: 1.000031697 | D100: 0.007961884169 | F100: 0.08724806211 | G100: 0.1181105953 | H100: -3.023482055 | J100: 15 | M100: 0.003929856482 | N100: -1.570796325 | O100: 54.01022003 | P100: 1.552280254 | Q100: 3.332658531 | R100: 1.266039995 | S100: 0.9930315199 | T100: -0.1181235665 | U100: 0.9899897582 | V100: -0.1416120569 | X100: -0.8180399269 | Y100: -116.1804783 | Z100: 63.81952173 | AC100: 1 | AD100: 54.00096172 | AE100: -0.00201543041 | AF100: 0.01413678993 | AG100: 3733.911403 | AH100: -603.067502 | AJ100: 18000 | AK100: 2136.168899 | AL100: 1 | AM100: 3.179089946 | AN100: 2232.100221 | AO100: -4959.878471 | AQ100: 2.295157218 | AR100: -151.4803764 | AT100: -82782.9785 | AU100: -566998.4396 | AV100: -1.7157741 | AW100: -738676.7559 | AX100: -360860.2359 | AY100: -2.68716911 | BA100: 0.6969996822 | BB100: -3.135348398 | BC100: 0.9713950095 | BD100: -124.3431657 | BF100: -0.798132118 | BG100: -117.1197447 | BH100: 62.88025534 | BI100: 62.88025534 | BJ100: 0 | BK100: 0 | BM100: 2.33721628 | BN100: -172.776579 | BQ100: 13.7666124 | BT100: 794.328 | BU100: 16.8354 | BV100: -262.7938
A101: 33500 | B101: 33.5 | C101: 1.000032664 | D101: 0.008082513563 | F101: 0.08446145198 | G101: 0.1160613755 | H101: -3.025531275 | J101: 15 | M101: 0.003871201908 | N101: -1.570796325 | O101: 54.82827825 | P101: 1.552556552 | Q101: 3.378637897 | R101: 1.270317866 | S101: 0.9928210398 | T101: -0.1198963406 | U101: 0.9896888307 | V101: -0.1437284813 | X101: -0.985485811 | Y101: -116.2528783 | Z101: 63.74712165 | AC101: 1 | AD101: 54.81915811 | AE101: -0.002076966738 | AF101: 0.01435098372 | AG101: 3731.641752 | AH101: -609.7488485 | AJ101: 18000 | AK101: 2168.535095 | AL101: 1 | AM101: 3.227257975 | AN101: 2189.925295 | AO101: -4898.91878 | AQ101: 2.227171492 | AR101: -149.22049 | AT101: -82676.01581 | AU101: -558195.4259 | AV101: -1.717840318 | AW101: -718707.8901 | AX101: -348922.5505 | AY101: -2.689623594 | BA101: 0.7063014579 | BB101: -3.020197946 | BC101: 0.9717832761 | BD101: -124.3209196 | BF101: -0.9649181872 | BG101: -117.2079987 | BH101: 62.79200129 | BI101: 62.79200129 | BJ101: 0 | BK101: 0 | BM101: 2.055279759 | BN101: -172.8870791 | BQ101: 13.88176285 | BT101: 812.831 | BU101: 16.6614 | BV101: -262.2369
A102: =A101+500 -> 34000 | B102: 34 | C102: 1.000033647 | D102: 0.008203142722 | F102: 0.08180917507 | G102: 0.114086001 | H102: -3.027506649 | J102: 15 | M102: 0.003814272468 | N102: -1.570796325 | O102: 55.64634055 | P102: 1.552824726 | Q102: 3.424677432 | R102: 1.274480793 | S102: 0.9926075315 | T102: -0.1216683577 | U102: 0.9893836585 | V102: -0.14584361 | X102: -1.149636439 | Y102: -116.3279811 | Z102: 63.67201891 | AC102: 1 | AD102: 55.6373545 | AE102: -0.002139428425 | AF102: 0.01456517751 | AG102: 3729.340791 | AH102: -616.4468431 | AJ102: 18000 | AK102: 2200.90129 | AL102: 1 | AM102: 3.275426005 | AN102: 2149.385762 | AO102: -4839.252731 | AQ102: 2.162162162 | AR102: -147.027027 | AT102: -82570.90711 | AU102: -549646.7473 | AV102: -1.719906715 | AW102: -699507.0386 | AX102: -337586.9737 | AY102: -2.691956034 | BA102: 0.7156027574 | BB102: -2.906559893 | BC102: 0.9720493186 | BD102: -124.3056765 | BF102: -1.128402196 | BG102: -117.2990247 | BH102: 62.70097532 | BI102: 62.70097532 | BJ102: 0 | BK102: 0 | BM102: 1.778157696 | BN102: -172.9933482 | BQ102: 13.99540091 | BT102: 831.764 | BU102: 16.5098 | BV102: -262.3432
A103: 34500 | B103: 34.5 | C103: 1.000034644 | D103: 0.008323771642 | F103: 0.07928256623 | G103: 0.1121804002 | H103: -3.02941225 | J103: 15 | M103: 0.003758993157 | N103: -1.570796325 | O103: 56.46440672 | P103: 1.553085129 | Q103: 3.470774741 | R103: 1.278533209 | S103: 0.9923910008 | T103: -0.1234396072 | U103: 0.9890742537 | V103: -0.1479574252 | X103: -1.310630994 | Y103: -116.405744 | Z103: 63.59425604 | AC103: 1 | AD103: 56.45555089 | AE103: -0.002202815469 | AF103: 0.01477937129 | AG103: 3727.00864 | AH103: -623.1599507 | AJ103: 18000 | AK103: 2233.267486 | AL103: 1 | AM103: 3.323594034 | AN103: 2110.400902 | AO103: -4780.848363 | AQ103: 2.099958001 | AR103: -144.8971021 | AT103: -82467.50936 | AU103: -541341.3611 | AV103: -1.721973211 | AW103: -681036.7543 | AX103: -326815.1333 | AY103: -2.694171148 | BA103: 0.7249028775 | BB103: -2.794403526 | BC103: 0.9721979375 | BD103: -124.2971613 | BF103: -1.28872346 | BG103: -117.3927808 | BH103: 62.6072192 | BI103: 62.6072192 | BJ103: 0 | BK103: 0 | BM103: 1.505680067 | BN103: -173.0956195 | BQ103: 14.10755727 | BT103: 851.138 | BU103: 16.2768 | BV103: -262.197
A104: 35000 | B104: 35 | C104: 1.000035655 | D104: 0.00844440032 | F104: 0.07687365959 | G104: 0.1103408023 | H104: -3.031251848 | J104: 15 | M104: 0.003705293254 | N104: -1.570796325 | O104: 57.28247662 | P104: 1.553338094 | Q104: 3.516927553 | R104: 1.282479328 | S104: 0.9921714538 | T104: -0.1252100787 | U104: 0.9887606284 | V104: -0.1500699093 | X104: -1.468600264 | Y104: -116.4861208 | Z104: 63.5138792 | AC104: 1 | AD104: 57.27374728 | AE104: -0.002267127872 | AF104: 0.01499356508 | AG104: 3724.645423 | AH104: -629.8867148 | AJ104: 18000 | AK104: 2265.633681 | AL104: 1 | AM104: 3.371762064 | AN104: 2072.894732 | AO104: -4723.67414 | AQ104: 2.040399918 | AR104: -142.8279943 | AT104: -82365.68989 | AU104: -533268.856 | AV104: -1.724039726 | AW104: -663261.7484 | AX104: -316571.5547 | AY104: -2.696273422 | BA104: 0.7342011413 | BB104: -2.683698894 | BC104: 0.9722336959 | BD104: -124.2951125 | BF104: -1.446012898 | BG104: -117.4892217 | BH104: 62.51077832 | BI104: 62.51077832 | BJ104: 0 | BK104: 0 | BM104: 1.237685996 | BN104: -173.1941092 | BQ104: 14.21826191 | BT104: 870.964 | BU104: 16.1061 | BV104: -261.768
A105: 35500 | B105: 35.5 | C105: 1.000036681 | D105: 0.008565028752 | F105: 0.07457512092 | G105: 0.1085637099 | H105: -3.03302894 | J105: 15 | M105: 0.003653106025 | N105: -1.570796325 | O105: 58.10055008 | P105: 1.553583936 | Q105: 3.563133711 | R105: 1.28632316 | S105: 0.9919488967 | T105: -0.1269797613 | U105: 0.9884427952 | V105: -0.1521810448 | X105: -1.623667288 | Y105: -116.5690626 | Z105: 63.43093735 | AC105: 1 | AD105: 58.09194367 | AE105: -0.002332365633 | AF105: 0.01520775887 | AG105: 3722.251263 | AH105: -636.6257519 | AJ105: 18000 | AK105: 2297.999877 | AL105: 1 | AM105: 3.419930093 | AN105: 2036.795693 | AO105: -4667.699009 | AQ105: 1.983339944 | AR105: -140.8171361 | AT105: -82265.3255 | AU105: -525419.4078 | AV105: -1.726106187 | AW105: -646148.7505 | AX105: -306823.4106 | AY105: -2.69826712 | BA105: 0.7434968971 | BB105: -2.574416793 | BC105: 0.9721609329 | BD105: -124.2992815 | BF105: -1.600393686 | BG105: -117.5882991 | BH105: 62.41170092 | BI105: 62.41170092 | BJ105: 0 | BK105: 0 | BM105: 0.9740231068 | BN105: -173.2890176 | BQ105: 14.32754401 | BT105: 891.251 | BU105: 15.8824 | BV105: -261.3831
A106: 36000 | B106: 36 | C106: 1.000037722 | D106: 0.008685656935 | F106: 0.07238018766 | G106: 0.1068458743 | H106: -3.034746776 | J106: 15 | M106: 0.003602368442 | N106: -1.570796325 | O106: 58.91862695 | P106: 1.553822951 | Q106: 3.609391166 | R106: 1.290068522 | S106: 0.9917233357 | T106: -0.1287486447 | U106: 0.9881207665 | V106: -0.154290814 | X106: -1.775947945 | Y106: -116.6545183 | Z106: 63.34548166 | AC106: 1 | AD106: 58.91014006 | AE106: -0.002398528753 | AF106: 0.01542195266 | AG106: 3719.826284 | AH106: -643.3757462 | AJ106: 18000 | AK106: 2330.366072 | AL106: 1 | AM106: 3.468098123 | AN106: 2002.036354 | AO106: -4612.89245 | AQ106: 1.928640309 | AR106: -138.8621022 | AT106: -82166.30173 | AU106: -517783.7381 | AV106: -1.728172521 | AW106: -629666.3793 | AX106: -297540.2946 | AY106: -2.700156298 | BA106: 0.7527895164 | BB106: -2.466528753 | BC106: 0.9719837773 | BD106: -124.3094317 | BF106: -1.751981838 | BG106: -117.6899626 | BH106: 62.3100374 | BI106: 62.3100374 | BJ106: 0 | BK106: 0 | BM106: 0.7145469155 | BN106: -173.3805309 | BQ106: 14.43543205 | BT106: 912.011 | BU106: 15.6715 | BV106: -261.7487
A107: 36500 | B107: 36.5 | C107: 1.000038777 | D107: 0.008806284865 | F107: 0.07028261553 | G107: 0.1051842733 | H107: -3.036408377 | J107: 15 | M107: 0.003553020929 | N107: -1.570796325 | O107: 59.7367071 | P107: 1.554055419 | Q107: 3.655697971 | R107: 1.293719049 | S107: 0.991494777 | T107: -0.1305167183 | U107: 0.9877945551 | V107: -0.1563991996 | X107: -1.925551489 | Y107: -116.7424351 | Z107: 63.25756491 | AC107: 1 | AD107: 59.72833645 | AE107: -0.002465617231 | AF107: 0.01563614644 | AG107: 3717.370614 | AH107: -650.1354458 | AJ107: 18000 | AK107: 2362.732267 | AL107: 1 | AM107: 3.516266152 | AN107: 1968.553143 | AO107: -4559.224519 | AQ107: 1.876172608 | AR107: -136.9606004 | AT107: -82068.51207 | AU107: -510353.0774 | AV107: -1.730238661 | AW107: -613785.0208 | AX107: -288694.0172 | AY107: -2.701944821 | BA107: 0.7620783929 | BB107: -2.360007034 | BC107: 0.9717061598 | BD107: -124.3253381 | BF107: -1.900886746 | BG107: -117.7941602 | BH107: 62.20583984 | BI107: 62.20583984 | BJ107: 0 | BK107: 0 | BM107: 0.4591202874 | BN107: -173.4688221 | BQ107: 14.54195377 | BT107: 933.254 | BU107: 15.4714 | BV107: -261.2073
A108: 37000 | B108: 37 | C108: 1.000039846 | D108: 0.008926912539 | F108: 0.06827663095 | G108: 0.1035760919 | H108: -3.038016558 | J108: 15 | M108: 0.003505007133 | N108: -1.570796325 | O108: 60.55479039 | P108: 1.554281606 | Q108: 3.702052274 | R108: 1.297278204 | S108: 0.991263227 | T108: -0.1322839716 | U108: 0.9874641738 | V108: -0.1585061842 | X108: -2.072581037 | Y108: -116.832759 | Z108: 63.16724102 | AC108: 1 | AD108: 60.54653284 | AE108: -0.002533631067 | AF108: 0.01585034023 | AG108: 3714.88438 | AH108: -656.9036578 | AJ108: 18000 | AK108: 2395.098463 | AL108: 1 | AM108: 3.564434182 | AN108: 1936.286095 | AO108: -4506.665879 | AQ108: 1.825817053 | AR108: -135.1104619 | AT108: -81971.8574 | AU108: -503119.1304 | AV108: -1.732304541 | AW108: -598476.7159 | AX108: -280258.4203 | AY108: -2.703636365 | BA108: 0.7713629411 | BB108: -2.254824599 | BC108: 0.9713318242 | BD108: -124.3467859 | BF108: -2.047211664 | BG108: -117.9008386 | BH108: 62.09916144 | BI108: 62.09916144 | BJ108: 0 | BK108: 0 | BM108: 0.2076129355 | BN108: -173.5540527 | BQ108: 14.6471362 | BT108: 954.993 | BU108: 15.3525 | BV108: -261.2661
A109: 37500 | B109: 37.5 | C109: 1.00004093 | D109: 0.009047539953 | F109: 0.06635688851 | G109: 0.102018704 | H109: -3.039573946 | J109: 15 | M109: 0.003458273704 | N109: -1.570796325 | O109: 61.37287669 | P109: 1.554501763 | Q109: 3.748452312 | R109: 1.300749289 | S109: 0.9910286922 | T109: -0.1340503941 | U109: 0.9871296357 | V109: -0.1606117506 | X109: -2.217134006 | Y109: -116.9254353 | Z109: 63.07456466 | AC109: 1 | AD109: 61.36472923 | AE109: -0.002602570261 | AF109: 0.01606453402 | AG109: 3712.367711 | AH109: -663.6792448 | AJ109: 18000 | AK109: 2427.464658 | AL109: 1 | AM109: 3.612602211 | AN109: 1905.178616 | AO109: -4455.187824 | AQ109: 1.777461785 | AR109: -133.3096338 | AT109: -81876.24537 | AU109: -496074.0447 | AV109: -1.734370098 | AW109: -583715.0558 | AX109: -272209.2094 | AY109: -2.705234436 | BA109: 0.7806425949 | BB109: -2.150955113 | BC109: 0.9708643386 | BD109: -124.3735709 | BF109: -2.191054149 | BG109: -118.0099438 | BH109: 61.99005618 | BI109: 61.99005618 | BJ109: 0 | BK109: 0 | BM109: -0.0400990368 | BN109: -173.636373 | BQ109: 14.75100569 | BT109: 977.237 | BU109: 15.0807 | BV109: -260.9324
A110: 38000 | B110: 38 | C110: 1.000042029 | D110: 0.009168167103 | F110: 0.06451843295 | G110: 0.100509657 | H110: -3.041082993 | J110: 15 | M110: 0.003412770103 | N110: -1.570796325 | O110: 62.19096589 | P110: 1.554716128 | Q110: 3.794896409 | R110: 1.304135452 | S110: 0.9907911789 | T110: -0.1358159755 | U110: 0.9867909537 | V110: -0.1627158814 | X110: -2.359302524 | Y110: -117.0204091 | Z110: 62.97959092 | AC110: 1 | AD110: 62.18292562 | AE110: -0.002672434814 | AF110: 0.0162787278 | AG110: 3709.820737 | AH110: -670.4611211 | AJ110: 18000 | AK110: 2459.830854 | AL110: 1 | AM110: 3.660770241 | AN110: 1875.177271 | AO110: -4404.762296 | AQ110: 1.73100225 | AR110: -131.556171 | AT110: -81781.58987 | AU110: -489210.3811 | AV110: -1.736435272 | AW110: -569475.0841 | AX110: -264523.8013 | AY110: -2.706742376 | BA110: 0.7899168067 | BB110: -2.048372916 | BC110: 0.9703071049 | BD110: -124.405498 | BF110: -2.332506472 | BG110: -118.1214216 | BH110: 61.87857844 | BI110: 61.87857844 | BJ110: 0 | BK110: 0 | BM110: -0.2841335555 | BN110: -173.7159236 | BQ110: 14.85358788 | BT110: 1000 | BU110: 14.8838 | BV110: -260.5154
A111: 38500 | B111: 38.5 | C111: 1.000043142 | D111: 0.009288793987 | F111: 0.06275666506 | G111: 0.09904665742 | H111: -3.042545993 | J111: 15 | M111: 0.003368448413 | N111: -1.570796325 | O111: 63.00905788 | P111: 1.554924926 | Q111: 3.841382966 | R111: 1.307439696 | S111: 0.9905506939 | T111: -0.1375807053 | U111: 0.9864481411 | V111: -0.1648185595 | X111: -2.499173797 | Y111: -117.117625 | Z111: 62.882375 | AC111: 1 | AD111: 63.00112201 | AE111: -0.002743224725 | AF111: 0.01649292159 | AG111: 3707.243591 | AH111: -677.2482499 | AJ111: 18000 | AK111: 2492.197049 | AL111: 1 | AM111: 3.70893827 | AN111: 1846.231576 | AO111: -4355.361898 | AQ111: 1.686340641 | AR111: -129.8482293 | AT111: -81687.81055 | AU111: -482521.0873 | AV111: -1.738500004 | AW111: -555733.2058 | AX111: -257181.1855 | AY111: -2.708163372 | BA111: 0.7991850463 | BB111: -1.947053018 | BC111: 0.9696633684 | BD111: -124.4423814 | BF111: -2.471655979 | BG111: -118.2352172 | BH111: 61.76478277 | BI111: 61.76478277 | BJ111: 0 | BK111: 0 | BM111: -0.5246029614 | BN111: -173.7928359 | BQ111: 14.95490778 | BT111: 1023.293 | BU111: 14.7437 | BV111: -261.1239
A112: 39000 | B112: 39 | C112: 1.00004427 | D112: 0.009409420601 | F112: 0.06106731098 | G112: 0.09762755802 | H112: -3.043965092 | J112: 15 | M112: 0.003325263177 | N112: -1.570796325 | O112: 63.82715254 | P112: 1.555128372 | Q112: 3.88791046 | R112: 1.310664889 | S112: 0.9903072438 | T112: -0.1393445731 | U112: 0.9861012114 | V112: -0.166919768 | X112: -2.636830448 | Y112: -117.217028 | Z112: 62.782972 | AC112: 1 | AD112: 63.8193184 | AE112: -0.002814939995 | AF112: 0.01670711538 | AG112: 3704.636406 | AH112: -684.0396398 | AJ112: 18000 | AK112: 2524.563245 | AL112: 1 | AM112: 3.7571063 | AN112: 1818.293815 | AO112: -4306.959903 | AQ112: 1.643385374 | AR112: -128.1840592 | AT112: -81594.83238 | AU112: -475999.473 | AV112: -1.740564239 | AW112: -542467.1027 | AX112: -250161.7989 | AY112: -2.709500465 | BA112: 0.8084467999 | BB112: -1.846971074 | BC112: 0.9689362265 | BD112: -124.4840435 | BF112: -2.608585438 | BG112: -118.3512764 | BH112: 61.64872359 | BI112: 61.64872359 | BJ112: 0 | BK112: 0 | BM112: -0.7616143643 | BN112: -173.8672329 | BQ112: 15.05498973 | BT112: 1047.129 | BU112: 14.5866 | BV112: -260.4077
A113: 39500 | B113: 39.5 | C113: 1.000045413 | D113: 0.009530046941 | F113: 0.05944639467 | G113: 0.09625034604 | H113: -3.045342304 | J113: 15 | M113: 0.003283171238 | N113: -1.570796325 | O113: 64.64524977 | P113: 1.555326669 | Q113: 3.934477439 | R113: 1.313813771 | S113: 0.9900608353 | T113: -0.1411075686 | U113: 0.9857501781 | V113: -0.1690194897 | X113: -2.772350829 | Y113: -117.3185633 | Z113: 62.68143672 | AC113: 1 | AD113: 64.63751479 | AE113: -0.002887580622 | AF113: 0.01692130916 | AG113: 3701.999315 | AH113: -690.8343423 | AJ113: 18000 | AK113: 2556.92944 | AL113: 1 | AM113: 3.805274329 | AN113: 1791.318866 | AO113: -4259.530255 | AQ113: 1.602050625 | AR113: -126.5619994 | AT113: -81502.58527 | AU113: -469639.1865 | AV113: -1.742627922 | AW113: -529655.6546 | AX113: -243447.4106 | AY113: -2.710756559 | BA113: 0.8177015693 | BB113: -1.748103375 | BC113: 0.9681286369 | BD113: -124.530315 | BF113: -2.743373345 | BG113: -118.4695449 | BH113: 61.53045506 | BI113: 61.53045506 | BJ113: 0 | BK113: 0 | BM113: -0.9952699697 | BN113: -173.9392299 | BQ113: 15.15385743 | BT113: 1071.519 | BU113: 14.3581 | BV113: -260.5301
A114: 40000 | B114: 40 | C114: 1.00004657 | D114: 0.009650673003 | F114: 0.057890213 | G114: 0.09491313275 | H114: -3.046679517 | J114: 15 | M114: 0.003242131598 | N114: -1.570796325 | O114: 65.46334949 | P114: 1.55552001 | Q114: 3.981082518 | R114: 1.316888956 | S114: 0.9898114752 | T114: -0.1428696815 | U114: 0.9853950549 | V114: -0.1711177078 | X114: -2.905809304 | Y114: -117.4221765 | Z114: 62.57782347 | AC114: 1 | AD114: 65.45571118 | AE114: -0.002961146609 | AF114: 0.01713550295 | AG114: 3699.332454 | AH114: -697.6314489 | AJ114: 18000 | AK114: 2589.295636 | AL114: 1 | AM114: 3.853442359 | AN114: 1765.264035 | AO114: -4213.04757 | AQ114: 1.562255898 | AR114: -124.9804718 | AT114: -81411.00368 | AU114: -463434.1943 | AV114: -1.744691003 | AW114: -517278.8654 | AX114: -237021.0181 | AY114: -2.711934428 | BA114: 0.8269488709 | BB114: -1.650426829 | BC114: 0.9672434251 | BD114: -124.5810339 | BF114: -2.876094208 | BG114: -118.5899691 | BH114: 61.41003085 | BI114: 61.41003085 | BJ114: 0 | BK114: 0 | BM114: -1.22566738 | BN114: -174.0089352 | BQ114: 15.25153397 | BT114: 1096.478 | BU114: 14.1501 | BV114: -260.5471
A115: 40500 | B115: 40.5 | C115: 1.000047741 | D115: 0.009771298784 | F115: 0.05639531337 | G115: 0.09361414393 | H115: -3.047978506 | J115: 15 | M115: 0.003202105282 | N115: -1.570796325 | O115: 66.28145159 | P115: 1.555708577 | Q115: 4.027724372 | R115: 1.319892947 | S115: 0.9895591704 | T115: -0.1446309016 | U115: 0.9850358555 | V115: -0.1732144054 | X115: -3.037276511 | Y115: -117.527814 | Z115: 62.47218598 | AC115: 1 | AD115: 66.27390757 | AE115: -0.003035637953 | AF115: 0.01734969674 | AG115: 3696.63596 | AH115: -704.4300891 | AJ115: 18000 | AK115: 2621.661831 | AL115: 1 | AM115: 3.901610388 | AN115: 1740.088909 | AO115: -4167.487133 | AQ115: 1.523925632 | AR115: -123.4379762 | AT115: -81320.0263 | AU115: -457378.7608 | AV115: -1.74675343 | AW115: -505317.7949 | AX115: -230866.7518 | AY115: -2.713036722 | BA115: 0.8361882349 | BB115: -1.553918944 | BC115: 0.966283292 | BD115: -124.6360455 | BF115: -3.006818815 | BG115: -118.712496 | BH115: 61.28750405 | BI115: 61.28750405 | BJ115: 0 | BK115: 0 | BM115: -1.452899871 | BN115: -174.0764505 | BQ115: 15.34804186 | BT115: 1122.018 | BU115: 13.9679 | BV115: -259.931
A116: 41000 | B116: 41 | C116: 1.000048927 | D116: 0.009891924282 | F116: 0.05495847333 | G116: 0.09235171112 | H116: -3.049240939 | J116: 15 | M116: 0.003163055217 | N116: -1.570796325 | O116: 67.09955599 | P116: 1.555892547 | Q116: 4.074401741 | R116: 1.322828135 | S116: 0.9893039278 | T116: -0.1463912185 | U116: 0.9846725938 | V116: -0.1753095658 | X116: -3.166819605 | Y116: -117.6354228 | Z116: 62.36457721 | AC116: 1 | AD116: 67.09210396 | AE116: -0.003111054656 | AF116: 0.01756389052 | AG116: 3693.909971 | AH116: -711.2294281 | AJ116: 18000 | AK116: 2654.028026 | AL116: 1 | AM116: 3.949778418 | AN116: 1715.755216 | AO116: -4122.824894 | AQ116: 1.486988848 | AR116: -121.9330855 | AT116: -81229.59574 | AU116: -451467.4306 | AV116: -1.748815155 | AW116: -493754.4947 | AX116: -224969.7879 | AY116: -2.714065975 | BA116: 0.8454192049 | BB116: -1.458557816 | BC116: 0.96525082 | BD116: -124.6952018 | BF116: -3.135614468 | BG116: -118.837073 | BH116: 61.16292702 | BI116: 61.16292702 | BJ116: 0 | BK116: 0 | BM116: -1.677056652 | BN116: -174.1418712 | BQ116: 15.44340298 | BT116: 1148.154 | BU116: 13.7508 | BV116: -259.948
A117: 41500 | B117: 41.5 | C117: 1.000050128 | D117: 0.01001254949 | F117: 0.05357668225 | G117: 0.09112426379 | H117: -3.050468386 | J117: 15 | M117: 0.003124946118 | N117: -1.570796325 | O117: 67.9176626 | P117: 1.556072084 | Q117: 4.121113417 | R117: 1.325696808 | S117: 0.9890457544 | T117: -0.1481506222 | U117: 0.9843052839 | V117: -0.1774031723 | X117: -3.29450248 | Y117: -117.7449506 | Z117: 62.25504936 | AC117: 1 | AD117: 67.91030035 | AE117: -0.003187396717 | AF117: 0.01777808431 | AG117: 3691.154626 | AH117: -718.0286645 | AJ117: 18000 | AK117: 2686.394222 | AL117: 1 | AM117: 3.997946447 | AN117: 1692.226689 | AO117: -4079.037458 | AQ117: 1.45137881 | AR117: -120.4644412 | AT117: -81139.65824 | AU117: -445695.011 | AV117: -1.750876132 | AW117: -482571.9484 | AX117: -219316.2695 | AY117: -2.715024612 | BA117: 0.8546413366 | BB117: -1.364322108 | BC117: 0.9641484799 | BD117: -124.7583612 | BF117: -3.262545208 | BG117: -118.9636487 | BH117: 61.03635135 | BI117: 61.03635135 | BJ117: 0 | BK117: 0 | BM117: -1.8982231 | BN117: -174.2052874 | BQ117: 15.53763869 | BT117: 1174.898 | BU117: 13.6038 | BV117: -260.1987
A118: 42000 | B118: 42 | C118: 1.000051343 | D118: 0.01013317441 | F118: 0.05224712462 | G118: 0.08993032212 | H118: -3.051662328 | J118: 15 | M118: 0.003087744379 | N118: -1.570796325 | O118: 68.73577136 | P118: 1.556247348 | Q118: 4.167858246 | R118: 1.328501156 | S118: 0.9887846574 | T118: -0.1499091023 | U118: 0.9839339401 | V118: -0.1794952082 | X118: -3.420385971 | Y118: -117.8563463 | Z118: 62.14365371 | AC118: 1 | AD118: 68.72849674 | AE118: -0.003264664136 | AF118: 0.0179922781 | AG118: 3688.370065 | AH118: -724.8270286 | AJ118: 18000 | AK118: 2718.760417 | AL118: 1 | AM118: 4.046114477 | AN118: 1669.468952 | AO118: -4036.102078 | AQ118: 1.417032733 | AR118: -119.0307496 | AT118: -81050.16343 | AU118: -440056.5573 | AV118: -1.752936314 | AW118: -471754.0162 | AX118: -213893.2337 | AY118: -2.715914951 | BA118: 0.8638541978 | BB118: -1.27119104 | BC118: 0.9629786363 | BD118: -124.8253883 | BF118: -3.387672024 | BG118: -119.0921723 | BH118: 60.90782772 | BI118: 60.90782772 | BJ118: 0 | BK118: 0 | BM118: -2.116480984 | BN118: -174.266784 | BQ118: 15.63076976 | BT118: 1202.264 | BU118: 13.4128 | BV118: -259.341
A119: 42500 | B119: 42.5 | C119: 1.000052573 | D119: 0.01025379903 | F119: 0.05096716491 | G119: 0.08876849046 | H119: -3.05282416 | J119: 15 | M119: 0.003051417974 | N119: -1.570796325 | O119: 69.55388217 | P119: 1.556418489 | Q119: 4.214635125 | R119: 1.331243277 | S119: 0.9885206439 | T119: -0.1516666489 | U119: 0.9835585765 | V119: -0.1815856571 | X119: -3.54452805 | Y119: -117.9695594 | Z119: 62.03044061 | AC119: 1 | AD119: 69.54669313 | AE119: -0.003342856914 | AF119: 0.01820647188 | AG119: 3685.55643 | AH119: -731.6237806 | AJ119: 18000 | AK119: 2751.126613 | AL119: 1 | AM119: 4.094282506 | AN119: 1647.4494 | AO119: -3993.996647 | AQ119: 1.383891503 | AR119: -117.6307777 | AT119: -80961.0641 | AU119: -434547.3572 | AV119: -1.754995659 | AW119: -461285.3826 | AX119: -208688.5449 | AY119: -2.716739212 | BA119: 0.8730573674 | BB119: -1.179144369 | BC119: 0.9617435535 | BD119: -124.8961533 | BF119: -3.511053036 | BG119: -119.2225941 | BH119: 60.77740592 | BI119: 60.77740592 | BJ119: 0 | BK119: 0 | BM119: -2.331908667 | BN119: -174.3264407 | BQ119: 15.72281643 | BT119: 1230.269 | BU119: 13.1837 | BV119: -259.551
A120: 43000 | B120: 43 | C120: 1.000053817 | D120: 0.01037442336 | F120: 0.04973433375 | G120: 0.08763745133 | H120: -3.053955199 | J120: 15 | M120: 0.00301593637 | N120: -1.570796325 | O120: 70.37199498 | P120: 1.55658565 | Q120: 4.261443 | R120: 1.333925178 | S120: 0.9882537211 | T120: -0.1534232517 | U120: 0.9831792077 | V120: -0.1836745025 | X120: -3.666983994 | Y120: -118.0845406 | Z120: 61.9154594 | AC120: 1 | AD120: 70.36488952 | AE120: -0.003421975049 | AF120: 0.01842066567 | AG120: 3682.713863 | AH120: -738.418209 | AJ120: 18000 | AK120: 2783.492808 | AL120: 1 | AM120: 4.142450536 | AN120: 1626.137097 | AO120: -3952.699679 | AQ120: 1.351899419 | AR120: -116.26335 | AT120: -80872.31595 | AU120: -429162.918 | AV120: -1.757054123 | AW120: -451151.508 | AX120: -203690.8341 | AY120: -2.717499524 | BA120: 0.882250435 | BB120: -1.088162377 | BC120: 0.9604454006 | BD120: -124.970532 | BF120: -3.632743674 | BG120: -119.3548653 | BH120: 60.64513474 | BI120: 60.64513474 | BJ120: 0 | BK120: 0 | BM120: -2.544581297 | BN120: -174.3843332 | BQ120: 15.81379842 | BT120: 1258.925 | BU120: 13.0792 | BV120: -259.272
A121: 43500 | B121: 43.5 | C121: 1.000055076 | D121: 0.01049504738 | F121: 0.04854631543 | G121: 0.08653595994 | H121: -3.05505669 | J121: 15 | M121: 0.002981270435 | N121: -1.570796325 | O121: 71.1901097 | P121: 1.55674897 | Q121: 4.308280859 | R121: 1.336548784 | S121: 0.9879838963 | T121: -0.1551789007 | U121: 0.9827958482 | V121: -0.1857617281 | X121: -3.787806549 | Y121: -118.2012416 | Z121: 61.79875844 | AC121: 1 | AD121: 71.18308591 | AE121: -0.003502018544 | AF121: 0.01863485946 | AG121: 3679.842508 | AH121: -745.2096289 | AJ121: 18000 | AK121: 2815.859004 | AL121: 1 | AM121: 4.190618565 | AN121: 1605.502673 | AO121: -3912.190306 | AQ121: 1.321003963 | AR121: -114.9273448 | AT121: -80783.87742 | AU121: -423898.9536 | AV121: -1.759111665 | AW121: -441338.5833 | AX121: -198889.4432 | AY121: -2.718197922 | BA121: 0.8914330002 | BB121: -0.9982258535 | BC121: 0.9590862565 | BD121: -125.0484052 | BF121: -3.752796838 | BG121: -119.488938 | BH121: 60.51106196 | BI121: 60.51106196 | BJ121: 0 | BK121: 0 | BM121: -2.754570984 | BN121: -174.4405328 | BQ121: 15.90373495 | BT121: 1288.25 | BU121: 12.807 | BV121: -258.861
A122: 44000 | B122: 44 | C122: 1.000056349 | D122: 0.0106156711 | F122: 0.0474009364 | G122: 0.08546283916 | H122: -3.056129811 | J122: 15 | M122: 0.002947392361 | N122: -1.570796325 | O122: 72.00822629 | P122: 1.556908578 | Q122: 4.355147735 | R122: 1.339115941 | S122: 0.9877111768 | T122: -0.1569335859 | U122: 0.9824085127 | V122: -0.1878473175 | X122: -3.907046086 | Y122: -118.319615 | Z122: 61.68038502 | AC122: 1 | AD122: 72.0012823 | AE122: -0.003582987396 | AF122: 0.01884905325 | AG122: 3676.942511 | AH122: -751.9973809 | AJ122: 18000 | AK122: 2848.225199 | AL122: 1 | AM122: 4.238786595 | AN122: 1585.518239 | AO122: -3872.448257 | AQ122: 1.291155584 | AR122: -113.6216914 | AT122: -80695.7095 | AU122: -418751.3729 | AV122: -1.761168246 | AW122: -431833.4878 | AX122: -194274.3732 | AY122: -2.71883636 | BA122: 0.9006046725 | BB122: -0.9093160836 | BC122: 0.9576681143 | BD122: -125.1296588 | BF122: -3.871263051 | BG122: -119.6247657 | BH122: 60.37523433 | BI122: 60.37523433 | BJ122: 0 | BK122: 0 | BM122: -2.961946968 | BN122: -174.4951069 | BQ122: 15.99264472 | BT122: 1318.257 | BU122: 12.6826 | BV122: -258.683
A123: 44500 | B123: 44.5 | C123: 1.000057637 | D123: 0.0107362945 | F123: 0.04629615486 | G123: 0.08441697494 | H123: -3.057175675 | J123: 15 | M123: 0.002914275593 | N123: -1.570796325 | O123: 72.82634466 | P123: 1.557064601 | Q123: 4.402042702 | R123: 1.341628419 | S123: 0.9874355702 | T123: -0.1586872972 | U123: 0.982017216 | V123: -0.1899312546 | X123: -4.024750732 | Y123: -118.4396146 | Z123: 61.56038535 | AC123: 1 | AD123: 72.81947869 | AE123: -0.003664881607 | AF123: 0.01906324703 | AG123: 3674.014016 | AH123: -758.7808293 | AJ123: 18000 | AK123: 2880.591395 | AL123: 1 | AM123: 4.286954624 | AN123: 1566.157292 | AO123: -3833.45385 | AQ123: 1.262307498 | AR123: -112.3453673 | AT123: -80607.77555 | AU123: -413716.2689 | AV123: -1.763223825 | AW123: -422623.7489 | AX123: -189836.2374 | AY123: -2.719416711 | BA123: 0.9097650702 | BB123: -0.8214148324 | BC123: 0.9561928857 | BD123: -125.2141832 | BF123: -3.988190598 | BG123: -119.7623024 | BH123: 60.23769756 | BI123: 60.23769756 | BJ123: 0 | BK123: 0 | BM123: -3.166775765 | BN123: -174.5481192 | BQ123: 16.08054597 | BT123: 1348.963 | BU123: 12.4759 | BV123: -258.797
A124: 45000 | B124: 45 | C124: 1.000058939 | D124: 0.0108569176 | F124: 0.04523005114 | G124: 0.08339731206 | H124: -3.058195338 | J124: 15 | M124: 0.002881894753 | N124: -1.570796325 | O124: 73.64446477 | P124: 1.557217156 | Q124: 4.448964871 | R124: 1.344087915 | S124: 0.9871570839 | T124: -0.1604400247 | U124: 0.981621973 | V124: -0.1920135232 | X124: -4.140966506 | Y124: -118.5611954 | Z124: 61.43880461 | AC124: 1 | AD124: 73.63767508 | AE124: -0.003747701176 | AF124: 0.01927744082 | AG124: 3671.057171 | AH124: -765.5593612 | AJ124: 18000 | AK124: 2912.95759 | AL124: 1 | AM124: 4.335122653 | AN124: 1547.394641 | AO124: -3795.187974 | AQ124: 1.234415504 | AR124: -111.0973954 | AT124: -80520.04115 | AU124: -408789.9084 | AV124: -1.765278366 | AW124: -413697.5055 | AX124: -185566.2181 | AY124: -2.719940772 | BA124: 0.9189138206 | BB124: -0.7345043314 | BC124: 0.9546624052 | BD124: -125.3018733 | BF124: -4.10362565 | BG124: -119.9015037 | BH124: 60.09849631 | BI124: 60.09849631 | BJ124: 0 | BK124: 0 | BM124: -3.369121319 | BN124: -174.5996304 | BQ124: 16.16745647 | BT124: 1380.384 | BU124: 12.2584 | BV124: -258.41
A125: 45500 | B125: 45.5 | C125: 1.000060256 | D125: 0.01097754038 | F125: 0.04420081898 | G125: 0.08240285022 | H125: -3.0591898 | J125: 15 | M125: 0.00285022558 | N125: -1.570796325 | O125: 74.46258655 | P125: 1.55736636 | Q125: 4.49591339 | R125: 1.346496058 | S125: 0.9868757254 | T125: -0.1621917585 | U125: 0.9812227987 | V125: -0.1940941073 | X125: -4.255737434 | Y125: -118.6843131 | Z125: 61.31568689 | AC125: 1 | AD125: 74.45587147 | AE125: -0.003831446104 | AF125: 0.01949163461 | AG125: 3668.072125 | AH125: -772.3323854 | AJ125: 18000 | AK125: 2945.323785 | AL125: 1 | AM125: 4.383290683 | AN125: 1529.206331 | AO125: -3757.632076 | AQ125: 1.207437817 | AR125: -109.8768413 | AT125: -80432.47398 | AU125: -403968.7222 | AV125: -1.767331832 | AW125: -405043.4731 | AX125: -181456.0265 | AY125: -2.720410266 | BA125: 0.9280505592 | BB125: -0.6485672645 | BC125: 0.9530784338 | BD125: -125.3926281 | BF125: -4.217612394 | BG125: -120.0423259 | BH125: 59.95767414 | BI125: 59.95767414 | BJ125: 0 | BK125: 0 | BM125: -3.569045129 | BN125: -174.6496977 | BQ125: 16.25339354 | BT125: 1412.538 | BU125: 12.0929 | BV125: -258.136
A126: 46000 | B126: 46 | C126: 1.000061588 | D126: 0.01109816284 | F126: 0.04320675751 | G126: 0.0814326405 | H126: -3.060160009 | J126: 15 | M126: 0.002819244867 | N126: -1.570796325 | O126: 75.28070996 | P126: 1.557512321 | Q126: 4.542887443 | R126: 1.348854414 | S126: 0.9865915025 | T126: -0.1639424886 | U126: 0.9808197083 | V126: -0.196172991 | X126: -4.369105666 | Y126: -118.8089248 | Z126: 61.19107519 | AC126: 1 | AD126: 75.27406786 | AE126: -0.00391611639 | AF126: 0.01970582839 | AG126: 3665.059025 | AH126: -779.099331 | AJ126: 18000 | AK126: 2977.689981 | AL126: 1 | AM126: 4.431458712 | AN126: 1511.569568 | AO126: -3720.768149 | AQ126: 1.181334908 | AR126: -108.6828116 | AT126: -80345.04363 | AU126: -399249.2967 | AV126: -1.769384187 | AW126: -396650.9116 | AX126: -177497.8665 | AY126: -2.72082685 | BA126: 0.9371749295 | BB126: -0.5635867555 | BC126: 0.9514426629 | BD126: -125.4863509 | BF126: -4.330193135 | BG126: -120.1847264 | BH126: 59.81527361 | BI126: 59.81527361 | BJ126: 0 | BK126: 0 | BM126: -3.76660638 | BN126: -174.6983755 | BQ126: 16.33837404 | BT126: 1445.44 | BU126: 11.9189 | BV126: -257.929
A127: 46500 | B127: 46.5 | C127: 1.000062934 | D127: 0.01121878498 | F127: 0.04224626386 | G127: 0.08048578202 | H127: -3.061106868 | J127: 15 | M127: 0.002788930407 | N127: -1.570796325 | O127: 76.09883493 | P127: 1.557655143 | Q127: 4.589886246 | R127: 1.351164485 | S127: 0.9863044227 | T127: -0.1656922052 | U127: 0.9804127171 | V127: -0.1982501584 | X127: -4.481111579 | Y127: -118.9349885 | Z127: 61.06501147 | AC127: 1 | AD127: 76.09226425 | AE127: -0.004001712034 | AF127: 0.01992002218 | AG127: 3662.018023 | AH127: -785.8596467 | AJ127: 18000 | AK127: 3010.056176 | AL127: 1 | AM127: 4.479626742 | AN127: 1494.462659 | AO127: -3684.578714 | AQ127: 1.156069364 | AR127: -107.5144509 | AT127: -80257.72152 | AU127: -394628.3651 | AV127: -1.771435395 | AW127: -388509.5943 | AX127: -173684.3999 | AY127: -2.721192112 | BA127: 0.9462865826 | BB127: -0.4795463547 | BC127: 0.9497567172 | BD127: -125.5829485 | BF127: -4.441408409 | BG127: -120.3286638 | BH127: 59.67133618 | BI127: 59.67133618 | BJ127: 0 | BK127: 0 | BM127: -3.961862054 | BN127: -174.7457153 | BQ127: 16.42241445 | BT127: 1479.108 | BU127: 11.7147 | BV127: -257.745
A128: 47000 | B128: 47 | C128: 1.000064295 | D128: 0.01133940679 | F128: 0.04131782641 | G128: 0.0795614189 | H128: -3.062031231 | J128: 15 | M128: 0.002759260934 | N128: -1.570796325 | O128: 76.91696143 | P128: 1.557794927 | Q128: 4.636909045 | R128: 1.353427716 | S128: 0.9860144939 | T128: -0.1674408985 | U128: 0.9800018404 | V128: -0.2003255937 | X128: -4.591793871 | Y128: -119.0624634 | Z128: 60.93753663 | AC128: 1 | AD128: 76.91046064 | AE128: -0.004088233036 | AF128: 0.02013421597 | AG128: 3658.94927 | AH128: -792.6127995 | AJ128: 18000 | AK128: 3042.422372 | AL128: 1 | AM128: 4.527794771 | AN128: 1477.864947 | AO128: -3649.046807 | AQ128: 1.131605749 | AR128: -106.3709404 | AT128: -80170.4808 | AU128: -390102.7998 | AV128: -1.773485424 | AW128: -380609.7797 | AX128: -170008.7162 | AY128: -2.721507582 | BA128: 0.9553851767 | BB128: -0.3964300265 | BC128: 0.9480221584 | BD128: -125.6823314 | BF128: -4.551297073 | BG128: -120.4740977 | BH128: 59.52590229 | BI128: 59.52590229 | BJ128: 0 | BK128: 0 | BM128: -4.154867047 | BN128: -174.7917663 | BQ128: 16.50553077 | BT128: 1513.561 | BU128: 11.5252 | BV128: -257.61
A129: 47500 | B129: 47.5 | C129: 1.00006567 | D129: 0.01146002827 | F129: 0.04042001857 | G129: 0.07865873744 | H129: -3.062933913 | J129: 15 | M129: 0.002730216082 | N129: -1.570796325 | O129: 77.7350894 | P129: 1.557931769 | Q129: 4.683955119 | R129: 1.355645493 | S129: 0.985721724 | T129: -0.1691885587 | U129: 0.9795870938 | V129: -0.2023992813 | X129: -4.701189655 | Y129: -119.1913095 | Z129: 60.80869052 | AC129: 1 | AD129: 77.72865703 | AE129: -0.004175679397 | AF129: 0.02034840975 | AG129: 3655.852917 | AH129: -799.3582743 | AJ129: 18000 | AK129: 3074.788567 | AL129: 1 | AM129: 4.575962801 | AN129: 1461.756754 | AO129: -3614.155964 | AQ129: 1.107910481 | AR129: -105.2514957 | AT129: -80083.29619 | AU129: -385669.6049 | AV129: -1.775534239 | AW129: -372942.1848 | AX129: -166464.3031 | AY129: -2.721774727 | BA129: 0.9644703769 | BB129: -0.3142221375 | BC129: 0.9462404879 | BD129: -125.7844136 | BF129: -4.659896401 | BG129: -120.6209886 | BH129: 59.37901136 | BI129: 59.37901136 | BJ129: 0 | BK129: 0 | BM129: -4.345674264 | BN129: -174.8365751 | BQ129: 16.58773866 | BT129: 1548.817 | BU129: 11.3354 | BV129: -257.471
A130: 48000 | B130: 48 | C130: 1.000067059 | D130: 0.01158064942 | F130: 0.03955149302 | G130: 0.07777696353 | H130: -3.063815686 | J130: 15 | M130: 0.002701776331 | N130: -1.570796325 | O130: 78.55321879 | P130: 1.55806576 | Q130: 4.731023773 | R130: 1.357819152 | S130: 0.9854261207 | T130: -0.1709351761 | U130: 0.9791684928 | V130: -0.2044712055 | X130: -4.809334545 | Y130: -119.321488 | Z130: 60.67851198 | AC130: 1 | AD130: 78.54685342 | AE130: -0.004264051116 | AF130: 0.02056260354 | AG130: 3652.729118 | AH130: -806.0955725 | AJ130: 18000 | AK130: 3107.154763 | AL130: 1 | AM130: 4.62413083 | AN130: 1446.119328 | AO130: -3579.890206 | AQ130: 1.08495172 | AR130: -104.1553651 | AT130: -79996.14391 | AU130: -381325.9096 | AV130: -1.777581809 | AW130: -365497.96 | AX130: -163045.0203 | AY130: -2.721994959 | BA130: 0.9735418553 | BB130: -0.2329074441 | BC130: 0.94441315 | BD130: -125.8891123 | BF130: -4.767242166 | BG130: -120.7692982 | BH130: 59.23070177 | BI130: 59.23070177 | BJ130: 0 | BK130: 0 | BM130: -4.534334722 | BN130: -174.8801859 | BQ130: 16.66905336 | BT130: 1584.893 | BU130: 11.1604 | BV130: -256.942
A131: 48500 | B131: 48.5 | C131: 1.000068464 | D131: 0.01170127023 | F131: 0.03871097649 | G131: 0.07691536022 | H131: -3.06467729 | J131: 15 | M131: 0.002673922967 | N131: -1.570796325 | O131: 79.37134956 | P131: 1.558196989 | Q131: 4.778114339 | R131: 1.359949976 | S131: 0.985127692 | T131: -0.1726807408 | U131: 0.9787460532 | V131: -0.2065413508 | X131: -4.916262729 | Y131: -119.4529612 | Z131: 60.5470388 | AC131: 1 | AD131: 79.36504981 | AE131: -0.004353348194 | AF131: 0.02077679733 | AG131: 3649.578027 | AH131: -812.8242118 | AJ131: 18000 | AK131: 3139.520958 | AL131: 1 | AM131: 4.67229886 | AN131: 1430.93479 | AO131: -3546.234029 | AQ131: 1.062699256 | AR131: -103.0818278 | AT131: -79909.00161 | AU131: -377068.9615 | AV131: -1.779628102 | AW131: -358268.6652 | AX131: -159745.0744 | AY131: -2.722169637 | BA131: 0.9825992899 | BB131: -0.1524710814 | BC131: 0.9425415343 | BD131: -125.996348 | BF131: -4.873368719 | BG131: -120.9189891 | BH131: 59.08101092 | BI131: 59.08101092 | BJ131: 0 | BK131: 0 | BM131: -4.720897638 | BN131: -174.9226411 | BQ131: 16.74948972 | BT131: 1621.81 | BU131: 10.9787 | BV131: -256.753
A132: 49000 | B132: 49 | C132: 1.000069883 | D132: 0.0118218907 | F132: 0.03789726484 | G132: 0.07607322549 | H132: -3.065519425 | J132: 15 | M132: 0.002646638039 | N132: -1.570796325 | O132: 80.18948167 | P132: 1.55832554 | Q132: 4.825226176 | R132: 1.362039199 | S132: 0.9848264461 | T132: -0.1744252433 | U132: 0.9783197908 | V132: -0.2086097018 | X132: -5.022007051 | Y132: -119.5856922 | Z132: 60.41430782 | AC132: 1 | AD132: 80.1832462 | AE132: -0.004443570629 | AF132: 0.02099099111 | AG132: 3646.399799 | AH132: -819.543725 | AJ132: 18000 | AK132: 3171.887154 | AL132: 1 | AM132: 4.720466889 | AN132: 1416.186088 | AO132: -3513.172383 | AQ132: 1.041124414 | AR132: -102.0301926 | AT132: -79821.84825 | AU132: -372896.1208 | AV132: -1.781673088 | AW132: -351246.2483 | AX132: -156558.9967 | AY132: -2.722300066 | BA132: 0.9916423649 | BB132: -0.0728985519 | BC132: 0.9406269783 | BD132: -126.106044 | BF132: -4.978309065 | BG132: -121.0700248 | BH132: 58.92997522 | BI132: 58.92997522 | BJ132: 0 | BK132: 0 | BM132: -4.905410513 | BN132: -174.9639808 | BQ132: 16.82906225 | BT132: 1659.587 | BU132: 10.7578 | BV132: -256.857
A133: 49500 | B133: 49.5 | C133: 1.000071316 | D133: 0.01194251082 | F133: 0.03710921856 | G133: 0.07524989017 | H133: -3.06634276 | J133: 15 | M133: 0.002619904321 | N133: -1.570796325 | O133: 81.00761508 | P133: 1.558451495 | Q133: 4.872358668 | R133: 1.364088012 | S133: 0.9845223908 | T133: -0.1761686739 | U133: 0.9778897215 | V133: -0.2106762432 | X133: -5.126599074 | Y133: -119.7196451 | Z133: 60.28035489 | AC133: 1 | AD133: 81.00144259 | AE133: -0.004534718423 | AF133: 0.0212051849 | AG133: 3643.194589 | AH133: -826.2536595 | AJ133: 18000 | AK133: 3204.253349 | AL133: 1 | AM133: 4.768634919 | AN133: 1401.856952 | AO133: -3480.690665 | AQ133: 1.020199959 | AR133: -100.999796 | AT133: -79734.66405 | AU133: -368804.8541 | AV133: -1.783716735 | AW133: -344423.024 | AX133: -153481.6218 | AY133: -2.722387505 | BA133: 1.00067077 | BB133: 0.005824285333 | BC133: 0.9386707701 | BD133: -126.2181265 | BF133: -5.082094931 | BG133: -121.2223699 | BH133: 58.77763013 | BI133: 58.77763013 | BJ133: 0 | BK133: 0 | BM133: -5.087919216 | BN133: -175.0042434 | BQ133: 16.90778509 | BT133: 1698.244 | BU133: 10.5805 | BV133: -256.313
A134: 50000 | B134: 50 | C134: 1.000072764 | D134: 0.0120631306 | F134: 0.03634575865 | G134: 0.07444471601 | H134: -3.067147934 | J134: 15 | M134: 0.002593705278 | N134: -1.570796325 | O134: 81.82574975 | P134: 1.558574931 | Q134: 4.91951122 | R134: 1.366097558 | S134: 0.9842155345 | T134: -0.1779110231 | U134: 0.9774558614 | V134: -0.2127409596 | X134: -5.23006915 | Y134: -119.8547851 | Z134: 60.14521489 | AC134: 1 | AD134: 81.81963898 | AE134: -0.004626791576 | AF134: 0.02141937869 | AG134: 3639.962555 | AH134: -832.9535767 | AJ134: 18000 | AK134: 3236.619544 | AL134: 1 | AM134: 4.816802948 | AN134: 1387.931854 | AO134: -3448.774701 | AQ134: 0.99990001 | AR134: -99.990001 | AT134: -79647.43037 | AU134: -364792.7299 | AV134: -1.785759016 | AW134: -337791.6543 | AX134: -150508.0679 | AY134: -2.722433166 | BA134: 1.009684202 | BB134: 0.08371122517 | BC134: 0.9366741502 | BD134: -126.3325244 | BF134: -5.18475683 | BG134: -121.3759898 | BH134: 58.62401016 | BI134: 58.62401016 | BJ134: 0 | BK134: 0 | BM134: -5.268468055 | BN134: -175.0434655 | BQ134: 16.98567203 | BT134: 1737.801 | BU134: 10.4643 | BV134: -256.379
A135: 50500 | B135: 50.5 | C135: 1.000074226 | D135: 0.01218375003 | F135: 0.03560586274 | G135: 0.07365709389 | H135: -3.067935556 | J135: 15 | M135: 0.002568025028 | N135: -1.570796325 | O135: 82.64388564 | P135: 1.558695923 | Q135: 4.966683261 | R135: 1.36806894 | S135: 0.9839058853 | T135: -0.1796522811 | U135: 0.9770182265 | V135: -0.2148038359 | X135: -5.332446476 | Y135: -119.9910782 | Z135: 60.0089218 | AC135: 1 | AD135: 82.63783537 | AE135: -0.004719790086 | AF135: 0.02163357247 | AG135: 3636.703855 | AH135: -839.6430513 | AJ135: 18000 | AK135: 3268.98574 | AL135: 1 | AM135: 4.864970978 | AN135: 1374.395963 | AO135: -3417.410733 | AQ135: 0.9801999608 | AR135: -99.00019604 | AT135: -79560.1297 | AU135: -360857.4127 | AV135: -1.7877999 | AW135: -331345.1306 | AX135: -147633.719 | AY135: -2.722438214 | BA135: 1.018682361 | BB135: 0.1607757266 | BC135: 0.9346383143 | BD135: -126.4491692 | BF135: -5.286324126 | BG135: -121.5308511 | BH135: 58.46914891 | BI135: 58.46914891 | BJ135: 0 | BK135: 0 | BM135: -5.447099853 | BN135: -175.0816819 | BQ135: 17.06273653 | BT135: 1778.279 | BU135: 10.2137 | BV135: -256.015
A136: 51000 | B136: 51 | C136: 1.000075704 | D136: 0.0123043691 | F136: 0.03488856157 | G136: 0.07288644217 | H136: -3.068706208 | J136: 15 | M136: 0.002542848312 | N136: -1.570796325 | O136: 83.46202272 | P136: 1.558814543 | Q136: 5.013874241 | R136: 1.37000322 | S136: 0.9835934514 | T136: -0.1813924386 | U136: 0.9765768332 | V136: -0.2168648571 | X136: -5.433759156 | Y136: -120.1284913 | Z136: 59.87150866 | AC136: 1 | AD136: 83.45603176 | AE136: -0.004813713955 | AF136: 0.02184776626 | AG136: 3633.418647 | AH136: -846.3216708 | AJ136: 18000 | AK136: 3301.351935 | AL136: 1 | AM136: 4.913139007 | AN136: 1361.235116 | AO136: -3386.585411 | AQ136: 0.9610764056 | AR136: -98.02979337 | AT136: -79472.74558 | AU136: -356996.6589 | AV136: -1.78983936 | AW136: -325076.7561 | AX136: -144854.2081 | AY136: -2.722403775 | BA136: 1.027664954 | BB136: 0.2370309228 | BC136: 0.9325644147 | BD136: -126.5679949 | BF136: -5.386825085 | BG136: -121.6869209 | BH136: 58.31307909 | BI136: 58.31307909 | BJ136: 0 | BK136: 0 | BM136: -5.623856008 | BN136: -175.1189261 | BQ136: 17.13899172 | BT136: 1819.701 | BU136: 10.0452 | BV136: -255.833
A137: 51500 | B137: 51.5 | C137: =SQRT((A137/Fesr)^2+1) -> 1.000077195 | D137: =ATAN(A137/Fesr) -> 0.01242498782 | F137: =(Ro/(Ro+Rdcr))/SQRT((A137/(Q*Fo))^2+(1-(A137^2/Fo^2))^2) -> 0.03419293562 | G137: =-ATAN(A137*Fo/(Q*(Fo^2-A137^2))) -> 0.0721322051 | H137: =IF(G137>0,G137-Pi,G137) -> -3.069460445 | J137: =Vin/Vramp -> 15 | M137: =1/(2*Pi*_Rfb1*(Cc1ea_u+Cc2ea_u)*A137) -> 0.002518160464 | N137: =-Pi/2 -> -1.570796325 | O137: =SQRT(1+(A137/Fz1_u)^2) -> 84.28016095 | P137: =ATAN2(Fz1_u,A137) -> 1.55893086 | Q137: =SQRT(1+(A137/Fz2_u)^2) -> 5.06108363 | R137: =ATAN2(Fz2_u,A137) -> 1.371901421 | S137: =1/SQRT(1+(A137/Fp1_u)^2) -> 0.9832782412 | T137: =-ATAN2(Fp1_u,A137) -> -0.183131486 | U137: =1/SQRT(1+(A137/Fp2_u)^2) -> 0.9761316976 | V137: =-ATAN2(Fp2_u,A137) -> -0.2189240082 | X137: -5.534034251 | Y137: =(180/Pi)*(D137+H137+N137+P137+R137+T137+V137) -> -120.2669924 | Z137: 59.73300764 | AC137: 1 | AD137: =Rcea1_u*Cc1ea_u*A137*2*Pi -> 84.27422815 | AE137: =-Rcea1_u*Cc1ea_u*Cc2ea_u*(A137*2*Pi)^2 -> -0.004908563183 | AF137: =(Cc2ea_u+Cc1ea_u)*A137*2*Pi -> 0.02206196005 | AG137: 3630.107089 | AH137: -852.9890348 | AJ137: =_Rfb1 -> 18000 | AK137: =_Rfb1*Rcea2_u*Cc3ea_u*A137*2*Pi -> 3333.718131 | AL137: 1 | AM137: =(_Rfb1+Rcea2_u)*Cc3ea_u*A137*2*Pi -> 4.961307037 | AN137: 1348.435776 | AO137: -3356.285773 | AQ137: =Eadcg/(1+(Eadcg*A137/GBP)^2) -> 0.9425070688 | AR137: =-(A137*Eadcg*Eadcg/GBP)/(1+(Eadcg*A137/GBP)^2) -> -97.07822809 | AT137: -79385.26249 | AU137: -353208.3122 | AV137: -1.791877369 | AW137: -318980.1294 | AX137: -142165.4014 | AY137: -2.722330932 | BA137: =SQRT(AT137^2+AU137^2)/SQRT(AW137^2+AX137^2) -> 1.036631691 | BB137: 0.3124896303 | BC137: 0.9304535625 | BD137: =BC137*180/Pi-180 -> -126.6889378 | BF137: =20*LOG(BA137*J137*F137*C137) -> -5.486286935 | BG137: =(180/Pi)*(D137+H137+BC137) -> -121.8441675 | BH137: 58.15583251 | BI137: 58.15583251 | BJ137: =SUM((BF138<0)*(BF137>0))*A137 -> 0 | BK137: 0 | BM137: -5.798776565 | BN137: =(H137+D137)*180/Pi -> -175.1552297 | BQ137: 17.21445043 | BT137: 1862.087 | BU137: 9.87672 | BV137: -255.47
A138: 52000 | B138: =A138/1000 -> 52 | C138: 1.000078701 | D138: 0.01254560617 | F138: 0.03351811211 | G138: 0.0713938514 | H138: -3.070198799 | J138: 15 | M138: 0.002493947383 | N138: -1.570796325 | O138: 85.0983003 | P138: 1.55904494 | Q138: 5.108310918 | R138: 1.37376453 | S138: 0.9829602631 | T138: -0.1848694139 | U138: 0.9756828364 | V138: -0.2209812742 | X138: =20*LOG(C138*J138*O138*Q138*F138*M138*S138*U138) -> -5.633297831 | Y138: -120.40655 | Z138: =Y138+180 -> 59.59345003 | AC138: 1 | AD138: 85.09242454 | AE138: -0.005004337768 | AF138: 0.02227615384 | AG138: =AC138*AE138/(AE138^2+AF138^2)+AD138*AF138/(AE138^2+AF138^2) -> 3626.769344 | AH138: =AD138*AE138/(AE138^2+AF138^2)-AC138*AF138/(AE138^2+AF138^2) -> -859.6447549 | AJ138: 18000 | AK138: 3366.084326 | AL138: 1 | AM138: 5.009475066 | AN138: =AJ138*AL138/(AL138^2+AM138^2)+AK138*AM138/(AL138^2+AM138^2) -> 1335.985004 | AO138: =AK138*AL138/(AL138^2+AM138^2)-AJ138*AM138/(AL138^2+AM138^2) -> -3326.499239 | AQ138: 0.9244707405 | AR138: -96.14495701 | AT138: -79297.66586 | AU138: -349490.2991 | AV138: =ATAN2(AT138,AU138) -> -1.793913899 | AW138: =AG138-AH138*AO138/_Rfb2+AG138*AN138/_Rfb2+AN138-AO138*AR138+AQ138*AN138 -> -313049.1299 | AX138: =AH138+AH138*AN138/_Rfb2+AG138*AO138/_Rfb2+AO138+AO138*AQ138+AN138*AR138 -> -139563.3837 | AY138: -2.722220729 | BA138: 1.045582288 | BB138: =20*LOG(BA138) -> 0.3871643587 | BC138: =AV138-AY138 -> 0.9283068297 | BD138: -126.8119365 | BF138: -5.584735911 | BG138: -122.0025598 | BH138: =IF(BG138>180,BG138-180,BG138+180) -> 57.99744015 | BI138: =IF(BH138>180,BH138-360,BH138) -> 57.99744015 | BJ138: 0 | BK138: =IF(BJ138>0,BI138,0) -> 0 | BM138: =20*LOG(J138*F138*C138) -> -5.971900269 | BN138: -175.1906233 | BQ138: =20*LOG(BA138*7) -> 17.28912516 | BT138: 1905.461 | BU138: 9.71342 | BV138: -255.059
A139: 52500 | B139: 52.5 | C139: 1.000080222 | D139: 0.01266622416 | F139: 0.03286326215 | G139: 0.07067087292 | H139: -3.070921777 | J139: 15 | M139: 0.002470195503 | N139: -1.570796325 | O139: 85.91644073 | P139: 1.559156848 | Q139: 5.155555613 | R139: 1.375593499 | S139: 0.9826395255 | T139: -0.1866062129 | U139: 0.975230266 | V139: -0.2230366404 | X139: -5.731575024 | Y139: -120.5471337 | Z139: 59.4528663 | AC139: 1 | AD139: 85.91062093 | AE139: -0.005101037712 | AF139: 0.02249034762 | AG139: 3623.40557 | AH139: -866.2884536 | AJ139: 18000 | AK139: 3398.450522 | AL139: 1 | AM139: 5.057643096 | AN139: 1323.870425 | AO139: -3297.213595 | AQ139: 0.9069472157 | AR139: -95.22945765 | AT139: -79209.942 | AU139: -345840.6252 | AV139: -1.795948924 | AW139: -307277.9029 | AX139: -137044.4454 | AY139: =ATAN2(AW139,AX139) -> -2.722074175 | BA139: 1.054516467 | BB139: 0.4610673195 | BC139: 0.9261252505 | BD139: -126.9369318 | BF139: -5.682197305 | BG139: -122.1620678 | BH139: 57.83793216 | BI139: 57.83793216 | BJ139: 0 | BK139: 0 | BM139: -6.143264625 | BN139: -175.2251361 | BQ139: 17.36302812 | BT139: 1949.845 | BU139: 9.52685 | BV139: -254.971
A140: 53000 | B140: 53 | C140: 1.000081757 | D140: 0.01278684178 | F140: 0.03222759804 | G140: 0.06996278333 | H140: -3.071629867 | J140: 15 | M140: 0.002446891772 | N140: -1.570796325 | O140: 86.73458222 | P140: 1.559266645 | Q140: 5.202817241 | R140: 1.377389245 | S140: 0.9823160369 | T140: -0.1883418736 | U140: 0.974774003 | V140: -0.225090092 | X140: -5.828890057 | Y140: -120.6887139 | Z140: 59.31128608 | AC140: 1 | AD140: 86.72881732 | AE140: -0.005198663015 | AF140: 0.02270454141 | AG140: 3620.015932 | AH140: -872.9197643 | AJ140: 18000 | AK140: 3430.816717 | AL140: 1 | AM140: 5.105811125 | AN140: 1312.080204 | AO140: -3268.416984 | AQ140: 0.8899172377 | AR140: -94.3312272 | AT140: -79122.07804 | AU140: -342257.3716 | AV140: -1.797982418 | AW140: -301660.8462 | AX140: -134605.0696 | AY140: -2.721892242 | BA140: 1.063433952 | BB140: 0.5342104349 | BC140: 0.9239098233 | BD140: -127.0638664 | BF140: -5.778695514 | BG140: -122.3226621 | BH140: 57.67733787 | BI140: 57.67733787 | BJ140: 0 | BK140: 0 | BM140: -6.312905949 | BN140: -175.2587957 | BQ140: 17.43617124 | BT140: 1995.262 | BU140: 9.33494 | BV140: -254.804
A141: 53500 | B141: 53.5 | C141: 1.000083307 | D141: 0.01290745903 | F141: 0.0316103709 | G141: 0.069269117 | H141: -3.072323533 | J141: 15 | M141: 0.002424023624 | N141: -1.570796325 | O141: 87.55272474 | P141: 1.559374389 | Q141: 5.250095345 | R141: 1.379152655 | S141: 0.9819898059 | T141: -0.1900763867 | U141: 0.9743140642 | V141: -0.2271416145 | X141: -5.925266301 | Y141: -120.8312618 | Z141: 59.1687382 | AC141: 1 | AD141: 87.5470137 | AE141: -0.005297213675 | AF141: 0.0229187352 | AG141: 3616.60059 | AH141: -879.538331 | AJ141: 18000 | AK141: 3463.182913 | AL141: 1 | AM141: 5.153979155 | AN141: 1300.60301 | AO141: -3240.097891 | AQ141: 0.8733624454 | AR141: -93.44978166 | AT141: -79034.06186 | AU141: -338738.6912 | AV141: -1.800014356 | AW141: -296192.5974 | AX141: -132241.9205 | AY141: -2.721675868 | BA141: 1.072334472 | BB141: 0.6066053458 | BC141: 0.921661512 | BD141: -127.1926852 | BF141: -5.874254074 | BG141: -122.4843142 | BH141: 57.51568582 | BI141: 57.51568582 | BJ141: 0 | BK141: 0 | BM141: -6.48085942 | BN141: -175.291629 | BQ141: 17.50856615 | BT141: 2041.738 | BU141: 9.08847 | BV141: -254.411
A142: 54000 | B142: 54 | C142: 1.000084871 | D142: 0.0130280759 | F142: 0.03101086832 | G142: 0.06858942785 | H142: -3.073003222 | J142: 15 | M142: 0.002401578961 | N142: -1.570796325 | O142: 88.37086825 | P142: 1.559480139 | Q142: 5.297389482 | R142: 1.380884584 | S142: 0.9816608412 | T142: -0.1918097428 | U142: 0.9738504663 | V142: -0.2291911933 | X142: -6.02072631 | Y142: -120.9747493 | Z142: 59.02525072 | AC142: 1 | AD142: 88.36521009 | AE142: -0.005396689694 | AF142: 0.02313292898 | AG142: 3613.159709 | AH142: -886.1438073 | AJ142: 18000 | AK142: 3495.549108 | AL142: 1 | AM142: 5.202147184 | AN142: 1289.428001 | AO142: -3212.245138 | AQ142: 0.8572653236 | AR142: -92.58465495 | AT142: -78945.88211 | AU142: -335282.8053 | AV142: -1.802044713 | AW142: -290868.022 | AX142: -129951.8325 | AY142: -2.721425961 | BA142: 1.081217761 | BB142: 0.6782634207 | BC142: 0.9193812476 | BD142: -127.3233347 | BF142: -5.968895708 | BG142: -122.6469962 | BH142: 57.35300381 | BI142: 57.35300381 | BJ142: 0 | BK142: 0 | BM142: -6.647159129 | BN142: -175.3236615 | BQ142: 17.58022422 | BT142: 2089.296 | BU142: 8.96986 | BV142: -254.113
A143: 54500 | B143: 54.5 | C143: 1.00008645 | D143: 0.01314869239 | F143: 0.03042841226 | G143: 0.06792328835 | H143: -3.073669362 | J143: 15 | M143: 0.002379546127 | N143: -1.570796325 | O143: 89.18901273 | P143: 1.559583948 | Q143: 5.344699228 | R143: 1.382585857 | S143: 0.9813291512 | T143: -0.1935419329 | U143: 0.9733832262 | V143: -0.231238814 | X143: -6.11529186 | Y143: -121.1191491 | Z143: 58.88085094 | AC143: 1 | AD143: 89.18340648 | AE143: -0.005497091071 | AF143: 0.02334712277 | AG143: 3609.693452 | AH143: -892.7358565 | AJ143: 18000 | AK143: 3527.915303 | AL143: 1 | AM143: 5.250315214 | AN143: 1278.544792 | AO143: -3184.847867 | AQ143: 0.8416091567 | AR143: -91.73539808 | AT143: -78857.52812 | AU143: -331888.0004 | AV143: -1.804073465 | AW143: -285682.2016 | AX143: -127731.8001 | AY143: -2.721143394 | BA143: 1.090083556 | BB143: 0.7491957629 | BC143: 0.9170699297 | BD143: -127.4557635 | BF143: -6.062642357 | BG143: -122.8106811 | BH143: 57.18931889 | BI143: 57.18931889 | BJ143: 0 | BK143: 0 | BM143: -6.81183812 | BN143: -175.3549177 | BQ143: 17.65115656 | BT143: 2137.962 | BU143: 8.68736 | BV143: -254.34
A144: 55000 | B144: 55 | C144: 1.000088044 | D144: 0.0132693085 | F144: 0.02986235705 | G144: 0.06727028854 | H144: -3.074322361 | J144: 15 | M144: 0.002357913889 | N144: -1.570796325 | O144: 90.00715816 | P144: 1.559685871 | Q144: 5.392024173 | R144: 1.384257271 | S144: 0.9809947449 | T144: -0.1952729475 | U144: 0.972912361 | V144: -0.2332844622 | X144: -6.208983979 | Y144: -121.2644346 | Z144: 58.73556543 | AC144: 1 | AD144: 90.00160287 | AE144: -0.005598417807 | AF144: 0.02356131656 | AG144: 3606.201984 | AH144: -899.3141513 | AJ144: 18000 | AK144: 3560.281499 | AL144: 1 | AM144: 5.298483243 | AN144: 1267.943433 | AO144: -3157.895533 | AQ144: 0.8263779853 | AR144: -90.90157838 | AT144: -78768.98989 | AU144: -328552.6257 | AV144: -1.806100586 | AW144: -280630.4241 | AX144: -125578.9686 | AY144: -2.720829014 | BA144: 1.098931598 | BB144: 0.8194132187 | BC144: 0.9147284277 | BD144: -127.5899216 | BF144: -6.15551522 | BG144: -122.9753426 | BH144: 57.02465737 | BI144: 57.02465737 | BJ144: 0 | BK144: 0 | BM144: -6.974928439 | BN144: -175.385421 | BQ144: 17.72137402 | BT144: 2187.762 | BU144: 8.53088 | BV144: -253.785
A145: 55500 | B145: 55.5 | C145: 1.000089652 | D145: 0.01338992423 | F145: 0.02931208754 | G145: 0.06663003511 | H145: -3.074962615 | J145: 15 | M145: 0.002336671422 | N145: -1.570796325 | O145: 90.8253045 | P145: 1.559785957 | Q145: 5.439363918 | R145: 1.385899596 | S145: 0.980657631 | T145: -0.1970027776 | U145: 0.9724378877 | V145: -0.2353281237 | X145: -6.301822988 | Y145: -121.41058 | Z145: 58.58942005 | AC145: 1 | AD145: 90.81979926 | AE145: -0.005700669901 | AF145: 0.02377551034 | AG145: 3602.685471 | AH145: -905.878373 | AJ145: 18000 | AK145: 3592.647694 | AL145: 1 | AM145: 5.346651273 | AN145: 1257.614392 | AO145: -3131.377895 | AQ145: 0.8115565655 | AR145: -90.08277877 | AT145: -78680.25802 | AU145: -325275.0898 | AV145: -1.808126055 | AW145: -275708.1725 | AX145: -123490.6251 | AY145: -2.720483637 | BA145: 1.107761633 | BB145: 0.8889263845 | BC145: 0.9123575822 | BD145: -127.7257611 | BF145: -6.247534784 | BG145: -123.1409551 | BH145: 56.85904488 | BI145: 56.85904488 | BJ145: 0 | BK145: 0 | BM145: -7.136461169 | BN145: -175.415194 | BQ145: 17.79088718 | BT145: 2238.721 | BU145: 8.34969 | BV145: -253.783
A146: 56000 | B146: 56 | C146: 1.000091274 | D146: 0.01351053956 | F146: 0.02877701739 | G146: 0.06600215059 | H146: -3.075590499 | J146: 15 | M146: 0.002315808284 | N146: -1.570796325 | O146: 91.64345174 | P146: 1.559884256 | Q146: 5.486718081 | R146: 1.387513576 | S146: 0.9803178183 | T146: -0.1987314141 | U146: 0.9719598234 | V146: -0.2373697843 | X146: -6.393828524 | Y146: -121.5575601 | Z146: 58.44243995 | AC146: 1 | AD146: 91.63799565 | AE146: -0.005803847353 | AF146: 0.02398970413 | AG146: 3599.14408 | AH146: -912.4282117 | AJ146: 18000 | AK146: 3625.01389 | AL146: 1 | AM146: 5.394819302 | AN146: 1247.54853 | AO146: -3105.285002 | AQ146: 0.7971303308 | AR146: -89.27859705 | AT146: -78591.32374 | AU146: -322053.8582 | AV146: -1.810149848 | AW146: -270911.1162 | AX146: -121464.1904 | AY146: -2.720108054 | BA146: 1.116573408 | BB146: 0.957745614 | BC146: 0.9099582061 | BD146: -127.8632352 | BF146: -6.338720857 | BG146: -123.3074936 | BH146: 56.69250637 | BI146: 56.69250637 | BJ146: 0 | BK146: 0 | BM146: -7.296466471 | BN146: -175.4442584 | BQ146: 17.85970641 | BT146: 2290.868 | BU146: 8.28183 | BV146: -253.62
A147: 56500 | B147: 56.5 | C147: 1.000092911 | D147: 0.0136311545 | F147: 0.02825658744 | G147: 0.06538627251 | H147: -3.076206377 | J147: 15 | M147: 0.002295314405 | N147: -1.570796325 | O147: 92.46159985 | P147: 1.559980815 | Q147: 5.534086292 | R147: 1.389099932 | S147: 0.9799753157 | T147: -0.2004588479 | U147: 0.9714781855 | V147: -0.23940943 | X147: -6.485019578 | Y147: -121.7053504 | Z147: 58.29464962 | AC147: 1 | AD147: 92.45619204 | AE147: -0.005907950163 | AF147: 0.02420389792 | AG147: 3595.577976 | AH147: -918.9633655 | AJ147: 18000 | AK147: 3657.380085 | AL147: 1 | AM147: 5.442987332 | AN147: 1237.737085 | AO147: -3079.607189 | AQ147: 0.7830853563 | AR147: -88.48864526 | AT147: -78502.1788 | AU147: -318887.4508 | AV147: -1.812171942 | AW147: -266235.1018 | AX147: -119497.2112 | AY147: -2.719703027 | BA147: 1.125366677 | BB147: 1.025881025 | BC147: 0.9075310857 | BD147: -128.002299 | BF147: -6.429092598 | BG147: -123.4749339 | BH147: 56.52506613 | BI147: 56.52506613 | BJ147: 0 | BK147: 0 | BM147: -7.454973624 | BN147: -175.4726349 | BQ147: 17.92784183 | BT147: 2344.229 | BU147: 8.06623 | BV147: -253.171
A148: 57000 | B148: 57 | C148: 1.000094563 | D148: 0.01375176905 | F148: 0.02775026419 | G148: 0.06478205267 | H148: -3.076810597 | J148: 15 | M148: 0.002275180068 | N148: -1.570796325 | O148: 93.27974881 | P148: 1.560075681 | Q148: 5.581468194 | R148: 1.390659357 | S148: 0.9796301322 | T148: -0.2021850698 | U148: 0.9709929912 | V148: -0.2414470468 | X148: -6.575414517 | Y148: -121.8539271 | Z148: 58.14607291 | AC148: 1 | AD148: 93.27438843 | AE148: -0.006012978332 | AF148: 0.0244180917 | AG148: 3591.987327 | AH148: -925.4835407 | AJ148: 18000 | AK148: 3689.746281 | AL148: 1 | AM148: 5.491155361 | AN148: 1228.17165 | AO148: -3054.335062 | AQ148: 0.769408325 | AR148: -87.71254905 | AT148: -78412.81551 | AU148: -315774.4394 | AV148: -1.814192315 | AW148: -261676.1444 | AX148: -117587.353 | AY148: -2.719269297 | BA148: 1.134141195 | BB148: 1.093342507 | BC148: 0.9050769819 | BD148: -128.1429087 | BF148: -6.518668544 | BG148: -123.6432522 | BH148: 56.35674779 | BI148: 56.35674779 | BJ148: 0 | BK148: 0 | BM148: -7.612011052 | BN148: -175.5003435 | BQ148: 17.99530331 | BT148: 2398.833 | BU148: 7.81402 | BV148: -252.658
A149: 57500 | B149: 57.5 | C149: 1.000096229 | D149: 0.01387238319 | F149: 0.02725753842 | G149: 0.06418915644 | H149: -3.077403494 | J149: 15 | M149: 0.002255395894 | N149: -1.570796325 | O149: 94.09789859 | P149: 1.560168897 | Q149: 5.62886344 | R149: 1.392192526 | S149: 0.9792822767 | T149: -0.203910071 | U149: 0.9705042579 | V149: -0.2434826209 | X149: -6.665031115 | Y149: -122.003267 | Z149: 57.99673302 | AC149: 1 | AD149: 94.09258482 | AE149: -0.006118931859 | AF149: 0.02463228549 | AG149: 3588.372302 | AH149: -931.9884511 | AJ149: 18000 | AK149: 3722.112476 | AL149: 1 | AM149: 5.539323391 | AN149: 1218.844161 | AO149: -3029.459495 | AQ149: 0.7560864963 | AR149: -86.94994707 | AT149: -78323.22666 | AU149: -312713.4456 | AV149: -1.816210945 | AW149: -257230.4197 | AX149: -115732.3933 | AY149: -2.718807576 | BA149: 1.14289672 | BB149: 1.160139727 | BC149: 0.9025966314 | BD149: -128.2850224 | BF149: -6.607466637 | BG149: -123.8124256 | BH149: 56.18757441 | BI149: 56.18757441 | BJ149: 0 | BK149: 0 | BM149: -7.767606364 | BN149: -175.5274032 | BQ149: 18.06210053 | BT149: 2454.709 | BU149: 7.64239 | BV149: -251.974
A150: 58000 | B150: 58 | C150: 1.00009791 | D150: 0.01399299693 | F150: 0.02677792384 | G150: 0.06360726208 | H150: -3.077985388 | J150: 15 | M150: 0.002235952826 | N150: -1.570796325 | O150: 94.91604917 | P150: 1.560260506 | Q150: 5.676271696 | R150: 1.393700088 | S150: 0.9789317584 | T150: -0.2056338424 | U150: 0.9700120031 | V150: -0.2455161384 | X150: -6.753886575 | Y150: -122.1533475 | Z150: 57.84665253 | AC150: 1 | AD150: 94.91078121 | AE150: -0.006225810744 | AF150: 0.02484647928 | AG150: 3584.73307 | AH150: -938.4778181 | AJ150: 18000 | AK150: 3754.478672 | AL150: 1 | AM150: 5.58749142 | AN150: 1209.746876 | AO150: -3004.971616 | AQ150: 0.7431076763 | AR150: -86.20049045 | AT150: =-AR150*AH150+AG150*AQ150 -> -78233.40554 | AU150: =AQ150*AH150+AG150*AR150 -> -309703.1388 | AV150: -1.81822781 | AW150: -252894.2565 | AX150: -113930.2156 | AY150: -2.718318557 | BA150: 1.151633015 | BB150: 1.226282134 | BC150: 0.9000907473 | BD150: -128.4285989 | BF150: -6.695504251 | BG150: -123.9824316 | BH150: 56.01756839 | BI150: 56.01756839 | BJ150: 0 | BK150: 0 | BM150: -7.921786386 | BN150: -175.5538327 | BQ150: 18.12824293 | BT150: 2511.886 | BU150: 7.45716 | BV150: -252.252
A151: 58500 | B151: 58.5 | C151: 1.000099605 | D151: 0.01411361027 | F151: 0.02631095586 | G151: 0.06303606013 | H151: -3.07855659 | J151: 15 | M151: 0.002216842118 | N151: -1.570796325 | O151: 95.73420054 | P151: 1.560350549 | Q151: 5.723692639 | R151: 1.395182673 | S151: 0.9785785863 | T151: -0.2073563751 | U151: 0.9695162444 | V151: -0.2475475857 | X151: -6.841997554 | Y151: -122.3041466 | Z151: 57.69585344 | AC151: 1 | AD151: 95.7289776 | AE151: -0.006333614988 | AF151: 0.02506067306 | AG151: 3581.069798 | AH151: -944.9513702 | AJ151: 18000 | AK151: 3786.844867 | AL151: 1 | AM151: 5.63565945 | AN151: 1200.872362 | AO151: -2980.862806 | AQ151: 0.7304601899 | AR151: -85.46384222 | AT151: -78143.34588 | AU151: -306742.2336 | AV151: -1.82024289 | AW151: -248664.1293 | AX151: -112178.8029 | AY151: -2.71780291 | BA151: 1.160349845 | BB151: 1.29177897 | BC151: 0.8975600204 | BD151: -128.5735989 | BF151: -6.782798212 | BG151: -124.1532484 | BH151: 55.8467516 | BI151: 55.8467516 | BJ151: 0 | BK151: 0 | BM151: -8.074577183 | BN151: -175.5796495 | BQ151: 18.19373977 | BT151: 2570.396 | BU151: 7.31271 | BV151: -251.702
A152: 59000 | B152: 59 | C152: 1.000101315 | D152: 0.01423422319 | F152: 0.02585619044 | G152: 0.06247525283 | H152: -3.079117397 | J152: 15 | M152: 0.00219805532 | N152: -1.570796325 | O152: 96.55235267 | P152: 1.560439066 | Q152: 5.771125957 | R152: 1.39664089 | S152: 0.9782227695 | T152: -0.2090776603 | U152: 0.9690169994 | V152: -0.2495769493 | X152: -6.929380186 | Y152: -122.4556428 | Z152: 57.54435716 | AC152: 1 | AD152: 96.54717399 | AE152: -0.00644234459 | AF152: 0.02527486685 | AG152: 3577.382659 | AH152: -951.4088427 | AJ152: 18000 | AK152: 3819.211062 | AL152: 1 | AM152: 5.683827479 | AN152: 1192.213481 | AO152: -2957.124681 | AQ152: 0.7181328546 | AR152: -84.73967684 | AT152: -78053.04185 | AU152: -303829.4884 | AV152: -1.822256163 | AW152: -244536.6516 | AX152: -110476.233 | AY152: -2.717261283 | BA152: 1.169046978 | BB152: 1.35663927 | BC152: 0.8950051199 | BD152: -128.7199839 | BF152: -6.869364826 | BG152: -124.3248547 | BH152: 55.6751453 | BI152: 55.6751453 | BJ152: 0 | BK152: 0 | BM152: -8.226004096 | BN152: -175.6048708 | BQ152: 18.25860007 | BT152: 2630.268 | BU152: 7.13504 | BV152: -251.401
A153: 59500 | B153: 59.5 | C153: 1.00010304 | D153: 0.0143548357 | F153: 0.02541320299 | G153: 0.06192455354 | H153: -3.079668096 | J153: 15 | M153: 0.002179584267 | N153: -1.570796325 | O153: 97.37050554 | P153: 1.560526096 | Q153: 5.818571346 | R153: 1.398075329 | S153: 0.9778643174 | T153: -0.2107976892 | U153: 0.9685142859 | V153: -0.2516042155 | X153: -7.016050105 | Y153: -122.6078155 | Z153: 57.39218455 | AC153: 1 | AD153: 97.36537038 | AE153: -0.006551999551 | AF153: 0.02548906064 | AG153: 3573.671821 | AH153: -957.8499778 | AJ153: 18000 | AK153: 3851.577258 | AL153: 1 | AM153: 5.731995508 | AN153: 1183.763375 | AO153: -2933.749093 | AQ153: 0.7061149555 | AR153: -84.02767971 | AT153: -77962.48803 | AU153: -300963.7034 | AV153: -1.82426761 | AW153: -240508.5696 | AX153: -108820.6725 | AY153: -2.716694304 | BA153: 1.177724185 | BB153: 1.420871873 | BC153: 0.8924266942 | BD153: -128.8677168 | BF153: -6.955219894 | BG153: -124.4972298 | BH153: 55.50277024 | BI153: 55.50277024 | BJ153: 0 | BK153: 0 | BM153: -8.376091767 | BN153: -175.6295129 | BQ153: 18.32283267 | BT153: 2691.535 | BU153: 6.88093 | BV153: -251.244
A154: 60000 | B154: 60 | C154: 1.000104778 | D154: 0.01447544779 | F154: 0.02498158736 | G154: 0.06138368624 | H154: -3.080208964 | J154: 15 | M154: 0.002161421065 | N154: -1.570796325 | O154: 98.18865914 | P154: 1.560611675 | Q154: 5.866028514 | R154: 1.399486561 | S154: 0.9775032391 | T154: -0.2125164528 | U154: 0.9680081215 | V154: -0.2536293711 | X154: -7.102022461 | Y154: -122.7606441 | Z154: 57.23935591 | AC154: 1 | AD154: 98.18356677 | AE154: -0.006662579869 | AF154: 0.02570325443 | AG154: 3569.937457 | AH154: -964.2745243 | AJ154: 18000 | AK154: 3883.943453 | AL154: 1 | AM154: 5.780163538 | AN154: 1175.515455 | AO154: -2910.728119 | AQ154: 0.6943962225 | AR154: -83.3275467 | AT154: -77871.67937 | AU154: -298143.7187 | AV154: -1.826277209 | AW154: -236576.7557 | AX154: -107210.3727 | AY154: -2.716102581 | BA154: 1.186381241 | BB154: 1.484485422 | BC154: 0.8898253722 | BD154: -129.0167616 | BF154: -7.040378739 | BG154: -124.6703534 | BH154: 55.32964661 | BI154: 55.32964661 | BJ154: 0 | BK154: 0 | BM154: -8.524864161 | BN154: -175.6535918 | BQ154: 18.38644622 | BT154: 2754.229 | BU154: 6.70094 | BV154: -251.051
A155: 60500 | B155: 60.5 | C155: 1.000106532 | D155: 0.01459605946 | F155: 0.02456095489 | G155: 0.06085238501 | H155: -3.080740265 | J155: 15 | M155: 0.002143558081 | N155: -1.570796325 | O155: 99.00681345 | P155: 1.56069584 | Q155: 5.913497177 | R155: 1.40087514 | S155: 0.9771395439 | T155: -0.2142339426 | U155: 0.9674985242 | V155: -0.2556524028 | X155: -7.187311946 | Y155: -122.914109 | Z155: 57.08589103 | AC155: 1 | AD155: 99.00176316 | AE155: -0.006774085546 | AF155: 0.02591744821 | AG155: 3566.179737 | AH155: -970.6822371 | AJ155: 18000 | AK155: 3916.309649 | AL155: 1 | AM155: 5.828331567 | AN155: 1167.463385 | AO155: -2888.054055 | AQ155: 0.6829668078 | AR155: -82.63898375 | AT155: -77780.61123 | AU155: -295368.4131 | AV155: -1.828284942 | AW155: -232738.2031 | AX155: -105643.6645 | AY155: -2.715486705 | BA155: 1.195017923 | BB155: 1.547488376 | BC155: 0.8872017632 | BD155: -129.1670833 | BF155: -7.12485622 | BG155: -124.8442059 | BH155: 55.15579411 | BI155: 55.15579411 | BJ155: 0 | BK155: 0 | BM155: -8.672344596 | BN155: -175.6771226 | BQ155: 18.44944918 | BT155: 2818.383 | BU155: 6.53562 | BV155: -250.48
A156: 61000 | B156: 61 | C156: 1.0001083 | D156: 0.01471667071 | F156: 0.02415093345 | G156: 0.06033039361 | H156: -3.081262256 | J156: 15 | M156: 0.002125987933 | N156: -1.570796325 | O156: 99.82496844 | P156: 1.560778625 | Q156: 5.96097706 | R156: 1.4022416 | S156: 0.9767732412 | T156: -0.2159501497 | U156: 0.9669855118 | V156: -0.2576732973 | X156: -7.271932804 | Y156: -123.0681908 | Z156: 56.93180917 | AC156: 1 | AD156: 99.81995955 | AE156: -0.006886516581 | AF156: 0.026131642 | AG156: 3562.398834 | AH156: -977.0728774 | AJ156: 18000 | AK156: 3948.675844 | AL156: 1 | AM156: 5.876499597 | AN156: 1159.601075 | AO156: -2865.719404 | AQ156: 0.6718172657 | AR156: -81.96170642 | AT156: -77689.27928 | AU156: -292636.7018 | AV156: -1.830290788 | AW156: -228990.0203 | AX156: -104118.9546 | AY156: -2.714847246 | BA156: 1.203634009 | BB156: 1.609889008 | BC156: 0.8845564585 | BD156: -129.3186481 | BF156: -7.208666756 | BG156: -125.0187681 | BH156: 54.98123193 | BI156: 54.98123193 | BJ156: 0 | BK156: 0 | BM156: -8.818555764 | BN156: -175.7001199 | BQ156: 18.51184981 | BT156: 2884.032 | BU156: 6.32652 | BV156: -250.202
A157: 61500 | B157: 61.5 | C157: 1.000110083 | D157: 0.01483728152 | F157: 0.02375116669 | G157: 0.059817465 | H157: -3.081775185 | J157: 15 | M157: 0.002108703478 | N157: -1.570796325 | O157: 100.6431241 | P157: 1.560860065 | Q157: 6.008467898 | R157: 1.403586463 | S157: 0.9764043405 | T157: -0.2176650656 | U157: 0.9664691024 | V157: -0.2596920415 | X157: -7.355898858 | Y157: -123.2228709 | Z157: 56.77712911 | AC157: 1 | AD157: 100.6381559 | AE157: -0.006999872975 | AF157: 0.02634583579 | AG157: 3558.59492 | AH157: -983.446212 | AJ157: 18000 | AK157: 3981.04204 | AL157: 1 | AM157: 5.924667626 | AN157: 1151.922665 | AO157: -2843.71688 | AQ157: 0.6609385327 | AR157: -81.29543952 | AT157: -77597.67955 | AU157: -289947.5356 | AV157: -1.832294728 | AW157: -225329.4257 | AX157: -102634.7208 | AY157: -2.71418476 | BA157: 1.212229283 | BB157: 1.671695418 | BC157: 0.8818900318 | BD157: -129.4714231 | BF157: -7.291824336 | BG157: -125.1940212 | BH157: 54.80597878 | BI157: 54.80597878 | BJ157: 0 | BK157: 0 | BM157: -8.963519754 | BN157: -175.7225981 | BQ157: 18.57365622 | BT157: 2951.209 | BU157: 6.18308 | BV157: -249.926
A158: 62000 | B158: 62 | C158: 1.00011188 | D158: 0.01495789191 | F158: 0.02336131317 | G158: 0.05931336095 | H158: -3.082279289 | J158: 15 | M158: 0.002091697805 | N158: -1.570796325 | O158: 101.4612804 | P158: 1.560940191 | Q158: 6.055969433 | R158: 1.40491023 | S158: 0.976032851 | T158: -0.2193786815 | U158: 0.9659493141 | V158: -0.2617086225 | X158: -7.43922352 | Y158: -123.3781309 | Z158: 56.62186915 | AC158: 1 | AD158: 101.4563523 | AE158: -0.007114154727 | AF158: 0.02656002957 | AG158: 3554.768168 | AH158: -989.802014 | AJ158: 18000 | AK158: 4013.408235 | AL158: 1 | AM158: 5.972835656 | AN158: 1144.422518 | AO158: -2822.039388 | AQ158: 0.6503219093 | AR158: -80.63991676 | AT158: -77505.80839 | AU158: -287299.8991 | AV158: -1.834296744 | AW158: -221753.7428 | AX158: -101189.5093 | AY158: -2.713499784 | BA158: 1.22080353 | BB158: 1.732915528 | BC158: 0.8792030395 | BD158: -129.6253764 | BF158: -7.374342543 | BG158: -125.3699471 | BH158: 54.63005289 | BI158: 54.63005289 | BJ158: 0 | BK158: 0 | BM158: -9.107258071 | BN158: -175.7445707 | BQ158: 18.63487633 | BT158: 3019.952 | BU158: 6.01306 | BV158: -249.651
A159: 62500 | B159: 62.5 | C159: 1.000113691 | D159: 0.01507850186 | F159: 0.02298104563 | G159: 0.05881785161 | H159: -3.082774798 | J159: 15 | M159: 0.002074964222 | N159: -1.570796325 | O159: 102.2794374 | P159: 1.561019035 | Q159: 6.103481415 | R159: 1.40621339 | S159: 0.9756587825 | T159: -0.221090989 | U159: 0.9654261649 | V159: -0.2637230274 | X159: -7.521919806 | Y159: -123.5339529 | Z159: 56.4660471 | AC159: 1 | AD159: 102.2745487 | AE159: -0.007229361837 | AF159: 0.02677422336 | AG159: 3550.918751 | AH159: -996.1400616 | AJ159: 18000 | AK159: 4045.774431 | AL159: 1 | AM159: 6.021003685 | AN159: 1137.095212 | AO159: -2800.680031 | AQ159: 0.6399590426 | AR159: -79.99488033 | AT159: -77413.66245 | AU159: -284692.8094 | AV159: -1.836296817 | AW159: -218260.3955 | AX159: -99781.92989 | AY159: -2.712792839 | BA159: 1.229356537 | BB159: 1.793557097 | BC159: 0.876496022 | BD159: -129.7804771 | BF159: -7.456234566 | BG159: -125.5465279 | BH159: 54.45347206 | BI159: 54.45347206 | BJ159: 0 | BK159: 0 | BM159: -9.249791663 | BN159: -175.7660508 | BQ159: 18.6955179 | BT159: 3090.295 | BU159: 5.85449 | BV159: -248.418
A160: 63000 | B160: 63 | C160: 1.000115518 | D160: 0.01519911137 | F160: 0.0226100503 | G160: 0.05833071519 | H160: -3.083261935 | J160: 15 | M160: 0.002058496252 | N160: -1.570796325 | O160: 103.097595 | P160: 1.561096627 | Q160: 6.151003601 | R160: 1.407496415 | S160: 0.9752821443 | T160: -0.2228019795 | U160: 0.964899673 | V160: -0.2657352433 | X160: -7.604000358 | Y160: -123.6903197 | Z160: 56.30968034 | AC160: 1 | AD160: 103.0927451 | AE160: -0.007345494306 | AF160: 0.02698841715 | AG160: 3547.046844 | AH160: -1002.460139 | AJ160: 18000 | AK160: 4078.140626 | AL160: 1 | AM160: 6.069171715 | AN160: 1129.935524 | AO160: -2779.632093 | AQ160: 0.6298419097 | AR160: -79.36008062 | AT160: -77321.23867 | AU160: -282125.3149 | AV160: -1.838294928 | AW160: -214846.9036 | AX160: -98410.65376 | AY160: -2.712064432 | BA160: 1.237888094 | BB160: 1.853627719 | BC160: 0.873769504 | BD160: -129.9366951 | BF160: -7.537513214 | BG160: -125.7237464 | BH160: 54.27625364 | BI160: 54.27625364 | BJ160: 0 | BK160: 0 | BM160: -9.391140933 | BN160: -175.7870513 | BQ160: 18.75558852 | BT160: 3162.278 | BU160: 5.60993 | BV160: -248.626
A161: 63500 | B161: 63.5 | C161: 1.000117358 | D161: 0.01531972044 | F161: 0.02224802622 | G161: 0.05785173756 | H161: -3.083740912 | J161: 15 | M161: 0.002042287621 | N161: -1.570796325 | O161: 103.9157532 | P161: 1.561172998 | Q161: 6.198535758 | R161: 1.408759766 | S161: 0.9749029461 | T161: -0.2245116445 | U161: 0.9643698567 | V161: -0.2677452576 | X161: -7.685477452 | Y161: -123.8472142 | Z161: 56.1527858 | AC161: 1 | AD161: 103.9109415 | AE161: -0.007462552133 | AF161: 0.02720261093 | AG161: 3543.152621 | AH161: -1008.762034 | AJ161: 18000 | AK161: 4110.506821 | AL161: 1 | AM161: 6.117339744 | AN161: 1122.938426 | AO161: -2758.88904 | AQ161: 0.6199628022 | AR161: -78.73527588 | AT161: -77228.53426 | AU161: -279596.4941 | AV161: -1.84029106 | AW161: -211510.8787 | AX161: -97074.40965 | AY161: -2.711315055 | BA161: 1.246397994 | BB161: 1.913134829 | BC161: 0.8710239947 | BD161: -130.0940012 | BF161: -7.618190934 | BG161: -125.9015855 | BH161: 54.09841454 | BI161: 54.09841454 | BJ161: 0 | BK161: 0 | BM161: -9.531325763 | BN161: -175.8075843 | BQ161: 18.81509563 | BT161: 3235.937 | BU161: 5.43209 | BV161: -248.575
A162: 64000 | B162: 64 | C162: 1.000119214 | D162: 0.01544032907 | F162: 0.02189468461 | G162: 0.05738071196 | H162: -3.084211938 | J162: 15 | M162: 0.002026332249 | N162: -1.570796325 | O162: 104.733912 | P162: 1.561248176 | Q162: 6.246077658 | R162: 1.410003887 | S162: 0.9745211974 | T162: -0.2262199755 | U162: 0.9638367343 | V162: -0.2697530577 | X162: -7.766363015 | Y162: -124.00462 | Z162: 55.99537998 | AC162: 1 | AD162: 104.7291379 | AE162: -0.007580535318 | AF162: 0.02741680472 | AG162: 3539.236256 | AH162: -1015.045543 | AJ162: 18000 | AK162: 4142.873017 | AL162: 1 | AM162: 6.165507774 | AN162: 1116.099076 | AO162: -2738.444512 | AQ162: 0.6103143119 | AR162: -78.12023192 | AT162: -77135.5467 | AU162: -277105.454 | AV162: -1.842285194 | AW162: -208250.0201 | AX162: -95771.98118 | AY162: -2.710545184 | BA162: 1.254886032 | BB162: 1.972085706 | BC162: 0.8682599893 | BD162: -130.252367 | BF162: -7.698279823 | BG162: -126.0800287 | BH162: 53.91997128 | BI162: 53.91997128 | BJ162: 0 | BK162: 0 | BM162: -9.67036553 | BN162: -175.8276617 | BQ162: 18.87404651 | BT162: 3311.311 | BU162: 5.23561 | BV162: -247.758
A163: 64500 | B163: 64.5 | C163: 1.000121084 | D163: 0.01556093724 | F163: 0.0215497483 | G163: 0.05691743863 | H163: -3.084675211 | J163: 15 | M163: 0.002010624247 | N163: -1.570796325 | O163: 105.5520714 | P163: 1.561322188 | Q163: 6.293629079 | R163: 1.411229209 | S163: 0.9741369081 | T163: -0.2279269642 | U163: 0.9633003241 | V163: -0.271758631 | X163: -7.846668635 | Y163: -124.162521 | Z163: 55.83747898 | AC163: 1 | AD163: 105.5473343 | AE163: -0.007699443861 | AF163: 0.02763099851 | AG163: 3535.297925 | AH163: -1021.310464 | AJ163: 18000 | AK163: 4175.239212 | AL163: 1 | AM163: 6.213675803 | AN163: 1109.412809 | AO163: -2718.292316 | AQ163: 0.6008893162 | AR163: -77.51472179 | AT163: -77042.27373 | AU163: -274651.3297 | AV163: -1.844277314 | AW163: -205062.1113 | AX163: -94502.20404 | AY163: -2.709755282 | BA163: 1.263352006 | BB163: 2.030487482 | BC163: 0.8654779687 | BD163: -130.4117651 | BF163: -7.77779164 | BG163: -126.25906 | BH163: 53.74093997 | BI163: 53.74093997 | BJ163: 0 | BK163: 0 | BM163: -9.808279122 | BN163: -175.847295 | BQ163: 18.93244828 | BT163: 3388.442 | BU163: 5.05282 | BV163: -247.756
A164: 65000 | B164: 65 | C164: 1.000122968 | D164: 0.01568154496 | F164: 0.02121295115 | G164: 0.05646172457 | H164: -3.085130925 | J164: 15 | M164: 0.001995157906 | N164: -1.570796325 | O164: 106.3702313 | P164: 1.561395062 | Q164: 6.341189808 | R164: 1.412436153 | S164: 0.9737500877 | T164: -0.2296326022 | U164: 0.9627606446 | V164: -0.2737619651 | X164: -7.926405579 | Y164: -124.3209015 | Z164: 55.6790985 | AC164: 1 | AD164: 106.3655307 | AE164: -0.007819277763 | AF164: 0.02784519229 | AG164: 3531.337803 | AH164: -1027.556601 | AJ164: 18000 | AK164: 4207.605408 | AL164: 1 | AM164: 6.261843833 | AN164: 1102.87513 | AO164: -2698.426425 | AQ164: 0.5916809656 | AR164: -76.91852553 | AT164: -76948.71332 | AU164: -272233.2827 | AV164: -1.846267401 | AW164: -201945.0158 | AX164: -93263.96333 | AY164: -2.708945801 | BA164: 1.271795714 | BB164: 2.08834714 | BC164: 0.8626784002 | BD164: -130.5721685 | BF164: -7.856737819 | BG164: -126.4386637 | BH164: 53.56133633 | BI164: 53.56133633 | BJ164: 0 | BK164: 0 | BM164: -9.945084959 | BN164: -175.8664951 | BQ164: 18.99030794 | BT164: 3467.369 | BU164: 4.9029 | BV164: -247.513
A165: 65500 | B165: 65.5 | C165: 1.000124867 | D165: 0.01580215223 | F165: 0.02088403754 | G165: 0.05601338321 | H165: -3.085579267 | J165: 15 | M165: 0.001979927693 | N165: -1.570796325 | O165: 107.1883918 | P165: 1.561466823 | Q165: 6.388759637 | R165: 1.413625125 | S165: 0.9733607461 | T165: -0.2313368812 | U165: 0.9622177142 | V165: -0.2757630478 | X165: -8.005584797 | Y165: -124.4797462 | Z165: 55.52025383 | AC165: 1 | AD165: 107.1837271 | AE165: -0.007940037023 | AF165: 0.02805938608 | AG165: 3527.356066 | AH165: -1033.783764 | AJ165: 18000 | AK165: 4239.971603 | AL165: 1 | AM165: 6.310011862 | AN165: 1096.481706 | AO165: -2678.840969 | AQ165: 0.582682671 | AR165: -76.3314299 | AT165: -76854.86366 | AU165: -269850.5002 | AV165: -1.848255439 | AW165: -198896.6741 | AX165: -92056.19113 | AY165: -2.708117177 | BA165: 1.280216959 | BB165: 2.145671522 | BC165: 0.8598617383 | BD165: -130.7335514 | BF165: -7.935129481 | BG165: -126.6188243 | BH165: 53.38117572 | BI165: 53.38117572 | BJ165: 0 | BK165: 0 | BM165: -10.080801 | BN165: -175.8852729 | BQ165: 19.04763232 | BT165: 3548.134 | BU165: 4.65226 | BV165: -246.726
A166: =A165+500 -> 66000 | B166: 66 | C166: 1.000126781 | D166: 0.01592275903 | F166: 0.02056276184 | G166: 0.05557223416 | H166: -3.086020416 | J166: 15 | M166: 0.001964928241 | N166: -1.570796325 | O166: 108.0065529 | P166: 1.561537497 | Q166: 6.436338364 | R166: 1.414796521 | S166: 0.9729688931 | T166: -0.233039793 | U166: 0.9616715515 | V166: -0.2777618668 | X166: -8.084216941 | Y166: -124.6390401 | Z166: 55.36095991 | AC166: 1 | AD166: 108.0019234 | AE166: -0.008061721642 | AF166: 0.02827357987 | AG166: 3523.35289 | AH166: -1039.991765 | AJ166: 18000 | AK166: 4272.337799 | AL166: 1 | AM166: 6.358179892 | AN166: 1090.228359 | AO166: -2659.530232 | AQ166: 0.5738880918 | AR166: -75.75322812 | AT166: -76760.72318 | AU166: -267502.1941 | AV166: -1.850241411 | AW166: -195915.1005 | AX166: -90877.86416 | AY166: -2.707269836 | BA166: 1.288615546 | BB166: 2.202467329 | BC166: 0.857028425 | BD166: -130.8958883 | BF166: -8.012977446 | BG166: -126.7995269 | BH166: 53.2004731 | BI166: 53.2004731 | BJ166: 0 | BK166: 0 | BM166: -10.21544478 | BN166: -175.9036386 | BQ166: 19.10442813 | BT166: 3630.781 | BU166: 4.4951 | BV166: -246.212
A167: 66500 | B167: 66.5 | C167: 1.000128709 | D167: 0.01604336538 | F167: 0.02024888801 | G167: 0.05513810296 | H167: -3.086454547 | J167: 15 | M167: 0.001950154344 | N167: -1.570796325 | O167: 108.8247145 | P167: 1.561607108 | Q167: 6.483925793 | R167: 1.415950724 | S167: 0.9725745385 | T167: -0.2347413292 | U167: 0.961122175 | V167: -0.2797584101 | X167: -8.162312371 | Y167: -124.7987687 | Z167: 55.20123129 | AC167: 1 | AD167: 108.8201198 | AE167: -0.008184331618 | AF167: 0.02848777365 | AG167: 3519.328451 | AH167: -1046.180424 | AJ167: 18000 | AK167: 4304.703994 | AL167: 1 | AM167: 6.406347921 | AN167: 1084.11106 | AO167: -2640.488645 | AQ167: 0.5652911249 | AR167: -75.18371962 | AT167: -76666.29051 | AU167: -265187.6 | AV167: -1.8522253 | AW167: -192998.3797 | AX167: -89728.00162 | AY167: -2.70640419 | BA167: 1.296991281 | BB167: 2.25874113 | BC167: 0.8541788901 | BD167: -131.0591546 | BF167: -8.090292245 | BG167: -126.9807569 | BH167: 53.01924313 | BI167: 53.01924313 | BJ167: 0 | BK167: 0 | BM167: -10.34903337 | BN167: -175.9216023 | BQ167: 19.16070193 | BT167: 3715.352 | BU167: 4.3437 | BV167: -245.97
A168: 67000 | B168: 67 | C168: 1.000130651 | D168: 0.01616397125 | F168: 0.01994218906 | G168: 0.05471082079 | H168: -3.086881829 | J168: 15 | M168: 0.001935600954 | N168: -1.570796325 | O168: 109.6428766 | P168: 1.561675681 | Q168: 6.531521734 | R168: 1.417088106 | S168: 0.9721776921 | T168: -0.2364414818 | U168: 0.9605696034 | V168: -0.2817526655 | X168: -8.239881167 | Y168: -124.9589178 | Z168: 55.04108217 | AC168: 1 | AD168: 109.6383162 | AE168: -0.008307866954 | AF168: 0.02870196744 | AG168: 3515.282926 | AH168: -1052.349562 | AJ168: 18000 | AK168: 4337.07019 | AL168: 1 | AM168: 6.454515951 | AN168: 1078.125924 | AO168: -2621.710784 | AQ168: 0.5568858941 | AR168: -74.62270981 | AT168: -76571.56447 | AU168: -262905.9763 | AV168: -1.85420709 | AW168: -190144.664 | AX168: -88605.66305 | AY168: -2.705520642 | BA168: 1.305343972 | BB168: 2.314499361 | BC168: 0.8513135517 | BD168: -131.2233264 | BF168: -8.167084124 | BG168: -127.1624999 | BH168: 52.83750007 | BI168: 52.83750007 | BJ168: 0 | BK168: 0 | BM168: -10.48158348 | BN168: -175.9391735 | BQ168: 19.21646016 | BT168: 3801.894 | BU168: 4.14374 | BV168: -245.169
A169: 67500 | B169: 67.5 | C169: 1.000132608 | D169: 0.01628457666 | F169: 0.01964244673 | G169: 0.05429022432 | H169: -3.087302426 | J169: 15 | M169: 0.001921263169 | N169: -1.570796325 | O169: 110.4610392 | P169: 1.561743237 | Q169: 6.579126002 | R169: 1.418209031 | S169: 0.971778364 | T169: -0.2381402426 | U169: 0.9600138554 | V169: -0.2837446213 | X169: -8.31693314 | Y169: -125.1194736 | Z169: 54.88052642 | AC169: 1 | AD169: 110.4565126 | AE169: -0.008432327647 | AF169: 0.02891616123 | AG169: 3511.216492 | AH169: -1058.499005 | AJ169: 18000 | AK169: 4369.436385 | AL169: 1 | AM169: 6.50268398 | AN169: 1072.2692 | AO169: -2603.191367 | AQ169: 0.5486667398 | AR169: -74.07000988 | AT169: -76476.54408 | AU169: -260656.6034 | AV169: -1.856186766 | AW169: -187352.1704 | AX169: -87509.94642 | AY169: -2.704619582 | BA169: 1.313673431 | BB169: 2.369748328 | BC169: 0.8484328169 | BD169: -131.3883803 | BF169: -8.243363063 | BG169: -127.3447421 | BH169: 52.6552579 | BI169: 52.6552579 | BJ169: 0 | BK169: 0 | BM169: -10.61311139 | BN169: -175.9563618 | BQ169: 19.27170913 | BT169: 3890.451 | BU169: 3.9573 | BV169: -244.768
A170: 68000 | B170: 68 | C170: 1.00013458 | D170: 0.01640518159 | F170: 0.01934945102 | G170: 0.05387615543 | H170: -3.087716495 | J170: 15 | M170: 0.001907136234 | N170: -1.570796325 | O170: 111.2792023 | P170: 1.561809801 | Q170: 6.626738417 | R170: 1.419313849 | S170: 0.9713765641 | T170: -0.2398376036 | U170: 0.9594549497 | V170: -0.2857342656 | X170: -8.393477838 | Y170: -125.2804224 | Z170: 54.71957756 | AC170: 1 | AD170: 111.274709 | AE170: -0.008557713699 | AF170: 0.02913035502 | AG170: 3507.129327 | AH170: -1064.628586 | AJ170: 18000 | AK170: 4401.80258 | AL170: 1 | AM170: 6.55085201 | AN170: 1066.537271 | AO170: -2584.925244 | AQ170: 0.54062821 | AR170: -73.52543656 | AT170: -76381.22854 | AU170: -258438.7831 | AV170: -1.85816431 | AW170: -184619.1781 | AX170: -86439.9863 | AY170: -2.703701392 | BA170: 1.32197947 | BB170: 2.424494216 | BC170: 0.8455370817 | BD170: -131.5542937 | BF170: -8.319138779 | BG170: -127.5274697 | BH170: 52.47253025 | BI170: 52.47253025 | BJ170: 0 | BK170: 0 | BM170: -10.74363299 | BN170: -175.973176 | BQ170: 19.32645502 | BT170: 3981.072 | BU170: 3.89809 | BV170: -244.315
A171: 68500 | B171: 68.5 | C171: 1.000136566 | D171: 0.01652578604 | F171: 0.01906299983 | G171: 0.05346846099 | H171: -3.088124189 | J171: 15 | M171: 0.001893215531 | N171: -1.570796325 | O171: 112.0973659 | P171: 1.561875392 | Q171: 6.674358806 | R171: 1.420402904 | S171: 0.9709723024 | T171: -0.2415335566 | U171: 0.9588929051 | V171: -0.2877215867 | X171: -8.469524559 | Y171: -125.4417512 | Z171: 54.5582488 | AC171: 1 | AD171: 112.0929054 | AE171: -0.008684025109 | AF171: 0.0293445488 | AG171: 3503.021607 | AH171: -1070.73814 | AJ171: 18000 | AK171: 4434.168776 | AL171: 1 | AM171: 6.599020039 | AN171: 1060.926642 | AO171: -2566.907398 | AQ171: 0.5327650506 | AR171: -72.98881193 | AT171: -76285.61722 | AU171: -256251.8371 | AV171: -1.860139708 | AW171: -181944.0258 | AX171: -85394.95206 | AY171: -2.70276644 | BA171: 1.330261905 | BB171: 2.478743086 | BC171: 0.8426267319 | BD171: -131.7210445 | BF171: -8.394420736 | BG171: -127.7106695 | BH171: 52.28933045 | BI171: 52.28933045 | BJ171: 0 | BK171: 0 | BM171: -10.87316382 | BN171: -175.9896251 | BQ171: 19.38070389 | BT171: 4073.803 | BU171: 3.5601 | BV171: -244.142
A172: 69000 | B172: 69 | C172: 1.000138567 | D172: 0.01664639002 | F172: 0.01878289862 | G172: 0.05306699271 | H172: -3.088525657 | J172: 15 | M172: 0.001879496578 | N172: -1.570796325 | O172: 112.91553 | P172: 1.561940033 | Q172: 6.721986999 | R172: 1.421476527 | S172: 0.9705655889 | T172: -0.2432280937 | U172: 0.9583277403 | V172: -0.2897065731 | X172: -8.545082357 | Y172: -125.603447 | Z172: 54.39655302 | AC172: 1 | AD172: 112.9111018 | AE172: -0.008811261877 | AF172: 0.02955874259 | AG172: 3498.893511 | AH172: -1076.827504 | AJ172: 18000 | AK172: 4466.534971 | AL172: 1 | AM172: 6.647188069 | AN172: 1055.433943 | AO172: -2549.132939 | AQ172: 0.5250721974 | AR172: -72.45996324 | AT172: -76189.70967 | AU172: -254095.1074 | AV172: -1.862112943 | AW172: -179325.1092 | AX172: -84374.04625 | AY172: -2.701815086 | BA172: 1.338520553 | BB172: 2.532500881 | BC172: 0.8397021431 | BD172: -131.8886111 | BF172: -8.469218156 | BG172: -127.8943285 | BH172: 52.10567151 | BI172: 52.10567151 | BJ172: 0 | BK172: 0 | BM172: -11.00171904 | BN172: -176.0057174 | BQ172: 19.43446168 | BT172: 4168.694 | BU172: 3.40988 | BV172: -243.709
A173: 69500 | B173: 69.5 | C173: 1.000140583 | D173: 0.01676699351 | F173: 0.01850896006 | G173: 0.05267160692 | H173: -3.088921043 | J173: 15 | M173: 0.00186597502 | N173: -1.570796325 | O173: 113.7336945 | P173: 1.562003744 | Q173: 6.769622832 | R173: 1.422535041 | S173: 0.9701564337 | T173: -0.244921207 | U173: 0.9577594744 | V173: -0.2916892131 | X173: -8.620160052 | Y173: -125.7654972 | Z173: 54.23450279 | AC173: 1 | AD173: 113.7292982 | AE173: -0.008939424004 | AF173: 0.02977293638 | AG173: 3494.745217 | AH173: -1082.896523 | AJ173: 18000 | AK173: 4498.901167 | AL173: 1 | AM173: 6.695356098 | AN173: 1050.055914 | AO173: -2531.597101 | AQ173: 0.5175447676 | AR173: -71.9387227 | AT173: -76093.50558 | AU173: -251967.9545 | AV173: -1.864084002 | AW173: -176760.8788 | AX173: -83376.50306 | AY173: -2.700847683 | BA173: 1.346755232 | BB173: 2.585773428 | BC173: 0.8367636811 | BD173: -132.0569726 | BF173: -8.543540025 | BG173: -128.0784338 | BH173: 51.92156618 | BI173: 51.92156618 | BJ173: 0 | BK173: 0 | BM173: -11.12931345 | BN173: -176.0214613 | BQ173: 19.48773423 | BT173: 4265.795 | BU173: 3.2245 | BV173: -243.324
A174: 70000 | B174: 70 | C174: 1.000142612 | D174: 0.01688759651 | F174: 0.01824100373 | G174: 0.0522821644 | H174: -3.089310486 | J174: 15 | M174: 0.001852646627 | N174: -1.570796325 | O174: 114.5518595 | P174: 1.562066545 | Q174: 6.817266143 | R174: 1.423578762 | S174: 0.969744847 | T174: -0.2466128885 | U174: 0.957188126 | V174: -0.2936694954 | X174: -8.694766237 | Y174: -125.9278896 | Z174: 54.0721104 | AC174: 1 | AD174: 114.5474946 | AE174: -0.009068511489 | AF174: 0.02998713016 | AG174: 3490.576903 | AH174: -1088.945043 | AJ174: 18000 | AK174: 4531.267362 | AL174: 1 | AM174: 6.743524128 | AN174: 1044.789411 | AO174: -2514.295236 | AQ174: 0.5101780521 | AR174: -71.4249273 | AT174: -75997.00481 | AU174: -249869.7574 | AV174: -1.866052868 | AW174: -174249.8379 | AX174: -82401.5868 | AY174: -2.69986457 | BA174: 1.354965765 | BB174: 2.638566444 | BC174: 0.8338117023 | BD174: -132.2261085 | BF174: -8.617395103 | BG174: -128.2629731 | BH174: 51.73702688 | BI174: 51.73702688 | BJ174: 0 | BK174: 0 | BM174: -11.25596155 | BN174: -176.0368646 | BQ174: 19.54052724 | BT174: 4365.158 | BU174: 3.07782 | BV174: -242.172
A175: 70500 | B175: 70.5 | C175: 1.000144657 | D175: 0.01700819902 | F175: 0.01797885578 | G175: 0.05189853019 | H175: -3.08969412 | J175: 15 | M175: 0.001839507289 | N175: -1.570796325 | O175: 115.3700249 | P175: 1.562128456 | Q175: 6.864916777 | R175: 1.424607994 | S175: 0.9693308388 | T175: -0.2483031304 | U175: 0.9566137143 | V175: -0.2956474087 | X175: -8.768909284 | Y175: -126.0906122 | Z175: 53.90938785 | AC175: 1 | AD175: 115.365691 | AE175: -0.009198524332 | AF175: 0.03020132395 | AG175: 3486.388747 | AH175: -1094.972915 | AJ175: 18000 | AK175: 4563.633558 | AL175: 1 | AM175: 6.791692157 | AN175: 1039.631392 | AO175: -2497.222815 | AQ175: 0.5029675083 | AR175: -70.91841867 | AT175: -75900.20735 | AU175: -247799.9126 | AV175: -1.868019527 | AW175: -171790.5399 | AX175: -81448.59051 | AY175: -2.698866081 | BA175: 1.363151974 | BB175: 2.690885534 | BC175: 0.8308465541 | BD175: -132.395999 | BF175: -8.690791928 | BG175: -128.4479342 | BH175: 51.5520658 | BI175: 51.5520658 | BJ175: 0 | BK175: 0 | BM175: -11.38167746 | BN175: -176.0519352 | BQ175: 19.59284633 | BT175: 4466.836 | BU175: 2.92332 | BV175: -240.903
A176: 71000 | B176: 71 | C176: 1.000146716 | D176: 0.01712880103 | F176: 0.01772234866 | G176: 0.05152057343 | H176: -3.090072077 | J176: 15 | M176: 0.001826553013 | N176: -1.570796325 | O176: 116.1881908 | P176: 1.562189494 | Q176: 6.912574583 | R176: 1.425623036 | S176: 0.9689144195 | T176: -0.2499919249 | U176: 0.9560362582 | V176: -0.2976229418 | X176: -8.842597357 | Y176: -126.2536532 | Z176: 53.74634684 | AC176: 1 | AD176: 116.1838873 | AE176: -0.009329462533 | AF176: 0.03041551774 | AG176: 3482.180927 | AH176: -1100.979993 | AJ176: 18000 | AK176: 4595.999753 | AL176: 1 | AM176: 6.839860187 | AN176: 1034.578921 | AO176: -2480.375419 | AQ176: 0.4959087528 | AR176: -70.4190429 | AT176: -75803.11333 | AU176: -245757.8337 | AV176: -1.869983964 | AW176: -169381.5868 | AX176: -80516.83466 | AY176: -2.69785254 | BA176: 1.371313684 | BB176: 2.742736197 | BC176: 0.8278685752 | BD176: -132.5666246 | BF176: -8.763738828 | BG176: -128.6333052 | BH176: 51.36669483 | BI176: 51.36669483 | BJ176: 0 | BK176: 0 | BM176: -11.50647502 | BN176: -176.0666806 | BQ176: 19.644697 | BT176: 4570.882 | BU176: 2.72669 | BV176: -241.252
A177: 71500 | B177: 71.5 | C177: 1.000148789 | D177: 0.01724940255 | F177: 0.01747132087 | G177: 0.05114816724 | H177: -3.090444483 | J177: 15 | M177: 0.001813779915 | N177: -1.570796325 | O177: 117.0063571 | P177: 1.562249679 | Q177: 6.960239414 | R177: 1.426624176 | S177: 0.9684955992 | T177: -0.2516792642 | U177: 0.9554557766 | V177: -0.2995960837 | X177: -8.91583841 | Y177: -126.4170012 | Z177: 53.58299882 | AC177: 1 | AD177: 117.0020837 | AE177: -0.009461326093 | AF177: 0.03062971152 | AG177: 3477.953623 | AH177: -1106.966134 | AJ177: 18000 | AK177: 4628.365949 | AL177: 1 | AM177: 6.888028216 | AN177: 1029.629158 | AO177: -2463.748741 | AQ177: 0.488997555 | AR177: -69.92665037 | AT177: -75705.72303 | AU177: -243742.9507 | AV177: -1.871946166 | AW177: -167021.6273 | AX177: -79605.66589 | AY177: -2.696824261 | BA177: 1.379450724 | BB177: 2.794123828 | BC177: 0.8248780956 | BD177: -132.7379665 | BF177: -8.836243923 | BG177: -128.8190744 | BH177: 51.18092563 | BI177: 51.18092563 | BJ177: 0 | BK177: 0 | BM177: -11.63036775 | BN177: -176.0811079 | BQ177: 19.69608463 | BT177: 4677.351 | BU177: 2.54392 | BV177: -240.638
A178: 72000 | B178: 72 | C178: 1.000150877 | D178: 0.01737000356 | F178: 0.01722561664 | G178: 0.05078118851 | H178: -3.090811461 | J178: 15 | M178: 0.001801184221 | N178: -1.570796325 | O178: 117.8245238 | P178: 1.562309027 | Q178: 7.007911127 | R178: 1.427611697 | S178: 0.9680743881 | T178: -0.2533651406 | U178: 0.9548722888 | V178: -0.3015668232 | X178: -8.988640203 | Y178: -126.580645 | Z178: 53.41935496 | AC178: 1 | AD178: 117.8202801 | AE178: -0.009594115012 | AF178: 0.03084390531 | AG178: 3473.707013 | AH178: -1112.931202 | AJ178: 18000 | AK178: 4660.732144 | AL178: 1 | AM178: 6.936196246 | AN178: 1024.779356 | AO178: -2447.338576 | AQ178: 0.4822298307 | AR178: -69.44109563 | AT178: -75608.03685 | AU178: -241754.7095 | AV178: -1.873906117 | AW178: -164709.3546 | AX178: -78714.4558 | AY178: -2.695781554 | BA178: 1.387562921 | BB178: 2.84505372 | BC178: 0.8218754372 | BD178: -132.9100061 | BF178: -8.908315137 | BG178: -129.0052304 | BH178: 50.99476957 | BI178: 50.99476957 | BJ178: 0 | BK178: 0 | BM178: -11.75336886 | BN178: -176.0952243 | BQ178: 19.74701452 | BT178: 4786.301 | BU178: 2.53075 | BV178: -240.031
A179: 72500 | B179: 72.5 | C179: 1.00015298 | D179: 0.01749060407 | F179: 0.01698508577 | G179: 0.05041951781 | H179: -3.091173132 | J179: 15 | M179: 0.001788762261 | N179: -1.570796325 | O179: 118.6426909 | P179: 1.562367558 | Q179: 7.05558958 | R179: 1.428585872 | S179: 0.9676507966 | T179: -0.2550495464 | U179: 0.9542858136 | V179: -0.3035351495 | X179: -9.061010302 | Y179: -126.7445738 | Z179: 53.25542618 | AC179: 1 | AD179: 118.6384765 | AE179: -0.009727829288 | AF179: 0.0310580991 | AG179: 3469.441276 | AH179: -1118.875059 | AJ179: 18000 | AK179: 4693.098339 | AL179: 1 | AM179: 6.984364275 | AN179: 1020.026861 | AO179: -2431.140827 | AQ179: 0.4756016361 | AR179: -68.96223723 | AT179: -75510.05529 | AU179: -239792.5711 | AV179: -1.875863803 | AW179: -162443.5049 | AX179: -77842.59982 | AY179: -2.694724717 | BA179: 1.395650108 | BB179: 2.895531068 | BC179: 0.8188609141 | BD179: -133.0827256 | BF179: -8.9799602 | BG179: -129.1917622 | BH179: 50.80823781 | BI179: 50.80823781 | BJ179: 0 | BK179: 0 | BM179: -11.87549127 | BN179: -176.1090366 | BQ179: 19.79749187 | BT179: 4897.788 | BU179: 2.17956 | BV179: -239.481
A180: 73000 | B180: 73 | C180: 1.000155097 | D180: 0.01761120408 | F180: 0.0167495833 | G180: 0.05006303922 | H180: -3.091529611 | J180: 15 | M180: 0.001776510464 | N180: -1.570796325 | O180: 119.4608585 | P180: 1.562425286 | Q180: 7.10327464 | R180: 1.429546968 | S180: 0.9672248351 | T180: -0.2567324741 | U180: 0.9536963704 | V180: -0.3055010519 | X180: -9.132956088 | Y180: -126.9087768 | Z180: 53.09122315 | AC180: 1 | AD180: 119.4566729 | AE180: -0.009862468923 | AF180: 0.03127229288 | AG180: 3465.15659 | AH180: -1124.797575 | AJ180: 18000 | AK180: 4725.464535 | AL180: 1 | AM180: 7.032532305 | AN180: 1015.369104 | AO180: -2415.151493 | AQ180: 0.4691091617 | AR180: -68.48993761 | AT180: -75411.779 | AU180: -237856.0115 | AV180: -1.877819211 | AW180: -160222.8556 | AX180: -76989.5162 | AY180: -2.693654044 | BA180: 1.403712116 | BB180: 2.94556097 | BC180: 0.8158348325 | BD180: -133.2561073 | BF180: -9.051186655 | BG180: -129.3786587 | BH180: 50.62134126 | BI180: 50.62134126 | BJ180: 0 | BK180: 0 | BM180: -11.99674762 | BN180: -176.1225515 | BQ180: 19.84752177 | BT180: 5011.872 | BU180: 2.08934 | BV180: -238.507
A181: 73500 | B181: 73.5 | C181: 1.000157229 | D181: 0.01773180356 | F181: 0.01651896937 | G181: 0.04971164022 | H181: -3.09188101 | J181: 15 | M181: 0.001764425359 | N181: -1.570796325 | O181: 120.2790264 | P181: 1.56248223 | Q181: 7.150966174 | R181: 1.430495246 | S181: 0.9667965138 | T181: -0.258413916 | U181: 0.9531039781 | V181: -0.3074645196 | X181: -9.204484762 | Y181: -127.0732437 | Z181: 52.9267563 | AC181: 1 | AD181: 120.2748693 | AE181: -0.009998033916 | AF181: 0.03148648667 | AG181: 3460.853136 | AH181: -1130.69862 | AJ181: 18000 | AK181: 4757.83073 | AL181: 1 | AM181: 7.080700334 | AN181: 1010.803602 | AO181: -2399.366672 | AQ181: 0.4627487274 | AR181: -68.02406293 | AT181: -75313.20872 | AU181: -235944.5209 | AV181: -1.879772327 | AW181: -158046.224 | AX181: -76154.6449 | AY181: -2.692569819 | BA181: 1.411748781 | BB181: 2.995148429 | BC181: 0.8127974915 | BD181: -133.4301341 | BF181: -9.122001866 | BG181: -129.5659094 | BH181: 50.4340906 | BI181: 50.4340906 | BJ181: 0 | BK181: 0 | BM181: -12.11715029 | BN181: -176.1357753 | BQ181: 19.89710923 | BT181: 5128.614 | BU181: 1.79547 | BV181: -237.881
A182: 74000 | B182: 74 | C182: 1.000159375 | D182: 0.01785240254 | F182: 0.01629310895 | G182: 0.04936521155 | H182: -3.092227438 | J182: 15 | M182: 0.001752503566 | N182: -1.570796325 | O182: 121.0971947 | P182: 1.562538403 | Q182: 7.198664053 | R182: 1.431430958 | S182: 0.9663658431 | T182: -0.2600938646 | U182: 0.9525086561 | V182: -0.309425542 | X182: -9.27560335 | Y182: -127.2379642 | Z182: 52.76203582 | AC182: 1 | AD182: 121.0930657 | AE182: -0.01013452427 | AF182: 0.03170068046 | AG182: 3456.531092 | AH182: -1136.578071 | AJ182: 18000 | AK182: 4790.196926 | AL182: 1 | AM182: 7.128868364 | AN182: 1006.327949 | AO182: -2383.782556 | AQ182: 0.456516777 | AR182: -67.56448299 | AT182: -75214.3453 | AU182: -234057.6032 | AV182: -1.881723138 | AW182: -155912.4654 | AX182: -75337.44672 | AY182: -2.691472321 | BA182: 1.41975994 | BB182: 3.044298357 | BC182: 0.8097491827 | BD182: -133.6047893 | BF182: -9.192413021 | BG182: -129.7535037 | BH182: 50.24649629 | BI182: 50.24649629 | BJ182: 0 | BK182: 0 | BM182: -12.23671138 | BN182: -176.1487144 | BQ182: 19.94625916 | BT182: 5248.075 | BU182: 1.60241 | BV182: -238.28
A183: 74500 | B183: 74.5 | C183: 1.000161536 | D183: 0.01797300099 | F183: 0.01607187168 | G183: 0.04902364709 | H183: -3.092569003 | J183: 15 | M183: 0.001740741797 | N183: -1.570796325 | O183: 121.9153633 | P183: 1.562593823 | Q183: 7.246368151 | R183: 1.432354351 | S183: 0.9659328335 | T183: -0.2617723125 | U183: 0.9519104235 | V183: -0.3113841087 | X183: -9.346318712 | Y183: -127.4029283 | Z183: 52.59707167 | AC183: 1 | AD183: 121.9112621 | AE183: -0.01027193998 | AF183: 0.03191487424 | AG183: 3452.190638 | AH183: -1142.435804 | AJ183: 18000 | AK183: 4822.563121 | AL183: 1 | AM183: 7.177036393 | AN183: 1001.93982 | AO183: -2368.395428 | AQ183: 0.450409873 | AR183: -67.11107107 | AT183: -75115.1897 | AU183: -232194.7756 | AV183: -1.88367163 | AW183: -153820.4718 | AX183: -74537.40233 | AY183: -2.690361822 | BA183: 1.427745431 | BB183: 3.093015578 | BC183: 0.8066901911 | BD183: -133.7800566 | BF183: -9.262427141 | BG183: -129.9414314 | BH183: 50.05856856 | BI183: 50.05856856 | BJ183: 0 | BK183: 0 | BM183: -12.35544272 | BN183: -176.1613748 | BQ183: 19.99497638 | BT183: 5370.318 | BU183: 1.48515 | BV183: -237.347
A184: 75000 | B184: 75 | C184: 1.000163711 | D184: 0.01809359892 | F184: 0.01585513165 | G184: 0.04868684379 | H184: -3.092905806 | J184: 15 | M184: 0.001729136852 | N184: -1.570796325 | O184: 122.7335324 | P184: 1.562648504 | Q184: 7.294078348 | R184: 1.433265666 | S184: 0.9654974955 | T184: -0.2634492521 | U184: 0.9513092995 | V184: -0.3133402092 | X184: -9.416637541 | Y184: -127.5681264 | Z184: 52.43187359 | AC184: 1 | AD184: 122.7294585 | AE184: -0.01041028105 | AF184: 0.03212906803 | AG184: 3447.831952 | AH184: -1148.271701 | AJ184: 18000 | AK184: 4854.929317 | AL184: 1 | AM184: 7.225204422 | AN184: 997.6369602 | AO184: -2353.20166 | AQ184: 0.4444246922 | AR184: -66.66370384 | AT184: -75015.74297 | AU184: -230355.5684 | AV184: -1.885617791 | AW184: -151769.1706 | AX184: -73754.01143 | AY184: -2.689238585 | BA184: 1.435705094 | BB184: 3.141304825 | BC184: 0.8036207946 | BD184: -133.9559201 | BF184: -9.332051082 | BG184: -130.1296826 | BH184: 49.87031744 | BI184: 49.87031744 | BJ184: 0 | BK184: 0 | BM184: -12.47335591 | BN184: -176.1737625 | BQ184: 20.04326563 | BT184: 5495.409 | BU184: 1.35836 | BV184: -235.612
A185: 75500 | B185: 75.5 | C185: 1.000165901 | D185: 0.01821419633 | F185: 0.01564276721 | G185: 0.04835470147 | H185: -3.093237949 | J185: 15 | M185: 0.001717685615 | N185: -1.570796325 | O185: 123.5517018 | P185: 1.562702461 | Q185: 7.341794523 | R185: 1.434165135 | S185: 0.9650598395 | T185: -0.2651246762 | U185: 0.9507053035 | V185: -0.3152938333 | X185: -9.486566376 | Y185: -127.7335489 | Z185: 52.2664511 | AC185: 1 | AD185: 123.5476549 | AE185: -0.01054954747 | AF185: 0.03234326182 | AG185: 3443.455214 | AH185: -1154.085647 | AJ185: 18000 | AK185: 4887.295512 | AL185: 1 | AM185: 7.273372452 | AN185: 993.4171899 | AO185: -2338.19771 | AQ185: 0.4385580212 | AR185: -66.22226121 | AT185: -74916.00627 | AU185: -228539.5241 | AV185: -1.887561606 | AW185: -149757.5231 | AX185: -72986.7919 | AY185: -2.688102871 | BA185: 1.443638772 | BB185: 3.18917075 | BC185: 0.800541265 | BD185: -134.1323641 | BF185: -9.401291538 | BG185: -130.3182472 | BH185: 49.68175276 | BI185: 49.68175276 | BJ185: 0 | BK185: 0 | BM185: -12.59046229 | BN185: -176.1858831 | BQ185: 20.09113155 | BT185: 5623.413 | BU185: 1.07298 | BV185: -235.138
A186: 76000 | B186: 76 | C186: 1.000168106 | D186: 0.0183347932 | F186: 0.01543466085 | G186: 0.04802712283 | H186: -3.093565527 | J186: 15 | M186: 0.001706385051 | N186: -1.570796325 | O186: 124.3698716 | P186: 1.562755708 | Q186: 7.389516562 | R186: 1.435052987 | S186: 0.9646198761 | T186: -0.2667985773 | U186: 0.9500984546 | V186: -0.3172449708 | X186: -9.556111598 | Y186: -127.8991865 | Z186: 52.10081351 | AC186: 1 | AD186: 124.3658512 | AE186: -0.01068973926 | AF186: 0.03255745561 | AG186: 3439.060603 | AH186: -1159.877528 | AJ186: 18000 | AK186: 4919.661708 | AL186: 1 | AM186: 7.321540481 | AN186: 989.2783966 | AO186: -2323.38012 | AQ186: 0.4328067518 | AR186: -65.78662627 | AT186: -74815.98082 | AU186: -226746.1974 | AV186: -1.889503064 | AW186: -147784.5233 | AX186: -72235.27906 | AY186: -2.686954932 | BA186: 1.451546309 | BB186: 3.236617918 | BC186: 0.7974518675 | BD186: -134.3093736 | BF186: -9.470155053 | BG186: -130.5071159 | BH186: 49.49288414 | BI186: 49.49288414 | BJ186: 0 | BK186: 0 | BM186: -12.70677297 | BN186: -176.1977423 | BQ186: 20.13857872 | BT186: 5754.399 | BU186: 0.869153 | BV186: -234.689
A187: 76500 | B187: 76.5 | C187: 1.000170325 | D187: 0.01845538954 | F187: 0.01523069896 | G187: 0.04770401324 | H187: -3.093888637 | J187: 15 | M187: 0.001695232208 | N187: -1.570796325 | O187: 125.1880417 | P187: 1.562808258 | Q187: 7.437244351 | R187: 1.435929445 | S187: 0.9641776157 | T187: -0.2684709482 | U187: 0.9494887723 | V187: -0.3191936115 | X187: -9.625279444 | Y187: -128.0650301 | Z187: 51.93496992 | AC187: 1 | AD187: 125.1840476 | AE187: -0.0108308564 | AF187: 0.03277164939 | AG187: 3434.648298 | AH187: -1165.647235 | AJ187: 18000 | AK187: 4952.027903 | AL187: 1 | AM187: 7.369708511 | AN187: 985.2185343 | AO187: -2308.745514 | AQ187: 0.427167877 | AR187: -65.35668518 | AT187: -74715.66795 | AU187: -224975.1546 | AV187: -1.891442152 | AW187: -145849.1968 | AX187: -71499.02486 | AY187: -2.685795014 | BA187: 1.459427552 | BB187: 3.283650815 | BC187: 0.7943528615 | BD187: -134.4869335 | BF187: -9.53864802 | BG187: -130.696279 | BH187: 49.30372102 | BI187: 49.30372102 | BJ187: 0 | BK187: 0 | BM187: -12.82229884 | BN187: -176.2093454 | BQ187: 20.18561162 | BT187: 5888.437 | BU187: 0.803236 | BV187: -233.954
A188: 77000 | B188: 77 | C188: 1.000172558 | D188: 0.01857598535 | F188: 0.01503077174 | G188: 0.04738528074 | H188: -3.094207369 | J188: 15 | M188: 0.001684224207 | N188: -1.570796325 | O188: 126.0062121 | P188: 1.562860127 | Q188: 7.48497778 | R188: 1.436794724 | S188: 0.9637330691 | T188: -0.2701417816 | U188: 0.9488762758 | V188: -0.3211397457 | X188: -9.694076001 | Y188: -128.2310708 | Z188: 51.76892925 | AC188: 1 | AD188: 126.002244 | AE188: -0.0109728989 | AF188: 0.03298584318 | AG188: 3430.21848 | AH188: -1171.394661 | AJ188: 18000 | AK188: 4984.394098 | AL188: 1 | AM188: 7.41787654 | AN188: 981.2356209 | AO188: -2294.290595 | AQ188: 0.4216384872 | AR188: -64.93232702 | AT188: -74615.06906 | AU188: -223225.9731 | AV188: -1.893378857 | AW188: -143950.5993 | AX188: -70777.59724 | AY188: -2.684623357 | BA188: 1.467282346 | BB188: 3.330273848 | BC188: 0.7912445002 | BD188: -134.6650295 | BF188: -9.606776687 | BG188: -130.8857274 | BH188: 49.11427264 | BI188: 49.11427264 | BJ188: 0 | BK188: 0 | BM188: -12.93705053 | BN188: -176.2206978 | BQ188: 20.23223465 | BT188: 6025.596 | BU188: 0.769928 | BV188: -234.147
A189: 77500 | B189: 77.5 | C189: 1.000174807 | D189: 0.01869658061 | F189: 0.01483477299 | G189: 0.04707083588 | H189: -3.094521814 | J189: 15 | M189: 0.001673358244 | N189: -1.570796325 | O189: 126.8243829 | P189: 1.562911326 | Q189: 7.532716742 | R189: 1.437649037 | S189: 0.9632862467 | T189: -0.2718110704 | U189: 0.9482609844 | V189: -0.3230833632 | X189: -9.762507222 | Y189: -128.3972998 | Z189: 51.6027002 | AC189: 1 | AD189: 126.8204404 | AE189: -0.01111586676 | AF189: 0.03320003697 | AG189: 3425.771326 | AH189: -1177.119702 | AJ189: 18000 | AK189: 5016.760294 | AL189: 1 | AM189: 7.46604457 | AN189: 977.3277358 | AO189: -2280.012141 | AQ189: 0.4162157663 | AR189: -64.51344377 | AT189: -74514.18565 | AU189: -221498.2416 | AV189: -1.895313167 | AW189: -142087.816 | AX189: -70070.57942 | AY189: -2.683440199 | BA189: 1.475110544 | BB189: 3.376491344 | BC189: 0.7881270314 | BD189: -134.8436473 | BF189: -9.674547159 | BG189: -131.0754519 | BH189: 48.92454807 | BI189: 48.92454807 | BJ189: 0 | BK189: 0 | BM189: -13.0510385 | BN189: -176.2318046 | BQ189: 20.27845214 | BT189: 6165.95 | BU189: 0.469478 | BV189: -232.056
A190: 78000 | B190: 78 | C190: 1.000177069 | D190: 0.01881717533 | F190: 0.01464260002 | G190: 0.04676059166 | H190: -3.094832058 | J190: 15 | M190: 0.001662631589 | N190: -1.570796325 | O190: 127.6425541 | P190: 1.562961869 | Q190: 7.580461133 | R190: 1.438492588 | S190: 0.9628371591 | T190: -0.2734788073 | U190: 0.9476429176 | V190: -0.3250244544 | X190: -9.83057892 | Y190: -128.5637087 | Z190: 51.4362913 | AC190: 1 | AD190: 127.6386368 | AE190: -0.01125975998 | AF190: 0.03341423075 | AG190: 3421.307016 | AH190: -1182.822256 | AJ190: 18000 | AK190: 5049.126489 | AL190: 1 | AM190: 7.514212599 | AN190: 973.4930174 | AO190: -2265.907007 | AQ190: 0.4108969881 | AR190: -64.09993015 | AT190: -74413.01926 | AU190: -219791.5588 | AV190: -1.897245071 | AW190: -140259.96 | AX190: -69377.56926 | AY190: -2.682245768 | BA190: 1.482911994 | BB190: 3.422307559 | BC190: 0.785000697 | BD190: -135.0227731 | BF190: -9.741965409 | BG190: -131.2654438 | BH190: 48.73455619 | BI190: 48.73455619 | BJ190: 0 | BK190: 0 | BM190: -13.16427297 | BN190: -176.2426707 | BQ190: 20.32426836 | BT190: 6309.573 | BU190: 0.369853 | BV190: -231.369
A191: 78500 | B191: 78.5 | C191: 1.000179346 | D191: 0.0189377695 | F191: 0.01445415347 | G191: 0.04645446345 | H191: -3.095138187 | J191: 15 | M191: 0.001652041578 | N191: -1.570796325 | O191: 128.4607255 | P191: 1.563011768 | Q191: 7.62821085 | R191: 1.43932558 | S191: 0.9623858172 | T191: -0.2751449854 | U191: 0.9470220948 | V191: -0.3269630096 | X191: -9.898296777 | Y191: -128.7302891 | Z191: 51.26971089 | AC191: 1 | AD191: 128.4568332 | AE191: -0.01140457856 | AF191: 0.03362842454 | AG191: 3416.825729 | AH191: -1188.502226 | AJ191: 18000 | AK191: 5081.492685 | AL191: 1 | AM191: 7.562380629 | AN191: 969.7296612 | AO191: -2251.97212 | AQ191: 0.4056795132 | AR191: -63.69168357 | AT191: -74311.57153 | AU191: -218105.5341 | AV191: -1.899174555 | AW191: -138466.1715 | AX191: -68698.17865 | AY191: -2.681040289 | BA191: 1.490686552 | BB191: 3.467726671 | BC191: 0.7818657338 | BD191: -135.2023933 | BF191: -9.809037272 | BG191: -131.4556943 | BH191: 48.54430571 | BI191: 48.54430571 | BJ191: 0 | BK191: 0 | BM191: -13.27676394 | BN191: -176.253301 | BQ191: 20.36968747 | BT191: 6456.542 | BU191: 0.127676 | BV191: -230.779
A192: 79000 | B192: 79 | C192: 1.000181638 | D192: 0.01905836312 | F192: 0.01426933721 | G192: 0.0461523689 | H192: -3.095440281 | J192: 15 | M192: 0.001641585619 | N192: -1.570796325 | O192: 129.2788972 | P192: 1.563061035 | Q192: 7.675965795 | R192: 1.440148207 | S192: 0.9619322315 | T192: -0.2768095974 | U192: 0.9463985352 | V192: -0.3288990192 | X192: -9.965666349 | Y192: -128.8970329 | Z192: 51.10296712 | AC192: 1 | AD192: 129.2750296 | AE192: -0.01155032249 | AF192: 0.03384261833 | AG192: 3412.327644 | AH192: -1194.159516 | AJ192: 18000 | AK192: 5113.85888 | AL192: 1 | AM192: 7.610548658 | AN192: 966.0359177 | AO192: -2238.204477 | AQ192: 0.4005607851 | AR192: -63.28860405 | AT192: -74209.84415 | AU192: -216439.7866 | AV192: -1.901101608 | AW192: -136705.6171 | AX192: -68032.03296 | AY192: -2.679823982 | BA192: 1.498434071 | BB192: 3.512752788 | BC192: 0.7787223733 | BD192: -135.3824945 | BF192: -9.875768459 | BG192: -131.6461948 | BH192: 48.35380518 | BI192: 48.35380518 | BJ192: 0 | BK192: 0 | BM192: -13.38852125 | BN192: -176.2637003 | BQ192: 20.41471359 | BT192: 6606.934 | BU192: 0.0369381 | BV192: -229.609
A193: 79500 | B193: 79.5 | C193: 1.000183944 | D193: 0.01917895619 | F193: 0.01408805821 | G193: 0.04585422787 | H193: -3.095738422 | J193: 15 | M193: 0.001631261181 | N193: -1.570796325 | O193: 130.0970693 | P193: 1.563109683 | Q193: 7.723725869 | R193: 1.440960662 | S193: 0.9614764127 | T193: -0.2784726365 | U193: 0.9457722584 | V193: -0.3308324738 | X193: -10.03269307 | Y193: -129.063932 | Z193: 50.93606798 | AC193: 1 | AD193: 130.093226 | AE193: -0.01169699178 | AF193: 0.03405681211 | AG193: 3407.81294 | AH193: -1199.794033 | AJ193: 18000 | AK193: 5146.225076 | AL193: 1 | AM193: 7.658716688 | AN193: 962.4100905 | AO193: -2224.601145 | AQ193: 0.3955383277 | AR193: -62.8905941 | AT193: -74107.83891 | AU193: -214793.9449 | AV193: -1.903026219 | AW193: -134977.4881 | AX193: -67378.77043 | AY193: -2.678597061 | BA193: 1.506154409 | BB193: 3.557389947 | BC193: 0.7755708421 | BD193: -135.563064 | BF193: -9.942164553 | BG193: -131.836937 | BH193: 48.163063 | BI193: 48.163063 | BJ193: 0 | BK193: 0 | BM193: -13.4995545 | BN193: -176.273873 | BQ193: 20.45935075 | BT193: 6760.83 | BU193: -0.0490191 | BV193: -229.1
A194: 80000 | B194: 80 | C194: 1.000186265 | D194: 0.0192995487 | F194: 0.01391022638 | G194: 0.04555996234 | H194: -3.096032688 | J194: 15 | M194: 0.001621065799 | N194: -1.570796325 | O194: 130.9152417 | P194: 1.563157723 | Q194: 7.77149098 | R194: 1.44176313 | S194: 0.9610183716 | T194: -0.2801340957 | U194: 0.9451432838 | V194: -0.3327633639 | X194: -10.09938224 | Y194: -129.2309787 | Z194: 50.7690213 | AC194: 1 | AD194: 130.9114224 | AE194: -0.01184458643 | AF194: 0.0342710059 | AG194: 3403.281796 | AH194: -1205.405687 | AJ194: 18000 | AK194: 5178.591271 | AL194: 1 | AM194: 7.706884717 | AN194: 958.8505339 | AO194: -2211.159255 | AQ194: 0.3906097418 | AR194: -62.49755869 | AT194: -74005.55761 | AU194: -213167.647 | AV194: -1.904948376 | AW194: -133281.0007 | AX194: -66738.0417 | AY194: -2.677359738 | BA194: 1.513847423 | BB194: 3.601642118 | BC194: 0.7724113617 | BD194: -135.7440889 | BF194: -10.00823102 | BG194: -132.0279126 | BH194: 47.97208737 | BI194: 47.97208737 | BJ194: 0 | BK194: 0 | BM194: -13.60987313 | BN194: -176.2838238 | BQ194: 20.50360292 | BT194: 6918.31 | BU194: -0.217983 | BV194: -228.376
A195: 80500 | B195: 80.5 | C195: 1.000188601 | D195: 0.01942014065 | F195: 0.01373575452 | G195: 0.04526949635 | H195: -3.096323154 | J195: 15 | M195: 0.001610997067 | N195: -1.570796325 | O195: 131.7334144 | P195: 1.563205165 | Q195: 7.819261033 | R195: 1.442555793 | S195: 0.9605581189 | T195: -0.281793968 | U195: 0.9445116308 | V195: -0.3346916803 | X195: -10.16573905 | Y195: -129.3981653 | Z195: 50.60183472 | AC195: 1 | AD195: 131.7296188 | AE195: -0.01199310644 | AF195: 0.03448519969 | AG195: 3398.734391 | AH195: -1210.994389 | AJ195: 18000 | AK195: 5210.957467 | AL195: 1 | AM195: 7.755052747 | AN195: 955.3556518 | AO195: -2197.876005 | AQ195: 0.3857727027 | AR195: -62.10940514 | AT195: -73903.00217 | AU195: -211560.5398 | AV195: -1.906868068 | AW195: -131615.3939 | AX195: -66109.50926 | AY195: -2.676112217 | BA195: 1.521512975 | BB195: 3.645513202 | BC195: 0.7692441489 | BD195: -135.9255568 | BF195: -10.07397319 | BG195: -132.2191136 | BH195: 47.78088638 | BI195: 47.78088638 | BJ195: 0 | BK195: 0 | BM195: -13.71948639 | BN195: -176.2935568 | BQ195: 20.547474 | BT195: 7079.458 | BU195: -0.384014 | BV195: -227.044
A196: 81000 | B196: 81 | C196: 1.00019095 | D196: 0.01954073203 | F196: 0.01356455819 | G196: 0.04498275596 | H196: -3.096609894 | J196: 15 | M196: 0.001601052641 | N196: -1.570796325 | O196: 132.5515873 | P196: 1.563252023 | Q196: 7.86703594 | R196: 1.44333883 | S196: 0.9600956654 | T196: -0.2834522466 | U196: 0.9438773188 | V196: -0.3366174139 | X196: -10.2317686 | Y196: -129.5654843 | Z196: 50.43451572 | AC196: 1 | AD196: 132.5478151 | AE196: -0.01214255181 | AF196: 0.03469939347 | AG196: 3394.170902 | AH196: -1216.560055 | AJ196: 18000 | AK196: 5243.323662 | AL196: 1 | AM196: 7.803220776 | AN196: 951.9238954 | AO196: -2184.748656 | AQ196: 0.3810249571 | AR196: -61.72604306 | AT196: -73800.17451 | AU196: -209972.279 | AV196: -1.908785284 | AW196: -129979.9297 | AX196: -65492.84701 | AY196: -2.6748547 | BA196: 1.529150925 | BB196: 3.689007036 | BC196: 0.7660694159 | BD196: -136.1074556 | BF196: -10.13939631 | BG196: -132.4105321 | BH196: 47.58946794 | BI196: 47.58946794 | BJ196: 0 | BK196: 0 | BM196: -13.82840335 | BN196: -176.3030765 | BQ196: 20.59096784 | BT196: 7244.36 | BU196: -0.57486 | BV196: -226.239
A197: 81500 | B197: 81.5 | C197: 1.000193315 | D197: 0.01966132285 | F197: 0.01339655556 | G197: 0.04469966913 | H197: -3.096892981 | J197: 15 | M197: 0.001591230232 | N197: -1.570796325 | O197: 133.3697606 | P197: 1.563298305 | Q197: 7.914815612 | R197: 1.444112413 | S197: 0.959631022 | T197: -0.2851089247 | U197: 0.9432403672 | V197: -0.3385405555 | X197: -10.29747583 | Y197: -129.7329283 | Z197: 50.26707166 | AC197: 1 | AD197: 133.3660115 | AE197: -0.01229292254 | AF197: 0.03491358726 | AG197: 3389.591508 | AH197: -1222.102602 | AJ197: 18000 | AK197: 5275.689857 | AL197: 1 | AM197: 7.851388806 | AN197: 948.5537619 | AO197: -2171.774531 | AQ197: 0.3763643207 | AR197: -61.34738427 | AT197: -73697.07665 | AU197: -208402.5286 | AV197: -1.910700012 | AW197: -128373.8917 | AX197: -64887.73978 | AY197: -2.673587382 | BA197: 1.536761138 | BB197: 3.732127391 | BC197: 0.7628873707 | BD197: -136.2897734 | BF197: -10.20450549 | BG197: -132.6021602 | BH197: 47.39783984 | BI197: 47.39783984 | BJ197: 0 | BK197: 0 | BM197: -13.93663288 | BN197: -176.3123868 | BQ197: 20.63408819 | BT197: 7413.102 | BU197: -0.7333 | BV197: -225.834
A198: 82000 | B198: 82 | C198: 1.000195694 | D198: 0.01978191309 | F198: 0.01323166737 | G198: 0.04442016569 | H198: -3.097172484 | J198: 15 | M198: 0.001581527609 | N198: -1.570796325 | O198: 134.1879341 | P198: 1.563344023 | Q198: 7.962599964 | R198: 1.444876712 | S198: 0.9591641993 | T198: -0.2867639956 | U198: 0.9426007957 | V198: -0.3404610962 | X198: -10.36286562 | Y198: -129.9004903 | Z198: 50.0995097 | AC198: 1 | AD198: 134.1842079 | AE198: -0.01244421862 | AF198: 0.03512778105 | AG198: 3384.996388 | AH198: -1227.621951 | AJ198: 18000 | AK198: 5308.056053 | AL198: 1 | AM198: 7.899556835 | AN198: 945.2437926 | AO198: -2158.95101 | AQ198: 0.3717886753 | AR198: -60.97334275 | AT198: -73593.71065 | AU198: -206850.9609 | AV198: -1.912612241 | AW198: -126796.5847 | AX198: -64293.88291 | AY198: -2.672310458 | BA198: 1.54434348 | BB198: 3.774877977 | BC198: 0.7596982165 | BD198: -136.4724984 | BF198: -10.26930574 | BG198: -132.7939903 | BH198: 47.20600971 | BI198: 47.20600971 | BJ198: 0 | BK198: 0 | BM198: -14.04418371 | BN198: -176.3214918 | BQ198: 20.67683878 | BT198: 7585.776 | BU198: -0.870902 | BV198: -224.429
A199: 82500 | B199: 82.5 | C199: 1.000198088 | D199: 0.01990250276 | F199: 0.01306981683 | G199: 0.04414417728 | H199: -3.097448473 | J199: 15 | M199: 0.001571942593 | N199: -1.570796325 | O199: 135.0061079 | P199: 1.563389187 | Q199: 8.010388912 | R199: 1.445631892 | S199: 0.9586952084 | T199: -0.2884174524 | U199: 0.9419586236 | V199: -0.3423790271 | X199: -10.42794272 | Y199: -130.0681631 | Z199: 49.93183688 | AC199: 1 | AD199: 135.0024043 | AE199: -0.01259644007 | AF199: 0.03534197483 | AG199: 3380.38572 | AH199: -1233.118022 | AJ199: 18000 | AK199: 5340.422248 | AL199: 1 | AM199: 7.947724865 | AN199: 941.9925714 | AO199: -2146.275534 | AQ199: 0.3672959671 | AR199: -60.60383457 | AT199: -73490.0786 | AU199: -205317.2562 | AV199: -1.914521962 | AW199: -125247.3336 | AX199: -63710.9818 | AY199: -2.671024115 | BA199: 1.551897817 | BB199: 3.817262444 | BC199: 0.7565021527 | BD199: -136.6556194 | BF199: -10.33380196 | BG199: -132.9860149 | BH199: 47.01398505 | BI199: 47.01398505 | BJ199: 0 | BK199: 0 | BM199: -14.1510644 | BN199: -176.3303955 | BQ199: 20.71922324 | BT199: 7762.471 | BU199: -1.03486 | BV199: -223.255
A200: 83000 | B200: 83 | C200: 1.000200496 | D200: 0.02002309184 | F200: 0.01291092948 | G200: 0.04387163727 | H200: -3.097721013 | J200: 15 | M200: 0.001562473059 | N200: -1.570796325 | O200: 135.824282 | P200: 1.563433806 | Q200: 8.058182374 | R200: 1.446378114 | S200: 0.95822406 | T200: -0.2900692886 | U200: 0.9413138703 | V200: -0.3442943395 | X200: -10.49271179 | Y200: -130.2359399 | Z200: 49.76406008 | AC200: 1 | AD200: 135.8206007 | AE200: -0.01274958687 | AF200: 0.03555616862 | AG200: 3375.759681 | AH200: -1238.590742 | AJ200: 18000 | AK200: 5372.788444 | AL200: 1 | AM200: 7.995892894 | AN200: 938.7987236 | AO200: -2133.745599 | AQ200: 0.3628842037 | AR200: -60.23877781 | AT200: -73386.18266 | AU200: -203801.1024 | AV200: -1.916429163 | AW200: -123725.483 | AX200: -63138.75156 | AY200: -2.669728537 | BA200: 1.559424018 | BB200: 3.85928438 | BC200: 0.7532993743 | BD200: -136.8391251 | BF200: -10.39799895 | BG200: -133.1782268 | BH200: 46.82177322 | BI200: 46.82177322 | BJ200: 0 | BK200: 0 | BM200: -14.25728333 | BN200: -176.3391017 | BQ200: 20.76124518 | BT200: 7943.282 | BU200: -1.2308 | BV200: -223.135
A201: =A200+500 -> 83500 | B201: 83.5 | C201: =SQRT((A201/Fesr)^2+1) -> 1.000202918 | D201: =ATAN(A201/Fesr) -> 0.02014368035 | F201: =(Ro/(Ro+Rdcr))/SQRT((A201/(Q*Fo))^2+(1-(A201^2/Fo^2))^2) -> 0.01275493315 | G201: =-ATAN(A201*Fo/(Q*(Fo^2-A201^2))) -> 0.04360248074 | H201: =IF(G201>0,G201-Pi,G201) -> -3.097990169 | J201: =Vin/Vramp -> 15 | M201: =1/(2*Pi*_Rfb1*(Cc1ea_u+Cc2ea_u)*A201) -> 0.001553116933 | N201: =-Pi/2 -> -1.570796325 | O201: =SQRT(1+(A201/Fz1_u)^2) -> 136.6424563 | P201: =ATAN2(Fz1_u,A201) -> 1.563477892 | Q201: =SQRT(1+(A201/Fz2_u)^2) -> 8.10598027 | R201: =ATAN2(Fz2_u,A201) -> 1.447115536 | S201: =1/SQRT(1+(A201/Fp1_u)^2) -> 0.957750765 | T201: =-ATAN2(Fp1_u,A201) -> -0.2917194975 | U201: =1/SQRT(1+(A201/Fp2_u)^2) -> 0.9406665554 | V201: =-ATAN2(Fp2_u,A201) -> -0.3462070247 | X201: -10.55717737 | Y201: =(180/Pi)*(D201+H201+N201+P201+R201+T201+V201) -> -130.4038139 | Z201: 49.59618606 | AC201: 1 | AD201: =Rcea1_u*Cc1ea_u*A201*2*Pi -> 136.6387971 | AE201: =-Rcea1_u*Cc1ea_u*Cc2ea_u*(A201*2*Pi)^2 -> -0.01290365903 | AF201: =(Cc2ea_u+Cc1ea_u)*A201*2*Pi -> 0.03577036241 | AG201: 3371.118449 | AH201: -1244.040038 | AJ201: =_Rfb1 -> 18000 | AK201: =_Rfb1*Rcea2_u*Cc3ea_u*A201*2*Pi -> 5405.154639 | AL201: 1 | AM201: =(_Rfb1+Rcea2_u)*Cc3ea_u*A201*2*Pi -> 8.044060924 | AN201: 935.6609141 | AO201: -2121.358757 | AQ201: =Eadcg/(1+(Eadcg*A201/GBP)^2) -> 0.3585514521 | AR201: =-(A201*Eadcg*Eadcg/GBP)/(1+(Eadcg*A201/GBP)^2) -> -59.87809251 | AT201: -73282.02504 | AU201: -202302.1947 | AV201: -1.918333834 | AW201: -122230.3965 | AX201: -62576.91662 | AY201: -2.668423907 | BA201: =SQRT(AT201^2+AU201^2)/SQRT(AW201^2+AX201^2) -> 1.566921955 | BB201: 3.900947315 | BC201: 0.7500900726 | BD201: =BC201*180/Pi-180 -> -137.0230045 | BF201: =20*LOG(BA201*J201*F201*C201) -> -10.46190142 | BG201: =(180/Pi)*(D201+H201+BC201) -> -133.3706185 | BH201: 46.62938146 | BI201: 46.62938146 | BJ201: =SUM((BF202<0)*(BF201>0))*A201 -> 0 | BK201: 0 | BM201: -14.36284874 | BN201: =(H201+D201)*180/Pi -> -176.347614 | BQ201: 20.80290811 | BT201: 8128.305 | BU201: -1.35261 | BV201: -221.982
... 491 more rows

Sheet Schematic Management (hidden)
A2: =IF(RDSON_sense=1, "SCH_RDSON", "SCH_SHUNT") -> SCH_RDSON

Sheet Power Calculations (hidden)
A1: BUCK CONTROLLER POWER TOOL
AG3: =VsdBot -> 1 | AK3: =Iq -> 0.002
A6: Enter the values of your design and FET datasheet specifications below. Note that thermal resistance ("Theta JA") will change when components are placed on the PCB | BH6: 80 | BI6: 100 | BJ6: 120 | BK6: 140 | BL6: 160 | BM6: 180 | BN6: 20 | BO6: 30 | BP6: 40 | BQ6: 50
G7: Currents | N7: INDUCTOR | R7: Cout | U7: Cin | X7: HIGH SIDE FET losses | AD7: LOW SIDE FET Losses | AH7: Shunt | AI7: External Diode | AJ7: Diod/eFET | AK7: Part Losses | AO7: RESULSTS
A8: Input Parameters | G8: Step | H8: Iout | I8: Duty Cycle | J8: Current Ripple p-p | K8: Peak Inductor Current | L8: Valley Inductor Current | M8: SW node voltage at Q1 turn-on | N8: IRMS | O8: DCR Loss | P8: Core | Q8: Total Inductor Loss/Diss | R8: Irms | S8: Cout Esr Loss | T8: Total Cout Loss/Diss | U8: Irms | V8: Cin Esr Loss | W8: Total Cin Loss/Diss | X8: Irms | Y8: RDSON Loss | Z8: Transitional Loss (not including capacitive loss) | AA8: MOSFET Output Capacitance Loss | AB8: Dead Time Loss | AC8: Total Top FET Loss/Diss | AD8: Irms | AE8: RDSON Loss | AF8: DeadTime Loss | AG8: Total Bottom FET Diss/Loss | AH8: Shunt Loss (if applicable) | AI8: DeadTime Loss | AJ8: Reverse Recovery Loss | AK8: IQ Loss | AL8: Switching Current Loss | AM8: Switching Current Diss | AN8: Total Part Loss | AO8: Total Loss | AP8: OUTPUT POWER | AQ8: EFF | AR8: Top FET Temp Rise | AS8: Bottom FET Temp Rise | BF8: Qg | BH8: θJA=80 | BI8: θJA=100 | BJ8: θJA=120 | BK8: θJA=140 | BL8: θJA=160 | BM8: θJA=180 | BN8: θJA=20 | BO8: θJA=30 | BP8: θJA=40 | BQ8: θJA=50
A9: Design | B9: Input Value | C9: Units | D9: Description | G9: 0 | H9: =Iout*(G9/200) -> 0 | I9: =(Vout+Rdcr*H9+RdsonBot*H9)/(Vin-RdsonTop*H9+RdsonBot*H9) -> 0.25 | J9: =(Vin-Vout)*I9/(Fsw*Lout2) -> 0.5 | K9: =H9+J9/2 -> 0.25 | L9: =H9-J9/2 -> -0.25 | M9: =IF(MIN(Vin, -L9/(CossTop+CossBot)*0.00000002)<0, 0, MIN(Vin, -L9/(CossTop+CossBot)*0.00000002)) -> 8.620689655 | N9: =SQRT(H9^2+(J9^2)/12) -> 0.1443375673 | O9: =(N9^2*Rdcr*(1+Ltc*Ta-Ltc*25))/(1-N9^2*Rdcr*Ltc*ThetaCa) -> 0.0005146045179 | P9: =Core_Loss -> 0.2 | Q9: =O9+P9 -> 0.2005146045 | R9: =J9/(2*SQRT(3)) -> 0.1443375673 | S9: =RCoutEsr*R9^2 -> 4.166666667e-05 | T9: =S9 -> 4.166666667e-05 | U9: =SQRT(I9)*SQRT(H9^2+(J9^2)/12) -> 0.07216878365 | V9: =RCinEsr*U9^2 -> 1.666666667e-05 | W9: =V9 -> 1.666666667e-05 | X9: =SQRT(I9)*SQRT(H9^2+(J9^2)/12) -> 0.07216878365 | Y9: =RdsonTop*X9^2 -> 4.427083333e-05 | Z9: =IF(L9<0, (Vin*K9*Tf/2)*Fsw, (Vin*L9*Tr/2+Vin*K9*Tf/2)*Fsw) -> 0.004875 | AA9: =(0.5*CossTop*(Vin-M9)^2-0.5*CossBot*(Vin-M9)^2+(QossBot*(Vin-M9)/Vin)*Vin)*Fsw -> 0.00825 | AB9: =IF(L9>0,0,-L9*VsdTop*Deadtime*Fsw) -> 0.00375 | AC9: =(AB9+AA9+Z9+Y9*(1+RdsonTopTc*Ta-RdsonTopTc*25))/(1-Y9*RdsonTopTc*ThetaJaTop) -> 0.01691940566 | AD9: =SQRT(1-I9)*SQRT(H9^2+(J9^2)/12) -> 0.125 | AE9: =RdsonBot*AD9^2 -> 0.0001328125 | AF9: =IF(L9<0, Deadtime*Fsw*IF(VfdSky>0,0,VsdBot)*K9, Deadtime*Fsw*IF(VfdSky>0,0,VsdBot)*(K9+L9)) -> 0.00375 | AG9: =(AF9+AE9*(1+RdsonBotTc*Ta-RdsonBotTc*25))/(1-AE9*RdsonBotTc*ThetaJaBot) -> 0.003882895012 | AH9: =IF(RDSON_sense=1, 0, AD9^2*Rshunt) -> 0 | AI9: =2*Deadtime*Fsw*IF(VfdSky>0,VfdSky,0)*H9 -> 0 | AJ9: =IF(QrrSky>0,QrrSky,QrrBot)*Fsw*(Vin-H9*RdsonTop) -> 0.065 | AK9: =Iq*Vin -> 0.04 | AL9: =IF(Ext_VCC=1, Vdd*(QgTop+QgBot)*Fsw, Vin*(QgTop+QgBot)*Fsw) -> 0.28 | AM9: =(Vin-Vdd)*Fsw*(QgTop+QgBot)+(RdsonDRT+RdsonDRT2)*Fsw*QgTop*Vdd/(RdsonDRT+2*RGateTop+RdsonDRT2)+(RdsonDRB+RdsonDRB2)*Fsw*QgBot*Vdd/(RdsonDRB+2*RGateBot+RdsonDRB2) -> 0.2174837027 | AN9: =SUM(AK9:AL9) -> 0.32 | AO9: =SUM(Q9,T9,W9,AC9,AJ9,AI9,AG9,AN9, AH9) -> 0.6063752385 | AP9: =Vout*H9 -> 0 | AQ9: =AP9/(AP9+AO9) -> 0 | AR9: =ThetaJaTop*AC9 -> 0.7613732547 | AS9: =AG9*ThetaJaBot -> 0.1553158005 | AU9: =AQ9*100 -> 0 | BC9: 250kHz / 5-1.2V /25A | BD9: 70 | BE9: 70 | BF9: 70 | BG9: =250000*(5-Vdd)*BF9/1000000000+((250000*BF9/1000000000*Vdd)*2.5/(2*4)) -> -0.002734375 | BH9: =BH$6*$BG9 -> -0.21875 | BI9: -0.2734375 | BJ9: -0.328125 | BK9: -0.3828125 | BL9: -0.4375 | BM9: -0.4921875 | BN9: -0.0546875 | BO9: -0.08203125 | BP9: -0.109375 | BQ9: -0.13671875
G10: 1 | H10: 0.01 | I10: =(Vout+Rdcr*H10+RdsonBot*H10)/(Vin-RdsonTop*H10+RdsonBot*H10) -> 0.2500166 | J10: 0.5000332 | K10: =H10+J10/2 -> 0.2600166 | L10: =H10-J10/2 -> -0.2400166 | M10: 8.276434483 | N10: 0.1446931239 | O10: =(N10^2*Rdcr*(1+Ltc*Ta-Ltc*25))/(1-N10^2*Rdcr*Ltc*ThetaCa) -> 0.0005171430663 | P10: 0.2 | Q10: =O10+P10 -> 0.2005171431 | R10: =J10/(2*SQRT(3)) -> 0.1443471513 | S10: =RCoutEsr*R10^2 -> 4.167220018e-05 | T10: =S10 -> 4.167220018e-05 | U10: 0.0723489638 | V10: =RCinEsr*U10^2 -> 1.67499922e-05 | W10: =V10 -> 1.67499922e-05 | X10: 0.0723489638 | Y10: =RdsonTop*X10^2 -> 4.449216678e-05 | Z10: 0.0050703237 | AA10: 0.008499585 | AB10: 0.003600249 | AC10: 0.01721478773 | AD10: 0.1253065343 | AE10: =RdsonBot*AD10^2 -> 0.000133464684 | AF10: 0.003900249 | AG10: 0.004033799823 | AH10: 0 | AI10: 0 | AJ10: 0.06499972375 | AK10: 0.04 | AL10: 0.28 | AM10: 0.2174837027 | AN10: =SUM(AK10:AL10) -> 0.32 | AO10: 0.6068238766 | AP10: 0.05 | AQ10: =AP10/(AP10+AO10) -> 0.07612390746 | AR10: 0.774665448 | AS10: =AG10*ThetaJaBot -> 0.1613519929 | AU10: =AQ10*100 -> 7.612390746
